Workbook

Sheet Cover
B3: NEW! - Tool has now been updated to include 207 CCG geography and latest demographic data

Sheet Contents
H10: Evaluate the strength of the CCG similar 10 and apply custom weightings to 12 individual variables to produce a custom similar 10 cluster group for a CCG
H12: Compare the standard CCG similar 10 to a custom similar 10
H14: Look at the closeness ranking of each CCG across all variables
H16: Look at the closeness ranking of a custom similar 10 and the overall ranking average change
H18: Explore the closeness of all CCGs for a single variable
H20: Zoom into the Top 20 closest CCGs for a single variable
H22: View the raw and standardised variable data
H25: View the full methodology behind the calculation of 'closeness'

Sheet Similar 10 CCGs
E4: 1 | F4: 1 | G4: 1 | H4: 1 | I4: 1 | J4: 1 | K4: 1 | L4: 1 | M4: 1 | N4: 1 | O4: 1 | P4: 1
E5: Demographic variables used to calculate the Similar 10 CCGs (comment box shows full variable detail)
E6: Overall deprivation | F6: Health deprivation | G6: Population total | H6: Under 5s | I6: 5-14yrs | J6: 15-24yrs | K6: 75+ | L6: ADSONS | M6: Population density | N6: Population density slope | O6: % Black | P6: % Asian
B7: Standard Similar 10 | C7: =CCG_heatmap!P9 -> 0.2975900641 | D7: =CCG_heatmap!C9 -> NHS East Staffordshire CCG | E7: =ROUND(VLOOKUP($D7,CCG_heatmap!$AL$222:$AX$428,CCG_heatmap!AM$217,FALSE),5) -> 0.00513 | F7: =ROUND(VLOOKUP($D7,CCG_heatmap!$AL$222:$AX$428,CCG_heatmap!AN$217,FALSE),5) -> 0.00406 | G7: =ROUND(VLOOKUP($D7,CCG_heatmap!$AL$222:$AX$428,CCG_heatmap!AO$217,FALSE),5) -> 0.00258 | H7: =ROUND(VLOOKUP($D7,CCG_heatmap!$AL$222:$AX$428,CCG_heatmap!AP$217,FALSE),5) -> 0.02924 | I7: =ROUND(VLOOKUP($D7,CCG_heatmap!$AL$222:$AX$428,CCG_heatmap!AQ$217,FALSE),5) -> 0.00043 | J7: =ROUND(VLOOKUP($D7,CCG_heatmap!$AL$222:$AX$428,CCG_heatmap!AR$217,FALSE),5) -> 0.00491 | K7: =ROUND(VLOOKUP($D7,CCG_heatmap!$AL$222:$AX$428,CCG_heatmap!AS$217,FALSE),5) -> 0.05011 | L7: =ROUND(VLOOKUP($D7,CCG_heatmap!$AL$222:$AX$428,CCG_heatmap!AT$217,FALSE),5) -> 0.00715 | M7: =ROUND(VLOOKUP($D7,CCG_heatmap!$AL$222:$AX$428,CCG_heatmap!AU$217,FALSE),5) -> 0.00071 | N7: =ROUND(VLOOKUP($D7,CCG_heatmap!$AL$222:$AX$428,CCG_heatmap!AV$217,FALSE),5) -> 0.1606 | O7: =ROUND(VLOOKUP($D7,CCG_heatmap!$AL$222:$AX$428,CCG_heatmap!AW$217,FALSE),5) -> 0.00377 | P7: =ROUND(VLOOKUP($D7,CCG_heatmap!$AL$222:$AX$428,CCG_heatmap!AX$217,FALSE),5) -> 0.0289
C8: =CCG_heatmap!P10 -> 0.4378111028 | D8: =CCG_heatmap!C10 -> NHS Newark & Sherwood CCG | E8: =ROUND(VLOOKUP($D8,CCG_heatmap!$AL$222:$AX$428,CCG_heatmap!AM$217,FALSE),5) -> 0.00118 | F8: =ROUND(VLOOKUP($D8,CCG_heatmap!$AL$222:$AX$428,CCG_heatmap!AN$217,FALSE),5) -> 0.00403 | G8: =ROUND(VLOOKUP($D8,CCG_heatmap!$AL$222:$AX$428,CCG_heatmap!AO$217,FALSE),5) -> 0.00485 | H8: =ROUND(VLOOKUP($D8,CCG_heatmap!$AL$222:$AX$428,CCG_heatmap!AP$217,FALSE),5) -> 0.002 | I8: =ROUND(VLOOKUP($D8,CCG_heatmap!$AL$222:$AX$428,CCG_heatmap!AQ$217,FALSE),5) -> 0.07161 | J8: =ROUND(VLOOKUP($D8,CCG_heatmap!$AL$222:$AX$428,CCG_heatmap!AR$217,FALSE),5) -> 0.0013 | K8: =ROUND(VLOOKUP($D8,CCG_heatmap!$AL$222:$AX$428,CCG_heatmap!AS$217,FALSE),5) -> 0.00804 | L8: =ROUND(VLOOKUP($D8,CCG_heatmap!$AL$222:$AX$428,CCG_heatmap!AT$217,FALSE),5) -> 0.01843 | M8: =ROUND(VLOOKUP($D8,CCG_heatmap!$AL$222:$AX$428,CCG_heatmap!AU$217,FALSE),5) -> 0.00013 | N8: =ROUND(VLOOKUP($D8,CCG_heatmap!$AL$222:$AX$428,CCG_heatmap!AV$217,FALSE),5) -> 0.07561 | O8: =ROUND(VLOOKUP($D8,CCG_heatmap!$AL$222:$AX$428,CCG_heatmap!AW$217,FALSE),5) -> 1e-05 | P8: =ROUND(VLOOKUP($D8,CCG_heatmap!$AL$222:$AX$428,CCG_heatmap!AX$217,FALSE),5) -> 0.25063
C9: =CCG_heatmap!P11 -> 0.5449580006 | D9: =CCG_heatmap!C11 -> NHS South West Lincolnshire CCG | E9: =ROUND(VLOOKUP($D9,CCG_heatmap!$AL$222:$AX$428,CCG_heatmap!AM$217,FALSE),5) -> 0.03017 | F9: =ROUND(VLOOKUP($D9,CCG_heatmap!$AL$222:$AX$428,CCG_heatmap!AN$217,FALSE),5) -> 0.08538 | G9: =ROUND(VLOOKUP($D9,CCG_heatmap!$AL$222:$AX$428,CCG_heatmap!AO$217,FALSE),5) -> 0.00503 | H9: =ROUND(VLOOKUP($D9,CCG_heatmap!$AL$222:$AX$428,CCG_heatmap!AP$217,FALSE),5) -> 0.039 | I9: =ROUND(VLOOKUP($D9,CCG_heatmap!$AL$222:$AX$428,CCG_heatmap!AQ$217,FALSE),5) -> 0.03359 | J9: =ROUND(VLOOKUP($D9,CCG_heatmap!$AL$222:$AX$428,CCG_heatmap!AR$217,FALSE),5) -> 0.00015 | K9: =ROUND(VLOOKUP($D9,CCG_heatmap!$AL$222:$AX$428,CCG_heatmap!AS$217,FALSE),5) -> 0.0001 | L9: =ROUND(VLOOKUP($D9,CCG_heatmap!$AL$222:$AX$428,CCG_heatmap!AT$217,FALSE),5) -> 0.08539 | M9: =ROUND(VLOOKUP($D9,CCG_heatmap!$AL$222:$AX$428,CCG_heatmap!AU$217,FALSE),5) -> 3e-05 | N9: =ROUND(VLOOKUP($D9,CCG_heatmap!$AL$222:$AX$428,CCG_heatmap!AV$217,FALSE),5) -> 0.01871 | O9: =ROUND(VLOOKUP($D9,CCG_heatmap!$AL$222:$AX$428,CCG_heatmap!AW$217,FALSE),5) -> 0 | P9: =ROUND(VLOOKUP($D9,CCG_heatmap!$AL$222:$AX$428,CCG_heatmap!AX$217,FALSE),5) -> 0.24742
C10: =CCG_heatmap!P12 -> 0.547130065 | D10: =CCG_heatmap!C12 -> NHS North Lincolnshire CCG | E10: =ROUND(VLOOKUP($D10,CCG_heatmap!$AL$222:$AX$428,CCG_heatmap!AM$217,FALSE),5) -> 0.00931 | F10: =ROUND(VLOOKUP($D10,CCG_heatmap!$AL$222:$AX$428,CCG_heatmap!AN$217,FALSE),5) -> 0.00427 | G10: =ROUND(VLOOKUP($D10,CCG_heatmap!$AL$222:$AX$428,CCG_heatmap!AO$217,FALSE),5) -> 0.00158 | H10: =ROUND(VLOOKUP($D10,CCG_heatmap!$AL$222:$AX$428,CCG_heatmap!AP$217,FALSE),5) -> 0.00021 | I10: =ROUND(VLOOKUP($D10,CCG_heatmap!$AL$222:$AX$428,CCG_heatmap!AQ$217,FALSE),5) -> 0.03635 | J10: =ROUND(VLOOKUP($D10,CCG_heatmap!$AL$222:$AX$428,CCG_heatmap!AR$217,FALSE),5) -> 0.00389 | K10: =ROUND(VLOOKUP($D10,CCG_heatmap!$AL$222:$AX$428,CCG_heatmap!AS$217,FALSE),5) -> 0.01856 | L10: =ROUND(VLOOKUP($D10,CCG_heatmap!$AL$222:$AX$428,CCG_heatmap!AT$217,FALSE),5) -> 0.14609 | M10: =ROUND(VLOOKUP($D10,CCG_heatmap!$AL$222:$AX$428,CCG_heatmap!AU$217,FALSE),5) -> 0.00019 | N10: =ROUND(VLOOKUP($D10,CCG_heatmap!$AL$222:$AX$428,CCG_heatmap!AV$217,FALSE),5) -> 0.16771 | O10: =ROUND(VLOOKUP($D10,CCG_heatmap!$AL$222:$AX$428,CCG_heatmap!AW$217,FALSE),5) -> 5e-05 | P10: =ROUND(VLOOKUP($D10,CCG_heatmap!$AL$222:$AX$428,CCG_heatmap!AX$217,FALSE),5) -> 0.15894
C11: =CCG_heatmap!P13 -> 0.6253768044 | D11: =CCG_heatmap!C13 -> NHS South Lincolnshire CCG | E11: =ROUND(VLOOKUP($D11,CCG_heatmap!$AL$222:$AX$428,CCG_heatmap!AM$217,FALSE),5) -> 0.05836 | F11: =ROUND(VLOOKUP($D11,CCG_heatmap!$AL$222:$AX$428,CCG_heatmap!AN$217,FALSE),5) -> 0.05938 | G11: =ROUND(VLOOKUP($D11,CCG_heatmap!$AL$222:$AX$428,CCG_heatmap!AO$217,FALSE),5) -> 0.00034 | H11: =ROUND(VLOOKUP($D11,CCG_heatmap!$AL$222:$AX$428,CCG_heatmap!AP$217,FALSE),5) -> 0.00806 | I11: =ROUND(VLOOKUP($D11,CCG_heatmap!$AL$222:$AX$428,CCG_heatmap!AQ$217,FALSE),5) -> 0.12546 | J11: =ROUND(VLOOKUP($D11,CCG_heatmap!$AL$222:$AX$428,CCG_heatmap!AR$217,FALSE),5) -> 0.01013 | K11: =ROUND(VLOOKUP($D11,CCG_heatmap!$AL$222:$AX$428,CCG_heatmap!AS$217,FALSE),5) -> 0.01464 | L11: =ROUND(VLOOKUP($D11,CCG_heatmap!$AL$222:$AX$428,CCG_heatmap!AT$217,FALSE),5) -> 0.03532 | M11: =ROUND(VLOOKUP($D11,CCG_heatmap!$AL$222:$AX$428,CCG_heatmap!AU$217,FALSE),5) -> 3e-05 | N11: =ROUND(VLOOKUP($D11,CCG_heatmap!$AL$222:$AX$428,CCG_heatmap!AV$217,FALSE),5) -> 0.0601 | O11: =ROUND(VLOOKUP($D11,CCG_heatmap!$AL$222:$AX$428,CCG_heatmap!AW$217,FALSE),5) -> 4e-05 | P11: =ROUND(VLOOKUP($D11,CCG_heatmap!$AL$222:$AX$428,CCG_heatmap!AX$217,FALSE),5) -> 0.25353
C12: =CCG_heatmap!P14 -> 0.6294379699 | D12: =CCG_heatmap!C14 -> NHS Calderdale CCG | E12: =ROUND(VLOOKUP($D12,CCG_heatmap!$AL$222:$AX$428,CCG_heatmap!AM$217,FALSE),5) -> 0.06298 | F12: =ROUND(VLOOKUP($D12,CCG_heatmap!$AL$222:$AX$428,CCG_heatmap!AN$217,FALSE),5) -> 0.02715 | G12: =ROUND(VLOOKUP($D12,CCG_heatmap!$AL$222:$AX$428,CCG_heatmap!AO$217,FALSE),5) -> 0.02865 | H12: =ROUND(VLOOKUP($D12,CCG_heatmap!$AL$222:$AX$428,CCG_heatmap!AP$217,FALSE),5) -> 0.08995 | I12: =ROUND(VLOOKUP($D12,CCG_heatmap!$AL$222:$AX$428,CCG_heatmap!AQ$217,FALSE),5) -> 0.02706 | J12: =ROUND(VLOOKUP($D12,CCG_heatmap!$AL$222:$AX$428,CCG_heatmap!AR$217,FALSE),5) -> 0.01377 | K12: =ROUND(VLOOKUP($D12,CCG_heatmap!$AL$222:$AX$428,CCG_heatmap!AS$217,FALSE),5) -> 0.16448 | L12: =ROUND(VLOOKUP($D12,CCG_heatmap!$AL$222:$AX$428,CCG_heatmap!AT$217,FALSE),5) -> 0.00174 | M12: =ROUND(VLOOKUP($D12,CCG_heatmap!$AL$222:$AX$428,CCG_heatmap!AU$217,FALSE),5) -> 0.00755 | N12: =ROUND(VLOOKUP($D12,CCG_heatmap!$AL$222:$AX$428,CCG_heatmap!AV$217,FALSE),5) -> 0.20355 | O12: =ROUND(VLOOKUP($D12,CCG_heatmap!$AL$222:$AX$428,CCG_heatmap!AW$217,FALSE),5) -> 0.0002 | P12: =ROUND(VLOOKUP($D12,CCG_heatmap!$AL$222:$AX$428,CCG_heatmap!AX$217,FALSE),5) -> 0.00237
C13: =CCG_heatmap!P15 -> 0.6415684979 | D13: =CCG_heatmap!C15 -> NHS Bassetlaw CCG | E13: =ROUND(VLOOKUP($D13,CCG_heatmap!$AL$222:$AX$428,CCG_heatmap!AM$217,FALSE),5) -> 0.0234 | F13: =ROUND(VLOOKUP($D13,CCG_heatmap!$AL$222:$AX$428,CCG_heatmap!AN$217,FALSE),5) -> 0.0449 | G13: =ROUND(VLOOKUP($D13,CCG_heatmap!$AL$222:$AX$428,CCG_heatmap!AO$217,FALSE),5) -> 0.01388 | H13: =ROUND(VLOOKUP($D13,CCG_heatmap!$AL$222:$AX$428,CCG_heatmap!AP$217,FALSE),5) -> 0.00034 | I13: =ROUND(VLOOKUP($D13,CCG_heatmap!$AL$222:$AX$428,CCG_heatmap!AQ$217,FALSE),5) -> 0.13988 | J13: =ROUND(VLOOKUP($D13,CCG_heatmap!$AL$222:$AX$428,CCG_heatmap!AR$217,FALSE),5) -> 0.01048 | K13: =ROUND(VLOOKUP($D13,CCG_heatmap!$AL$222:$AX$428,CCG_heatmap!AS$217,FALSE),5) -> 0.0175 | L13: =ROUND(VLOOKUP($D13,CCG_heatmap!$AL$222:$AX$428,CCG_heatmap!AT$217,FALSE),5) -> 0.01055 | M13: =ROUND(VLOOKUP($D13,CCG_heatmap!$AL$222:$AX$428,CCG_heatmap!AU$217,FALSE),5) -> 9e-05 | N13: =ROUND(VLOOKUP($D13,CCG_heatmap!$AL$222:$AX$428,CCG_heatmap!AV$217,FALSE),5) -> 0.13423 | O13: =ROUND(VLOOKUP($D13,CCG_heatmap!$AL$222:$AX$428,CCG_heatmap!AW$217,FALSE),5) -> 6e-05 | P13: =ROUND(VLOOKUP($D13,CCG_heatmap!$AL$222:$AX$428,CCG_heatmap!AX$217,FALSE),5) -> 0.24625
C14: =CCG_heatmap!P16 -> 0.6446599775 | D14: =CCG_heatmap!C16 -> NHS South Cheshire CCG | E14: =ROUND(VLOOKUP($D14,CCG_heatmap!$AL$222:$AX$428,CCG_heatmap!AM$217,FALSE),5) -> 0.01635 | F14: =ROUND(VLOOKUP($D14,CCG_heatmap!$AL$222:$AX$428,CCG_heatmap!AN$217,FALSE),5) -> 0.00944 | G14: =ROUND(VLOOKUP($D14,CCG_heatmap!$AL$222:$AX$428,CCG_heatmap!AO$217,FALSE),5) -> 0.00465 | H14: =ROUND(VLOOKUP($D14,CCG_heatmap!$AL$222:$AX$428,CCG_heatmap!AP$217,FALSE),5) -> 0.0006 | I14: =ROUND(VLOOKUP($D14,CCG_heatmap!$AL$222:$AX$428,CCG_heatmap!AQ$217,FALSE),5) -> 0.06136 | J14: =ROUND(VLOOKUP($D14,CCG_heatmap!$AL$222:$AX$428,CCG_heatmap!AR$217,FALSE),5) -> 0.02455 | K14: =ROUND(VLOOKUP($D14,CCG_heatmap!$AL$222:$AX$428,CCG_heatmap!AS$217,FALSE),5) -> 0.02517 | L14: =ROUND(VLOOKUP($D14,CCG_heatmap!$AL$222:$AX$428,CCG_heatmap!AT$217,FALSE),5) -> 0.00551 | M14: =ROUND(VLOOKUP($D14,CCG_heatmap!$AL$222:$AX$428,CCG_heatmap!AU$217,FALSE),5) -> 0.00155 | N14: =ROUND(VLOOKUP($D14,CCG_heatmap!$AL$222:$AX$428,CCG_heatmap!AV$217,FALSE),5) -> 0.258 | O14: =ROUND(VLOOKUP($D14,CCG_heatmap!$AL$222:$AX$428,CCG_heatmap!AW$217,FALSE),5) -> 7e-05 | P14: =ROUND(VLOOKUP($D14,CCG_heatmap!$AL$222:$AX$428,CCG_heatmap!AX$217,FALSE),5) -> 0.23743
C15: =CCG_heatmap!P17 -> 0.6611867064 | D15: =CCG_heatmap!C17 -> NHS Vale Royal CCG | E15: =ROUND(VLOOKUP($D15,CCG_heatmap!$AL$222:$AX$428,CCG_heatmap!AM$217,FALSE),5) -> 0 | F15: =ROUND(VLOOKUP($D15,CCG_heatmap!$AL$222:$AX$428,CCG_heatmap!AN$217,FALSE),5) -> 0.00298 | G15: =ROUND(VLOOKUP($D15,CCG_heatmap!$AL$222:$AX$428,CCG_heatmap!AO$217,FALSE),5) -> 0.02182 | H15: =ROUND(VLOOKUP($D15,CCG_heatmap!$AL$222:$AX$428,CCG_heatmap!AP$217,FALSE),5) -> 0.01639 | I15: =ROUND(VLOOKUP($D15,CCG_heatmap!$AL$222:$AX$428,CCG_heatmap!AQ$217,FALSE),5) -> 0.00173 | J15: =ROUND(VLOOKUP($D15,CCG_heatmap!$AL$222:$AX$428,CCG_heatmap!AR$217,FALSE),5) -> 0.00018 | K15: =ROUND(VLOOKUP($D15,CCG_heatmap!$AL$222:$AX$428,CCG_heatmap!AS$217,FALSE),5) -> 0.09324 | L15: =ROUND(VLOOKUP($D15,CCG_heatmap!$AL$222:$AX$428,CCG_heatmap!AT$217,FALSE),5) -> 0.00314 | M15: =ROUND(VLOOKUP($D15,CCG_heatmap!$AL$222:$AX$428,CCG_heatmap!AU$217,FALSE),5) -> 0.00311 | N15: =ROUND(VLOOKUP($D15,CCG_heatmap!$AL$222:$AX$428,CCG_heatmap!AV$217,FALSE),5) -> 0.2678 | O15: =ROUND(VLOOKUP($D15,CCG_heatmap!$AL$222:$AX$428,CCG_heatmap!AW$217,FALSE),5) -> 0.00047 | P15: =ROUND(VLOOKUP($D15,CCG_heatmap!$AL$222:$AX$428,CCG_heatmap!AX$217,FALSE),5) -> 0.25033
C16: =CCG_heatmap!P18 -> 0.6645837412 | D16: =CCG_heatmap!C18 -> NHS Ashford CCG | E16: =ROUND(VLOOKUP($D16,CCG_heatmap!$AL$222:$AX$428,CCG_heatmap!AM$217,FALSE),5) -> 0.00907 | F16: =ROUND(VLOOKUP($D16,CCG_heatmap!$AL$222:$AX$428,CCG_heatmap!AN$217,FALSE),5) -> 0.15492 | G16: =ROUND(VLOOKUP($D16,CCG_heatmap!$AL$222:$AX$428,CCG_heatmap!AO$217,FALSE),5) -> 0.00571 | H16: =ROUND(VLOOKUP($D16,CCG_heatmap!$AL$222:$AX$428,CCG_heatmap!AP$217,FALSE),5) -> 0.11138 | I16: =ROUND(VLOOKUP($D16,CCG_heatmap!$AL$222:$AX$428,CCG_heatmap!AQ$217,FALSE),5) -> 0.05322 | J16: =ROUND(VLOOKUP($D16,CCG_heatmap!$AL$222:$AX$428,CCG_heatmap!AR$217,FALSE),5) -> 0.06344 | K16: =ROUND(VLOOKUP($D16,CCG_heatmap!$AL$222:$AX$428,CCG_heatmap!AS$217,FALSE),5) -> 0.09716 | L16: =ROUND(VLOOKUP($D16,CCG_heatmap!$AL$222:$AX$428,CCG_heatmap!AT$217,FALSE),5) -> 0.00793 | M16: =ROUND(VLOOKUP($D16,CCG_heatmap!$AL$222:$AX$428,CCG_heatmap!AU$217,FALSE),5) -> 0.00027 | N16: =ROUND(VLOOKUP($D16,CCG_heatmap!$AL$222:$AX$428,CCG_heatmap!AV$217,FALSE),5) -> 0.0211 | O16: =ROUND(VLOOKUP($D16,CCG_heatmap!$AL$222:$AX$428,CCG_heatmap!AW$217,FALSE),5) -> 0.00854 | P16: =ROUND(VLOOKUP($D16,CCG_heatmap!$AL$222:$AX$428,CCG_heatmap!AX$217,FALSE),5) -> 0.13184
D18: Cluster improvement indicator | E18: =IFERROR(ROUND(AVERAGE(E7:E16),5)-ROUND(AVERAGE(E20:E29),5),0) -> 0 | F18: =IFERROR(ROUND(AVERAGE(F7:F16),5)-ROUND(AVERAGE(F20:F29),5),0) -> 0 | G18: 0 | H18: 0 | I18: 0 | J18: 0 | K18: 0 | L18: 0 | M18: 0 | N18: 0 | O18: 0 | P18: 0
B20: Custom Similar 10 | C20: =IFERROR(CCG_heatmap!AH222,"") -> 0.2975900641 | D20: =IFERROR(CCG_heatmap!U222,"") -> NHS East Staffordshire CCG | E20: =IFERROR(ROUND(VLOOKUP($D20,CCG_heatmap!$C$218:$Q$424,CCG_heatmap!D$216,FALSE),5)/E$4,"") -> 0.00513 | F20: =IFERROR(ROUND(VLOOKUP($D20,CCG_heatmap!$C$218:$Q$424,CCG_heatmap!E$216,FALSE),5)/F$4,"") -> 0.00406 | G20: =IFERROR(ROUND(VLOOKUP($D20,CCG_heatmap!$C$218:$Q$424,CCG_heatmap!F$216,FALSE),5)/G$4,"") -> 0.00258 | H20: =IFERROR(ROUND(VLOOKUP($D20,CCG_heatmap!$C$218:$Q$424,CCG_heatmap!G$216,FALSE),5)/H$4,"") -> 0.02924 | I20: =IFERROR(ROUND(VLOOKUP($D20,CCG_heatmap!$C$218:$Q$424,CCG_heatmap!H$216,FALSE),5)/I$4,"") -> 0.00043 | J20: =IFERROR(ROUND(VLOOKUP($D20,CCG_heatmap!$C$218:$Q$424,CCG_heatmap!I$216,FALSE),5)/J$4,"") -> 0.00491 | K20: =IFERROR(ROUND(VLOOKUP($D20,CCG_heatmap!$C$218:$Q$424,CCG_heatmap!J$216,FALSE),5)/K$4,"") -> 0.05011 | L20: =IFERROR(ROUND(VLOOKUP($D20,CCG_heatmap!$C$218:$Q$424,CCG_heatmap!K$216,FALSE),5)/L$4,"") -> 0.00715 | M20: =IFERROR(ROUND(VLOOKUP($D20,CCG_heatmap!$C$218:$Q$424,CCG_heatmap!L$216,FALSE),5)/M$4,"") -> 0.00071 | N20: =IFERROR(ROUND(VLOOKUP($D20,CCG_heatmap!$C$218:$Q$424,CCG_heatmap!M$216,FALSE),5)/N$4,"") -> 0.1606 | O20: =IFERROR(ROUND(VLOOKUP($D20,CCG_heatmap!$C$218:$Q$424,CCG_heatmap!N$216,FALSE),5)/O$4,"") -> 0.00377 | P20: =IFERROR(ROUND(VLOOKUP($D20,CCG_heatmap!$C$218:$Q$424,CCG_heatmap!O$216,FALSE),5)/P$4,"") -> 0.0289
C21: =IFERROR(CCG_heatmap!AH223,"") -> 0.4378111028 | D21: =IFERROR(CCG_heatmap!U223,"") -> NHS Newark & Sherwood CCG | E21: =IFERROR(ROUND(VLOOKUP($D21,CCG_heatmap!$C$218:$Q$424,CCG_heatmap!D$216,FALSE),5)/E$4,"") -> 0.00118 | F21: =IFERROR(ROUND(VLOOKUP($D21,CCG_heatmap!$C$218:$Q$424,CCG_heatmap!E$216,FALSE),5)/F$4,"") -> 0.00403 | G21: =IFERROR(ROUND(VLOOKUP($D21,CCG_heatmap!$C$218:$Q$424,CCG_heatmap!F$216,FALSE),5)/G$4,"") -> 0.00485 | H21: =IFERROR(ROUND(VLOOKUP($D21,CCG_heatmap!$C$218:$Q$424,CCG_heatmap!G$216,FALSE),5)/H$4,"") -> 0.002 | I21: =IFERROR(ROUND(VLOOKUP($D21,CCG_heatmap!$C$218:$Q$424,CCG_heatmap!H$216,FALSE),5)/I$4,"") -> 0.07161 | J21: =IFERROR(ROUND(VLOOKUP($D21,CCG_heatmap!$C$218:$Q$424,CCG_heatmap!I$216,FALSE),5)/J$4,"") -> 0.0013 | K21: =IFERROR(ROUND(VLOOKUP($D21,CCG_heatmap!$C$218:$Q$424,CCG_heatmap!J$216,FALSE),5)/K$4,"") -> 0.00804 | L21: =IFERROR(ROUND(VLOOKUP($D21,CCG_heatmap!$C$218:$Q$424,CCG_heatmap!K$216,FALSE),5)/L$4,"") -> 0.01843 | M21: =IFERROR(ROUND(VLOOKUP($D21,CCG_heatmap!$C$218:$Q$424,CCG_heatmap!L$216,FALSE),5)/M$4,"") -> 0.00013 | N21: =IFERROR(ROUND(VLOOKUP($D21,CCG_heatmap!$C$218:$Q$424,CCG_heatmap!M$216,FALSE),5)/N$4,"") -> 0.07561 | O21: =IFERROR(ROUND(VLOOKUP($D21,CCG_heatmap!$C$218:$Q$424,CCG_heatmap!N$216,FALSE),5)/O$4,"") -> 1e-05 | P21: =IFERROR(ROUND(VLOOKUP($D21,CCG_heatmap!$C$218:$Q$424,CCG_heatmap!O$216,FALSE),5)/P$4,"") -> 0.25063
C22: =IFERROR(CCG_heatmap!AH224,"") -> 0.5449580006 | D22: =IFERROR(CCG_heatmap!U224,"") -> NHS South West Lincolnshire CCG | E22: =IFERROR(ROUND(VLOOKUP($D22,CCG_heatmap!$C$218:$Q$424,CCG_heatmap!D$216,FALSE),5)/E$4,"") -> 0.03017 | F22: =IFERROR(ROUND(VLOOKUP($D22,CCG_heatmap!$C$218:$Q$424,CCG_heatmap!E$216,FALSE),5)/F$4,"") -> 0.08538 | G22: =IFERROR(ROUND(VLOOKUP($D22,CCG_heatmap!$C$218:$Q$424,CCG_heatmap!F$216,FALSE),5)/G$4,"") -> 0.00503 | H22: =IFERROR(ROUND(VLOOKUP($D22,CCG_heatmap!$C$218:$Q$424,CCG_heatmap!G$216,FALSE),5)/H$4,"") -> 0.039 | I22: =IFERROR(ROUND(VLOOKUP($D22,CCG_heatmap!$C$218:$Q$424,CCG_heatmap!H$216,FALSE),5)/I$4,"") -> 0.03359 | J22: =IFERROR(ROUND(VLOOKUP($D22,CCG_heatmap!$C$218:$Q$424,CCG_heatmap!I$216,FALSE),5)/J$4,"") -> 0.00015 | K22: =IFERROR(ROUND(VLOOKUP($D22,CCG_heatmap!$C$218:$Q$424,CCG_heatmap!J$216,FALSE),5)/K$4,"") -> 0.0001 | L22: =IFERROR(ROUND(VLOOKUP($D22,CCG_heatmap!$C$218:$Q$424,CCG_heatmap!K$216,FALSE),5)/L$4,"") -> 0.08539 | M22: =IFERROR(ROUND(VLOOKUP($D22,CCG_heatmap!$C$218:$Q$424,CCG_heatmap!L$216,FALSE),5)/M$4,"") -> 3e-05 | N22: =IFERROR(ROUND(VLOOKUP($D22,CCG_heatmap!$C$218:$Q$424,CCG_heatmap!M$216,FALSE),5)/N$4,"") -> 0.01871 | O22: =IFERROR(ROUND(VLOOKUP($D22,CCG_heatmap!$C$218:$Q$424,CCG_heatmap!N$216,FALSE),5)/O$4,"") -> 0 | P22: =IFERROR(ROUND(VLOOKUP($D22,CCG_heatmap!$C$218:$Q$424,CCG_heatmap!O$216,FALSE),5)/P$4,"") -> 0.24742
C23: =IFERROR(CCG_heatmap!AH225,"") -> 0.547130065 | D23: =IFERROR(CCG_heatmap!U225,"") -> NHS North Lincolnshire CCG | E23: =IFERROR(ROUND(VLOOKUP($D23,CCG_heatmap!$C$218:$Q$424,CCG_heatmap!D$216,FALSE),5)/E$4,"") -> 0.00931 | F23: =IFERROR(ROUND(VLOOKUP($D23,CCG_heatmap!$C$218:$Q$424,CCG_heatmap!E$216,FALSE),5)/F$4,"") -> 0.00427 | G23: =IFERROR(ROUND(VLOOKUP($D23,CCG_heatmap!$C$218:$Q$424,CCG_heatmap!F$216,FALSE),5)/G$4,"") -> 0.00158 | H23: =IFERROR(ROUND(VLOOKUP($D23,CCG_heatmap!$C$218:$Q$424,CCG_heatmap!G$216,FALSE),5)/H$4,"") -> 0.00021 | I23: =IFERROR(ROUND(VLOOKUP($D23,CCG_heatmap!$C$218:$Q$424,CCG_heatmap!H$216,FALSE),5)/I$4,"") -> 0.03635 | J23: =IFERROR(ROUND(VLOOKUP($D23,CCG_heatmap!$C$218:$Q$424,CCG_heatmap!I$216,FALSE),5)/J$4,"") -> 0.00389 | K23: =IFERROR(ROUND(VLOOKUP($D23,CCG_heatmap!$C$218:$Q$424,CCG_heatmap!J$216,FALSE),5)/K$4,"") -> 0.01856 | L23: =IFERROR(ROUND(VLOOKUP($D23,CCG_heatmap!$C$218:$Q$424,CCG_heatmap!K$216,FALSE),5)/L$4,"") -> 0.14609 | M23: =IFERROR(ROUND(VLOOKUP($D23,CCG_heatmap!$C$218:$Q$424,CCG_heatmap!L$216,FALSE),5)/M$4,"") -> 0.00019 | N23: =IFERROR(ROUND(VLOOKUP($D23,CCG_heatmap!$C$218:$Q$424,CCG_heatmap!M$216,FALSE),5)/N$4,"") -> 0.16771 | O23: =IFERROR(ROUND(VLOOKUP($D23,CCG_heatmap!$C$218:$Q$424,CCG_heatmap!N$216,FALSE),5)/O$4,"") -> 5e-05 | P23: =IFERROR(ROUND(VLOOKUP($D23,CCG_heatmap!$C$218:$Q$424,CCG_heatmap!O$216,FALSE),5)/P$4,"") -> 0.15894
C24: =IFERROR(CCG_heatmap!AH226,"") -> 0.6253768044 | D24: =IFERROR(CCG_heatmap!U226,"") -> NHS South Lincolnshire CCG | E24: =IFERROR(ROUND(VLOOKUP($D24,CCG_heatmap!$C$218:$Q$424,CCG_heatmap!D$216,FALSE),5)/E$4,"") -> 0.05836 | F24: =IFERROR(ROUND(VLOOKUP($D24,CCG_heatmap!$C$218:$Q$424,CCG_heatmap!E$216,FALSE),5)/F$4,"") -> 0.05938 | G24: =IFERROR(ROUND(VLOOKUP($D24,CCG_heatmap!$C$218:$Q$424,CCG_heatmap!F$216,FALSE),5)/G$4,"") -> 0.00034 | H24: =IFERROR(ROUND(VLOOKUP($D24,CCG_heatmap!$C$218:$Q$424,CCG_heatmap!G$216,FALSE),5)/H$4,"") -> 0.00806 | I24: =IFERROR(ROUND(VLOOKUP($D24,CCG_heatmap!$C$218:$Q$424,CCG_heatmap!H$216,FALSE),5)/I$4,"") -> 0.12546 | J24: =IFERROR(ROUND(VLOOKUP($D24,CCG_heatmap!$C$218:$Q$424,CCG_heatmap!I$216,FALSE),5)/J$4,"") -> 0.01013 | K24: =IFERROR(ROUND(VLOOKUP($D24,CCG_heatmap!$C$218:$Q$424,CCG_heatmap!J$216,FALSE),5)/K$4,"") -> 0.01464 | L24: =IFERROR(ROUND(VLOOKUP($D24,CCG_heatmap!$C$218:$Q$424,CCG_heatmap!K$216,FALSE),5)/L$4,"") -> 0.03532 | M24: =IFERROR(ROUND(VLOOKUP($D24,CCG_heatmap!$C$218:$Q$424,CCG_heatmap!L$216,FALSE),5)/M$4,"") -> 3e-05 | N24: =IFERROR(ROUND(VLOOKUP($D24,CCG_heatmap!$C$218:$Q$424,CCG_heatmap!M$216,FALSE),5)/N$4,"") -> 0.0601 | O24: =IFERROR(ROUND(VLOOKUP($D24,CCG_heatmap!$C$218:$Q$424,CCG_heatmap!N$216,FALSE),5)/O$4,"") -> 4e-05 | P24: =IFERROR(ROUND(VLOOKUP($D24,CCG_heatmap!$C$218:$Q$424,CCG_heatmap!O$216,FALSE),5)/P$4,"") -> 0.25353
C25: =IFERROR(CCG_heatmap!AH227,"") -> 0.6294379699 | D25: =IFERROR(CCG_heatmap!U227,"") -> NHS Calderdale CCG | E25: =IFERROR(ROUND(VLOOKUP($D25,CCG_heatmap!$C$218:$Q$424,CCG_heatmap!D$216,FALSE),5)/E$4,"") -> 0.06298 | F25: =IFERROR(ROUND(VLOOKUP($D25,CCG_heatmap!$C$218:$Q$424,CCG_heatmap!E$216,FALSE),5)/F$4,"") -> 0.02715 | G25: =IFERROR(ROUND(VLOOKUP($D25,CCG_heatmap!$C$218:$Q$424,CCG_heatmap!F$216,FALSE),5)/G$4,"") -> 0.02865 | H25: =IFERROR(ROUND(VLOOKUP($D25,CCG_heatmap!$C$218:$Q$424,CCG_heatmap!G$216,FALSE),5)/H$4,"") -> 0.08995 | I25: =IFERROR(ROUND(VLOOKUP($D25,CCG_heatmap!$C$218:$Q$424,CCG_heatmap!H$216,FALSE),5)/I$4,"") -> 0.02706 | J25: =IFERROR(ROUND(VLOOKUP($D25,CCG_heatmap!$C$218:$Q$424,CCG_heatmap!I$216,FALSE),5)/J$4,"") -> 0.01377 | K25: =IFERROR(ROUND(VLOOKUP($D25,CCG_heatmap!$C$218:$Q$424,CCG_heatmap!J$216,FALSE),5)/K$4,"") -> 0.16448 | L25: =IFERROR(ROUND(VLOOKUP($D25,CCG_heatmap!$C$218:$Q$424,CCG_heatmap!K$216,FALSE),5)/L$4,"") -> 0.00174 | M25: =IFERROR(ROUND(VLOOKUP($D25,CCG_heatmap!$C$218:$Q$424,CCG_heatmap!L$216,FALSE),5)/M$4,"") -> 0.00755 | N25: =IFERROR(ROUND(VLOOKUP($D25,CCG_heatmap!$C$218:$Q$424,CCG_heatmap!M$216,FALSE),5)/N$4,"") -> 0.20355 | O25: =IFERROR(ROUND(VLOOKUP($D25,CCG_heatmap!$C$218:$Q$424,CCG_heatmap!N$216,FALSE),5)/O$4,"") -> 0.0002 | P25: =IFERROR(ROUND(VLOOKUP($D25,CCG_heatmap!$C$218:$Q$424,CCG_heatmap!O$216,FALSE),5)/P$4,"") -> 0.00237
C26: =IFERROR(CCG_heatmap!AH228,"") -> 0.6415684979 | D26: =IFERROR(CCG_heatmap!U228,"") -> NHS Bassetlaw CCG | E26: =IFERROR(ROUND(VLOOKUP($D26,CCG_heatmap!$C$218:$Q$424,CCG_heatmap!D$216,FALSE),5)/E$4,"") -> 0.0234 | F26: =IFERROR(ROUND(VLOOKUP($D26,CCG_heatmap!$C$218:$Q$424,CCG_heatmap!E$216,FALSE),5)/F$4,"") -> 0.0449 | G26: =IFERROR(ROUND(VLOOKUP($D26,CCG_heatmap!$C$218:$Q$424,CCG_heatmap!F$216,FALSE),5)/G$4,"") -> 0.01388 | H26: =IFERROR(ROUND(VLOOKUP($D26,CCG_heatmap!$C$218:$Q$424,CCG_heatmap!G$216,FALSE),5)/H$4,"") -> 0.00034 | I26: =IFERROR(ROUND(VLOOKUP($D26,CCG_heatmap!$C$218:$Q$424,CCG_heatmap!H$216,FALSE),5)/I$4,"") -> 0.13988 | J26: =IFERROR(ROUND(VLOOKUP($D26,CCG_heatmap!$C$218:$Q$424,CCG_heatmap!I$216,FALSE),5)/J$4,"") -> 0.01048 | K26: =IFERROR(ROUND(VLOOKUP($D26,CCG_heatmap!$C$218:$Q$424,CCG_heatmap!J$216,FALSE),5)/K$4,"") -> 0.0175 | L26: =IFERROR(ROUND(VLOOKUP($D26,CCG_heatmap!$C$218:$Q$424,CCG_heatmap!K$216,FALSE),5)/L$4,"") -> 0.01055 | M26: =IFERROR(ROUND(VLOOKUP($D26,CCG_heatmap!$C$218:$Q$424,CCG_heatmap!L$216,FALSE),5)/M$4,"") -> 9e-05 | N26: =IFERROR(ROUND(VLOOKUP($D26,CCG_heatmap!$C$218:$Q$424,CCG_heatmap!M$216,FALSE),5)/N$4,"") -> 0.13423 | O26: =IFERROR(ROUND(VLOOKUP($D26,CCG_heatmap!$C$218:$Q$424,CCG_heatmap!N$216,FALSE),5)/O$4,"") -> 6e-05 | P26: =IFERROR(ROUND(VLOOKUP($D26,CCG_heatmap!$C$218:$Q$424,CCG_heatmap!O$216,FALSE),5)/P$4,"") -> 0.24625
C27: =IFERROR(CCG_heatmap!AH229,"") -> 0.6446599775 | D27: =IFERROR(CCG_heatmap!U229,"") -> NHS South Cheshire CCG | E27: =IFERROR(ROUND(VLOOKUP($D27,CCG_heatmap!$C$218:$Q$424,CCG_heatmap!D$216,FALSE),5)/E$4,"") -> 0.01635 | F27: =IFERROR(ROUND(VLOOKUP($D27,CCG_heatmap!$C$218:$Q$424,CCG_heatmap!E$216,FALSE),5)/F$4,"") -> 0.00944 | G27: =IFERROR(ROUND(VLOOKUP($D27,CCG_heatmap!$C$218:$Q$424,CCG_heatmap!F$216,FALSE),5)/G$4,"") -> 0.00465 | H27: =IFERROR(ROUND(VLOOKUP($D27,CCG_heatmap!$C$218:$Q$424,CCG_heatmap!G$216,FALSE),5)/H$4,"") -> 0.0006 | I27: =IFERROR(ROUND(VLOOKUP($D27,CCG_heatmap!$C$218:$Q$424,CCG_heatmap!H$216,FALSE),5)/I$4,"") -> 0.06136 | J27: =IFERROR(ROUND(VLOOKUP($D27,CCG_heatmap!$C$218:$Q$424,CCG_heatmap!I$216,FALSE),5)/J$4,"") -> 0.02455 | K27: =IFERROR(ROUND(VLOOKUP($D27,CCG_heatmap!$C$218:$Q$424,CCG_heatmap!J$216,FALSE),5)/K$4,"") -> 0.02517 | L27: =IFERROR(ROUND(VLOOKUP($D27,CCG_heatmap!$C$218:$Q$424,CCG_heatmap!K$216,FALSE),5)/L$4,"") -> 0.00551 | M27: =IFERROR(ROUND(VLOOKUP($D27,CCG_heatmap!$C$218:$Q$424,CCG_heatmap!L$216,FALSE),5)/M$4,"") -> 0.00155 | N27: =IFERROR(ROUND(VLOOKUP($D27,CCG_heatmap!$C$218:$Q$424,CCG_heatmap!M$216,FALSE),5)/N$4,"") -> 0.258 | O27: =IFERROR(ROUND(VLOOKUP($D27,CCG_heatmap!$C$218:$Q$424,CCG_heatmap!N$216,FALSE),5)/O$4,"") -> 7e-05 | P27: =IFERROR(ROUND(VLOOKUP($D27,CCG_heatmap!$C$218:$Q$424,CCG_heatmap!O$216,FALSE),5)/P$4,"") -> 0.23743
C28: =IFERROR(CCG_heatmap!AH230,"") -> 0.6611867064 | D28: =IFERROR(CCG_heatmap!U230,"") -> NHS Vale Royal CCG | E28: =IFERROR(ROUND(VLOOKUP($D28,CCG_heatmap!$C$218:$Q$424,CCG_heatmap!D$216,FALSE),5)/E$4,"") -> 0 | F28: =IFERROR(ROUND(VLOOKUP($D28,CCG_heatmap!$C$218:$Q$424,CCG_heatmap!E$216,FALSE),5)/F$4,"") -> 0.00298 | G28: =IFERROR(ROUND(VLOOKUP($D28,CCG_heatmap!$C$218:$Q$424,CCG_heatmap!F$216,FALSE),5)/G$4,"") -> 0.02182 | H28: =IFERROR(ROUND(VLOOKUP($D28,CCG_heatmap!$C$218:$Q$424,CCG_heatmap!G$216,FALSE),5)/H$4,"") -> 0.01639 | I28: =IFERROR(ROUND(VLOOKUP($D28,CCG_heatmap!$C$218:$Q$424,CCG_heatmap!H$216,FALSE),5)/I$4,"") -> 0.00173 | J28: =IFERROR(ROUND(VLOOKUP($D28,CCG_heatmap!$C$218:$Q$424,CCG_heatmap!I$216,FALSE),5)/J$4,"") -> 0.00018 | K28: =IFERROR(ROUND(VLOOKUP($D28,CCG_heatmap!$C$218:$Q$424,CCG_heatmap!J$216,FALSE),5)/K$4,"") -> 0.09324 | L28: =IFERROR(ROUND(VLOOKUP($D28,CCG_heatmap!$C$218:$Q$424,CCG_heatmap!K$216,FALSE),5)/L$4,"") -> 0.00314 | M28: =IFERROR(ROUND(VLOOKUP($D28,CCG_heatmap!$C$218:$Q$424,CCG_heatmap!L$216,FALSE),5)/M$4,"") -> 0.00311 | N28: =IFERROR(ROUND(VLOOKUP($D28,CCG_heatmap!$C$218:$Q$424,CCG_heatmap!M$216,FALSE),5)/N$4,"") -> 0.2678 | O28: =IFERROR(ROUND(VLOOKUP($D28,CCG_heatmap!$C$218:$Q$424,CCG_heatmap!N$216,FALSE),5)/O$4,"") -> 0.00047 | P28: =IFERROR(ROUND(VLOOKUP($D28,CCG_heatmap!$C$218:$Q$424,CCG_heatmap!O$216,FALSE),5)/P$4,"") -> 0.25033
C29: =IFERROR(CCG_heatmap!AH231,"") -> 0.6645837412 | D29: =IFERROR(CCG_heatmap!U231,"") -> NHS Ashford CCG | E29: =IFERROR(ROUND(VLOOKUP($D29,CCG_heatmap!$C$218:$Q$424,CCG_heatmap!D$216,FALSE),5)/E$4,"") -> 0.00907 | F29: =IFERROR(ROUND(VLOOKUP($D29,CCG_heatmap!$C$218:$Q$424,CCG_heatmap!E$216,FALSE),5)/F$4,"") -> 0.15492 | G29: =IFERROR(ROUND(VLOOKUP($D29,CCG_heatmap!$C$218:$Q$424,CCG_heatmap!F$216,FALSE),5)/G$4,"") -> 0.00571 | H29: =IFERROR(ROUND(VLOOKUP($D29,CCG_heatmap!$C$218:$Q$424,CCG_heatmap!G$216,FALSE),5)/H$4,"") -> 0.11138 | I29: =IFERROR(ROUND(VLOOKUP($D29,CCG_heatmap!$C$218:$Q$424,CCG_heatmap!H$216,FALSE),5)/I$4,"") -> 0.05322 | J29: =IFERROR(ROUND(VLOOKUP($D29,CCG_heatmap!$C$218:$Q$424,CCG_heatmap!I$216,FALSE),5)/J$4,"") -> 0.06344 | K29: =IFERROR(ROUND(VLOOKUP($D29,CCG_heatmap!$C$218:$Q$424,CCG_heatmap!J$216,FALSE),5)/K$4,"") -> 0.09716 | L29: =IFERROR(ROUND(VLOOKUP($D29,CCG_heatmap!$C$218:$Q$424,CCG_heatmap!K$216,FALSE),5)/L$4,"") -> 0.00793 | M29: =IFERROR(ROUND(VLOOKUP($D29,CCG_heatmap!$C$218:$Q$424,CCG_heatmap!L$216,FALSE),5)/M$4,"") -> 0.00027 | N29: =IFERROR(ROUND(VLOOKUP($D29,CCG_heatmap!$C$218:$Q$424,CCG_heatmap!M$216,FALSE),5)/N$4,"") -> 0.0211 | O29: =IFERROR(ROUND(VLOOKUP($D29,CCG_heatmap!$C$218:$Q$424,CCG_heatmap!N$216,FALSE),5)/O$4,"") -> 0.00854 | P29: =IFERROR(ROUND(VLOOKUP($D29,CCG_heatmap!$C$218:$Q$424,CCG_heatmap!O$216,FALSE),5)/P$4,"") -> 0.13184

Sheet Similar 10 and all CCGs
B10: 1 | C10: =CCG_heatmap!$C9 -> NHS East Staffordshire CCG | D10: =IF(COUNTIF(Similar_10_table_ref!$C$4:$C$13,$C10)=0,0,"") ->  | E10: =VLOOKUP($C10,'Similar 10 and all CCGs'!$H$25:$J$230,3,FALSE) -> 0 | F10: 2 | G10: 1 | H10: =IFERROR(INDEX(CCG_heatmap!$C$218:$C$424,MATCH(F10,CCG_heatmap!$Q$218:$Q$424,0),0),'Similar 10 and all CCGs'!C10) -> NHS East Staffordshire CCG | I10: =IF(COUNTIF(Similar_10_table_ref!$B$4:$B$13,$H10)=0,1,"") ->  | J10: =VLOOKUP($H10,'Similar 10 and all CCGs'!$H$25:$J$230,3,FALSE) -> 0
B11: 2 | C11: =CCG_heatmap!$C10 -> NHS Newark & Sherwood CCG | D11: =IF(COUNTIF(Similar_10_table_ref!$C$4:$C$13,$C11)=0,0,"") ->  | E11: =VLOOKUP($C11,'Similar 10 and all CCGs'!$H$25:$J$230,3,FALSE) -> 0 | F11: 3 | G11: 2 | H11: =IFERROR(INDEX(CCG_heatmap!$C$218:$C$424,MATCH(F11,CCG_heatmap!$Q$218:$Q$424,0),0),'Similar 10 and all CCGs'!C11) -> NHS Newark & Sherwood CCG | I11: =IF(COUNTIF(Similar_10_table_ref!$B$4:$B$13,$H11)=0,1,"") ->  | J11: =VLOOKUP($H11,'Similar 10 and all CCGs'!$H$25:$J$230,3,FALSE) -> 0
B12: 3 | C12: =CCG_heatmap!$C11 -> NHS South West Lincolnshire CCG | D12: =IF(COUNTIF(Similar_10_table_ref!$C$4:$C$13,$C12)=0,0,"") ->  | E12: =VLOOKUP($C12,'Similar 10 and all CCGs'!$H$25:$J$230,3,FALSE) -> 0 | F12: 4 | G12: 3 | H12: =IFERROR(INDEX(CCG_heatmap!$C$218:$C$424,MATCH(F12,CCG_heatmap!$Q$218:$Q$424,0),0),'Similar 10 and all CCGs'!C12) -> NHS South West Lincolnshire CCG | I12: =IF(COUNTIF(Similar_10_table_ref!$B$4:$B$13,$H12)=0,1,"") ->  | J12: =VLOOKUP($H12,'Similar 10 and all CCGs'!$H$25:$J$230,3,FALSE) -> 0
B13: 4 | C13: =CCG_heatmap!$C12 -> NHS North Lincolnshire CCG | D13: =IF(COUNTIF(Similar_10_table_ref!$C$4:$C$13,$C13)=0,0,"") ->  | E13: =VLOOKUP($C13,'Similar 10 and all CCGs'!$H$25:$J$230,3,FALSE) -> 0 | F13: 5 | G13: 4 | H13: =IFERROR(INDEX(CCG_heatmap!$C$218:$C$424,MATCH(F13,CCG_heatmap!$Q$218:$Q$424,0),0),'Similar 10 and all CCGs'!C13) -> NHS North Lincolnshire CCG | I13: =IF(COUNTIF(Similar_10_table_ref!$B$4:$B$13,$H13)=0,1,"") ->  | J13: =VLOOKUP($H13,'Similar 10 and all CCGs'!$H$25:$J$230,3,FALSE) -> 0
B14: 5 | C14: =CCG_heatmap!$C13 -> NHS South Lincolnshire CCG | D14: =IF(COUNTIF(Similar_10_table_ref!$C$4:$C$13,$C14)=0,0,"") ->  | E14: =VLOOKUP($C14,'Similar 10 and all CCGs'!$H$25:$J$230,3,FALSE) -> 0 | F14: 6 | G14: 5 | H14: =IFERROR(INDEX(CCG_heatmap!$C$218:$C$424,MATCH(F14,CCG_heatmap!$Q$218:$Q$424,0),0),'Similar 10 and all CCGs'!C14) -> NHS South Lincolnshire CCG | I14: =IF(COUNTIF(Similar_10_table_ref!$B$4:$B$13,$H14)=0,1,"") ->  | J14: =VLOOKUP($H14,'Similar 10 and all CCGs'!$H$25:$J$230,3,FALSE) -> 0
B15: 6 | C15: =CCG_heatmap!$C14 -> NHS Calderdale CCG | D15: =IF(COUNTIF(Similar_10_table_ref!$C$4:$C$13,$C15)=0,0,"") ->  | E15: =VLOOKUP($C15,'Similar 10 and all CCGs'!$H$25:$J$230,3,FALSE) -> 0 | F15: 7 | G15: 6 | H15: =IFERROR(INDEX(CCG_heatmap!$C$218:$C$424,MATCH(F15,CCG_heatmap!$Q$218:$Q$424,0),0),'Similar 10 and all CCGs'!C15) -> NHS Calderdale CCG | I15: =IF(COUNTIF(Similar_10_table_ref!$B$4:$B$13,$H15)=0,1,"") ->  | J15: =VLOOKUP($H15,'Similar 10 and all CCGs'!$H$25:$J$230,3,FALSE) -> 0
B16: 7 | C16: =CCG_heatmap!$C15 -> NHS Bassetlaw CCG | D16: =IF(COUNTIF(Similar_10_table_ref!$C$4:$C$13,$C16)=0,0,"") ->  | E16: =VLOOKUP($C16,'Similar 10 and all CCGs'!$H$25:$J$230,3,FALSE) -> 0 | F16: 8 | G16: 7 | H16: =IFERROR(INDEX(CCG_heatmap!$C$218:$C$424,MATCH(F16,CCG_heatmap!$Q$218:$Q$424,0),0),'Similar 10 and all CCGs'!C16) -> NHS Bassetlaw CCG | I16: =IF(COUNTIF(Similar_10_table_ref!$B$4:$B$13,$H16)=0,1,"") ->  | J16: =VLOOKUP($H16,'Similar 10 and all CCGs'!$H$25:$J$230,3,FALSE) -> 0
B17: 8 | C17: =CCG_heatmap!$C16 -> NHS South Cheshire CCG | D17: =IF(COUNTIF(Similar_10_table_ref!$C$4:$C$13,$C17)=0,0,"") ->  | E17: =VLOOKUP($C17,'Similar 10 and all CCGs'!$H$25:$J$230,3,FALSE) -> 0 | F17: 9 | G17: 8 | H17: =IFERROR(INDEX(CCG_heatmap!$C$218:$C$424,MATCH(F17,CCG_heatmap!$Q$218:$Q$424,0),0),'Similar 10 and all CCGs'!C17) -> NHS South Cheshire CCG | I17: =IF(COUNTIF(Similar_10_table_ref!$B$4:$B$13,$H17)=0,1,"") ->  | J17: =VLOOKUP($H17,'Similar 10 and all CCGs'!$H$25:$J$230,3,FALSE) -> 0
B18: 9 | C18: =CCG_heatmap!$C17 -> NHS Vale Royal CCG | D18: =IF(COUNTIF(Similar_10_table_ref!$C$4:$C$13,$C18)=0,0,"") ->  | E18: =VLOOKUP($C18,'Similar 10 and all CCGs'!$H$25:$J$230,3,FALSE) -> 0 | F18: 10 | G18: 9 | H18: =IFERROR(INDEX(CCG_heatmap!$C$218:$C$424,MATCH(F18,CCG_heatmap!$Q$218:$Q$424,0),0),'Similar 10 and all CCGs'!C18) -> NHS Vale Royal CCG | I18: =IF(COUNTIF(Similar_10_table_ref!$B$4:$B$13,$H18)=0,1,"") ->  | J18: =VLOOKUP($H18,'Similar 10 and all CCGs'!$H$25:$J$230,3,FALSE) -> 0
B19: 10 | C19: =CCG_heatmap!$C18 -> NHS Ashford CCG | D19: =IF(COUNTIF(Similar_10_table_ref!$C$4:$C$13,$C19)=0,0,"") ->  | E19: =VLOOKUP($C19,'Similar 10 and all CCGs'!$H$25:$J$230,3,FALSE) -> 0 | F19: 11 | G19: 10 | H19: =IFERROR(INDEX(CCG_heatmap!$C$218:$C$424,MATCH(F19,CCG_heatmap!$Q$218:$Q$424,0),0),'Similar 10 and all CCGs'!C19) -> NHS Ashford CCG | I19: =IF(COUNTIF(Similar_10_table_ref!$B$4:$B$13,$H19)=0,1,"") ->  | J19: =VLOOKUP($H19,'Similar 10 and all CCGs'!$H$25:$J$230,3,FALSE) -> 0
B25: 1 | C25: =CCG_heatmap!$C9 -> NHS East Staffordshire CCG | E25: =IFERROR(1+MATCH('Similar 10 and all CCGs'!$C25,CCG_heatmap!$C$9:$C$214,0)-VLOOKUP(C25,CCG_heatmap!$C$427:$P$633,CCG_heatmap!$P$425,FALSE),0) -> 0 | G25: 1 | H25: =IFERROR(INDEX(CCG_heatmap!$C$9:$C$214,MATCH(CCG_heatmap!$A9,CCG_heatmap!$R$9:$R$218,0),0),C25) -> NHS East Staffordshire CCG | J25: =MATCH('Similar 10 and all CCGs'!$H25,CCG_heatmap!$C$9:$C$214,0)-CCG_heatmap!$A9 -> 0
B26: 2 | C26: =CCG_heatmap!$C10 -> NHS Newark & Sherwood CCG | E26: =IFERROR(1+MATCH('Similar 10 and all CCGs'!$C26,CCG_heatmap!$C$9:$C$214,0)-VLOOKUP(C26,CCG_heatmap!$C$427:$P$633,CCG_heatmap!$P$425,FALSE),0) -> 0 | G26: 2 | H26: =IFERROR(INDEX(CCG_heatmap!$C$9:$C$214,MATCH(CCG_heatmap!$A10,CCG_heatmap!$R$9:$R$218,0),0),C26) -> NHS Newark & Sherwood CCG | J26: =MATCH('Similar 10 and all CCGs'!$H26,CCG_heatmap!$C$9:$C$214,0)-CCG_heatmap!$A10 -> 0
B27: 3 | C27: =CCG_heatmap!$C11 -> NHS South West Lincolnshire CCG | E27: =IFERROR(1+MATCH('Similar 10 and all CCGs'!$C27,CCG_heatmap!$C$9:$C$214,0)-VLOOKUP(C27,CCG_heatmap!$C$427:$P$633,CCG_heatmap!$P$425,FALSE),0) -> 0 | G27: 3 | H27: =IFERROR(INDEX(CCG_heatmap!$C$9:$C$214,MATCH(CCG_heatmap!$A11,CCG_heatmap!$R$9:$R$218,0),0),C27) -> NHS South West Lincolnshire CCG | J27: =MATCH('Similar 10 and all CCGs'!$H27,CCG_heatmap!$C$9:$C$214,0)-CCG_heatmap!$A11 -> 0
B28: 4 | C28: =CCG_heatmap!$C12 -> NHS North Lincolnshire CCG | E28: =IFERROR(1+MATCH('Similar 10 and all CCGs'!$C28,CCG_heatmap!$C$9:$C$214,0)-VLOOKUP(C28,CCG_heatmap!$C$427:$P$633,CCG_heatmap!$P$425,FALSE),0) -> 0 | G28: 4 | H28: =IFERROR(INDEX(CCG_heatmap!$C$9:$C$214,MATCH(CCG_heatmap!$A12,CCG_heatmap!$R$9:$R$218,0),0),C28) -> NHS North Lincolnshire CCG | J28: =MATCH('Similar 10 and all CCGs'!$H28,CCG_heatmap!$C$9:$C$214,0)-CCG_heatmap!$A12 -> 0
B29: 5 | C29: =CCG_heatmap!$C13 -> NHS South Lincolnshire CCG | E29: =IFERROR(1+MATCH('Similar 10 and all CCGs'!$C29,CCG_heatmap!$C$9:$C$214,0)-VLOOKUP(C29,CCG_heatmap!$C$427:$P$633,CCG_heatmap!$P$425,FALSE),0) -> 0 | G29: 5 | H29: =IFERROR(INDEX(CCG_heatmap!$C$9:$C$214,MATCH(CCG_heatmap!$A13,CCG_heatmap!$R$9:$R$218,0),0),C29) -> NHS South Lincolnshire CCG | J29: =MATCH('Similar 10 and all CCGs'!$H29,CCG_heatmap!$C$9:$C$214,0)-CCG_heatmap!$A13 -> 0
B30: 6 | C30: =CCG_heatmap!$C14 -> NHS Calderdale CCG | E30: =IFERROR(1+MATCH('Similar 10 and all CCGs'!$C30,CCG_heatmap!$C$9:$C$214,0)-VLOOKUP(C30,CCG_heatmap!$C$427:$P$633,CCG_heatmap!$P$425,FALSE),0) -> 0 | G30: 6 | H30: =IFERROR(INDEX(CCG_heatmap!$C$9:$C$214,MATCH(CCG_heatmap!$A14,CCG_heatmap!$R$9:$R$218,0),0),C30) -> NHS Calderdale CCG | J30: =MATCH('Similar 10 and all CCGs'!$H30,CCG_heatmap!$C$9:$C$214,0)-CCG_heatmap!$A14 -> 0
B31: 7 | C31: =CCG_heatmap!$C15 -> NHS Bassetlaw CCG | E31: =IFERROR(1+MATCH('Similar 10 and all CCGs'!$C31,CCG_heatmap!$C$9:$C$214,0)-VLOOKUP(C31,CCG_heatmap!$C$427:$P$633,CCG_heatmap!$P$425,FALSE),0) -> 0 | G31: 7 | H31: =IFERROR(INDEX(CCG_heatmap!$C$9:$C$214,MATCH(CCG_heatmap!$A15,CCG_heatmap!$R$9:$R$218,0),0),C31) -> NHS Bassetlaw CCG | J31: =MATCH('Similar 10 and all CCGs'!$H31,CCG_heatmap!$C$9:$C$214,0)-CCG_heatmap!$A15 -> 0
B32: 8 | C32: =CCG_heatmap!$C16 -> NHS South Cheshire CCG | E32: =IFERROR(1+MATCH('Similar 10 and all CCGs'!$C32,CCG_heatmap!$C$9:$C$214,0)-VLOOKUP(C32,CCG_heatmap!$C$427:$P$633,CCG_heatmap!$P$425,FALSE),0) -> 0 | G32: 8 | H32: =IFERROR(INDEX(CCG_heatmap!$C$9:$C$214,MATCH(CCG_heatmap!$A16,CCG_heatmap!$R$9:$R$218,0),0),C32) -> NHS South Cheshire CCG | J32: =MATCH('Similar 10 and all CCGs'!$H32,CCG_heatmap!$C$9:$C$214,0)-CCG_heatmap!$A16 -> 0
B33: 9 | C33: =CCG_heatmap!$C17 -> NHS Vale Royal CCG | E33: =IFERROR(1+MATCH('Similar 10 and all CCGs'!$C33,CCG_heatmap!$C$9:$C$214,0)-VLOOKUP(C33,CCG_heatmap!$C$427:$P$633,CCG_heatmap!$P$425,FALSE),0) -> 0 | G33: 9 | H33: =IFERROR(INDEX(CCG_heatmap!$C$9:$C$214,MATCH(CCG_heatmap!$A17,CCG_heatmap!$R$9:$R$218,0),0),C33) -> NHS Vale Royal CCG | J33: =MATCH('Similar 10 and all CCGs'!$H33,CCG_heatmap!$C$9:$C$214,0)-CCG_heatmap!$A17 -> 0
B34: 10 | C34: =CCG_heatmap!$C18 -> NHS Ashford CCG | E34: =IFERROR(1+MATCH('Similar 10 and all CCGs'!$C34,CCG_heatmap!$C$9:$C$214,0)-VLOOKUP(C34,CCG_heatmap!$C$427:$P$633,CCG_heatmap!$P$425,FALSE),0) -> 0 | G34: 10 | H34: =IFERROR(INDEX(CCG_heatmap!$C$9:$C$214,MATCH(CCG_heatmap!$A18,CCG_heatmap!$R$9:$R$218,0),0),C34) -> NHS Ashford CCG | J34: =MATCH('Similar 10 and all CCGs'!$H34,CCG_heatmap!$C$9:$C$214,0)-CCG_heatmap!$A18 -> 0
B35: 11 | C35: =CCG_heatmap!$C19 -> NHS South Worcestershire CCG | E35: =IFERROR(1+MATCH('Similar 10 and all CCGs'!$C35,CCG_heatmap!$C$9:$C$214,0)-VLOOKUP(C35,CCG_heatmap!$C$427:$P$633,CCG_heatmap!$P$425,FALSE),0) -> 0 | G35: 11 | H35: =IFERROR(INDEX(CCG_heatmap!$C$9:$C$214,MATCH(CCG_heatmap!$A19,CCG_heatmap!$R$9:$R$218,0),0),C35) -> NHS South Worcestershire CCG | J35: =MATCH('Similar 10 and all CCGs'!$H35,CCG_heatmap!$C$9:$C$214,0)-CCG_heatmap!$A19 -> 0
B36: 12 | C36: =CCG_heatmap!$C20 -> NHS Warwickshire North CCG | E36: =IFERROR(1+MATCH('Similar 10 and all CCGs'!$C36,CCG_heatmap!$C$9:$C$214,0)-VLOOKUP(C36,CCG_heatmap!$C$427:$P$633,CCG_heatmap!$P$425,FALSE),0) -> 0 | G36: 12 | H36: =IFERROR(INDEX(CCG_heatmap!$C$9:$C$214,MATCH(CCG_heatmap!$A20,CCG_heatmap!$R$9:$R$218,0),0),C36) -> NHS Warwickshire North CCG | J36: =MATCH('Similar 10 and all CCGs'!$H36,CCG_heatmap!$C$9:$C$214,0)-CCG_heatmap!$A20 -> 0
B37: 13 | C37: =CCG_heatmap!$C21 -> NHS Ipswich and East Suffolk CCG | E37: =IFERROR(1+MATCH('Similar 10 and all CCGs'!$C37,CCG_heatmap!$C$9:$C$214,0)-VLOOKUP(C37,CCG_heatmap!$C$427:$P$633,CCG_heatmap!$P$425,FALSE),0) -> 0 | G37: 13 | H37: =IFERROR(INDEX(CCG_heatmap!$C$9:$C$214,MATCH(CCG_heatmap!$A21,CCG_heatmap!$R$9:$R$218,0),0),C37) -> NHS Ipswich and East Suffolk CCG | J37: =MATCH('Similar 10 and all CCGs'!$H37,CCG_heatmap!$C$9:$C$214,0)-CCG_heatmap!$A21 -> 0
B38: 14 | C38: =CCG_heatmap!$C22 -> NHS South Kent Coast CCG | E38: =IFERROR(1+MATCH('Similar 10 and all CCGs'!$C38,CCG_heatmap!$C$9:$C$214,0)-VLOOKUP(C38,CCG_heatmap!$C$427:$P$633,CCG_heatmap!$P$425,FALSE),0) -> 0 | G38: 14 | H38: =IFERROR(INDEX(CCG_heatmap!$C$9:$C$214,MATCH(CCG_heatmap!$A22,CCG_heatmap!$R$9:$R$218,0),0),C38) -> NHS South Kent Coast CCG | J38: =MATCH('Similar 10 and all CCGs'!$H38,CCG_heatmap!$C$9:$C$214,0)-CCG_heatmap!$A22 -> 0
B39: 15 | C39: =CCG_heatmap!$C23 -> NHS Scarborough and Ryedale CCG | E39: =IFERROR(1+MATCH('Similar 10 and all CCGs'!$C39,CCG_heatmap!$C$9:$C$214,0)-VLOOKUP(C39,CCG_heatmap!$C$427:$P$633,CCG_heatmap!$P$425,FALSE),0) -> 0 | G39: 15 | H39: =IFERROR(INDEX(CCG_heatmap!$C$9:$C$214,MATCH(CCG_heatmap!$A23,CCG_heatmap!$R$9:$R$218,0),0),C39) -> NHS Scarborough and Ryedale CCG | J39: =MATCH('Similar 10 and all CCGs'!$H39,CCG_heatmap!$C$9:$C$214,0)-CCG_heatmap!$A23 -> 0
B40: 16 | C40: =CCG_heatmap!$C24 -> NHS South Norfolk CCG | E40: =IFERROR(1+MATCH('Similar 10 and all CCGs'!$C40,CCG_heatmap!$C$9:$C$214,0)-VLOOKUP(C40,CCG_heatmap!$C$427:$P$633,CCG_heatmap!$P$425,FALSE),0) -> 0 | G40: 16 | H40: =IFERROR(INDEX(CCG_heatmap!$C$9:$C$214,MATCH(CCG_heatmap!$A24,CCG_heatmap!$R$9:$R$218,0),0),C40) -> NHS South Norfolk CCG | J40: =MATCH('Similar 10 and all CCGs'!$H40,CCG_heatmap!$C$9:$C$214,0)-CCG_heatmap!$A24 -> 0
B41: 17 | C41: =CCG_heatmap!$C25 -> NHS North Somerset CCG | E41: =IFERROR(1+MATCH('Similar 10 and all CCGs'!$C41,CCG_heatmap!$C$9:$C$214,0)-VLOOKUP(C41,CCG_heatmap!$C$427:$P$633,CCG_heatmap!$P$425,FALSE),0) -> 0 | G41: 17 | H41: =IFERROR(INDEX(CCG_heatmap!$C$9:$C$214,MATCH(CCG_heatmap!$A25,CCG_heatmap!$R$9:$R$218,0),0),C41) -> NHS North Somerset CCG | J41: =MATCH('Similar 10 and all CCGs'!$H41,CCG_heatmap!$C$9:$C$214,0)-CCG_heatmap!$A25 -> 0
B42: 18 | C42: =CCG_heatmap!$C26 -> NHS Hastings & Rother CCG | E42: =IFERROR(1+MATCH('Similar 10 and all CCGs'!$C42,CCG_heatmap!$C$9:$C$214,0)-VLOOKUP(C42,CCG_heatmap!$C$427:$P$633,CCG_heatmap!$P$425,FALSE),0) -> 0 | G42: 18 | H42: =IFERROR(INDEX(CCG_heatmap!$C$9:$C$214,MATCH(CCG_heatmap!$A26,CCG_heatmap!$R$9:$R$218,0),0),C42) -> NHS Hastings & Rother CCG | J42: =MATCH('Similar 10 and all CCGs'!$H42,CCG_heatmap!$C$9:$C$214,0)-CCG_heatmap!$A26 -> 0
B43: 19 | C43: =CCG_heatmap!$C27 -> NHS West Lancashire CCG | E43: =IFERROR(1+MATCH('Similar 10 and all CCGs'!$C43,CCG_heatmap!$C$9:$C$214,0)-VLOOKUP(C43,CCG_heatmap!$C$427:$P$633,CCG_heatmap!$P$425,FALSE),0) -> 0 | G43: 19 | H43: =IFERROR(INDEX(CCG_heatmap!$C$9:$C$214,MATCH(CCG_heatmap!$A27,CCG_heatmap!$R$9:$R$218,0),0),C43) -> NHS West Lancashire CCG | J43: =MATCH('Similar 10 and all CCGs'!$H43,CCG_heatmap!$C$9:$C$214,0)-CCG_heatmap!$A27 -> 0
B44: 20 | C44: =CCG_heatmap!$C28 -> NHS West Cheshire CCG | E44: =IFERROR(1+MATCH('Similar 10 and all CCGs'!$C44,CCG_heatmap!$C$9:$C$214,0)-VLOOKUP(C44,CCG_heatmap!$C$427:$P$633,CCG_heatmap!$P$425,FALSE),0) -> 0 | G44: 20 | H44: =IFERROR(INDEX(CCG_heatmap!$C$9:$C$214,MATCH(CCG_heatmap!$A28,CCG_heatmap!$R$9:$R$218,0),0),C44) -> NHS West Cheshire CCG | J44: =MATCH('Similar 10 and all CCGs'!$H44,CCG_heatmap!$C$9:$C$214,0)-CCG_heatmap!$A28 -> 0
B45: 21 | C45: =CCG_heatmap!$C29 -> NHS Cumbria CCG | E45: =IFERROR(1+MATCH('Similar 10 and all CCGs'!$C45,CCG_heatmap!$C$9:$C$214,0)-VLOOKUP(C45,CCG_heatmap!$C$427:$P$633,CCG_heatmap!$P$425,FALSE),0) -> 0 | G45: 21 | H45: =IFERROR(INDEX(CCG_heatmap!$C$9:$C$214,MATCH(CCG_heatmap!$A29,CCG_heatmap!$R$9:$R$218,0),0),C45) -> NHS Cumbria CCG | J45: =MATCH('Similar 10 and all CCGs'!$H45,CCG_heatmap!$C$9:$C$214,0)-CCG_heatmap!$A29 -> 0
B46: 22 | C46: =CCG_heatmap!$C30 -> NHS South Warwickshire CCG | E46: =IFERROR(1+MATCH('Similar 10 and all CCGs'!$C46,CCG_heatmap!$C$9:$C$214,0)-VLOOKUP(C46,CCG_heatmap!$C$427:$P$633,CCG_heatmap!$P$425,FALSE),0) -> 0 | G46: 22 | H46: =IFERROR(INDEX(CCG_heatmap!$C$9:$C$214,MATCH(CCG_heatmap!$A30,CCG_heatmap!$R$9:$R$218,0),0),C46) -> NHS South Warwickshire CCG | J46: =MATCH('Similar 10 and all CCGs'!$H46,CCG_heatmap!$C$9:$C$214,0)-CCG_heatmap!$A30 -> 0
B47: 23 | C47: =CCG_heatmap!$C31 -> NHS Redditch and Bromsgrove CCG | E47: =IFERROR(1+MATCH('Similar 10 and all CCGs'!$C47,CCG_heatmap!$C$9:$C$214,0)-VLOOKUP(C47,CCG_heatmap!$C$427:$P$633,CCG_heatmap!$P$425,FALSE),0) -> 0 | G47: 23 | H47: =IFERROR(INDEX(CCG_heatmap!$C$9:$C$214,MATCH(CCG_heatmap!$A31,CCG_heatmap!$R$9:$R$218,0),0),C47) -> NHS Redditch and Bromsgrove CCG | J47: =MATCH('Similar 10 and all CCGs'!$H47,CCG_heatmap!$C$9:$C$214,0)-CCG_heatmap!$A31 -> 0
B48: 24 | C48: =CCG_heatmap!$C32 -> NHS Stafford and Surrounds CCG | E48: =IFERROR(1+MATCH('Similar 10 and all CCGs'!$C48,CCG_heatmap!$C$9:$C$214,0)-VLOOKUP(C48,CCG_heatmap!$C$427:$P$633,CCG_heatmap!$P$425,FALSE),0) -> 0 | G48: 24 | H48: =IFERROR(INDEX(CCG_heatmap!$C$9:$C$214,MATCH(CCG_heatmap!$A32,CCG_heatmap!$R$9:$R$218,0),0),C48) -> NHS Stafford and Surrounds CCG | J48: =MATCH('Similar 10 and all CCGs'!$H48,CCG_heatmap!$C$9:$C$214,0)-CCG_heatmap!$A32 -> 0
B49: 25 | C49: =CCG_heatmap!$C33 -> NHS East Leicestershire and Rutland CCG | E49: =IFERROR(1+MATCH('Similar 10 and all CCGs'!$C49,CCG_heatmap!$C$9:$C$214,0)-VLOOKUP(C49,CCG_heatmap!$C$427:$P$633,CCG_heatmap!$P$425,FALSE),0) -> 0 | G49: 25 | H49: =IFERROR(INDEX(CCG_heatmap!$C$9:$C$214,MATCH(CCG_heatmap!$A33,CCG_heatmap!$R$9:$R$218,0),0),C49) -> NHS East Leicestershire and Rutland CCG | J49: =MATCH('Similar 10 and all CCGs'!$H49,CCG_heatmap!$C$9:$C$214,0)-CCG_heatmap!$A33 -> 0
B50: 26 | C50: =CCG_heatmap!$C34 -> NHS High Weald Lewes Havens CCG | E50: =IFERROR(1+MATCH('Similar 10 and all CCGs'!$C50,CCG_heatmap!$C$9:$C$214,0)-VLOOKUP(C50,CCG_heatmap!$C$427:$P$633,CCG_heatmap!$P$425,FALSE),0) -> 0 | G50: 26 | H50: =IFERROR(INDEX(CCG_heatmap!$C$9:$C$214,MATCH(CCG_heatmap!$A34,CCG_heatmap!$R$9:$R$218,0),0),C50) -> NHS High Weald Lewes Havens CCG | J50: =MATCH('Similar 10 and all CCGs'!$H50,CCG_heatmap!$C$9:$C$214,0)-CCG_heatmap!$A34 -> 0
B51: 27 | C51: =CCG_heatmap!$C35 -> NHS Harrogate and Rural District CCG | E51: =IFERROR(1+MATCH('Similar 10 and all CCGs'!$C51,CCG_heatmap!$C$9:$C$214,0)-VLOOKUP(C51,CCG_heatmap!$C$427:$P$633,CCG_heatmap!$P$425,FALSE),0) -> 0 | G51: 27 | H51: =IFERROR(INDEX(CCG_heatmap!$C$9:$C$214,MATCH(CCG_heatmap!$A35,CCG_heatmap!$R$9:$R$218,0),0),C51) -> NHS Harrogate and Rural District CCG | J51: =MATCH('Similar 10 and all CCGs'!$H51,CCG_heatmap!$C$9:$C$214,0)-CCG_heatmap!$A35 -> 0
B52: 28 | C52: =CCG_heatmap!$C36 -> NHS North Hampshire CCG | E52: =IFERROR(1+MATCH('Similar 10 and all CCGs'!$C52,CCG_heatmap!$C$9:$C$214,0)-VLOOKUP(C52,CCG_heatmap!$C$427:$P$633,CCG_heatmap!$P$425,FALSE),0) -> 0 | G52: 28 | H52: =IFERROR(INDEX(CCG_heatmap!$C$9:$C$214,MATCH(CCG_heatmap!$A36,CCG_heatmap!$R$9:$R$218,0),0),C52) -> NHS North Hampshire CCG | J52: =MATCH('Similar 10 and all CCGs'!$H52,CCG_heatmap!$C$9:$C$214,0)-CCG_heatmap!$A36 -> 0
B53: 29 | C53: =CCG_heatmap!$C37 -> NHS Eastern Cheshire CCG | E53: =IFERROR(1+MATCH('Similar 10 and all CCGs'!$C53,CCG_heatmap!$C$9:$C$214,0)-VLOOKUP(C53,CCG_heatmap!$C$427:$P$633,CCG_heatmap!$P$425,FALSE),0) -> 0 | G53: 29 | H53: =IFERROR(INDEX(CCG_heatmap!$C$9:$C$214,MATCH(CCG_heatmap!$A37,CCG_heatmap!$R$9:$R$218,0),0),C53) -> NHS Eastern Cheshire CCG | J53: =MATCH('Similar 10 and all CCGs'!$H53,CCG_heatmap!$C$9:$C$214,0)-CCG_heatmap!$A37 -> 0
B54: 30 | C54: =CCG_heatmap!$C38 -> NHS Darlington CCG | E54: =IFERROR(1+MATCH('Similar 10 and all CCGs'!$C54,CCG_heatmap!$C$9:$C$214,0)-VLOOKUP(C54,CCG_heatmap!$C$427:$P$633,CCG_heatmap!$P$425,FALSE),0) -> 0 | G54: 30 | H54: =IFERROR(INDEX(CCG_heatmap!$C$9:$C$214,MATCH(CCG_heatmap!$A38,CCG_heatmap!$R$9:$R$218,0),0),C54) -> NHS Darlington CCG | J54: =MATCH('Similar 10 and all CCGs'!$H54,CCG_heatmap!$C$9:$C$214,0)-CCG_heatmap!$A38 -> 0
B55: 31 | C55: =CCG_heatmap!$C39 -> NHS West Essex CCG | E55: =IFERROR(1+MATCH('Similar 10 and all CCGs'!$C55,CCG_heatmap!$C$9:$C$214,0)-VLOOKUP(C55,CCG_heatmap!$C$427:$P$633,CCG_heatmap!$P$425,FALSE),0) -> 0 | G55: 31 | H55: =IFERROR(INDEX(CCG_heatmap!$C$9:$C$214,MATCH(CCG_heatmap!$A39,CCG_heatmap!$R$9:$R$218,0),0),C55) -> NHS West Essex CCG | J55: =MATCH('Similar 10 and all CCGs'!$H55,CCG_heatmap!$C$9:$C$214,0)-CCG_heatmap!$A39 -> 0
B56: 32 | C56: =CCG_heatmap!$C40 -> NHS Great Yarmouth & Waveney CCG | E56: =IFERROR(1+MATCH('Similar 10 and all CCGs'!$C56,CCG_heatmap!$C$9:$C$214,0)-VLOOKUP(C56,CCG_heatmap!$C$427:$P$633,CCG_heatmap!$P$425,FALSE),0) -> 0 | G56: 32 | H56: =IFERROR(INDEX(CCG_heatmap!$C$9:$C$214,MATCH(CCG_heatmap!$A40,CCG_heatmap!$R$9:$R$218,0),0),C56) -> NHS Great Yarmouth & Waveney CCG | J56: =MATCH('Similar 10 and all CCGs'!$H56,CCG_heatmap!$C$9:$C$214,0)-CCG_heatmap!$A40 -> 0
B57: 33 | C57: =CCG_heatmap!$C41 -> NHS Hardwick CCG | E57: =IFERROR(1+MATCH('Similar 10 and all CCGs'!$C57,CCG_heatmap!$C$9:$C$214,0)-VLOOKUP(C57,CCG_heatmap!$C$427:$P$633,CCG_heatmap!$P$425,FALSE),0) -> 0 | G57: 33 | H57: =IFERROR(INDEX(CCG_heatmap!$C$9:$C$214,MATCH(CCG_heatmap!$A41,CCG_heatmap!$R$9:$R$218,0),0),C57) -> NHS Hardwick CCG | J57: =MATCH('Similar 10 and all CCGs'!$H57,CCG_heatmap!$C$9:$C$214,0)-CCG_heatmap!$A41 -> 0
B58: 34 | C58: =CCG_heatmap!$C42 -> NHS Northumberland CCG | E58: =IFERROR(1+MATCH('Similar 10 and all CCGs'!$C58,CCG_heatmap!$C$9:$C$214,0)-VLOOKUP(C58,CCG_heatmap!$C$427:$P$633,CCG_heatmap!$P$425,FALSE),0) -> 0 | G58: 34 | H58: =IFERROR(INDEX(CCG_heatmap!$C$9:$C$214,MATCH(CCG_heatmap!$A42,CCG_heatmap!$R$9:$R$218,0),0),C58) -> NHS Northumberland CCG | J58: =MATCH('Similar 10 and all CCGs'!$H58,CCG_heatmap!$C$9:$C$214,0)-CCG_heatmap!$A42 -> 0
B59: 35 | C59: =CCG_heatmap!$C43 -> NHS North Derbyshire CCG | E59: =IFERROR(1+MATCH('Similar 10 and all CCGs'!$C59,CCG_heatmap!$C$9:$C$214,0)-VLOOKUP(C59,CCG_heatmap!$C$427:$P$633,CCG_heatmap!$P$425,FALSE),0) -> 0 | G59: 35 | H59: =IFERROR(INDEX(CCG_heatmap!$C$9:$C$214,MATCH(CCG_heatmap!$A43,CCG_heatmap!$R$9:$R$218,0),0),C59) -> NHS North Derbyshire CCG | J59: =MATCH('Similar 10 and all CCGs'!$H59,CCG_heatmap!$C$9:$C$214,0)-CCG_heatmap!$A43 -> 0
B60: 36 | C60: =CCG_heatmap!$C44 -> NHS West Norfolk CCG | E60: =IFERROR(1+MATCH('Similar 10 and all CCGs'!$C60,CCG_heatmap!$C$9:$C$214,0)-VLOOKUP(C60,CCG_heatmap!$C$427:$P$633,CCG_heatmap!$P$425,FALSE),0) -> 0 | G60: 36 | H60: =IFERROR(INDEX(CCG_heatmap!$C$9:$C$214,MATCH(CCG_heatmap!$A44,CCG_heatmap!$R$9:$R$218,0),0),C60) -> NHS West Norfolk CCG | J60: =MATCH('Similar 10 and all CCGs'!$H60,CCG_heatmap!$C$9:$C$214,0)-CCG_heatmap!$A44 -> 0
B61: 37 | C61: =CCG_heatmap!$C45 -> NHS Chorley and South Ribble CCG | E61: =IFERROR(1+MATCH('Similar 10 and all CCGs'!$C61,CCG_heatmap!$C$9:$C$214,0)-VLOOKUP(C61,CCG_heatmap!$C$427:$P$633,CCG_heatmap!$P$425,FALSE),0) -> 0 | G61: 37 | H61: =IFERROR(INDEX(CCG_heatmap!$C$9:$C$214,MATCH(CCG_heatmap!$A45,CCG_heatmap!$R$9:$R$218,0),0),C61) -> NHS Chorley and South Ribble CCG | J61: =MATCH('Similar 10 and all CCGs'!$H61,CCG_heatmap!$C$9:$C$214,0)-CCG_heatmap!$A45 -> 0
B62: 38 | C62: =CCG_heatmap!$C46 -> NHS East Riding of Yorkshire CCG | E62: =IFERROR(1+MATCH('Similar 10 and all CCGs'!$C62,CCG_heatmap!$C$9:$C$214,0)-VLOOKUP(C62,CCG_heatmap!$C$427:$P$633,CCG_heatmap!$P$425,FALSE),0) -> 0 | G62: 38 | H62: =IFERROR(INDEX(CCG_heatmap!$C$9:$C$214,MATCH(CCG_heatmap!$A46,CCG_heatmap!$R$9:$R$218,0),0),C62) -> NHS East Riding of Yorkshire CCG | J62: =MATCH('Similar 10 and all CCGs'!$H62,CCG_heatmap!$C$9:$C$214,0)-CCG_heatmap!$A46 -> 0
B63: 39 | C63: =CCG_heatmap!$C47 -> NHS West Suffolk CCG | E63: =IFERROR(1+MATCH('Similar 10 and all CCGs'!$C63,CCG_heatmap!$C$9:$C$214,0)-VLOOKUP(C63,CCG_heatmap!$C$427:$P$633,CCG_heatmap!$P$425,FALSE),0) -> 0 | G63: 39 | H63: =IFERROR(INDEX(CCG_heatmap!$C$9:$C$214,MATCH(CCG_heatmap!$A47,CCG_heatmap!$R$9:$R$218,0),0),C63) -> NHS West Suffolk CCG | J63: =MATCH('Similar 10 and all CCGs'!$H63,CCG_heatmap!$C$9:$C$214,0)-CCG_heatmap!$A47 -> 0
B64: 40 | C64: =CCG_heatmap!$C48 -> NHS Lincolnshire West CCG | E64: =IFERROR(1+MATCH('Similar 10 and all CCGs'!$C64,CCG_heatmap!$C$9:$C$214,0)-VLOOKUP(C64,CCG_heatmap!$C$427:$P$633,CCG_heatmap!$P$425,FALSE),0) -> 0 | G64: 40 | H64: =IFERROR(INDEX(CCG_heatmap!$C$9:$C$214,MATCH(CCG_heatmap!$A48,CCG_heatmap!$R$9:$R$218,0),0),C64) -> NHS Lincolnshire West CCG | J64: =MATCH('Similar 10 and all CCGs'!$H64,CCG_heatmap!$C$9:$C$214,0)-CCG_heatmap!$A48 -> 0
B65: 41 | C65: =CCG_heatmap!$C49 -> NHS Wyre Forest CCG | E65: =IFERROR(1+MATCH('Similar 10 and all CCGs'!$C65,CCG_heatmap!$C$9:$C$214,0)-VLOOKUP(C65,CCG_heatmap!$C$427:$P$633,CCG_heatmap!$P$425,FALSE),0) -> 0 | G65: 41 | H65: =IFERROR(INDEX(CCG_heatmap!$C$9:$C$214,MATCH(CCG_heatmap!$A49,CCG_heatmap!$R$9:$R$218,0),0),C65) -> NHS Wyre Forest CCG | J65: =MATCH('Similar 10 and all CCGs'!$H65,CCG_heatmap!$C$9:$C$214,0)-CCG_heatmap!$A49 -> 0
B66: 42 | C66: =CCG_heatmap!$C50 -> NHS South East Staffs and Seisdon Peninsular CCG | E66: =IFERROR(1+MATCH('Similar 10 and all CCGs'!$C66,CCG_heatmap!$C$9:$C$214,0)-VLOOKUP(C66,CCG_heatmap!$C$427:$P$633,CCG_heatmap!$P$425,FALSE),0) -> 0 | G66: 42 | H66: =IFERROR(INDEX(CCG_heatmap!$C$9:$C$214,MATCH(CCG_heatmap!$A50,CCG_heatmap!$R$9:$R$218,0),0),C66) -> NHS South East Staffs and Seisdon Peninsular CCG | J66: =MATCH('Similar 10 and all CCGs'!$H66,CCG_heatmap!$C$9:$C$214,0)-CCG_heatmap!$A50 -> 0
B67: 43 | C67: =CCG_heatmap!$C51 -> NHS South Eastern Hampshire CCG | E67: =IFERROR(1+MATCH('Similar 10 and all CCGs'!$C67,CCG_heatmap!$C$9:$C$214,0)-VLOOKUP(C67,CCG_heatmap!$C$427:$P$633,CCG_heatmap!$P$425,FALSE),0) -> 0 | G67: 43 | H67: =IFERROR(INDEX(CCG_heatmap!$C$9:$C$214,MATCH(CCG_heatmap!$A51,CCG_heatmap!$R$9:$R$218,0),0),C67) -> NHS South Eastern Hampshire CCG | J67: =MATCH('Similar 10 and all CCGs'!$H67,CCG_heatmap!$C$9:$C$214,0)-CCG_heatmap!$A51 -> 0
B68: 44 | C68: =CCG_heatmap!$C52 -> NHS North East Essex CCG | E68: =IFERROR(1+MATCH('Similar 10 and all CCGs'!$C68,CCG_heatmap!$C$9:$C$214,0)-VLOOKUP(C68,CCG_heatmap!$C$427:$P$633,CCG_heatmap!$P$425,FALSE),0) -> 0 | G68: 44 | H68: =IFERROR(INDEX(CCG_heatmap!$C$9:$C$214,MATCH(CCG_heatmap!$A52,CCG_heatmap!$R$9:$R$218,0),0),C68) -> NHS North East Essex CCG | J68: =MATCH('Similar 10 and all CCGs'!$H68,CCG_heatmap!$C$9:$C$214,0)-CCG_heatmap!$A52 -> 0
B69: 45 | C69: =CCG_heatmap!$C53 -> NHS Lincolnshire East CCG | E69: =IFERROR(1+MATCH('Similar 10 and all CCGs'!$C69,CCG_heatmap!$C$9:$C$214,0)-VLOOKUP(C69,CCG_heatmap!$C$427:$P$633,CCG_heatmap!$P$425,FALSE),0) -> 0 | G69: 45 | H69: =IFERROR(INDEX(CCG_heatmap!$C$9:$C$214,MATCH(CCG_heatmap!$A53,CCG_heatmap!$R$9:$R$218,0),0),C69) -> NHS Lincolnshire East CCG | J69: =MATCH('Similar 10 and all CCGs'!$H69,CCG_heatmap!$C$9:$C$214,0)-CCG_heatmap!$A53 -> 0
B70: 46 | C70: =CCG_heatmap!$C54 -> NHS Greater Huddersfield CCG | E70: =IFERROR(1+MATCH('Similar 10 and all CCGs'!$C70,CCG_heatmap!$C$9:$C$214,0)-VLOOKUP(C70,CCG_heatmap!$C$427:$P$633,CCG_heatmap!$P$425,FALSE),0) -> 0 | G70: 46 | H70: =IFERROR(INDEX(CCG_heatmap!$C$9:$C$214,MATCH(CCG_heatmap!$A54,CCG_heatmap!$R$9:$R$218,0),0),C70) -> NHS Greater Huddersfield CCG | J70: =MATCH('Similar 10 and all CCGs'!$H70,CCG_heatmap!$C$9:$C$214,0)-CCG_heatmap!$A54 -> 0
B71: 47 | C71: =CCG_heatmap!$C55 -> NHS Greater Preston CCG | E71: =IFERROR(1+MATCH('Similar 10 and all CCGs'!$C71,CCG_heatmap!$C$9:$C$214,0)-VLOOKUP(C71,CCG_heatmap!$C$427:$P$633,CCG_heatmap!$P$425,FALSE),0) -> 0 | G71: 47 | H71: =IFERROR(INDEX(CCG_heatmap!$C$9:$C$214,MATCH(CCG_heatmap!$A55,CCG_heatmap!$R$9:$R$218,0),0),C71) -> NHS Greater Preston CCG | J71: =MATCH('Similar 10 and all CCGs'!$H71,CCG_heatmap!$C$9:$C$214,0)-CCG_heatmap!$A55 -> 0
B72: 48 | C72: =CCG_heatmap!$C56 -> NHS Rushcliffe CCG | E72: =IFERROR(1+MATCH('Similar 10 and all CCGs'!$C72,CCG_heatmap!$C$9:$C$214,0)-VLOOKUP(C72,CCG_heatmap!$C$427:$P$633,CCG_heatmap!$P$425,FALSE),0) -> 0 | G72: 48 | H72: =IFERROR(INDEX(CCG_heatmap!$C$9:$C$214,MATCH(CCG_heatmap!$A56,CCG_heatmap!$R$9:$R$218,0),0),C72) -> NHS Rushcliffe CCG | J72: =MATCH('Similar 10 and all CCGs'!$H72,CCG_heatmap!$C$9:$C$214,0)-CCG_heatmap!$A56 -> 0
B73: 49 | C73: =CCG_heatmap!$C57 -> NHS Aylesbury Vale CCG | E73: =IFERROR(1+MATCH('Similar 10 and all CCGs'!$C73,CCG_heatmap!$C$9:$C$214,0)-VLOOKUP(C73,CCG_heatmap!$C$427:$P$633,CCG_heatmap!$P$425,FALSE),0) -> 0 | G73: 49 | H73: =IFERROR(INDEX(CCG_heatmap!$C$9:$C$214,MATCH(CCG_heatmap!$A57,CCG_heatmap!$R$9:$R$218,0),0),C73) -> NHS Aylesbury Vale CCG | J73: =MATCH('Similar 10 and all CCGs'!$H73,CCG_heatmap!$C$9:$C$214,0)-CCG_heatmap!$A57 -> 0
B74: 50 | C74: =CCG_heatmap!$C58 -> NHS East Surrey CCG | E74: =IFERROR(1+MATCH('Similar 10 and all CCGs'!$C74,CCG_heatmap!$C$9:$C$214,0)-VLOOKUP(C74,CCG_heatmap!$C$427:$P$633,CCG_heatmap!$P$425,FALSE),0) -> 0 | G74: 50 | H74: =IFERROR(INDEX(CCG_heatmap!$C$9:$C$214,MATCH(CCG_heatmap!$A58,CCG_heatmap!$R$9:$R$218,0),0),C74) -> NHS East Surrey CCG | J74: =MATCH('Similar 10 and all CCGs'!$H74,CCG_heatmap!$C$9:$C$214,0)-CCG_heatmap!$A58 -> 0
B75: 51 | C75: =CCG_heatmap!$C59 -> NHS Warrington CCG | E75: =IFERROR(1+MATCH('Similar 10 and all CCGs'!$C75,CCG_heatmap!$C$9:$C$214,0)-VLOOKUP(C75,CCG_heatmap!$C$427:$P$633,CCG_heatmap!$P$425,FALSE),0) -> 0 | G75: 51 | H75: =IFERROR(INDEX(CCG_heatmap!$C$9:$C$214,MATCH(CCG_heatmap!$A59,CCG_heatmap!$R$9:$R$218,0),0),C75) -> NHS Warrington CCG | J75: =MATCH('Similar 10 and all CCGs'!$H75,CCG_heatmap!$C$9:$C$214,0)-CCG_heatmap!$A59 -> 0
B76: 52 | C76: =CCG_heatmap!$C60 -> NHS North East Lincolnshire CCG | E76: =IFERROR(1+MATCH('Similar 10 and all CCGs'!$C76,CCG_heatmap!$C$9:$C$214,0)-VLOOKUP(C76,CCG_heatmap!$C$427:$P$633,CCG_heatmap!$P$425,FALSE),0) -> 0 | G76: 52 | H76: =IFERROR(INDEX(CCG_heatmap!$C$9:$C$214,MATCH(CCG_heatmap!$A60,CCG_heatmap!$R$9:$R$218,0),0),C76) -> NHS North East Lincolnshire CCG | J76: =MATCH('Similar 10 and all CCGs'!$H76,CCG_heatmap!$C$9:$C$214,0)-CCG_heatmap!$A60 -> 0
B77: 53 | C77: =CCG_heatmap!$C61 -> NHS Solihull CCG | E77: =IFERROR(1+MATCH('Similar 10 and all CCGs'!$C77,CCG_heatmap!$C$9:$C$214,0)-VLOOKUP(C77,CCG_heatmap!$C$427:$P$633,CCG_heatmap!$P$425,FALSE),0) -> 0 | G77: 53 | H77: =IFERROR(INDEX(CCG_heatmap!$C$9:$C$214,MATCH(CCG_heatmap!$A61,CCG_heatmap!$R$9:$R$218,0),0),C77) -> NHS Solihull CCG | J77: =MATCH('Similar 10 and all CCGs'!$H77,CCG_heatmap!$C$9:$C$214,0)-CCG_heatmap!$A61 -> 0
B78: 54 | C78: =CCG_heatmap!$C62 -> NHS Thanet CCG | E78: =IFERROR(1+MATCH('Similar 10 and all CCGs'!$C78,CCG_heatmap!$C$9:$C$214,0)-VLOOKUP(C78,CCG_heatmap!$C$427:$P$633,CCG_heatmap!$P$425,FALSE),0) -> 0 | G78: 54 | H78: =IFERROR(INDEX(CCG_heatmap!$C$9:$C$214,MATCH(CCG_heatmap!$A62,CCG_heatmap!$R$9:$R$218,0),0),C78) -> NHS Thanet CCG | J78: =MATCH('Similar 10 and all CCGs'!$H78,CCG_heatmap!$C$9:$C$214,0)-CCG_heatmap!$A62 -> 0
B79: 55 | C79: =CCG_heatmap!$C63 -> NHS Shropshire CCG | E79: =IFERROR(1+MATCH('Similar 10 and all CCGs'!$C79,CCG_heatmap!$C$9:$C$214,0)-VLOOKUP(C79,CCG_heatmap!$C$427:$P$633,CCG_heatmap!$P$425,FALSE),0) -> 0 | G79: 55 | H79: =IFERROR(INDEX(CCG_heatmap!$C$9:$C$214,MATCH(CCG_heatmap!$A63,CCG_heatmap!$R$9:$R$218,0),0),C79) -> NHS Shropshire CCG | J79: =MATCH('Similar 10 and all CCGs'!$H79,CCG_heatmap!$C$9:$C$214,0)-CCG_heatmap!$A63 -> 0
B80: 56 | C80: =CCG_heatmap!$C64 -> NHS Mid Essex CCG | E80: =IFERROR(1+MATCH('Similar 10 and all CCGs'!$C80,CCG_heatmap!$C$9:$C$214,0)-VLOOKUP(C80,CCG_heatmap!$C$427:$P$633,CCG_heatmap!$P$425,FALSE),0) -> 0 | G80: 56 | H80: =IFERROR(INDEX(CCG_heatmap!$C$9:$C$214,MATCH(CCG_heatmap!$A64,CCG_heatmap!$R$9:$R$218,0),0),C80) -> NHS Mid Essex CCG | J80: =MATCH('Similar 10 and all CCGs'!$H80,CCG_heatmap!$C$9:$C$214,0)-CCG_heatmap!$A64 -> 0
B81: 57 | C81: =CCG_heatmap!$C65 -> NHS Durham Dales, Easington and Sedgefield CCG | E81: =IFERROR(1+MATCH('Similar 10 and all CCGs'!$C81,CCG_heatmap!$C$9:$C$214,0)-VLOOKUP(C81,CCG_heatmap!$C$427:$P$633,CCG_heatmap!$P$425,FALSE),0) -> 0 | G81: 57 | H81: =IFERROR(INDEX(CCG_heatmap!$C$9:$C$214,MATCH(CCG_heatmap!$A65,CCG_heatmap!$R$9:$R$218,0),0),C81) -> NHS Durham Dales, Easington and Sedgefield CCG | J81: =MATCH('Similar 10 and all CCGs'!$H81,CCG_heatmap!$C$9:$C$214,0)-CCG_heatmap!$A65 -> 0
B82: 58 | C82: =CCG_heatmap!$C66 -> NHS North Staffordshire CCG | E82: =IFERROR(1+MATCH('Similar 10 and all CCGs'!$C82,CCG_heatmap!$C$9:$C$214,0)-VLOOKUP(C82,CCG_heatmap!$C$427:$P$633,CCG_heatmap!$P$425,FALSE),0) -> 0 | G82: 58 | H82: =IFERROR(INDEX(CCG_heatmap!$C$9:$C$214,MATCH(CCG_heatmap!$A66,CCG_heatmap!$R$9:$R$218,0),0),C82) -> NHS North Staffordshire CCG | J82: =MATCH('Similar 10 and all CCGs'!$H82,CCG_heatmap!$C$9:$C$214,0)-CCG_heatmap!$A66 -> 0
B83: 59 | C83: =CCG_heatmap!$C67 -> NHS Herefordshire CCG | E83: =IFERROR(1+MATCH('Similar 10 and all CCGs'!$C83,CCG_heatmap!$C$9:$C$214,0)-VLOOKUP(C83,CCG_heatmap!$C$427:$P$633,CCG_heatmap!$P$425,FALSE),0) -> 0 | G83: 59 | H83: =IFERROR(INDEX(CCG_heatmap!$C$9:$C$214,MATCH(CCG_heatmap!$A67,CCG_heatmap!$R$9:$R$218,0),0),C83) -> NHS Herefordshire CCG | J83: =MATCH('Similar 10 and all CCGs'!$H83,CCG_heatmap!$C$9:$C$214,0)-CCG_heatmap!$A67 -> 0
B84: 60 | C84: =CCG_heatmap!$C68 -> NHS East Lancashire CCG | E84: =IFERROR(1+MATCH('Similar 10 and all CCGs'!$C84,CCG_heatmap!$C$9:$C$214,0)-VLOOKUP(C84,CCG_heatmap!$C$427:$P$633,CCG_heatmap!$P$425,FALSE),0) -> 0 | G84: 60 | H84: =IFERROR(INDEX(CCG_heatmap!$C$9:$C$214,MATCH(CCG_heatmap!$A68,CCG_heatmap!$R$9:$R$218,0),0),C84) -> NHS East Lancashire CCG | J84: =MATCH('Similar 10 and all CCGs'!$H84,CCG_heatmap!$C$9:$C$214,0)-CCG_heatmap!$A68 -> 0
B85: 61 | C85: =CCG_heatmap!$C69 -> NHS South Devon and Torbay CCG | E85: =IFERROR(1+MATCH('Similar 10 and all CCGs'!$C85,CCG_heatmap!$C$9:$C$214,0)-VLOOKUP(C85,CCG_heatmap!$C$427:$P$633,CCG_heatmap!$P$425,FALSE),0) -> 0 | G85: 61 | H85: =IFERROR(INDEX(CCG_heatmap!$C$9:$C$214,MATCH(CCG_heatmap!$A69,CCG_heatmap!$R$9:$R$218,0),0),C85) -> NHS South Devon and Torbay CCG | J85: =MATCH('Similar 10 and all CCGs'!$H85,CCG_heatmap!$C$9:$C$214,0)-CCG_heatmap!$A69 -> 0
B86: 62 | C86: =CCG_heatmap!$C70 -> NHS Eastbourne, Hailsham and Seaford CCG | E86: =IFERROR(1+MATCH('Similar 10 and all CCGs'!$C86,CCG_heatmap!$C$9:$C$214,0)-VLOOKUP(C86,CCG_heatmap!$C$427:$P$633,CCG_heatmap!$P$425,FALSE),0) -> 0 | G86: 62 | H86: =IFERROR(INDEX(CCG_heatmap!$C$9:$C$214,MATCH(CCG_heatmap!$A70,CCG_heatmap!$R$9:$R$218,0),0),C86) -> NHS Eastbourne, Hailsham and Seaford CCG | J86: =MATCH('Similar 10 and all CCGs'!$H86,CCG_heatmap!$C$9:$C$214,0)-CCG_heatmap!$A70 -> 0
B87: 63 | C87: =CCG_heatmap!$C71 -> NHS Isle of Wight CCG | E87: =IFERROR(1+MATCH('Similar 10 and all CCGs'!$C87,CCG_heatmap!$C$9:$C$214,0)-VLOOKUP(C87,CCG_heatmap!$C$427:$P$633,CCG_heatmap!$P$425,FALSE),0) -> 0 | G87: 63 | H87: =IFERROR(INDEX(CCG_heatmap!$C$9:$C$214,MATCH(CCG_heatmap!$A71,CCG_heatmap!$R$9:$R$218,0),0),C87) -> NHS Isle of Wight CCG | J87: =MATCH('Similar 10 and all CCGs'!$H87,CCG_heatmap!$C$9:$C$214,0)-CCG_heatmap!$A71 -> 0
B88: 64 | C88: =CCG_heatmap!$C72 -> NHS Doncaster CCG | E88: =IFERROR(1+MATCH('Similar 10 and all CCGs'!$C88,CCG_heatmap!$C$9:$C$214,0)-VLOOKUP(C88,CCG_heatmap!$C$427:$P$633,CCG_heatmap!$P$425,FALSE),0) -> 0 | G88: 64 | H88: =IFERROR(INDEX(CCG_heatmap!$C$9:$C$214,MATCH(CCG_heatmap!$A72,CCG_heatmap!$R$9:$R$218,0),0),C88) -> NHS Doncaster CCG | J88: =MATCH('Similar 10 and all CCGs'!$H88,CCG_heatmap!$C$9:$C$214,0)-CCG_heatmap!$A72 -> 0
B89: 65 | C89: =CCG_heatmap!$C73 -> NHS Newbury and District CCG | E89: =IFERROR(1+MATCH('Similar 10 and all CCGs'!$C89,CCG_heatmap!$C$9:$C$214,0)-VLOOKUP(C89,CCG_heatmap!$C$427:$P$633,CCG_heatmap!$P$425,FALSE),0) -> 0 | G89: 65 | H89: =IFERROR(INDEX(CCG_heatmap!$C$9:$C$214,MATCH(CCG_heatmap!$A73,CCG_heatmap!$R$9:$R$218,0),0),C89) -> NHS Newbury and District CCG | J89: =MATCH('Similar 10 and all CCGs'!$H89,CCG_heatmap!$C$9:$C$214,0)-CCG_heatmap!$A73 -> 0
B90: 66 | C90: =CCG_heatmap!$C74 -> NHS Wiltshire CCG | E90: =IFERROR(1+MATCH('Similar 10 and all CCGs'!$C90,CCG_heatmap!$C$9:$C$214,0)-VLOOKUP(C90,CCG_heatmap!$C$427:$P$633,CCG_heatmap!$P$425,FALSE),0) -> 0 | G90: 66 | H90: =IFERROR(INDEX(CCG_heatmap!$C$9:$C$214,MATCH(CCG_heatmap!$A74,CCG_heatmap!$R$9:$R$218,0),0),C90) -> NHS Wiltshire CCG | J90: =MATCH('Similar 10 and all CCGs'!$H90,CCG_heatmap!$C$9:$C$214,0)-CCG_heatmap!$A74 -> 0
B91: 67 | C91: =CCG_heatmap!$C75 -> NHS Swale CCG | E91: =IFERROR(1+MATCH('Similar 10 and all CCGs'!$C91,CCG_heatmap!$C$9:$C$214,0)-VLOOKUP(C91,CCG_heatmap!$C$427:$P$633,CCG_heatmap!$P$425,FALSE),0) -> 0 | G91: 67 | H91: =IFERROR(INDEX(CCG_heatmap!$C$9:$C$214,MATCH(CCG_heatmap!$A75,CCG_heatmap!$R$9:$R$218,0),0),C91) -> NHS Swale CCG | J91: =MATCH('Similar 10 and all CCGs'!$H91,CCG_heatmap!$C$9:$C$214,0)-CCG_heatmap!$A75 -> 0
B92: 68 | C92: =CCG_heatmap!$C76 -> NHS Rotherham CCG | E92: =IFERROR(1+MATCH('Similar 10 and all CCGs'!$C92,CCG_heatmap!$C$9:$C$214,0)-VLOOKUP(C92,CCG_heatmap!$C$427:$P$633,CCG_heatmap!$P$425,FALSE),0) -> 0 | G92: 68 | H92: =IFERROR(INDEX(CCG_heatmap!$C$9:$C$214,MATCH(CCG_heatmap!$A76,CCG_heatmap!$R$9:$R$218,0),0),C92) -> NHS Rotherham CCG | J92: =MATCH('Similar 10 and all CCGs'!$H92,CCG_heatmap!$C$9:$C$214,0)-CCG_heatmap!$A76 -> 0
B93: 69 | C93: =CCG_heatmap!$C77 -> NHS Telford & Wrekin CCG | E93: =IFERROR(1+MATCH('Similar 10 and all CCGs'!$C93,CCG_heatmap!$C$9:$C$214,0)-VLOOKUP(C93,CCG_heatmap!$C$427:$P$633,CCG_heatmap!$P$425,FALSE),0) -> 0 | G93: 69 | H93: =IFERROR(INDEX(CCG_heatmap!$C$9:$C$214,MATCH(CCG_heatmap!$A77,CCG_heatmap!$R$9:$R$218,0),0),C93) -> NHS Telford & Wrekin CCG | J93: =MATCH('Similar 10 and all CCGs'!$H93,CCG_heatmap!$C$9:$C$214,0)-CCG_heatmap!$A77 -> 0
B94: 70 | C94: =CCG_heatmap!$C78 -> NHS Basildon and Brentwood CCG | E94: =IFERROR(1+MATCH('Similar 10 and all CCGs'!$C94,CCG_heatmap!$C$9:$C$214,0)-VLOOKUP(C94,CCG_heatmap!$C$427:$P$633,CCG_heatmap!$P$425,FALSE),0) -> 0 | G94: 70 | H94: =IFERROR(INDEX(CCG_heatmap!$C$9:$C$214,MATCH(CCG_heatmap!$A78,CCG_heatmap!$R$9:$R$218,0),0),C94) -> NHS Basildon and Brentwood CCG | J94: =MATCH('Similar 10 and all CCGs'!$H94,CCG_heatmap!$C$9:$C$214,0)-CCG_heatmap!$A78 -> 0
B95: 71 | C95: =CCG_heatmap!$C79 -> NHS Bury CCG | E95: =IFERROR(1+MATCH('Similar 10 and all CCGs'!$C95,CCG_heatmap!$C$9:$C$214,0)-VLOOKUP(C95,CCG_heatmap!$C$427:$P$633,CCG_heatmap!$P$425,FALSE),0) -> 0 | G95: 71 | H95: =IFERROR(INDEX(CCG_heatmap!$C$9:$C$214,MATCH(CCG_heatmap!$A79,CCG_heatmap!$R$9:$R$218,0),0),C95) -> NHS Bury CCG | J95: =MATCH('Similar 10 and all CCGs'!$H95,CCG_heatmap!$C$9:$C$214,0)-CCG_heatmap!$A79 -> 0
B96: 72 | C96: =CCG_heatmap!$C80 -> NHS West Leicestershire CCG | E96: =IFERROR(1+MATCH('Similar 10 and all CCGs'!$C96,CCG_heatmap!$C$9:$C$214,0)-VLOOKUP(C96,CCG_heatmap!$C$427:$P$633,CCG_heatmap!$P$425,FALSE),0) -> 0 | G96: 72 | H96: =IFERROR(INDEX(CCG_heatmap!$C$9:$C$214,MATCH(CCG_heatmap!$A80,CCG_heatmap!$R$9:$R$218,0),0),C96) -> NHS West Leicestershire CCG | J96: =MATCH('Similar 10 and all CCGs'!$H96,CCG_heatmap!$C$9:$C$214,0)-CCG_heatmap!$A80 -> 0
B97: 73 | C97: =CCG_heatmap!$C81 -> NHS Morecambe Bay CCG | E97: =IFERROR(1+MATCH('Similar 10 and all CCGs'!$C97,CCG_heatmap!$C$9:$C$214,0)-VLOOKUP(C97,CCG_heatmap!$C$427:$P$633,CCG_heatmap!$P$425,FALSE),0) -> 0 | G97: 73 | H97: =IFERROR(INDEX(CCG_heatmap!$C$9:$C$214,MATCH(CCG_heatmap!$A81,CCG_heatmap!$R$9:$R$218,0),0),C97) -> NHS Morecambe Bay CCG | J97: =MATCH('Similar 10 and all CCGs'!$H97,CCG_heatmap!$C$9:$C$214,0)-CCG_heatmap!$A81 -> 0
B98: 74 | C98: =CCG_heatmap!$C82 -> NHS Dartford, Gravesham and Swanley CCG | E98: =IFERROR(1+MATCH('Similar 10 and all CCGs'!$C98,CCG_heatmap!$C$9:$C$214,0)-VLOOKUP(C98,CCG_heatmap!$C$427:$P$633,CCG_heatmap!$P$425,FALSE),0) -> 0 | G98: 74 | H98: =IFERROR(INDEX(CCG_heatmap!$C$9:$C$214,MATCH(CCG_heatmap!$A82,CCG_heatmap!$R$9:$R$218,0),0),C98) -> NHS Dartford, Gravesham and Swanley CCG | J98: =MATCH('Similar 10 and all CCGs'!$H98,CCG_heatmap!$C$9:$C$214,0)-CCG_heatmap!$A82 -> 0
B99: 75 | C99: =CCG_heatmap!$C83 -> NHS Barnsley CCG | E99: =IFERROR(1+MATCH('Similar 10 and all CCGs'!$C99,CCG_heatmap!$C$9:$C$214,0)-VLOOKUP(C99,CCG_heatmap!$C$427:$P$633,CCG_heatmap!$P$425,FALSE),0) -> 0 | G99: 75 | H99: =IFERROR(INDEX(CCG_heatmap!$C$9:$C$214,MATCH(CCG_heatmap!$A83,CCG_heatmap!$R$9:$R$218,0),0),C99) -> NHS Barnsley CCG | J99: =MATCH('Similar 10 and all CCGs'!$H99,CCG_heatmap!$C$9:$C$214,0)-CCG_heatmap!$A83 -> 0
B100: 76 | C100: =CCG_heatmap!$C84 -> NHS Wakefield CCG | E100: =IFERROR(1+MATCH('Similar 10 and all CCGs'!$C100,CCG_heatmap!$C$9:$C$214,0)-VLOOKUP(C100,CCG_heatmap!$C$427:$P$633,CCG_heatmap!$P$425,FALSE),0) -> 0 | G100: 76 | H100: =IFERROR(INDEX(CCG_heatmap!$C$9:$C$214,MATCH(CCG_heatmap!$A84,CCG_heatmap!$R$9:$R$218,0),0),C100) -> NHS Wakefield CCG | J100: =MATCH('Similar 10 and all CCGs'!$H100,CCG_heatmap!$C$9:$C$214,0)-CCG_heatmap!$A84 -> 0
B101: 77 | C101: =CCG_heatmap!$C85 -> NHS Bedfordshire CCG | E101: =IFERROR(1+MATCH('Similar 10 and all CCGs'!$C101,CCG_heatmap!$C$9:$C$214,0)-VLOOKUP(C101,CCG_heatmap!$C$427:$P$633,CCG_heatmap!$P$425,FALSE),0) -> 0 | G101: 77 | H101: =IFERROR(INDEX(CCG_heatmap!$C$9:$C$214,MATCH(CCG_heatmap!$A85,CCG_heatmap!$R$9:$R$218,0),0),C101) -> NHS Bedfordshire CCG | J101: =MATCH('Similar 10 and all CCGs'!$H101,CCG_heatmap!$C$9:$C$214,0)-CCG_heatmap!$A85 -> 0
B102: 78 | C102: =CCG_heatmap!$C86 -> NHS Nottingham West CCG | E102: =IFERROR(1+MATCH('Similar 10 and all CCGs'!$C102,CCG_heatmap!$C$9:$C$214,0)-VLOOKUP(C102,CCG_heatmap!$C$427:$P$633,CCG_heatmap!$P$425,FALSE),0) -> 0 | G102: 78 | H102: =IFERROR(INDEX(CCG_heatmap!$C$9:$C$214,MATCH(CCG_heatmap!$A86,CCG_heatmap!$R$9:$R$218,0),0),C102) -> NHS Nottingham West CCG | J102: =MATCH('Similar 10 and all CCGs'!$H102,CCG_heatmap!$C$9:$C$214,0)-CCG_heatmap!$A86 -> 0
B103: 79 | C103: =CCG_heatmap!$C87 -> NHS Nottingham North & East CCG | E103: =IFERROR(1+MATCH('Similar 10 and all CCGs'!$C103,CCG_heatmap!$C$9:$C$214,0)-VLOOKUP(C103,CCG_heatmap!$C$427:$P$633,CCG_heatmap!$P$425,FALSE),0) -> 0 | G103: 79 | H103: =IFERROR(INDEX(CCG_heatmap!$C$9:$C$214,MATCH(CCG_heatmap!$A87,CCG_heatmap!$R$9:$R$218,0),0),C103) -> NHS Nottingham North & East CCG | J103: =MATCH('Similar 10 and all CCGs'!$H103,CCG_heatmap!$C$9:$C$214,0)-CCG_heatmap!$A87 -> 0
B104: 80 | C104: =CCG_heatmap!$C88 -> NHS North East Hampshire and Farnham CCG | E104: =IFERROR(1+MATCH('Similar 10 and all CCGs'!$C104,CCG_heatmap!$C$9:$C$214,0)-VLOOKUP(C104,CCG_heatmap!$C$427:$P$633,CCG_heatmap!$P$425,FALSE),0) -> 0 | G104: 80 | H104: =IFERROR(INDEX(CCG_heatmap!$C$9:$C$214,MATCH(CCG_heatmap!$A88,CCG_heatmap!$R$9:$R$218,0),0),C104) -> NHS North East Hampshire and Farnham CCG | J104: =MATCH('Similar 10 and all CCGs'!$H104,CCG_heatmap!$C$9:$C$214,0)-CCG_heatmap!$A88 -> 0
B105: 81 | C105: =CCG_heatmap!$C89 -> NHS Mansfield & Ashfield CCG | E105: =IFERROR(1+MATCH('Similar 10 and all CCGs'!$C105,CCG_heatmap!$C$9:$C$214,0)-VLOOKUP(C105,CCG_heatmap!$C$427:$P$633,CCG_heatmap!$P$425,FALSE),0) -> 0 | G105: 81 | H105: =IFERROR(INDEX(CCG_heatmap!$C$9:$C$214,MATCH(CCG_heatmap!$A89,CCG_heatmap!$R$9:$R$218,0),0),C105) -> NHS Mansfield & Ashfield CCG | J105: =MATCH('Similar 10 and all CCGs'!$H105,CCG_heatmap!$C$9:$C$214,0)-CCG_heatmap!$A89 -> 0
B106: 82 | C106: =CCG_heatmap!$C90 -> NHS Southern Derbyshire CCG | E106: =IFERROR(1+MATCH('Similar 10 and all CCGs'!$C106,CCG_heatmap!$C$9:$C$214,0)-VLOOKUP(C106,CCG_heatmap!$C$427:$P$633,CCG_heatmap!$P$425,FALSE),0) -> 0 | G106: 82 | H106: =IFERROR(INDEX(CCG_heatmap!$C$9:$C$214,MATCH(CCG_heatmap!$A90,CCG_heatmap!$R$9:$R$218,0),0),C106) -> NHS Southern Derbyshire CCG | J106: =MATCH('Similar 10 and all CCGs'!$H106,CCG_heatmap!$C$9:$C$214,0)-CCG_heatmap!$A90 -> 0
B107: 83 | C107: =CCG_heatmap!$C91 -> NHS Stockport CCG | E107: =IFERROR(1+MATCH('Similar 10 and all CCGs'!$C107,CCG_heatmap!$C$9:$C$214,0)-VLOOKUP(C107,CCG_heatmap!$C$427:$P$633,CCG_heatmap!$P$425,FALSE),0) -> 0 | G107: 83 | H107: =IFERROR(INDEX(CCG_heatmap!$C$9:$C$214,MATCH(CCG_heatmap!$A91,CCG_heatmap!$R$9:$R$218,0),0),C107) -> NHS Stockport CCG | J107: =MATCH('Similar 10 and all CCGs'!$H107,CCG_heatmap!$C$9:$C$214,0)-CCG_heatmap!$A91 -> 0
B108: 84 | C108: =CCG_heatmap!$C92 -> NHS Horsham and Mid Sussex CCG | E108: =IFERROR(1+MATCH('Similar 10 and all CCGs'!$C108,CCG_heatmap!$C$9:$C$214,0)-VLOOKUP(C108,CCG_heatmap!$C$427:$P$633,CCG_heatmap!$P$425,FALSE),0) -> 0 | G108: 84 | H108: =IFERROR(INDEX(CCG_heatmap!$C$9:$C$214,MATCH(CCG_heatmap!$A92,CCG_heatmap!$R$9:$R$218,0),0),C108) -> NHS Horsham and Mid Sussex CCG | J108: =MATCH('Similar 10 and all CCGs'!$H108,CCG_heatmap!$C$9:$C$214,0)-CCG_heatmap!$A92 -> 0
B109: 85 | C109: =CCG_heatmap!$C93 -> NHS Cannock Chase CCG | E109: =IFERROR(1+MATCH('Similar 10 and all CCGs'!$C109,CCG_heatmap!$C$9:$C$214,0)-VLOOKUP(C109,CCG_heatmap!$C$427:$P$633,CCG_heatmap!$P$425,FALSE),0) -> 0 | G109: 85 | H109: =IFERROR(INDEX(CCG_heatmap!$C$9:$C$214,MATCH(CCG_heatmap!$A93,CCG_heatmap!$R$9:$R$218,0),0),C109) -> NHS Cannock Chase CCG | J109: =MATCH('Similar 10 and all CCGs'!$H109,CCG_heatmap!$C$9:$C$214,0)-CCG_heatmap!$A93 -> 0
B110: 86 | C110: =CCG_heatmap!$C94 -> NHS Somerset CCG | E110: =IFERROR(1+MATCH('Similar 10 and all CCGs'!$C110,CCG_heatmap!$C$9:$C$214,0)-VLOOKUP(C110,CCG_heatmap!$C$427:$P$633,CCG_heatmap!$P$425,FALSE),0) -> 0 | G110: 86 | H110: =IFERROR(INDEX(CCG_heatmap!$C$9:$C$214,MATCH(CCG_heatmap!$A94,CCG_heatmap!$R$9:$R$218,0),0),C110) -> NHS Somerset CCG | J110: =MATCH('Similar 10 and all CCGs'!$H110,CCG_heatmap!$C$9:$C$214,0)-CCG_heatmap!$A94 -> 0
B111: 87 | C111: =CCG_heatmap!$C95 -> NHS North West Surrey CCG | E111: =IFERROR(1+MATCH('Similar 10 and all CCGs'!$C111,CCG_heatmap!$C$9:$C$214,0)-VLOOKUP(C111,CCG_heatmap!$C$427:$P$633,CCG_heatmap!$P$425,FALSE),0) -> 0 | G111: 87 | H111: =IFERROR(INDEX(CCG_heatmap!$C$9:$C$214,MATCH(CCG_heatmap!$A95,CCG_heatmap!$R$9:$R$218,0),0),C111) -> NHS North West Surrey CCG | J111: =MATCH('Similar 10 and all CCGs'!$H111,CCG_heatmap!$C$9:$C$214,0)-CCG_heatmap!$A95 -> 0
B112: 88 | C112: =CCG_heatmap!$C96 -> NHS Guildford and Waverley CCG | E112: =IFERROR(1+MATCH('Similar 10 and all CCGs'!$C112,CCG_heatmap!$C$9:$C$214,0)-VLOOKUP(C112,CCG_heatmap!$C$427:$P$633,CCG_heatmap!$P$425,FALSE),0) -> 0 | G112: 88 | H112: =IFERROR(INDEX(CCG_heatmap!$C$9:$C$214,MATCH(CCG_heatmap!$A96,CCG_heatmap!$R$9:$R$218,0),0),C112) -> NHS Guildford and Waverley CCG | J112: =MATCH('Similar 10 and all CCGs'!$H112,CCG_heatmap!$C$9:$C$214,0)-CCG_heatmap!$A96 -> 0
B113: 89 | C113: =CCG_heatmap!$C97 -> NHS Hartlepool and Stockton-on-Tees CCG | E113: =IFERROR(1+MATCH('Similar 10 and all CCGs'!$C113,CCG_heatmap!$C$9:$C$214,0)-VLOOKUP(C113,CCG_heatmap!$C$427:$P$633,CCG_heatmap!$P$425,FALSE),0) -> 0 | G113: 89 | H113: =IFERROR(INDEX(CCG_heatmap!$C$9:$C$214,MATCH(CCG_heatmap!$A97,CCG_heatmap!$R$9:$R$218,0),0),C113) -> NHS Hartlepool and Stockton-on-Tees CCG | J113: =MATCH('Similar 10 and all CCGs'!$H113,CCG_heatmap!$C$9:$C$214,0)-CCG_heatmap!$A97 -> 0
B114: 90 | C114: =CCG_heatmap!$C98 -> NHS South Gloucestershire CCG | E114: =IFERROR(1+MATCH('Similar 10 and all CCGs'!$C114,CCG_heatmap!$C$9:$C$214,0)-VLOOKUP(C114,CCG_heatmap!$C$427:$P$633,CCG_heatmap!$P$425,FALSE),0) -> 0 | G114: 90 | H114: =IFERROR(INDEX(CCG_heatmap!$C$9:$C$214,MATCH(CCG_heatmap!$A98,CCG_heatmap!$R$9:$R$218,0),0),C114) -> NHS South Gloucestershire CCG | J114: =MATCH('Similar 10 and all CCGs'!$H114,CCG_heatmap!$C$9:$C$214,0)-CCG_heatmap!$A98 -> 0
B115: 91 | C115: =CCG_heatmap!$C99 -> NHS Chiltern CCG | E115: =IFERROR(1+MATCH('Similar 10 and all CCGs'!$C115,CCG_heatmap!$C$9:$C$214,0)-VLOOKUP(C115,CCG_heatmap!$C$427:$P$633,CCG_heatmap!$P$425,FALSE),0) -> 0 | G115: 91 | H115: =IFERROR(INDEX(CCG_heatmap!$C$9:$C$214,MATCH(CCG_heatmap!$A99,CCG_heatmap!$R$9:$R$218,0),0),C115) -> NHS Chiltern CCG | J115: =MATCH('Similar 10 and all CCGs'!$H115,CCG_heatmap!$C$9:$C$214,0)-CCG_heatmap!$A99 -> 0
B116: 92 | C116: =CCG_heatmap!$C100 -> NHS Surrey Downs CCG | E116: =IFERROR(1+MATCH('Similar 10 and all CCGs'!$C116,CCG_heatmap!$C$9:$C$214,0)-VLOOKUP(C116,CCG_heatmap!$C$427:$P$633,CCG_heatmap!$P$425,FALSE),0) -> 0 | G116: 92 | H116: =IFERROR(INDEX(CCG_heatmap!$C$9:$C$214,MATCH(CCG_heatmap!$A100,CCG_heatmap!$R$9:$R$218,0),0),C116) -> NHS Surrey Downs CCG | J116: =MATCH('Similar 10 and all CCGs'!$H116,CCG_heatmap!$C$9:$C$214,0)-CCG_heatmap!$A100 -> 0
B117: 93 | C117: =CCG_heatmap!$C101 -> NHS Hambleton, Richmondshire and Whitby CCG | E117: =IFERROR(1+MATCH('Similar 10 and all CCGs'!$C117,CCG_heatmap!$C$9:$C$214,0)-VLOOKUP(C117,CCG_heatmap!$C$427:$P$633,CCG_heatmap!$P$425,FALSE),0) -> 0 | G117: 93 | H117: =IFERROR(INDEX(CCG_heatmap!$C$9:$C$214,MATCH(CCG_heatmap!$A101,CCG_heatmap!$R$9:$R$218,0),0),C117) -> NHS Hambleton, Richmondshire and Whitby CCG | J117: =MATCH('Similar 10 and all CCGs'!$H117,CCG_heatmap!$C$9:$C$214,0)-CCG_heatmap!$A101 -> 0
B118: 94 | C118: =CCG_heatmap!$C102 -> NHS West Kent CCG | E118: =IFERROR(1+MATCH('Similar 10 and all CCGs'!$C118,CCG_heatmap!$C$9:$C$214,0)-VLOOKUP(C118,CCG_heatmap!$C$427:$P$633,CCG_heatmap!$P$425,FALSE),0) -> 0 | G118: 94 | H118: =IFERROR(INDEX(CCG_heatmap!$C$9:$C$214,MATCH(CCG_heatmap!$A102,CCG_heatmap!$R$9:$R$218,0),0),C118) -> NHS West Kent CCG | J118: =MATCH('Similar 10 and all CCGs'!$H118,CCG_heatmap!$C$9:$C$214,0)-CCG_heatmap!$A102 -> 0
B119: 95 | C119: =CCG_heatmap!$C103 -> NHS Fylde & Wyre CCG | E119: =IFERROR(1+MATCH('Similar 10 and all CCGs'!$C119,CCG_heatmap!$C$9:$C$214,0)-VLOOKUP(C119,CCG_heatmap!$C$427:$P$633,CCG_heatmap!$P$425,FALSE),0) -> 0 | G119: 95 | H119: =IFERROR(INDEX(CCG_heatmap!$C$9:$C$214,MATCH(CCG_heatmap!$A103,CCG_heatmap!$R$9:$R$218,0),0),C119) -> NHS Fylde & Wyre CCG | J119: =MATCH('Similar 10 and all CCGs'!$H119,CCG_heatmap!$C$9:$C$214,0)-CCG_heatmap!$A103 -> 0
B120: 96 | C120: =CCG_heatmap!$C104 -> NHS Castle Point and Rochford CCG | E120: =IFERROR(1+MATCH('Similar 10 and all CCGs'!$C120,CCG_heatmap!$C$9:$C$214,0)-VLOOKUP(C120,CCG_heatmap!$C$427:$P$633,CCG_heatmap!$P$425,FALSE),0) -> 0 | G120: 96 | H120: =IFERROR(INDEX(CCG_heatmap!$C$9:$C$214,MATCH(CCG_heatmap!$A104,CCG_heatmap!$R$9:$R$218,0),0),C120) -> NHS Castle Point and Rochford CCG | J120: =MATCH('Similar 10 and all CCGs'!$H120,CCG_heatmap!$C$9:$C$214,0)-CCG_heatmap!$A104 -> 0
B121: 97 | C121: =CCG_heatmap!$C105 -> NHS Swindon CCG | E121: =IFERROR(1+MATCH('Similar 10 and all CCGs'!$C121,CCG_heatmap!$C$9:$C$214,0)-VLOOKUP(C121,CCG_heatmap!$C$427:$P$633,CCG_heatmap!$P$425,FALSE),0) -> 0 | G121: 97 | H121: =IFERROR(INDEX(CCG_heatmap!$C$9:$C$214,MATCH(CCG_heatmap!$A105,CCG_heatmap!$R$9:$R$218,0),0),C121) -> NHS Swindon CCG | J121: =MATCH('Similar 10 and all CCGs'!$H121,CCG_heatmap!$C$9:$C$214,0)-CCG_heatmap!$A105 -> 0
B122: 98 | C122: =CCG_heatmap!$C106 -> NHS North Tyneside CCG | E122: =IFERROR(1+MATCH('Similar 10 and all CCGs'!$C122,CCG_heatmap!$C$9:$C$214,0)-VLOOKUP(C122,CCG_heatmap!$C$427:$P$633,CCG_heatmap!$P$425,FALSE),0) -> 0 | G122: 98 | H122: =IFERROR(INDEX(CCG_heatmap!$C$9:$C$214,MATCH(CCG_heatmap!$A106,CCG_heatmap!$R$9:$R$218,0),0),C122) -> NHS North Tyneside CCG | J122: =MATCH('Similar 10 and all CCGs'!$H122,CCG_heatmap!$C$9:$C$214,0)-CCG_heatmap!$A106 -> 0
B123: 99 | C123: =CCG_heatmap!$C107 -> NHS Erewash CCG | E123: =IFERROR(1+MATCH('Similar 10 and all CCGs'!$C123,CCG_heatmap!$C$9:$C$214,0)-VLOOKUP(C123,CCG_heatmap!$C$427:$P$633,CCG_heatmap!$P$425,FALSE),0) -> 0 | G123: 99 | H123: =IFERROR(INDEX(CCG_heatmap!$C$9:$C$214,MATCH(CCG_heatmap!$A107,CCG_heatmap!$R$9:$R$218,0),0),C123) -> NHS Erewash CCG | J123: =MATCH('Similar 10 and all CCGs'!$H123,CCG_heatmap!$C$9:$C$214,0)-CCG_heatmap!$A107 -> 0
B124: 100 | C124: =CCG_heatmap!$C108 -> NHS Wirral CCG | E124: =IFERROR(1+MATCH('Similar 10 and all CCGs'!$C124,CCG_heatmap!$C$9:$C$214,0)-VLOOKUP(C124,CCG_heatmap!$C$427:$P$633,CCG_heatmap!$P$425,FALSE),0) -> 0 | G124: 100 | H124: =IFERROR(INDEX(CCG_heatmap!$C$9:$C$214,MATCH(CCG_heatmap!$A108,CCG_heatmap!$R$9:$R$218,0),0),C124) -> NHS Wirral CCG | J124: =MATCH('Similar 10 and all CCGs'!$H124,CCG_heatmap!$C$9:$C$214,0)-CCG_heatmap!$A108 -> 0
B125: 101 | C125: =CCG_heatmap!$C109 -> NHS Tameside and Glossop CCG | E125: =IFERROR(1+MATCH('Similar 10 and all CCGs'!$C125,CCG_heatmap!$C$9:$C$214,0)-VLOOKUP(C125,CCG_heatmap!$C$427:$P$633,CCG_heatmap!$P$425,FALSE),0) -> 0 | G125: 101 | H125: =IFERROR(INDEX(CCG_heatmap!$C$9:$C$214,MATCH(CCG_heatmap!$A109,CCG_heatmap!$R$9:$R$218,0),0),C125) -> NHS Tameside and Glossop CCG | J125: =MATCH('Similar 10 and all CCGs'!$H125,CCG_heatmap!$C$9:$C$214,0)-CCG_heatmap!$A109 -> 0
B126: 102 | C126: =CCG_heatmap!$C110 -> NHS Vale of York CCG | E126: =IFERROR(1+MATCH('Similar 10 and all CCGs'!$C126,CCG_heatmap!$C$9:$C$214,0)-VLOOKUP(C126,CCG_heatmap!$C$427:$P$633,CCG_heatmap!$P$425,FALSE),0) -> 0 | G126: 102 | H126: =IFERROR(INDEX(CCG_heatmap!$C$9:$C$214,MATCH(CCG_heatmap!$A110,CCG_heatmap!$R$9:$R$218,0),0),C126) -> NHS Vale of York CCG | J126: =MATCH('Similar 10 and all CCGs'!$H126,CCG_heatmap!$C$9:$C$214,0)-CCG_heatmap!$A110 -> 0
B127: 103 | C127: =CCG_heatmap!$C111 -> NHS Trafford CCG | E127: =IFERROR(1+MATCH('Similar 10 and all CCGs'!$C127,CCG_heatmap!$C$9:$C$214,0)-VLOOKUP(C127,CCG_heatmap!$C$427:$P$633,CCG_heatmap!$P$425,FALSE),0) -> 0 | G127: 103 | H127: =IFERROR(INDEX(CCG_heatmap!$C$9:$C$214,MATCH(CCG_heatmap!$A111,CCG_heatmap!$R$9:$R$218,0),0),C127) -> NHS Trafford CCG | J127: =MATCH('Similar 10 and all CCGs'!$H127,CCG_heatmap!$C$9:$C$214,0)-CCG_heatmap!$A111 -> 0
B128: 104 | C128: =CCG_heatmap!$C112 -> NHS Windsor, Ascot and Maidenhead CCG | E128: =IFERROR(1+MATCH('Similar 10 and all CCGs'!$C128,CCG_heatmap!$C$9:$C$214,0)-VLOOKUP(C128,CCG_heatmap!$C$427:$P$633,CCG_heatmap!$P$425,FALSE),0) -> 0 | G128: 104 | H128: =IFERROR(INDEX(CCG_heatmap!$C$9:$C$214,MATCH(CCG_heatmap!$A112,CCG_heatmap!$R$9:$R$218,0),0),C128) -> NHS Windsor, Ascot and Maidenhead CCG | J128: =MATCH('Similar 10 and all CCGs'!$H128,CCG_heatmap!$C$9:$C$214,0)-CCG_heatmap!$A112 -> 0
B129: 105 | C129: =CCG_heatmap!$C113 -> NHS St Helens CCG | E129: =IFERROR(1+MATCH('Similar 10 and all CCGs'!$C129,CCG_heatmap!$C$9:$C$214,0)-VLOOKUP(C129,CCG_heatmap!$C$427:$P$633,CCG_heatmap!$P$425,FALSE),0) -> 0 | G129: 105 | H129: =IFERROR(INDEX(CCG_heatmap!$C$9:$C$214,MATCH(CCG_heatmap!$A113,CCG_heatmap!$R$9:$R$218,0),0),C129) -> NHS St Helens CCG | J129: =MATCH('Similar 10 and all CCGs'!$H129,CCG_heatmap!$C$9:$C$214,0)-CCG_heatmap!$A113 -> 0
B130: 106 | C130: =CCG_heatmap!$C114 -> NHS Surrey Heath CCG | E130: =IFERROR(1+MATCH('Similar 10 and all CCGs'!$C130,CCG_heatmap!$C$9:$C$214,0)-VLOOKUP(C130,CCG_heatmap!$C$427:$P$633,CCG_heatmap!$P$425,FALSE),0) -> 0 | G130: 106 | H130: =IFERROR(INDEX(CCG_heatmap!$C$9:$C$214,MATCH(CCG_heatmap!$A114,CCG_heatmap!$R$9:$R$218,0),0),C130) -> NHS Surrey Heath CCG | J130: =MATCH('Similar 10 and all CCGs'!$H130,CCG_heatmap!$C$9:$C$214,0)-CCG_heatmap!$A114 -> 0
B131: 107 | C131: =CCG_heatmap!$C115 -> NHS Kernow CCG | E131: =IFERROR(1+MATCH('Similar 10 and all CCGs'!$C131,CCG_heatmap!$C$9:$C$214,0)-VLOOKUP(C131,CCG_heatmap!$C$427:$P$633,CCG_heatmap!$P$425,FALSE),0) -> 0 | G131: 107 | H131: =IFERROR(INDEX(CCG_heatmap!$C$9:$C$214,MATCH(CCG_heatmap!$A115,CCG_heatmap!$R$9:$R$218,0),0),C131) -> NHS Kernow CCG | J131: =MATCH('Similar 10 and all CCGs'!$H131,CCG_heatmap!$C$9:$C$214,0)-CCG_heatmap!$A115 -> 0
B132: 108 | C132: =CCG_heatmap!$C116 -> NHS Wigan Borough CCG | E132: =IFERROR(1+MATCH('Similar 10 and all CCGs'!$C132,CCG_heatmap!$C$9:$C$214,0)-VLOOKUP(C132,CCG_heatmap!$C$427:$P$633,CCG_heatmap!$P$425,FALSE),0) -> 0 | G132: 108 | H132: =IFERROR(INDEX(CCG_heatmap!$C$9:$C$214,MATCH(CCG_heatmap!$A116,CCG_heatmap!$R$9:$R$218,0),0),C132) -> NHS Wigan Borough CCG | J132: =MATCH('Similar 10 and all CCGs'!$H132,CCG_heatmap!$C$9:$C$214,0)-CCG_heatmap!$A116 -> 0
B133: 109 | C133: =CCG_heatmap!$C117 -> NHS Coastal West Sussex CCG | E133: =IFERROR(1+MATCH('Similar 10 and all CCGs'!$C133,CCG_heatmap!$C$9:$C$214,0)-VLOOKUP(C133,CCG_heatmap!$C$427:$P$633,CCG_heatmap!$P$425,FALSE),0) -> 0 | G133: 109 | H133: =IFERROR(INDEX(CCG_heatmap!$C$9:$C$214,MATCH(CCG_heatmap!$A117,CCG_heatmap!$R$9:$R$218,0),0),C133) -> NHS Coastal West Sussex CCG | J133: =MATCH('Similar 10 and all CCGs'!$H133,CCG_heatmap!$C$9:$C$214,0)-CCG_heatmap!$A117 -> 0
B134: 110 | C134: =CCG_heatmap!$C118 -> NHS Leeds North CCG | E134: =IFERROR(1+MATCH('Similar 10 and all CCGs'!$C134,CCG_heatmap!$C$9:$C$214,0)-VLOOKUP(C134,CCG_heatmap!$C$427:$P$633,CCG_heatmap!$P$425,FALSE),0) -> 0 | G134: 110 | H134: =IFERROR(INDEX(CCG_heatmap!$C$9:$C$214,MATCH(CCG_heatmap!$A118,CCG_heatmap!$R$9:$R$218,0),0),C134) -> NHS Leeds North CCG | J134: =MATCH('Similar 10 and all CCGs'!$H134,CCG_heatmap!$C$9:$C$214,0)-CCG_heatmap!$A118 -> 0
B135: 111 | C135: =CCG_heatmap!$C119 -> NHS North & West Reading CCG | E135: =IFERROR(1+MATCH('Similar 10 and all CCGs'!$C135,CCG_heatmap!$C$9:$C$214,0)-VLOOKUP(C135,CCG_heatmap!$C$427:$P$633,CCG_heatmap!$P$425,FALSE),0) -> 0 | G135: 111 | H135: =IFERROR(INDEX(CCG_heatmap!$C$9:$C$214,MATCH(CCG_heatmap!$A119,CCG_heatmap!$R$9:$R$218,0),0),C135) -> NHS North & West Reading CCG | J135: =MATCH('Similar 10 and all CCGs'!$H135,CCG_heatmap!$C$9:$C$214,0)-CCG_heatmap!$A119 -> 0
B136: 112 | C136: =CCG_heatmap!$C120 -> NHS Bracknell and Ascot CCG | E136: =IFERROR(1+MATCH('Similar 10 and all CCGs'!$C136,CCG_heatmap!$C$9:$C$214,0)-VLOOKUP(C136,CCG_heatmap!$C$427:$P$633,CCG_heatmap!$P$425,FALSE),0) -> 0 | G136: 112 | H136: =IFERROR(INDEX(CCG_heatmap!$C$9:$C$214,MATCH(CCG_heatmap!$A120,CCG_heatmap!$R$9:$R$218,0),0),C136) -> NHS Bracknell and Ascot CCG | J136: =MATCH('Similar 10 and all CCGs'!$H136,CCG_heatmap!$C$9:$C$214,0)-CCG_heatmap!$A120 -> 0
B137: 113 | C137: =CCG_heatmap!$C121 -> NHS Sunderland CCG | E137: =IFERROR(1+MATCH('Similar 10 and all CCGs'!$C137,CCG_heatmap!$C$9:$C$214,0)-VLOOKUP(C137,CCG_heatmap!$C$427:$P$633,CCG_heatmap!$P$425,FALSE),0) -> 0 | G137: 113 | H137: =IFERROR(INDEX(CCG_heatmap!$C$9:$C$214,MATCH(CCG_heatmap!$A121,CCG_heatmap!$R$9:$R$218,0),0),C137) -> NHS Sunderland CCG | J137: =MATCH('Similar 10 and all CCGs'!$H137,CCG_heatmap!$C$9:$C$214,0)-CCG_heatmap!$A121 -> 0
B138: 114 | C138: =CCG_heatmap!$C122 -> NHS Fareham and Gosport CCG | E138: =IFERROR(1+MATCH('Similar 10 and all CCGs'!$C138,CCG_heatmap!$C$9:$C$214,0)-VLOOKUP(C138,CCG_heatmap!$C$427:$P$633,CCG_heatmap!$P$425,FALSE),0) -> 0 | G138: 114 | H138: =IFERROR(INDEX(CCG_heatmap!$C$9:$C$214,MATCH(CCG_heatmap!$A122,CCG_heatmap!$R$9:$R$218,0),0),C138) -> NHS Fareham and Gosport CCG | J138: =MATCH('Similar 10 and all CCGs'!$H138,CCG_heatmap!$C$9:$C$214,0)-CCG_heatmap!$A122 -> 0
B139: 115 | C139: =CCG_heatmap!$C123 -> NHS North Durham CCG | E139: =IFERROR(1+MATCH('Similar 10 and all CCGs'!$C139,CCG_heatmap!$C$9:$C$214,0)-VLOOKUP(C139,CCG_heatmap!$C$427:$P$633,CCG_heatmap!$P$425,FALSE),0) -> 0 | G139: 115 | H139: =IFERROR(INDEX(CCG_heatmap!$C$9:$C$214,MATCH(CCG_heatmap!$A123,CCG_heatmap!$R$9:$R$218,0),0),C139) -> NHS North Durham CCG | J139: =MATCH('Similar 10 and all CCGs'!$H139,CCG_heatmap!$C$9:$C$214,0)-CCG_heatmap!$A123 -> 0
B140: 116 | C140: =CCG_heatmap!$C124 -> NHS South Tyneside CCG | E140: =IFERROR(1+MATCH('Similar 10 and all CCGs'!$C140,CCG_heatmap!$C$9:$C$214,0)-VLOOKUP(C140,CCG_heatmap!$C$427:$P$633,CCG_heatmap!$P$425,FALSE),0) -> 0 | G140: 116 | H140: =IFERROR(INDEX(CCG_heatmap!$C$9:$C$214,MATCH(CCG_heatmap!$A124,CCG_heatmap!$R$9:$R$218,0),0),C140) -> NHS South Tyneside CCG | J140: =MATCH('Similar 10 and all CCGs'!$H140,CCG_heatmap!$C$9:$C$214,0)-CCG_heatmap!$A124 -> 0
B141: 117 | C141: =CCG_heatmap!$C125 -> NHS Medway CCG | E141: =IFERROR(1+MATCH('Similar 10 and all CCGs'!$C141,CCG_heatmap!$C$9:$C$214,0)-VLOOKUP(C141,CCG_heatmap!$C$427:$P$633,CCG_heatmap!$P$425,FALSE),0) -> 0 | G141: 117 | H141: =IFERROR(INDEX(CCG_heatmap!$C$9:$C$214,MATCH(CCG_heatmap!$A125,CCG_heatmap!$R$9:$R$218,0),0),C141) -> NHS Medway CCG | J141: =MATCH('Similar 10 and all CCGs'!$H141,CCG_heatmap!$C$9:$C$214,0)-CCG_heatmap!$A125 -> 0
B142: 118 | C142: =CCG_heatmap!$C126 -> NHS West Hampshire CCG | E142: =IFERROR(1+MATCH('Similar 10 and all CCGs'!$C142,CCG_heatmap!$C$9:$C$214,0)-VLOOKUP(C142,CCG_heatmap!$C$427:$P$633,CCG_heatmap!$P$425,FALSE),0) -> 0 | G142: 118 | H142: =IFERROR(INDEX(CCG_heatmap!$C$9:$C$214,MATCH(CCG_heatmap!$A126,CCG_heatmap!$R$9:$R$218,0),0),C142) -> NHS West Hampshire CCG | J142: =MATCH('Similar 10 and all CCGs'!$H142,CCG_heatmap!$C$9:$C$214,0)-CCG_heatmap!$A126 -> 0
B143: 119 | C143: =CCG_heatmap!$C127 -> NHS Gloucestershire CCG | E143: =IFERROR(1+MATCH('Similar 10 and all CCGs'!$C143,CCG_heatmap!$C$9:$C$214,0)-VLOOKUP(C143,CCG_heatmap!$C$427:$P$633,CCG_heatmap!$P$425,FALSE),0) -> 0 | G143: 119 | H143: =IFERROR(INDEX(CCG_heatmap!$C$9:$C$214,MATCH(CCG_heatmap!$A127,CCG_heatmap!$R$9:$R$218,0),0),C143) -> NHS Gloucestershire CCG | J143: =MATCH('Similar 10 and all CCGs'!$H143,CCG_heatmap!$C$9:$C$214,0)-CCG_heatmap!$A127 -> 0
B144: 120 | C144: =CCG_heatmap!$C128 -> NHS South Sefton CCG | E144: =IFERROR(1+MATCH('Similar 10 and all CCGs'!$C144,CCG_heatmap!$C$9:$C$214,0)-VLOOKUP(C144,CCG_heatmap!$C$427:$P$633,CCG_heatmap!$P$425,FALSE),0) -> 0 | G144: 120 | H144: =IFERROR(INDEX(CCG_heatmap!$C$9:$C$214,MATCH(CCG_heatmap!$A128,CCG_heatmap!$R$9:$R$218,0),0),C144) -> NHS South Sefton CCG | J144: =MATCH('Similar 10 and all CCGs'!$H144,CCG_heatmap!$C$9:$C$214,0)-CCG_heatmap!$A128 -> 0
B145: 121 | C145: =CCG_heatmap!$C129 -> NHS North Norfolk CCG | E145: =IFERROR(1+MATCH('Similar 10 and all CCGs'!$C145,CCG_heatmap!$C$9:$C$214,0)-VLOOKUP(C145,CCG_heatmap!$C$427:$P$633,CCG_heatmap!$P$425,FALSE),0) -> 0 | G145: 121 | H145: =IFERROR(INDEX(CCG_heatmap!$C$9:$C$214,MATCH(CCG_heatmap!$A129,CCG_heatmap!$R$9:$R$218,0),0),C145) -> NHS North Norfolk CCG | J145: =MATCH('Similar 10 and all CCGs'!$H145,CCG_heatmap!$C$9:$C$214,0)-CCG_heatmap!$A129 -> 0
B146: 122 | C146: =CCG_heatmap!$C130 -> NHS Stoke on Trent CCG | E146: =IFERROR(1+MATCH('Similar 10 and all CCGs'!$C146,CCG_heatmap!$C$9:$C$214,0)-VLOOKUP(C146,CCG_heatmap!$C$427:$P$633,CCG_heatmap!$P$425,FALSE),0) -> 0 | G146: 122 | H146: =IFERROR(INDEX(CCG_heatmap!$C$9:$C$214,MATCH(CCG_heatmap!$A130,CCG_heatmap!$R$9:$R$218,0),0),C146) -> NHS Stoke on Trent CCG | J146: =MATCH('Similar 10 and all CCGs'!$H146,CCG_heatmap!$C$9:$C$214,0)-CCG_heatmap!$A130 -> 0
B147: 123 | C147: =CCG_heatmap!$C131 -> NHS Southend CCG | E147: =IFERROR(1+MATCH('Similar 10 and all CCGs'!$C147,CCG_heatmap!$C$9:$C$214,0)-VLOOKUP(C147,CCG_heatmap!$C$427:$P$633,CCG_heatmap!$P$425,FALSE),0) -> 0 | G147: 123 | H147: =IFERROR(INDEX(CCG_heatmap!$C$9:$C$214,MATCH(CCG_heatmap!$A131,CCG_heatmap!$R$9:$R$218,0),0),C147) -> NHS Southend CCG | J147: =MATCH('Similar 10 and all CCGs'!$H147,CCG_heatmap!$C$9:$C$214,0)-CCG_heatmap!$A131 -> 0
B148: 124 | C148: =CCG_heatmap!$C132 -> NHS South Tees CCG | E148: =IFERROR(1+MATCH('Similar 10 and all CCGs'!$C148,CCG_heatmap!$C$9:$C$214,0)-VLOOKUP(C148,CCG_heatmap!$C$427:$P$633,CCG_heatmap!$P$425,FALSE),0) -> 0 | G148: 124 | H148: =IFERROR(INDEX(CCG_heatmap!$C$9:$C$214,MATCH(CCG_heatmap!$A132,CCG_heatmap!$R$9:$R$218,0),0),C148) -> NHS South Tees CCG | J148: =MATCH('Similar 10 and all CCGs'!$H148,CCG_heatmap!$C$9:$C$214,0)-CCG_heatmap!$A132 -> 0
B149: 125 | C149: =CCG_heatmap!$C133 -> NHS Halton CCG | E149: =IFERROR(1+MATCH('Similar 10 and all CCGs'!$C149,CCG_heatmap!$C$9:$C$214,0)-VLOOKUP(C149,CCG_heatmap!$C$427:$P$633,CCG_heatmap!$P$425,FALSE),0) -> 0 | G149: 125 | H149: =IFERROR(INDEX(CCG_heatmap!$C$9:$C$214,MATCH(CCG_heatmap!$A133,CCG_heatmap!$R$9:$R$218,0),0),C149) -> NHS Halton CCG | J149: =MATCH('Similar 10 and all CCGs'!$H149,CCG_heatmap!$C$9:$C$214,0)-CCG_heatmap!$A133 -> 0
B150: 126 | C150: =CCG_heatmap!$C134 -> NHS Bromley CCG | E150: =IFERROR(1+MATCH('Similar 10 and all CCGs'!$C150,CCG_heatmap!$C$9:$C$214,0)-VLOOKUP(C150,CCG_heatmap!$C$427:$P$633,CCG_heatmap!$P$425,FALSE),0) -> 0 | G150: 126 | H150: =IFERROR(INDEX(CCG_heatmap!$C$9:$C$214,MATCH(CCG_heatmap!$A134,CCG_heatmap!$R$9:$R$218,0),0),C150) -> NHS Bromley CCG | J150: =MATCH('Similar 10 and all CCGs'!$H150,CCG_heatmap!$C$9:$C$214,0)-CCG_heatmap!$A134 -> 0
B151: 127 | C151: =CCG_heatmap!$C135 -> NHS Havering CCG | E151: =IFERROR(1+MATCH('Similar 10 and all CCGs'!$C151,CCG_heatmap!$C$9:$C$214,0)-VLOOKUP(C151,CCG_heatmap!$C$427:$P$633,CCG_heatmap!$P$425,FALSE),0) -> 0 | G151: 127 | H151: =IFERROR(INDEX(CCG_heatmap!$C$9:$C$214,MATCH(CCG_heatmap!$A135,CCG_heatmap!$R$9:$R$218,0),0),C151) -> NHS Havering CCG | J151: =MATCH('Similar 10 and all CCGs'!$H151,CCG_heatmap!$C$9:$C$214,0)-CCG_heatmap!$A135 -> 0
B152: 128 | C152: =CCG_heatmap!$C136 -> NHS Dudley CCG | E152: =IFERROR(1+MATCH('Similar 10 and all CCGs'!$C152,CCG_heatmap!$C$9:$C$214,0)-VLOOKUP(C152,CCG_heatmap!$C$427:$P$633,CCG_heatmap!$P$425,FALSE),0) -> 0 | G152: 128 | H152: =IFERROR(INDEX(CCG_heatmap!$C$9:$C$214,MATCH(CCG_heatmap!$A136,CCG_heatmap!$R$9:$R$218,0),0),C152) -> NHS Dudley CCG | J152: =MATCH('Similar 10 and all CCGs'!$H152,CCG_heatmap!$C$9:$C$214,0)-CCG_heatmap!$A136 -> 0
B153: 129 | C153: =CCG_heatmap!$C137 -> NHS Bolton CCG | E153: =IFERROR(1+MATCH('Similar 10 and all CCGs'!$C153,CCG_heatmap!$C$9:$C$214,0)-VLOOKUP(C153,CCG_heatmap!$C$427:$P$633,CCG_heatmap!$P$425,FALSE),0) -> 0 | G153: 129 | H153: =IFERROR(INDEX(CCG_heatmap!$C$9:$C$214,MATCH(CCG_heatmap!$A137,CCG_heatmap!$R$9:$R$218,0),0),C153) -> NHS Bolton CCG | J153: =MATCH('Similar 10 and all CCGs'!$H153,CCG_heatmap!$C$9:$C$214,0)-CCG_heatmap!$A137 -> 0
B154: 130 | C154: =CCG_heatmap!$C138 -> NHS Heywood, Middleton & Rochdale CCG | E154: =IFERROR(1+MATCH('Similar 10 and all CCGs'!$C154,CCG_heatmap!$C$9:$C$214,0)-VLOOKUP(C154,CCG_heatmap!$C$427:$P$633,CCG_heatmap!$P$425,FALSE),0) -> 0 | G154: 130 | H154: =IFERROR(INDEX(CCG_heatmap!$C$9:$C$214,MATCH(CCG_heatmap!$A138,CCG_heatmap!$R$9:$R$218,0),0),C154) -> NHS Heywood, Middleton & Rochdale CCG | J154: =MATCH('Similar 10 and all CCGs'!$H154,CCG_heatmap!$C$9:$C$214,0)-CCG_heatmap!$A138 -> 0
B155: 131 | C155: =CCG_heatmap!$C139 -> NHS East and North Hertfordshire CCG | E155: =IFERROR(1+MATCH('Similar 10 and all CCGs'!$C155,CCG_heatmap!$C$9:$C$214,0)-VLOOKUP(C155,CCG_heatmap!$C$427:$P$633,CCG_heatmap!$P$425,FALSE),0) -> 0 | G155: 131 | H155: =IFERROR(INDEX(CCG_heatmap!$C$9:$C$214,MATCH(CCG_heatmap!$A139,CCG_heatmap!$R$9:$R$218,0),0),C155) -> NHS East and North Hertfordshire CCG | J155: =MATCH('Similar 10 and all CCGs'!$H155,CCG_heatmap!$C$9:$C$214,0)-CCG_heatmap!$A139 -> 0
B156: 132 | C156: =CCG_heatmap!$C140 -> NHS Nene CCG | E156: =IFERROR(1+MATCH('Similar 10 and all CCGs'!$C156,CCG_heatmap!$C$9:$C$214,0)-VLOOKUP(C156,CCG_heatmap!$C$427:$P$633,CCG_heatmap!$P$425,FALSE),0) -> 0 | G156: 132 | H156: =IFERROR(INDEX(CCG_heatmap!$C$9:$C$214,MATCH(CCG_heatmap!$A140,CCG_heatmap!$R$9:$R$218,0),0),C156) -> NHS Nene CCG | J156: =MATCH('Similar 10 and all CCGs'!$H156,CCG_heatmap!$C$9:$C$214,0)-CCG_heatmap!$A140 -> 0
B157: 133 | C157: =CCG_heatmap!$C141 -> NHS Crawley CCG | E157: =IFERROR(1+MATCH('Similar 10 and all CCGs'!$C157,CCG_heatmap!$C$9:$C$214,0)-VLOOKUP(C157,CCG_heatmap!$C$427:$P$633,CCG_heatmap!$P$425,FALSE),0) -> 0 | G157: 133 | H157: =IFERROR(INDEX(CCG_heatmap!$C$9:$C$214,MATCH(CCG_heatmap!$A141,CCG_heatmap!$R$9:$R$218,0),0),C157) -> NHS Crawley CCG | J157: =MATCH('Similar 10 and all CCGs'!$H157,CCG_heatmap!$C$9:$C$214,0)-CCG_heatmap!$A141 -> 0
B158: 134 | C158: =CCG_heatmap!$C142 -> NHS Southport and Formby CCG | E158: =IFERROR(1+MATCH('Similar 10 and all CCGs'!$C158,CCG_heatmap!$C$9:$C$214,0)-VLOOKUP(C158,CCG_heatmap!$C$427:$P$633,CCG_heatmap!$P$425,FALSE),0) -> 0 | G158: 134 | H158: =IFERROR(INDEX(CCG_heatmap!$C$9:$C$214,MATCH(CCG_heatmap!$A142,CCG_heatmap!$R$9:$R$218,0),0),C158) -> NHS Southport and Formby CCG | J158: =MATCH('Similar 10 and all CCGs'!$H158,CCG_heatmap!$C$9:$C$214,0)-CCG_heatmap!$A142 -> 0
B159: 135 | C159: =CCG_heatmap!$C143 -> NHS North Kirklees CCG | E159: =IFERROR(1+MATCH('Similar 10 and all CCGs'!$C159,CCG_heatmap!$C$9:$C$214,0)-VLOOKUP(C159,CCG_heatmap!$C$427:$P$633,CCG_heatmap!$P$425,FALSE),0) -> 0 | G159: 135 | H159: =IFERROR(INDEX(CCG_heatmap!$C$9:$C$214,MATCH(CCG_heatmap!$A143,CCG_heatmap!$R$9:$R$218,0),0),C159) -> NHS North Kirklees CCG | J159: =MATCH('Similar 10 and all CCGs'!$H159,CCG_heatmap!$C$9:$C$214,0)-CCG_heatmap!$A143 -> 0
B160: 136 | C160: =CCG_heatmap!$C144 -> NHS Leeds South and East CCG | E160: =IFERROR(1+MATCH('Similar 10 and all CCGs'!$C160,CCG_heatmap!$C$9:$C$214,0)-VLOOKUP(C160,CCG_heatmap!$C$427:$P$633,CCG_heatmap!$P$425,FALSE),0) -> 0 | G160: 136 | H160: =IFERROR(INDEX(CCG_heatmap!$C$9:$C$214,MATCH(CCG_heatmap!$A144,CCG_heatmap!$R$9:$R$218,0),0),C160) -> NHS Leeds South and East CCG | J160: =MATCH('Similar 10 and all CCGs'!$H160,CCG_heatmap!$C$9:$C$214,0)-CCG_heatmap!$A144 -> 0
B161: 137 | C161: =CCG_heatmap!$C145 -> NHS Walsall CCG | E161: =IFERROR(1+MATCH('Similar 10 and all CCGs'!$C161,CCG_heatmap!$C$9:$C$214,0)-VLOOKUP(C161,CCG_heatmap!$C$427:$P$633,CCG_heatmap!$P$425,FALSE),0) -> 0 | G161: 137 | H161: =IFERROR(INDEX(CCG_heatmap!$C$9:$C$214,MATCH(CCG_heatmap!$A145,CCG_heatmap!$R$9:$R$218,0),0),C161) -> NHS Walsall CCG | J161: =MATCH('Similar 10 and all CCGs'!$H161,CCG_heatmap!$C$9:$C$214,0)-CCG_heatmap!$A145 -> 0
B162: 138 | C162: =CCG_heatmap!$C146 -> NHS Corby CCG | E162: =IFERROR(1+MATCH('Similar 10 and all CCGs'!$C162,CCG_heatmap!$C$9:$C$214,0)-VLOOKUP(C162,CCG_heatmap!$C$427:$P$633,CCG_heatmap!$P$425,FALSE),0) -> 0 | G162: 138 | H162: =IFERROR(INDEX(CCG_heatmap!$C$9:$C$214,MATCH(CCG_heatmap!$A146,CCG_heatmap!$R$9:$R$218,0),0),C162) -> NHS Corby CCG | J162: =MATCH('Similar 10 and all CCGs'!$H162,CCG_heatmap!$C$9:$C$214,0)-CCG_heatmap!$A146 -> 0
B163: 139 | C163: =CCG_heatmap!$C147 -> NHS Wokingham CCG | E163: =IFERROR(1+MATCH('Similar 10 and all CCGs'!$C163,CCG_heatmap!$C$9:$C$214,0)-VLOOKUP(C163,CCG_heatmap!$C$427:$P$633,CCG_heatmap!$P$425,FALSE),0) -> 0 | G163: 139 | H163: =IFERROR(INDEX(CCG_heatmap!$C$9:$C$214,MATCH(CCG_heatmap!$A147,CCG_heatmap!$R$9:$R$218,0),0),C163) -> NHS Wokingham CCG | J163: =MATCH('Similar 10 and all CCGs'!$H163,CCG_heatmap!$C$9:$C$214,0)-CCG_heatmap!$A147 -> 0
B164: 140 | C164: =CCG_heatmap!$C148 -> NHS Norwich CCG | E164: =IFERROR(1+MATCH('Similar 10 and all CCGs'!$C164,CCG_heatmap!$C$9:$C$214,0)-VLOOKUP(C164,CCG_heatmap!$C$427:$P$633,CCG_heatmap!$P$425,FALSE),0) -> 0 | G164: 140 | H164: =IFERROR(INDEX(CCG_heatmap!$C$9:$C$214,MATCH(CCG_heatmap!$A148,CCG_heatmap!$R$9:$R$218,0),0),C164) -> NHS Norwich CCG | J164: =MATCH('Similar 10 and all CCGs'!$H164,CCG_heatmap!$C$9:$C$214,0)-CCG_heatmap!$A148 -> 0
B165: 141 | C165: =CCG_heatmap!$C149 -> NHS Salford CCG | E165: =IFERROR(1+MATCH('Similar 10 and all CCGs'!$C165,CCG_heatmap!$C$9:$C$214,0)-VLOOKUP(C165,CCG_heatmap!$C$427:$P$633,CCG_heatmap!$P$425,FALSE),0) -> 0 | G165: 141 | H165: =IFERROR(INDEX(CCG_heatmap!$C$9:$C$214,MATCH(CCG_heatmap!$A149,CCG_heatmap!$R$9:$R$218,0),0),C165) -> NHS Salford CCG | J165: =MATCH('Similar 10 and all CCGs'!$H165,CCG_heatmap!$C$9:$C$214,0)-CCG_heatmap!$A149 -> 0
B166: 142 | C166: =CCG_heatmap!$C150 -> NHS Milton Keynes CCG | E166: =IFERROR(1+MATCH('Similar 10 and all CCGs'!$C166,CCG_heatmap!$C$9:$C$214,0)-VLOOKUP(C166,CCG_heatmap!$C$427:$P$633,CCG_heatmap!$P$425,FALSE),0) -> 0 | G166: 142 | H166: =IFERROR(INDEX(CCG_heatmap!$C$9:$C$214,MATCH(CCG_heatmap!$A150,CCG_heatmap!$R$9:$R$218,0),0),C166) -> NHS Milton Keynes CCG | J166: =MATCH('Similar 10 and all CCGs'!$H166,CCG_heatmap!$C$9:$C$214,0)-CCG_heatmap!$A150 -> 0
B167: 143 | C167: =CCG_heatmap!$C151 -> NHS Bradford Districts CCG | E167: =IFERROR(1+MATCH('Similar 10 and all CCGs'!$C167,CCG_heatmap!$C$9:$C$214,0)-VLOOKUP(C167,CCG_heatmap!$C$427:$P$633,CCG_heatmap!$P$425,FALSE),0) -> 0 | G167: 143 | H167: =IFERROR(INDEX(CCG_heatmap!$C$9:$C$214,MATCH(CCG_heatmap!$A151,CCG_heatmap!$R$9:$R$218,0),0),C167) -> NHS Bradford Districts CCG | J167: =MATCH('Similar 10 and all CCGs'!$H167,CCG_heatmap!$C$9:$C$214,0)-CCG_heatmap!$A151 -> 0
B168: 144 | C168: =CCG_heatmap!$C152 -> NHS Oldham CCG | E168: =IFERROR(1+MATCH('Similar 10 and all CCGs'!$C168,CCG_heatmap!$C$9:$C$214,0)-VLOOKUP(C168,CCG_heatmap!$C$427:$P$633,CCG_heatmap!$P$425,FALSE),0) -> 0 | G168: 144 | H168: =IFERROR(INDEX(CCG_heatmap!$C$9:$C$214,MATCH(CCG_heatmap!$A152,CCG_heatmap!$R$9:$R$218,0),0),C168) -> NHS Oldham CCG | J168: =MATCH('Similar 10 and all CCGs'!$H168,CCG_heatmap!$C$9:$C$214,0)-CCG_heatmap!$A152 -> 0
B169: 145 | C169: =CCG_heatmap!$C153 -> NHS Bath and North East Somerset CCG | E169: =IFERROR(1+MATCH('Similar 10 and all CCGs'!$C169,CCG_heatmap!$C$9:$C$214,0)-VLOOKUP(C169,CCG_heatmap!$C$427:$P$633,CCG_heatmap!$P$425,FALSE),0) -> 0 | G169: 145 | H169: =IFERROR(INDEX(CCG_heatmap!$C$9:$C$214,MATCH(CCG_heatmap!$A153,CCG_heatmap!$R$9:$R$218,0),0),C169) -> NHS Bath and North East Somerset CCG | J169: =MATCH('Similar 10 and all CCGs'!$H169,CCG_heatmap!$C$9:$C$214,0)-CCG_heatmap!$A153 -> 0
B170: 146 | C170: =CCG_heatmap!$C154 -> NHS Herts Valleys CCG | E170: =IFERROR(1+MATCH('Similar 10 and all CCGs'!$C170,CCG_heatmap!$C$9:$C$214,0)-VLOOKUP(C170,CCG_heatmap!$C$427:$P$633,CCG_heatmap!$P$425,FALSE),0) -> 0 | G170: 146 | H170: =IFERROR(INDEX(CCG_heatmap!$C$9:$C$214,MATCH(CCG_heatmap!$A154,CCG_heatmap!$R$9:$R$218,0),0),C170) -> NHS Herts Valleys CCG | J170: =MATCH('Similar 10 and all CCGs'!$H170,CCG_heatmap!$C$9:$C$214,0)-CCG_heatmap!$A154 -> 0
B171: 147 | C171: =CCG_heatmap!$C155 -> NHS Sutton CCG | E171: =IFERROR(1+MATCH('Similar 10 and all CCGs'!$C171,CCG_heatmap!$C$9:$C$214,0)-VLOOKUP(C171,CCG_heatmap!$C$427:$P$633,CCG_heatmap!$P$425,FALSE),0) -> 0 | G171: 147 | H171: =IFERROR(INDEX(CCG_heatmap!$C$9:$C$214,MATCH(CCG_heatmap!$A155,CCG_heatmap!$R$9:$R$218,0),0),C171) -> NHS Sutton CCG | J171: =MATCH('Similar 10 and all CCGs'!$H171,CCG_heatmap!$C$9:$C$214,0)-CCG_heatmap!$A155 -> 0
B172: 148 | C172: =CCG_heatmap!$C156 -> NHS Thurrock CCG | E172: =IFERROR(1+MATCH('Similar 10 and all CCGs'!$C172,CCG_heatmap!$C$9:$C$214,0)-VLOOKUP(C172,CCG_heatmap!$C$427:$P$633,CCG_heatmap!$P$425,FALSE),0) -> 0 | G172: 148 | H172: =IFERROR(INDEX(CCG_heatmap!$C$9:$C$214,MATCH(CCG_heatmap!$A156,CCG_heatmap!$R$9:$R$218,0),0),C172) -> NHS Thurrock CCG | J172: =MATCH('Similar 10 and all CCGs'!$H172,CCG_heatmap!$C$9:$C$214,0)-CCG_heatmap!$A156 -> 0
B173: 149 | C173: =CCG_heatmap!$C157 -> NHS Wolverhampton CCG | E173: =IFERROR(1+MATCH('Similar 10 and all CCGs'!$C173,CCG_heatmap!$C$9:$C$214,0)-VLOOKUP(C173,CCG_heatmap!$C$427:$P$633,CCG_heatmap!$P$425,FALSE),0) -> 0 | G173: 149 | H173: =IFERROR(INDEX(CCG_heatmap!$C$9:$C$214,MATCH(CCG_heatmap!$A157,CCG_heatmap!$R$9:$R$218,0),0),C173) -> NHS Wolverhampton CCG | J173: =MATCH('Similar 10 and all CCGs'!$H173,CCG_heatmap!$C$9:$C$214,0)-CCG_heatmap!$A157 -> 0
B174: 150 | C174: =CCG_heatmap!$C158 -> NHS Bexley CCG | E174: =IFERROR(1+MATCH('Similar 10 and all CCGs'!$C174,CCG_heatmap!$C$9:$C$214,0)-VLOOKUP(C174,CCG_heatmap!$C$427:$P$633,CCG_heatmap!$P$425,FALSE),0) -> 0 | G174: 150 | H174: =IFERROR(INDEX(CCG_heatmap!$C$9:$C$214,MATCH(CCG_heatmap!$A158,CCG_heatmap!$R$9:$R$218,0),0),C174) -> NHS Bexley CCG | J174: =MATCH('Similar 10 and all CCGs'!$H174,CCG_heatmap!$C$9:$C$214,0)-CCG_heatmap!$A158 -> 0
B175: 151 | C175: =CCG_heatmap!$C159 -> NHS Brighton & Hove CCG | E175: =IFERROR(1+MATCH('Similar 10 and all CCGs'!$C175,CCG_heatmap!$C$9:$C$214,0)-VLOOKUP(C175,CCG_heatmap!$C$427:$P$633,CCG_heatmap!$P$425,FALSE),0) -> 0 | G175: 151 | H175: =IFERROR(INDEX(CCG_heatmap!$C$9:$C$214,MATCH(CCG_heatmap!$A159,CCG_heatmap!$R$9:$R$218,0),0),C175) -> NHS Brighton & Hove CCG | J175: =MATCH('Similar 10 and all CCGs'!$H175,CCG_heatmap!$C$9:$C$214,0)-CCG_heatmap!$A159 -> 0
B176: 152 | C176: =CCG_heatmap!$C160 -> NHS Coventry and Rugby CCG | E176: =IFERROR(1+MATCH('Similar 10 and all CCGs'!$C176,CCG_heatmap!$C$9:$C$214,0)-VLOOKUP(C176,CCG_heatmap!$C$427:$P$633,CCG_heatmap!$P$425,FALSE),0) -> 0 | G176: 152 | H176: =IFERROR(INDEX(CCG_heatmap!$C$9:$C$214,MATCH(CCG_heatmap!$A160,CCG_heatmap!$R$9:$R$218,0),0),C176) -> NHS Coventry and Rugby CCG | J176: =MATCH('Similar 10 and all CCGs'!$H176,CCG_heatmap!$C$9:$C$214,0)-CCG_heatmap!$A160 -> 0
B177: 153 | C177: =CCG_heatmap!$C161 -> NHS Oxfordshire CCG | E177: =IFERROR(1+MATCH('Similar 10 and all CCGs'!$C177,CCG_heatmap!$C$9:$C$214,0)-VLOOKUP(C177,CCG_heatmap!$C$427:$P$633,CCG_heatmap!$P$425,FALSE),0) -> 0 | G177: 153 | H177: =IFERROR(INDEX(CCG_heatmap!$C$9:$C$214,MATCH(CCG_heatmap!$A161,CCG_heatmap!$R$9:$R$218,0),0),C177) -> NHS Oxfordshire CCG | J177: =MATCH('Similar 10 and all CCGs'!$H177,CCG_heatmap!$C$9:$C$214,0)-CCG_heatmap!$A161 -> 0
B178: 154 | C178: =CCG_heatmap!$C162 -> NHS Hull CCG | E178: =IFERROR(1+MATCH('Similar 10 and all CCGs'!$C178,CCG_heatmap!$C$9:$C$214,0)-VLOOKUP(C178,CCG_heatmap!$C$427:$P$633,CCG_heatmap!$P$425,FALSE),0) -> 0 | G178: 154 | H178: =IFERROR(INDEX(CCG_heatmap!$C$9:$C$214,MATCH(CCG_heatmap!$A162,CCG_heatmap!$R$9:$R$218,0),0),C178) -> NHS Hull CCG | J178: =MATCH('Similar 10 and all CCGs'!$H178,CCG_heatmap!$C$9:$C$214,0)-CCG_heatmap!$A162 -> 0
B179: 155 | C179: =CCG_heatmap!$C163 -> NHS Newcastle Gateshead CCG | E179: =IFERROR(1+MATCH('Similar 10 and all CCGs'!$C179,CCG_heatmap!$C$9:$C$214,0)-VLOOKUP(C179,CCG_heatmap!$C$427:$P$633,CCG_heatmap!$P$425,FALSE),0) -> 0 | G179: 155 | H179: =IFERROR(INDEX(CCG_heatmap!$C$9:$C$214,MATCH(CCG_heatmap!$A163,CCG_heatmap!$R$9:$R$218,0),0),C179) -> NHS Newcastle Gateshead CCG | J179: =MATCH('Similar 10 and all CCGs'!$H179,CCG_heatmap!$C$9:$C$214,0)-CCG_heatmap!$A163 -> 0
B180: 156 | C180: =CCG_heatmap!$C164 -> NHS Canterbury and Coastal CCG | E180: =IFERROR(1+MATCH('Similar 10 and all CCGs'!$C180,CCG_heatmap!$C$9:$C$214,0)-VLOOKUP(C180,CCG_heatmap!$C$427:$P$633,CCG_heatmap!$P$425,FALSE),0) -> 0 | G180: 156 | H180: =IFERROR(INDEX(CCG_heatmap!$C$9:$C$214,MATCH(CCG_heatmap!$A164,CCG_heatmap!$R$9:$R$218,0),0),C180) -> NHS Canterbury and Coastal CCG | J180: =MATCH('Similar 10 and all CCGs'!$H180,CCG_heatmap!$C$9:$C$214,0)-CCG_heatmap!$A164 -> 0
B181: 157 | C181: =CCG_heatmap!$C165 -> NHS Hillingdon CCG | E181: =IFERROR(1+MATCH('Similar 10 and all CCGs'!$C181,CCG_heatmap!$C$9:$C$214,0)-VLOOKUP(C181,CCG_heatmap!$C$427:$P$633,CCG_heatmap!$P$425,FALSE),0) -> 0 | G181: 157 | H181: =IFERROR(INDEX(CCG_heatmap!$C$9:$C$214,MATCH(CCG_heatmap!$A165,CCG_heatmap!$R$9:$R$218,0),0),C181) -> NHS Hillingdon CCG | J181: =MATCH('Similar 10 and all CCGs'!$H181,CCG_heatmap!$C$9:$C$214,0)-CCG_heatmap!$A165 -> 0
B182: 158 | C182: =CCG_heatmap!$C166 -> NHS Kingston CCG | E182: =IFERROR(1+MATCH('Similar 10 and all CCGs'!$C182,CCG_heatmap!$C$9:$C$214,0)-VLOOKUP(C182,CCG_heatmap!$C$427:$P$633,CCG_heatmap!$P$425,FALSE),0) -> 0 | G182: 158 | H182: =IFERROR(INDEX(CCG_heatmap!$C$9:$C$214,MATCH(CCG_heatmap!$A166,CCG_heatmap!$R$9:$R$218,0),0),C182) -> NHS Kingston CCG | J182: =MATCH('Similar 10 and all CCGs'!$H182,CCG_heatmap!$C$9:$C$214,0)-CCG_heatmap!$A166 -> 0
B183: 159 | C183: =CCG_heatmap!$C167 -> NHS Sheffield CCG | E183: =IFERROR(1+MATCH('Similar 10 and all CCGs'!$C183,CCG_heatmap!$C$9:$C$214,0)-VLOOKUP(C183,CCG_heatmap!$C$427:$P$633,CCG_heatmap!$P$425,FALSE),0) -> 0 | G183: 159 | H183: =IFERROR(INDEX(CCG_heatmap!$C$9:$C$214,MATCH(CCG_heatmap!$A167,CCG_heatmap!$R$9:$R$218,0),0),C183) -> NHS Sheffield CCG | J183: =MATCH('Similar 10 and all CCGs'!$H183,CCG_heatmap!$C$9:$C$214,0)-CCG_heatmap!$A167 -> 0
B184: 160 | C184: =CCG_heatmap!$C168 -> NHS Blackburn with Darwen CCG | E184: =IFERROR(1+MATCH('Similar 10 and all CCGs'!$C184,CCG_heatmap!$C$9:$C$214,0)-VLOOKUP(C184,CCG_heatmap!$C$427:$P$633,CCG_heatmap!$P$425,FALSE),0) -> 0 | G184: 160 | H184: =IFERROR(INDEX(CCG_heatmap!$C$9:$C$214,MATCH(CCG_heatmap!$A168,CCG_heatmap!$R$9:$R$218,0),0),C184) -> NHS Blackburn with Darwen CCG | J184: =MATCH('Similar 10 and all CCGs'!$H184,CCG_heatmap!$C$9:$C$214,0)-CCG_heatmap!$A168 -> 0
B185: 161 | C185: =CCG_heatmap!$C169 -> NHS Dorset CCG | E185: =IFERROR(1+MATCH('Similar 10 and all CCGs'!$C185,CCG_heatmap!$C$9:$C$214,0)-VLOOKUP(C185,CCG_heatmap!$C$427:$P$633,CCG_heatmap!$P$425,FALSE),0) -> 0 | G185: 161 | H185: =IFERROR(INDEX(CCG_heatmap!$C$9:$C$214,MATCH(CCG_heatmap!$A169,CCG_heatmap!$R$9:$R$218,0),0),C185) -> NHS Dorset CCG | J185: =MATCH('Similar 10 and all CCGs'!$H185,CCG_heatmap!$C$9:$C$214,0)-CCG_heatmap!$A169 -> 0
B186: 162 | C186: =CCG_heatmap!$C170 -> NHS Barnet CCG | E186: =IFERROR(1+MATCH('Similar 10 and all CCGs'!$C186,CCG_heatmap!$C$9:$C$214,0)-VLOOKUP(C186,CCG_heatmap!$C$427:$P$633,CCG_heatmap!$P$425,FALSE),0) -> 0 | G186: 162 | H186: =IFERROR(INDEX(CCG_heatmap!$C$9:$C$214,MATCH(CCG_heatmap!$A170,CCG_heatmap!$R$9:$R$218,0),0),C186) -> NHS Barnet CCG | J186: =MATCH('Similar 10 and all CCGs'!$H186,CCG_heatmap!$C$9:$C$214,0)-CCG_heatmap!$A170 -> 0
B187: 163 | C187: =CCG_heatmap!$C171 -> NHS Richmond CCG | E187: =IFERROR(1+MATCH('Similar 10 and all CCGs'!$C187,CCG_heatmap!$C$9:$C$214,0)-VLOOKUP(C187,CCG_heatmap!$C$427:$P$633,CCG_heatmap!$P$425,FALSE),0) -> 0 | G187: 163 | H187: =IFERROR(INDEX(CCG_heatmap!$C$9:$C$214,MATCH(CCG_heatmap!$A171,CCG_heatmap!$R$9:$R$218,0),0),C187) -> NHS Richmond CCG | J187: =MATCH('Similar 10 and all CCGs'!$H187,CCG_heatmap!$C$9:$C$214,0)-CCG_heatmap!$A171 -> 0
B188: 164 | C188: =CCG_heatmap!$C172 -> NHS Portsmouth CCG | E188: =IFERROR(1+MATCH('Similar 10 and all CCGs'!$C188,CCG_heatmap!$C$9:$C$214,0)-VLOOKUP(C188,CCG_heatmap!$C$427:$P$633,CCG_heatmap!$P$425,FALSE),0) -> 0 | G188: 164 | H188: =IFERROR(INDEX(CCG_heatmap!$C$9:$C$214,MATCH(CCG_heatmap!$A172,CCG_heatmap!$R$9:$R$218,0),0),C188) -> NHS Portsmouth CCG | J188: =MATCH('Similar 10 and all CCGs'!$H188,CCG_heatmap!$C$9:$C$214,0)-CCG_heatmap!$A172 -> 0
B189: 165 | C189: =CCG_heatmap!$C173 -> NHS Knowsley CCG | E189: =IFERROR(1+MATCH('Similar 10 and all CCGs'!$C189,CCG_heatmap!$C$9:$C$214,0)-VLOOKUP(C189,CCG_heatmap!$C$427:$P$633,CCG_heatmap!$P$425,FALSE),0) -> 0 | G189: 165 | H189: =IFERROR(INDEX(CCG_heatmap!$C$9:$C$214,MATCH(CCG_heatmap!$A173,CCG_heatmap!$R$9:$R$218,0),0),C189) -> NHS Knowsley CCG | J189: =MATCH('Similar 10 and all CCGs'!$H189,CCG_heatmap!$C$9:$C$214,0)-CCG_heatmap!$A173 -> 0
B190: 166 | C190: =CCG_heatmap!$C174 -> NHS Blackpool CCG | E190: =IFERROR(1+MATCH('Similar 10 and all CCGs'!$C190,CCG_heatmap!$C$9:$C$214,0)-VLOOKUP(C190,CCG_heatmap!$C$427:$P$633,CCG_heatmap!$P$425,FALSE),0) -> 0 | G190: 166 | H190: =IFERROR(INDEX(CCG_heatmap!$C$9:$C$214,MATCH(CCG_heatmap!$A174,CCG_heatmap!$R$9:$R$218,0),0),C190) -> NHS Blackpool CCG | J190: =MATCH('Similar 10 and all CCGs'!$H190,CCG_heatmap!$C$9:$C$214,0)-CCG_heatmap!$A174 -> 0
B191: 167 | C191: =CCG_heatmap!$C175 -> NHS Bristol CCG | E191: =IFERROR(1+MATCH('Similar 10 and all CCGs'!$C191,CCG_heatmap!$C$9:$C$214,0)-VLOOKUP(C191,CCG_heatmap!$C$427:$P$633,CCG_heatmap!$P$425,FALSE),0) -> 0 | G191: 167 | H191: =IFERROR(INDEX(CCG_heatmap!$C$9:$C$214,MATCH(CCG_heatmap!$A175,CCG_heatmap!$R$9:$R$218,0),0),C191) -> NHS Bristol CCG | J191: =MATCH('Similar 10 and all CCGs'!$H191,CCG_heatmap!$C$9:$C$214,0)-CCG_heatmap!$A175 -> 0
B192: 168 | C192: =CCG_heatmap!$C176 -> NHS Southampton CCG | E192: =IFERROR(1+MATCH('Similar 10 and all CCGs'!$C192,CCG_heatmap!$C$9:$C$214,0)-VLOOKUP(C192,CCG_heatmap!$C$427:$P$633,CCG_heatmap!$P$425,FALSE),0) -> 0 | G192: 168 | H192: =IFERROR(INDEX(CCG_heatmap!$C$9:$C$214,MATCH(CCG_heatmap!$A176,CCG_heatmap!$R$9:$R$218,0),0),C192) -> NHS Southampton CCG | J192: =MATCH('Similar 10 and all CCGs'!$H192,CCG_heatmap!$C$9:$C$214,0)-CCG_heatmap!$A176 -> 0
B193: 169 | C193: =CCG_heatmap!$C177 -> NHS North, East, West Devon CCG | E193: =IFERROR(1+MATCH('Similar 10 and all CCGs'!$C193,CCG_heatmap!$C$9:$C$214,0)-VLOOKUP(C193,CCG_heatmap!$C$427:$P$633,CCG_heatmap!$P$425,FALSE),0) -> 0 | G193: 169 | H193: =IFERROR(INDEX(CCG_heatmap!$C$9:$C$214,MATCH(CCG_heatmap!$A177,CCG_heatmap!$R$9:$R$218,0),0),C193) -> NHS North, East, West Devon CCG | J193: =MATCH('Similar 10 and all CCGs'!$H193,CCG_heatmap!$C$9:$C$214,0)-CCG_heatmap!$A177 -> 0
B194: 170 | C194: =CCG_heatmap!$C178 -> NHS Cambridgeshire and Peterborough CCG | E194: =IFERROR(1+MATCH('Similar 10 and all CCGs'!$C194,CCG_heatmap!$C$9:$C$214,0)-VLOOKUP(C194,CCG_heatmap!$C$427:$P$633,CCG_heatmap!$P$425,FALSE),0) -> 0 | G194: 170 | H194: =IFERROR(INDEX(CCG_heatmap!$C$9:$C$214,MATCH(CCG_heatmap!$A178,CCG_heatmap!$R$9:$R$218,0),0),C194) -> NHS Cambridgeshire and Peterborough CCG | J194: =MATCH('Similar 10 and all CCGs'!$H194,CCG_heatmap!$C$9:$C$214,0)-CCG_heatmap!$A178 -> 0
B195: 171 | C195: =CCG_heatmap!$C179 -> NHS Liverpool CCG | E195: =IFERROR(1+MATCH('Similar 10 and all CCGs'!$C195,CCG_heatmap!$C$9:$C$214,0)-VLOOKUP(C195,CCG_heatmap!$C$427:$P$633,CCG_heatmap!$P$425,FALSE),0) -> 0 | G195: 171 | H195: =IFERROR(INDEX(CCG_heatmap!$C$9:$C$214,MATCH(CCG_heatmap!$A179,CCG_heatmap!$R$9:$R$218,0),0),C195) -> NHS Liverpool CCG | J195: =MATCH('Similar 10 and all CCGs'!$H195,CCG_heatmap!$C$9:$C$214,0)-CCG_heatmap!$A179 -> 0
B196: 172 | C196: =CCG_heatmap!$C180 -> NHS Leeds West CCG | E196: =IFERROR(1+MATCH('Similar 10 and all CCGs'!$C196,CCG_heatmap!$C$9:$C$214,0)-VLOOKUP(C196,CCG_heatmap!$C$427:$P$633,CCG_heatmap!$P$425,FALSE),0) -> 0 | G196: 172 | H196: =IFERROR(INDEX(CCG_heatmap!$C$9:$C$214,MATCH(CCG_heatmap!$A180,CCG_heatmap!$R$9:$R$218,0),0),C196) -> NHS Leeds West CCG | J196: =MATCH('Similar 10 and all CCGs'!$H196,CCG_heatmap!$C$9:$C$214,0)-CCG_heatmap!$A180 -> 0
B197: 173 | C197: =CCG_heatmap!$C181 -> NHS Merton CCG | E197: =IFERROR(1+MATCH('Similar 10 and all CCGs'!$C197,CCG_heatmap!$C$9:$C$214,0)-VLOOKUP(C197,CCG_heatmap!$C$427:$P$633,CCG_heatmap!$P$425,FALSE),0) -> 0 | G197: 173 | H197: =IFERROR(INDEX(CCG_heatmap!$C$9:$C$214,MATCH(CCG_heatmap!$A181,CCG_heatmap!$R$9:$R$218,0),0),C197) -> NHS Merton CCG | J197: =MATCH('Similar 10 and all CCGs'!$H197,CCG_heatmap!$C$9:$C$214,0)-CCG_heatmap!$A181 -> 0
B198: 174 | C198: =CCG_heatmap!$C182 -> NHS Birmingham Cross City CCG | E198: =IFERROR(1+MATCH('Similar 10 and all CCGs'!$C198,CCG_heatmap!$C$9:$C$214,0)-VLOOKUP(C198,CCG_heatmap!$C$427:$P$633,CCG_heatmap!$P$425,FALSE),0) -> 0 | G198: 174 | H198: =IFERROR(INDEX(CCG_heatmap!$C$9:$C$214,MATCH(CCG_heatmap!$A182,CCG_heatmap!$R$9:$R$218,0),0),C198) -> NHS Birmingham Cross City CCG | J198: =MATCH('Similar 10 and all CCGs'!$H198,CCG_heatmap!$C$9:$C$214,0)-CCG_heatmap!$A182 -> 0
B199: 175 | C199: =CCG_heatmap!$C183 -> NHS South Reading CCG | E199: =IFERROR(1+MATCH('Similar 10 and all CCGs'!$C199,CCG_heatmap!$C$9:$C$214,0)-VLOOKUP(C199,CCG_heatmap!$C$427:$P$633,CCG_heatmap!$P$425,FALSE),0) -> 0 | G199: 175 | H199: =IFERROR(INDEX(CCG_heatmap!$C$9:$C$214,MATCH(CCG_heatmap!$A183,CCG_heatmap!$R$9:$R$218,0),0),C199) -> NHS South Reading CCG | J199: =MATCH('Similar 10 and all CCGs'!$H199,CCG_heatmap!$C$9:$C$214,0)-CCG_heatmap!$A183 -> 0
B200: 176 | C200: =CCG_heatmap!$C184 -> NHS Hounslow CCG | E200: =IFERROR(1+MATCH('Similar 10 and all CCGs'!$C200,CCG_heatmap!$C$9:$C$214,0)-VLOOKUP(C200,CCG_heatmap!$C$427:$P$633,CCG_heatmap!$P$425,FALSE),0) -> 0 | G200: 176 | H200: =IFERROR(INDEX(CCG_heatmap!$C$9:$C$214,MATCH(CCG_heatmap!$A184,CCG_heatmap!$R$9:$R$218,0),0),C200) -> NHS Hounslow CCG | J200: =MATCH('Similar 10 and all CCGs'!$H200,CCG_heatmap!$C$9:$C$214,0)-CCG_heatmap!$A184 -> 0
B201: 177 | C201: =CCG_heatmap!$C185 -> NHS Enfield CCG | E201: =IFERROR(1+MATCH('Similar 10 and all CCGs'!$C201,CCG_heatmap!$C$9:$C$214,0)-VLOOKUP(C201,CCG_heatmap!$C$427:$P$633,CCG_heatmap!$P$425,FALSE),0) -> 0 | G201: 177 | H201: =IFERROR(INDEX(CCG_heatmap!$C$9:$C$214,MATCH(CCG_heatmap!$A185,CCG_heatmap!$R$9:$R$218,0),0),C201) -> NHS Enfield CCG | J201: =MATCH('Similar 10 and all CCGs'!$H201,CCG_heatmap!$C$9:$C$214,0)-CCG_heatmap!$A185 -> 0
B202: 178 | C202: =CCG_heatmap!$C186 -> NHS Luton CCG | E202: =IFERROR(1+MATCH('Similar 10 and all CCGs'!$C202,CCG_heatmap!$C$9:$C$214,0)-VLOOKUP(C202,CCG_heatmap!$C$427:$P$633,CCG_heatmap!$P$425,FALSE),0) -> 0 | G202: 178 | H202: =IFERROR(INDEX(CCG_heatmap!$C$9:$C$214,MATCH(CCG_heatmap!$A186,CCG_heatmap!$R$9:$R$218,0),0),C202) -> NHS Luton CCG | J202: =MATCH('Similar 10 and all CCGs'!$H202,CCG_heatmap!$C$9:$C$214,0)-CCG_heatmap!$A186 -> 0
B203: 179 | C203: =CCG_heatmap!$C187 -> NHS Sandwell and West Birmingham CCG | E203: =IFERROR(1+MATCH('Similar 10 and all CCGs'!$C203,CCG_heatmap!$C$9:$C$214,0)-VLOOKUP(C203,CCG_heatmap!$C$427:$P$633,CCG_heatmap!$P$425,FALSE),0) -> 0 | G203: 179 | H203: =IFERROR(INDEX(CCG_heatmap!$C$9:$C$214,MATCH(CCG_heatmap!$A187,CCG_heatmap!$R$9:$R$218,0),0),C203) -> NHS Sandwell and West Birmingham CCG | J203: =MATCH('Similar 10 and all CCGs'!$H203,CCG_heatmap!$C$9:$C$214,0)-CCG_heatmap!$A187 -> 0
B204: 180 | C204: =CCG_heatmap!$C188 -> NHS Leicester City CCG | E204: =IFERROR(1+MATCH('Similar 10 and all CCGs'!$C204,CCG_heatmap!$C$9:$C$214,0)-VLOOKUP(C204,CCG_heatmap!$C$427:$P$633,CCG_heatmap!$P$425,FALSE),0) -> 0 | G204: 180 | H204: =IFERROR(INDEX(CCG_heatmap!$C$9:$C$214,MATCH(CCG_heatmap!$A188,CCG_heatmap!$R$9:$R$218,0),0),C204) -> NHS Leicester City CCG | J204: =MATCH('Similar 10 and all CCGs'!$H204,CCG_heatmap!$C$9:$C$214,0)-CCG_heatmap!$A188 -> 0
B205: 181 | C205: =CCG_heatmap!$C189 -> NHS Redbridge CCG | E205: =IFERROR(1+MATCH('Similar 10 and all CCGs'!$C205,CCG_heatmap!$C$9:$C$214,0)-VLOOKUP(C205,CCG_heatmap!$C$427:$P$633,CCG_heatmap!$P$425,FALSE),0) -> 0 | G205: 181 | H205: =IFERROR(INDEX(CCG_heatmap!$C$9:$C$214,MATCH(CCG_heatmap!$A189,CCG_heatmap!$R$9:$R$218,0),0),C205) -> NHS Redbridge CCG | J205: =MATCH('Similar 10 and all CCGs'!$H205,CCG_heatmap!$C$9:$C$214,0)-CCG_heatmap!$A189 -> 0
B206: 182 | C206: =CCG_heatmap!$C190 -> NHS Harrow CCG | E206: =IFERROR(1+MATCH('Similar 10 and all CCGs'!$C206,CCG_heatmap!$C$9:$C$214,0)-VLOOKUP(C206,CCG_heatmap!$C$427:$P$633,CCG_heatmap!$P$425,FALSE),0) -> 0 | G206: 182 | H206: =IFERROR(INDEX(CCG_heatmap!$C$9:$C$214,MATCH(CCG_heatmap!$A190,CCG_heatmap!$R$9:$R$218,0),0),C206) -> NHS Harrow CCG | J206: =MATCH('Similar 10 and all CCGs'!$H206,CCG_heatmap!$C$9:$C$214,0)-CCG_heatmap!$A190 -> 0
B207: 183 | C207: =CCG_heatmap!$C191 -> NHS Manchester CCG | E207: =IFERROR(1+MATCH('Similar 10 and all CCGs'!$C207,CCG_heatmap!$C$9:$C$214,0)-VLOOKUP(C207,CCG_heatmap!$C$427:$P$633,CCG_heatmap!$P$425,FALSE),0) -> 0 | G207: 183 | H207: =IFERROR(INDEX(CCG_heatmap!$C$9:$C$214,MATCH(CCG_heatmap!$A191,CCG_heatmap!$R$9:$R$218,0),0),C207) -> NHS Manchester CCG | J207: =MATCH('Similar 10 and all CCGs'!$H207,CCG_heatmap!$C$9:$C$214,0)-CCG_heatmap!$A191 -> 0
B208: 184 | C208: =CCG_heatmap!$C192 -> NHS Croydon CCG | E208: =IFERROR(1+MATCH('Similar 10 and all CCGs'!$C208,CCG_heatmap!$C$9:$C$214,0)-VLOOKUP(C208,CCG_heatmap!$C$427:$P$633,CCG_heatmap!$P$425,FALSE),0) -> 0 | G208: 184 | H208: =IFERROR(INDEX(CCG_heatmap!$C$9:$C$214,MATCH(CCG_heatmap!$A192,CCG_heatmap!$R$9:$R$218,0),0),C208) -> NHS Croydon CCG | J208: =MATCH('Similar 10 and all CCGs'!$H208,CCG_heatmap!$C$9:$C$214,0)-CCG_heatmap!$A192 -> 0
B209: 185 | C209: =CCG_heatmap!$C193 -> NHS Birmingham South and Central CCG | E209: =IFERROR(1+MATCH('Similar 10 and all CCGs'!$C209,CCG_heatmap!$C$9:$C$214,0)-VLOOKUP(C209,CCG_heatmap!$C$427:$P$633,CCG_heatmap!$P$425,FALSE),0) -> 0 | G209: 185 | H209: =IFERROR(INDEX(CCG_heatmap!$C$9:$C$214,MATCH(CCG_heatmap!$A193,CCG_heatmap!$R$9:$R$218,0),0),C209) -> NHS Birmingham South and Central CCG | J209: =MATCH('Similar 10 and all CCGs'!$H209,CCG_heatmap!$C$9:$C$214,0)-CCG_heatmap!$A193 -> 0
B210: 186 | C210: =CCG_heatmap!$C194 -> NHS Greenwich CCG | E210: =IFERROR(1+MATCH('Similar 10 and all CCGs'!$C210,CCG_heatmap!$C$9:$C$214,0)-VLOOKUP(C210,CCG_heatmap!$C$427:$P$633,CCG_heatmap!$P$425,FALSE),0) -> 0 | G210: 186 | H210: =IFERROR(INDEX(CCG_heatmap!$C$9:$C$214,MATCH(CCG_heatmap!$A194,CCG_heatmap!$R$9:$R$218,0),0),C210) -> NHS Greenwich CCG | J210: =MATCH('Similar 10 and all CCGs'!$H210,CCG_heatmap!$C$9:$C$214,0)-CCG_heatmap!$A194 -> 0
B211: 187 | C211: =CCG_heatmap!$C195 -> NHS Nottingham City CCG | E211: =IFERROR(1+MATCH('Similar 10 and all CCGs'!$C211,CCG_heatmap!$C$9:$C$214,0)-VLOOKUP(C211,CCG_heatmap!$C$427:$P$633,CCG_heatmap!$P$425,FALSE),0) -> 0 | G211: 187 | H211: =IFERROR(INDEX(CCG_heatmap!$C$9:$C$214,MATCH(CCG_heatmap!$A195,CCG_heatmap!$R$9:$R$218,0),0),C211) -> NHS Nottingham City CCG | J211: =MATCH('Similar 10 and all CCGs'!$H211,CCG_heatmap!$C$9:$C$214,0)-CCG_heatmap!$A195 -> 0
B212: 188 | C212: =CCG_heatmap!$C196 -> NHS Waltham Forest CCG | E212: =IFERROR(1+MATCH('Similar 10 and all CCGs'!$C212,CCG_heatmap!$C$9:$C$214,0)-VLOOKUP(C212,CCG_heatmap!$C$427:$P$633,CCG_heatmap!$P$425,FALSE),0) -> 0 | G212: 188 | H212: =IFERROR(INDEX(CCG_heatmap!$C$9:$C$214,MATCH(CCG_heatmap!$A196,CCG_heatmap!$R$9:$R$218,0),0),C212) -> NHS Waltham Forest CCG | J212: =MATCH('Similar 10 and all CCGs'!$H212,CCG_heatmap!$C$9:$C$214,0)-CCG_heatmap!$A196 -> 0
B213: 189 | C213: =CCG_heatmap!$C197 -> NHS Central London (Westminster) CCG | E213: =IFERROR(1+MATCH('Similar 10 and all CCGs'!$C213,CCG_heatmap!$C$9:$C$214,0)-VLOOKUP(C213,CCG_heatmap!$C$427:$P$633,CCG_heatmap!$P$425,FALSE),0) -> 0 | G213: 189 | H213: =IFERROR(INDEX(CCG_heatmap!$C$9:$C$214,MATCH(CCG_heatmap!$A197,CCG_heatmap!$R$9:$R$218,0),0),C213) -> NHS Central London (Westminster) CCG | J213: =MATCH('Similar 10 and all CCGs'!$H213,CCG_heatmap!$C$9:$C$214,0)-CCG_heatmap!$A197 -> 0
B214: 190 | C214: =CCG_heatmap!$C198 -> NHS Slough CCG | E214: =IFERROR(1+MATCH('Similar 10 and all CCGs'!$C214,CCG_heatmap!$C$9:$C$214,0)-VLOOKUP(C214,CCG_heatmap!$C$427:$P$633,CCG_heatmap!$P$425,FALSE),0) -> 0 | G214: 190 | H214: =IFERROR(INDEX(CCG_heatmap!$C$9:$C$214,MATCH(CCG_heatmap!$A198,CCG_heatmap!$R$9:$R$218,0),0),C214) -> NHS Slough CCG | J214: =MATCH('Similar 10 and all CCGs'!$H214,CCG_heatmap!$C$9:$C$214,0)-CCG_heatmap!$A198 -> 0
... 16 more rows

Sheet CCG Ranking - Standard

Sheet CCG Ranking - Custom

Sheet Variable - All CCG distribution

Sheet Variable - Top 20 Zoom

Sheet Raw Data
D8: Variables used | P8: Standardised Variable values
B9: CCGcode | C9: name | D9: IMDscore | E9: IMDhealth | F9: poptot | G9: pop_u5 | H9: pop_5_14 | I9: pop_15_24 | J9: pop_75plus | K9: ADSONS | L9: popdensity | M9: popdensityslope | N9: pc_black | O9: pc_asian | P9: std_IMDscore | Q9: std_IMDhealth | R9: std_poptot | S9: std_pop_u5 | T9: std_pop_5_14 | U9: std_pop_15_24 | V9: std_pop_75plus | W9: std_ADSONS | X9: std_popdensity | Y9: std_popdensityslope | Z9: std_pc_black | AA9: std_pc_asian
B10: 00C | C10: NHS Darlington CCG | D10: 24.00045043 | E10: 0.5101810378 | F10: 107776 | G10: 0.05429780285 | H10: 0.1186998961 | I10: 0.1056172061 | J10: 0.08783959323 | K10: 1.036481877 | L10: 5.336824744 | M10: 2.325561551 | N10: 0.003489469704 | O10: 0.02086299085 | P10: 0.1371929111 | Q10: 0.2924763652 | R10: -0.3844266322 | S10: -0.1111068152 | T10: 0.09642524825 | U10: -0.109055226 | V10: 0.1378490866 | W10: -0.07134661781 | X10: -0.07399156978 | Y10: -0.03484494337 | Z10: -0.07651652125 | AA10: -0.1181713826
B11: 00D | C11: NHS Durham Dales, Easington and Sedgefield CCG | D11: 30.06701299 | E11: 0.9252214021 | F11: 290781 | G11: 0.05176748137 | H11: 0.1126655455 | I11: 0.1088035326 | J11: 0.08732001059 | K11: 1.033166681 | L11: 1.610520295 | M11: 2.761237038 | N11: 0.0009460420009 | O11: 0.005830429221 | P11: 0.4240971186 | Q11: 0.5628727662 | R11: 0.1224065666 | S11: -0.2438885742 | T11: -0.1209194702 | U11: -0.03612363053 | V11: 0.1287401868 | W11: -0.116204244 | X11: -0.1472332623 | Y11: 0.2737112722 | Z11: -0.1061018487 | AA11: -0.2017785776
B12: 00J | C12: NHS North Durham CCG | D12: 20.74551572 | E12: 0.5582289342 | F12: 256382 | G12: 0.04935993947 | H12: 0.1016959069 | I12: 0.149655592 | J12: 0.08205334228 | K12: 1.057673553 | L12: 4.680362927 | M12: 2.652139207 | N12: 0.002072332897 | O12: 0.01615381412 | P12: -0.01674178506 | Q12: 0.3237792923 | R12: 0.02713837608 | S12: -0.3702273227 | T12: -0.5160229718 | U12: 0.8989361877 | V12: 0.0364092459 | W12: 0.2153960559 | X12: -0.08689453442 | Y12: 0.1964454751 | Z12: -0.09300075486 | AA12: -0.1443625979
B13: 00K | C13: NHS Hartlepool and Stockton-on-Tees CCG | D13: 27.77120178 | E13: 0.6873548499 | F13: 296223 | G13: 0.05747696837 | H13: 0.1215536943 | I13: 0.1191129656 | J13: 0.0778906432 | K13: 1.031270257 | L13: 9.647548941 | M13: 2.064907894 | N13: 0.0048461303 | O13: 0.0292085589 | P13: 0.3155219758 | Q13: 0.4079040808 | R13: 0.1374782109 | S13: 0.05572383955 | T13: 0.1992131087 | U13: 0.1998482319 | V13: -0.03656780521 | W13: -0.1418645861 | X13: 0.01073707772 | Y13: -0.2194463455 | Z13: -0.06073575111 | AA13: -0.07175550539
B14: 00L | C14: NHS Northumberland CCG | D14: 20.61893915 | E14: 0.1788239882 | F14: 323439 | G14: 0.0469300239 | H14: 0.1048296588 | I14: 0.1014998191 | J14: 0.1001981827 | K14: 1.017694935 | L14: 0.6288885879 | M14: 3.065943413 | N14: 0.0009816285635 | O14: 0.008684210971 | P14: -0.02272793431 | Q14: 0.07659916056 | R14: 0.2128530495 | S14: -0.4977401567 | T14: -0.4031517664 | U14: -0.2032977958 | V14: 0.3545098143 | W14: -0.3255510526 | X14: -0.166527544 | Y14: 0.4895119049 | Z14: -0.1056879033 | AA14: -0.1859065863
B15: 00M | C15: NHS South Tees CCG | D15: 35.30315823 | E15: 1.001928391 | F15: 295180 | G15: 0.05892336879 | H15: 0.1200996002 | I15: 0.1211362558 | J15: 0.08065587099 | K15: 1.071827717 | L15: 9.197181241 | M15: 2.191647054 | N15: 0.007568386946 | O15: 0.04745742824 | P15: 0.6717286376 | Q15: 0.6128469268 | R15: 0.1345896176 | S15: 0.1316254965 | T15: 0.1468396724 | U15: 0.2461591758 | V15: 0.01190991713 | W15: 0.4069147788 | X15: 0.001884958133 | Y15: -0.1296865209 | Z15: -0.02907027303 | AA15: 0.02973995587
B16: 00N | C16: NHS South Tyneside CCG | D16: 31.04874883 | E16: 0.9587440358 | F16: 156405 | G16: 0.0523129056 | H16: 0.1067421118 | I16: 0.109427448 | J16: 0.08711358333 | K16: 1.046513115 | L16: 23.08086399 | M16: 1.986832693 | N16: 0.0029990652 | O16: 0.02345175522 | P16: 0.4705260709 | Q16: 0.5847125685 | R16: -0.2497483905 | S16: -0.2152667612 | T16: -0.3342691965 | U16: -0.02184287595 | V16: 0.125121272 | W16: 0.06438516601 | X16: 0.2747731336 | Y16: -0.2747411447 | Z16: -0.08222094044 | AA16: -0.103773349
B17: 00P | C17: NHS Sunderland CCG | D17: 30.1676047 | E17: 1.02249482 | F17: 284141 | G17: 0.05051013405 | H17: 0.109153554 | I17: 0.1160832122 | J17: 0.0830960685 | K17: 1.04832343 | L17: 20.16197966 | M17: 2.058942778 | N17: 0.004920397956 | O17: 0.02792197833 | P17: 0.4288543734 | Q17: 0.6262458362 | R17: 0.1040170557 | S17: -0.3098694346 | T17: -0.247414078 | U17: 0.1305004275 | V17: 0.05468947308 | W17: 0.0888803754 | X17: 0.2174015391 | Y17: -0.2236709895 | Z17: -0.05987186458 | AA17: -0.07891113167
B18: 00Q | C18: NHS Blackburn with Darwen CCG | D18: 33.4773241 | E18: 0.9777420855 | F18: 173797 | G18: 0.06627272047 | H18: 0.1407964464 | I18: 0.1287536609 | J18: 0.06143374166 | K18: 1.080714665 | L18: 10.717763 | M18: 2.53714678 | N18: 0.006045846112 | O18: 0.272362651 | P18: 0.5853799861 | Q18: 0.5970896881 | R18: -0.2015811656 | S18: 0.5172918442 | T18: 0.892296898 | U18: 0.4205134056 | V18: -0.3250768041 | W18: 0.52716327 | X18: 0.03177247345 | Y18: 0.1150049782 | Z18: -0.04678057358 | AA18: 1.280604264
B19: 00R | C19: NHS Blackpool CCG | D19: 40.29713597 | E19: 1.382819981 | F19: 172887 | G19: 0.052982584 | H19: 0.105733803 | I19: 0.1101933633 | J19: 0.0925112935 | K19: 1.095060826 | L19: 40.01548121 | M19: 1.591406475 | N19: 0.002461671052 | O19: 0.01568934469 | P19: 0.9079073979 | Q19: 0.8609955984 | R19: -0.2041014148 | S19: -0.1801245561 | T19: -0.3705863769 | U19: -0.004311895821 | V19: 0.2197495322 | W19: 0.7212798968 | X19: 0.6076283912 | Y19: -0.5547918267 | Z19: -0.08847194644 | AA19: -0.1469458559
B20: 00T | C20: NHS Bolton CCG | D20: 29.07432203 | E20: 0.6855839411 | F20: 306776 | G20: 0.06424557332 | H20: 0.1324386523 | I20: 0.118359976 | J20: 0.06795512035 | K20: 1.070007364 | L20: 20.14393069 | M20: 2.173710098 | N20: 0.01763130252 | O20: 0.1482689147 | P20: 0.377150069 | Q20: 0.4067503439 | R20: 0.1667047935 | S20: 0.4109147821 | T20: 0.5912665882 | U20: 0.1826131086 | V20: -0.2107493025 | W20: 0.3822837395 | X20: 0.2170467808 | Y20: -0.1423899189 | Z20: 0.08798225875 | AA20: 0.5904272034
B21: 00V | C21: NHS Bury CCG | D21: 22.37094452 | E21: 0.4041693869 | F21: 202424 | G21: 0.06095621073 | H21: 0.1262745524 | I21: 0.1101252816 | J21: 0.07376101648 | K21: 1.062243275 | L21: 18.88577506 | M21: 2.149718889 | N21: 0.01053042931 | O21: 0.07565131962 | P21: 0.06012915449 | Q21: 0.2234103867 | R21: -0.1222985559 | S21: 0.2383013991 | T21: 0.3692485689 | U21: -0.005870213082 | V21: -0.1089650586 | W21: 0.2772285556 | X21: 0.1923173339 | Y21: -0.1593810896 | Z21: 0.00538440912 | AA21: 0.1865470411
B22: 00X | C22: NHS Chorley and South Ribble CCG | D22: 17.17591642 | E22: 0.2936961675 | F22: 181931 | G22: 0.05658189094 | H22: 0.1140102566 | I22: 0.1019287532 | J22: 0.08141548169 | K22: 1.016879747 | L22: 7.299588467 | M22: 2.374761946 | N22: 0.003038853453 | O22: 0.01486008844 | P22: -0.1855578234 | Q22: 0.1514377221 | R22: -0.1790540148 | S22: 0.008753540982 | T22: -0.07248578189 | U22: -0.1934799549 | V22: 0.02522679346 | W22: -0.3365812769 | X22: -0.03541282803 | Y22: 0 | Z22: -0.08175812072 | AA22: -0.1515579633
B23: 00Y | C23: NHS Oldham CCG | D23: 31.48237581 | E23: 0.7614194282 | F23: 252720 | G23: 0.0683127572 | H23: 0.1406813865 | I23: 0.1224912947 | J23: 0.06428854068 | K23: 1.053489221 | L23: 16.21347678 | M23: 2.394316278 | N23: 0.01338673103 | O23: 0.203071562 | P23: 0.4910334673 | Q23: 0.4561567259 | R23: 0.01699645005 | S23: 0.6243453026 | T23: 0.8881526799 | U23: 0.2771745619 | V23: -0.2750287921 | W23: 0.1587782314 | X23: 0.139792466 | Y23: 0.01384886399 | Z23: 0.03860910889 | AA23: 0.8952252633
B24: 01A | C24: NHS East Lancashire CCG | D24: 29.51538714 | E24: 0.7754140391 | F24: 378849 | G24: 0.06056502723 | H24: 0.1250234262 | I24: 0.1138527487 | J24: 0.07529649016 | K24: 1.052313732 | L24: 4.098788084 | M24: 2.901700382 | N24: 0.001857834727 | O24: 0.1198217076 | P24: 0.3980092353 | Q24: 0.4652741341 | R24: 0.3663113023 | S24: 0.2177735597 | T24: 0.3241856129 | U24: 0.079447511 | V24: -0.0820463842 | W24: 0.1428727982 | X24: -0.0983255719 | Y24: 0.3731909054 | Z24: -0.09549581245 | AA24: 0.4322112418
B25: 01C | C25: NHS Eastern Cheshire CCG | D25: 11.82743356 | E25: -0.3811421023 | F25: 207393 | G25: 0.04987632177 | H25: 0.1093286659 | I25: 0.09275626468 | J25: 0.1039572213 | K25: 1.050409774 | L25: 3.141878454 | M25: 2.701936159 | N25: 0.003281947428 | O25: 0.02034466799 | P25: -0.4385020929 | Q25: -0.2882155142 | R25: -0.1085368873 | S25: -0.3431295208 | T25: -0.2411069155 | U25: -0.4034283778 | V25: 0.4204102195 | W25: 0.1171105145 | X25: -0.1171339333 | Y25: 0.2317129146 | Z25: -0.07893043474 | AA25: -0.1210541594
B26: 01D | C26: NHS Heywood, Middleton & Rochdale CCG | D26: 34.15708075 | E26: 0.9514649396 | F26: 230919 | G26: 0.0649838255 | H26: 0.1317171822 | I26: 0.1178725007 | J26: 0.06526530948 | K26: 1.061055603 | L26: 13.54972492 | M26: 2.310376927 | N26: 0.01332086636 | O26: 0.1555424122 | P26: 0.6175275228 | Q26: 0.5799702793 | R26: -0.04338152087 | S26: 0.4496554812 | T26: 0.5652807405 | U26: 0.1714553227 | V26: -0.2579048767 | W26: 0.2611582739 | X26: 0.08743558075 | Y26: -0.04559907201 | Z26: 0.03784296638 | AA26: 0.630880503
B27: 01E | C27: NHS Greater Preston CCG | D27: 22.50156994 | E27: 0.5192036996 | F27: 213692 | G27: 0.05768114857 | H27: 0.1174447335 | I27: 0.1382410198 | J27: 0.0738633173 | K27: 1.042130712 | L27: 5.296932217 | M27: 2.725336902 | N27: 0.00921633154 | O27: 0.1162769893 | P27: 0.06630678483 | Q27: 0.2983545773 | R27: -0.09109177751 | S27: 0.06643844907 | T27: 0.05121691189 | U27: 0.6376688735 | V27: -0.1071716039 | W27: 0.005087265448 | X27: -0.07477567001 | Y27: 0.2482859031 | Z27: -0.009901267235 | AA27: 0.4124964412
B28: 01F | C28: NHS Halton CCG | D28: 32.55103173 | E28: 0.9873189813 | F28: 130585 | G28: 0.05842171766 | H28: 0.1214458016 | I28: 0.1138032699 | J28: 0.06736608339 | K28: 1.044273096 | L28: 15.99692522 | M28: 2.027776761 | N28: 0.00210771786 | O28: 0.007408491172 | P28: 0.5415731061 | Q28: 0.6033289805 | R28: -0.3212570006 | S28: 0.1053007307 | T28: 0.1953270365 | U28: 0.0783149939 | V28: -0.2210758188 | W28: 0.03407567044 | X28: 0.1355360768 | Y28: -0.2457435379 | Z28: -0.09258915451 | AA28: -0.1930018078
B29: 01G | C29: NHS Salford CCG | D29: 33.8254365 | E29: 1.149171465 | F29: 267839 | G29: 0.06583805943 | H29: 0.1199526581 | I29: 0.1278417258 | J29: 0.06056996927 | K29: 1.045572186 | L29: 25.27147799 | M29: 2.405461193 | N29: 0.03001607903 | O29: 0.04504001193 | P29: 0.6018431665 | Q29: 0.7087749393 | R29: 0.05886859088 | S29: 0.4944824667 | T29: 0.1415471239 | U29: 0.3996401901 | V29: -0.3402197584 | W29: 0.05165353526 | X29: 0.3178303447 | Y29: 0.02174197022 | Z29: 0.2320428379 | AA29: 0.01629491557
B30: 01H | C30: NHS Cumbria CCG | D30: 22.15096031 | E30: 0.2439915596 | F30: 323146 | G30: 0.04933373769 | H30: 0.1051846534 | I30: 0.1034640689 | J30: 0.09897383845 | K30: 1.016101684 | L30: 0.6350319766 | M30: 3.392411349 | N30: 0.0009371279834 | O30: 0.008109217617 | P30: 0.04972550417 | Q30: 0.1190554571 | R30: 0.2120415847 | S30: -0.3716022933 | T30: -0.3903656009 | U30: -0.1583382264 | V30: 0.3330456085 | W30: -0.3471091863 | X30: -0.1664067937 | Y30: 0.7207246165 | Z30: -0.1062055371 | AA30: -0.1891045497
B31: 01J | C31: NHS Knowsley CCG | D31: 43.02956739 | E31: 1.447900961 | F31: 163441 | G31: 0.0593302782 | H31: 0.1171187156 | I31: 0.1205450285 | J31: 0.07255829321 | K31: 1.089317444 | L31: 17.02696795 | M31: 1.785726337 | N31: 0.004229584984 | O31: 0.01093241857 | P31: 1.037131495 | Q31: 0.9033954812 | R31: -0.2302621558 | S31: 0.1529785727 | T31: 0.0394744265 | U31: 0.2326266157 | V31: -0.1300502238 | W31: 0.643566713 | X31: 0.1557818924 | Y31: -0.4171696677 | Z31: -0.06790744898 | AA31: -0.1734026408
B32: 01K | C32: NHS Morecambe Bay CCG | D32: 21.04004679 | E32: 0.3663018933 | F32: 360784 | G32: 0.0460857466 | H32: 0.09970785844 | I32: 0.1309010377 | J32: 0.09940296687 | K32: 1.043971436 | L32: 1.308247741 | M32: 3.211857858 | N32: 0.002800050496 | O32: 0.01695675481 | P32: -0.002812611274 | Q32: 0.1987399333 | R32: 0.3162802008 | S32: -0.5420446557 | T32: -0.5876283298 | U32: 0.4696645583 | V32: 0.3405687386 | W32: 0.02999393179 | X32: -0.1531745249 | Y32: 0.5928521438 | Z32: -0.08453589328 | AA32: -0.1398968507
B33: 01R | C33: NHS South Cheshire CCG | D33: 17.12253598 | E33: -0.09288796077 | F33: 183207 | G33: 0.0524379527 | H33: 0.112413827 | I33: 0.1122446195 | J33: 0.08733290759 | K33: 1.036070181 | L33: 3.306995132 | M33: 2.71601274 | N33: 0.004422278974 | O33: 0.01251640961 | P33: -0.1880823289 | Q33: -0.1004196054 | R33: -0.1755201268 | S33: -0.2087047594 | T33: -0.1299858478 | U33: 0.04263915766 | V33: 0.1289662864 | W33: -0.07691724448 | X33: -0.1138885128 | Y33: 0.2416822993 | Z33: -0.06566601913 | AA33: -0.164592895
B34: 01T | C34: NHS South Sefton CCG | D34: 32.28554721 | E34: 0.9000535506 | F34: 154661 | G34: 0.05422827992 | H34: 0.1075190255 | I34: 0.1109070806 | J34: 0.08767562605 | K34: 1.051991908 | L34: 21.13904013 | M34: 1.997020842 | N34: 0.00277012904 | O34: 0.008581267046 | P34: 0.5290176228 | Q34: 0.5464760562 | R34: -0.2545784066 | S34: -0.1147551175 | T34: -0.3062863872 | U34: 0.01202432874 | V34: 0.1349745474 | W34: 0.1385182212 | X34: 0.2366059715 | Y34: -0.2675256441 | Z34: -0.08488394173 | AA34: -0.1864791336
B35: 01V | C35: NHS Southport and Formby CCG | D35: 18.55619313 | E35: 0.4508806213 | F35: 124155 | G35: 0.0435987274 | H35: 0.1012927389 | I35: 0.09880391446 | J35: 0.1240304458 | K35: 1.040071786 | L35: 14.73503849 | M35: 1.635650558 | N35: 0.003390323322 | O35: 0.01264560959 | P35: -0.1202807915 | Q35: 0.2538424862 | R35: -0.3390649155 | S35: -0.6725540738 | T35: -0.5305442412 | U35: -0.2650041617 | V35: 0.7723176483 | W35: -0.02277188394 | X35: 0.1107332938 | Y35: -0.5234570669 | Z35: -0.07766979883 | AA35: -0.1638743183
B36: 01W | C36: NHS Stockport CCG | D36: 19.69105612 | E36: 0.3922001891 | F36: 309894 | G36: 0.05875557449 | H36: 0.1159428708 | I36: 0.1022898152 | J36: 0.08673288286 | K36: 1.045474125 | L36: 22.90408355 | M36: 1.948596772 | N36: 0.00784015346 | O36: 0.04870196868 | P36: -0.0666100409 | Q36: 0.2156125235 | R36: 0.175340109 | S36: 0.1228202821 | T36: -0.002877051588 | U36: -0.1852156327 | V36: 0.1184471414 | W36: 0.0503266872 | X36: 0.2712984583 | Y36: -0.3018207747 | Z36: -0.02590906609 | AA36: 0.03666176586
B37: 01X | C37: NHS St Helens CCG | D37: 29.49217928 | E37: 0.9827935841 | F37: 196435 | G37: 0.0533815257 | H37: 0.1118843383 | I37: 0.1088400743 | J37: 0.08716878357 | K37: 1.036375546 | L37: 13.02307847 | M37: 2.029749867 | N37: 0.001470169451 | O37: 0.01023759929 | P37: 0.3969116723 | Q37: 0.6003807103 | R37: -0.1388851193 | S37: -0.1591895957 | T37: -0.1490569245 | U37: -0.03528722863 | V37: 0.1260889977 | W37: -0.07278536662 | X37: 0.0770841783 | Y37: -0.2443461346 | Z37: -0.1000051618 | AA37: -0.1772670448
B38: 01Y | C38: NHS Tameside and Glossop CCG | D38: 29.11379135 | E38: 0.867541191 | F38: 246321 | G38: 0.05976753911 | H38: 0.1210615416 | I38: 0.1119311792 | J38: 0.0714068228 | K38: 1.058192497 | L38: 11.1200311 | M38: 2.060385476 | N38: 0.008035760921 | O38: 0.06510015715 | P38: 0.3790166801 | Q38: 0.5252944417 | R38: -0.0007256102188 | S38: 0.175924381 | T38: 0.1814867951 | U38: 0.03546484679 | V38: -0.1502368654 | W38: 0.2224178326 | X38: 0.03967918026 | Y38: -0.2226492347 | Z38: -0.02363374653 | AA38: 0.1278642219
B39: 02A | C39: NHS Trafford CCG | D39: 15.75706478 | E39: 0.03770874655 | F39: 240324 | G39: 0.05948636008 | H39: 0.128672126 | I39: 0.1029859689 | J39: 0.07898503687 | K39: 1.045468517 | L39: 22.00056018 | M39: 1.831380391 | N39: 0.02780187528 | O39: 0.07406947763 | P39: -0.2526591677 | Q39: -0.01533660459 | R39: -0.01733432962 | S39: 0.1611691628 | T39: 0.4556041664 | U39: -0.1692814209 | V39: -0.01738178643 | W39: 0.05025080251 | X39: 0.2535394206 | Y39: -0.3848363316 | Z39: 0.2062870664 | AA39: 0.1777492478
B40: 02D | C40: NHS Vale Royal CCG | D40: 19.81347115 | E40: 0.1399550626 | F40: 105250 | G40: 0.05534441805 | H40: 0.1181377672 | I40: 0.1059857482 | J40: 0.07896437055 | K40: 1.045696966 | L40: 4.14191874 | M40: 2.702515592 | N40: 0.00184149938 | O40: 0.01016707509 | P40: -0.06082070212 | Q40: 0.05127627996 | R40: -0.391422401 | S40: -0.05618438394 | T40: 0.07617853933 | U40: -0.1006196913 | V40: -0.01774409154 | W40: 0.05334192497 | X40: -0.09747782522 | Y40: 0.2321232836 | Z40: -0.09568582633 | AA40: -0.1776592821
B41: 02E | C41: NHS Warrington CCG | D41: 19.54740229 | E41: 0.3499969546 | F41: 216839 | G41: 0.05594473319 | H41: 0.1177740167 | I41: 0.1081032471 | J41: 0.07677585674 | K41: 1.044199041 | L41: 11.49684563 | M41: 2.15000173 | N41: 0.003343496931 | O41: 0.02520357025 | P41: -0.07340382063 | Q41: 0.1881173599 | R41: -0.08237614637 | S41: -0.02468210233 | T41: 0.06307700316 | U41: -0.05215241316 | V41: -0.05611133373 | W41: 0.0330736421 | X41: 0.04708558895 | Y41: -0.1591807749 | Z41: -0.07821448666 | AA41: -0.09403020982
B42: 02F | C42: NHS West Cheshire CCG | D42: 17.7928257 | E42: 0.0451387012 | F42: 261748 | G42: 0.05039962101 | H42: 0.1065948928 | I42: 0.1148814891 | J42: 0.09292907682 | K42: 1.063899327 | L42: 3.457108497 | M42: 2.771567054 | N42: 0.003129800452 | O42: 0.01338348116 | P42: -0.156382509 | Q42: -0.01049603203 | R42: 0.04199953805 | S42: -0.3156687437 | T42: -0.3395717188 | U42: 0.1029942739 | V42: 0.2270737692 | W42: 0.2996364377 | X42: -0.1109379871 | Y42: 0.2810272462 | Z42: -0.08070021892 | AA42: -0.1597704687
B43: 02G | C43: NHS West Lancashire CCG | D43: 20.24862683 | E43: 0.3627764662 | F43: 113228 | G43: 0.04795633589 | H43: 0.110317236 | I43: 0.1280248702 | J43: 0.09223866888 | K43: 1.030558934 | L43: 3.251020215 | M43: 2.937153077 | N43: 0.001680296363 | O43: 0.008347327846 | P43: -0.04024100888 | Q43: 0.1964431379 | R43: -0.3693272929 | S43: -0.4438831618 | T43: -0.2055006808 | U43: 0.4038321681 | V43: 0.2149700992 | W43: -0.1514894252 | X43: -0.1149887175 | Y43: 0.3982993856 | Z43: -0.09756095101 | AA43: -0.1877802426
B44: 02H | C44: NHS Wigan Borough CCG | D44: 25.19862412 | E44: 0.6639129146 | F44: 325900 | G44: 0.05515495551 | H44: 0.1158361461 | I44: 0.1094292728 | J44: 0.07641914698 | K44: 1.017155844 | L44: 17.11139982 | M44: 2.001077093 | N44: 0.005415701711 | O44: 0.01163707546 | P44: 0.1938577966 | Q44: 0.3926317953 | R44: 0.2196688005 | S44: -0.06612666603 | T44: -0.006721053769 | U44: -0.02180110797 | V44: -0.06236487888 | W44: -0.3328454368 | X44: 0.1574414275 | Y44: -0.2646529064 | Z44: -0.05411045696 | AA44: -0.1694835226
B45: 02M | C45: NHS Fylde & Wyre CCG | D45: 18.75351252 | E45: 0.358614862 | F45: 151112 | G45: 0.04481444227 | H45: 0.100395733 | I45: 0.09649134417 | J45: 0.122551485 | K45: 1.030375213 | L45: 6.321764856 | M45: 2.267661331 | N45: 0.001529697551 | O45: 0.01050497319 | P45: -0.1109490224 | Q45: 0.1937318768 | R45: -0.2644073786 | S45: -0.6087579276 | T45: -0.5628525243 | U45: -0.3179364149 | V45: 0.7463897113 | W45: -0.1539753417 | X45: -0.05463226036 | Y45: -0.07585131926 | Z45: -0.09931272683 | AA45: -0.1757799808
B46: 02N | C46: NHS Airedale, Wharfedale and Craven CCG | D46: 19.82603343 | E46: 0.05622577063 | F46: 158587 | G46: 0.05290471476 | H46: 0.1192909885 | I46: 0.1053995599 | J46: 0.09638242731 | K46: 1.041557715 | L46: 1.3066696 | M46: 3.433209559 | N46: 0.00371421777 | O46: 0.100126564 | P46: -0.06022659765 | Q46: -0.003272870315 | R46: -0.2437053314 | S46: -0.184210841 | T46: 0.1177151657 | U46: -0.1140369139 | V46: 0.2876150983 | W46: -0.002665903787 | X46: -0.1532055438 | Y46: 0.7496189238 | Z46: -0.07390223615 | AA46: 0.3226719795
B47: 02P | C47: NHS Barnsley CCG | D47: 29.65581314 | E47: 0.8242568015 | F47: 257794 | G47: 0.0576196498 | H47: 0.1148397558 | I47: 0.1105301132 | J47: 0.07882650488 | K47: 1.025428393 | L47: 7.272959896 | M47: 2.425624725 | N47: 0.005344008204 | O47: 0.007405509927 | P47: 0.4046503616 | Q47: 0.4970949118 | R47: 0.03104891665 | S47: 0.06321122476 | T47: -0.04260895328 | U47: 0.003395948055 | V47: -0.02016104009 | W47: -0.2209103136 | X47: -0.035936221 | Y47: 0.03602228517 | Z47: -0.05494440081 | AA47: -0.1930183887
B48: 02Q | C48: NHS Bassetlaw CCG | D48: 23.06072281 | E48: 0.3814762426 | F48: 116044 | G48: 0.05325566165 | H48: 0.1089069663 | I48: 0.1098721175 | J48: 0.08883699286 | K48: 1.033966493 | L48: 1.795551701 | M48: 2.915900024 | N48: 0.004381389253 | O48: 0.0109033491 | P48: 0.0927506419 | Q48: 0.2086259342 | R48: -0.3615283678 | S48: -0.1657944679 | T48: -0.2562956534 | U48: -0.01166486808 | V48: 0.1553346849 | W48: -0.1053820503 | X48: -0.1435964115 | Y48: 0.3832474453 | Z48: -0.0661416512 | AA48: -0.1735643176
B49: 02R | C49: NHS Bradford Districts CCG | D49: 32.46636825 | E49: 0.6261688069 | F49: 337839 | G49: 0.06744632798 | H49: 0.1400045584 | I49: 0.116869278 | J49: 0.06820704537 | K49: 1.057263131 | L49: 19.91608433 | M49: 2.387887499 | N49: 0.01821559664 | O49: 0.2018957391 | P49: 0.5375691406 | Q49: 0.3680417271 | R49: 0.2527339165 | S49: 0.5788783544 | T49: 0.8637747425 | U49: 0.1484926296 | V49: -0.2063327582 | W49: 0.2098426632 | X49: 0.2125683885 | Y49: 0.009295843402 | Z49: 0.09477880844 | AA49: 0.8886856423
B50: 02T | C50: NHS Calderdale CCG | D50: 25.13248297 | E50: 0.3091554868 | F50: 219703 | G50: 0.05862004615 | H50: 0.1238581175 | I50: 0.1105264835 | J50: 0.073248886 | K50: 1.044639054 | L50: 5.726555216 | M50: 2.796174514 | N50: 0.004917782389 | O50: 0.09138068123 | P50: 0.1907298022 | Q50: 0.1615093794 | R50: -0.07444428504 | S50: 0.1157082647 | T50: 0.2822136254 | U50: 0.00331286786 | V50: -0.1179433133 | W50: 0.03902741872 | X50: -0.06633129408 | Y50: 0.2984548611 | Z50: -0.05990228904 | AA50: 0.2740296562
B51: 02V | C51: NHS Leeds North CCG | D51: 22.29768386 | E51: 0.1763488136 | F51: 215131 | G51: 0.06176701638 | H51: 0.1166638002 | I51: 0.1101468408 | J51: 0.07414552064 | K51: 1.099960144 | L51: 7.676961658 | M51: 2.225763743 | N51: 0.05530862861 | O51: 0.1259783379 | P51: 0.05666445878 | Q51: 0.07498659863 | R51: -0.08710646031 | S51: 0.2808494315 | T51: 0.02308932182 | U51: -0.005376746694 | V51: -0.1022242448 | W51: 0.787572131 | X51: -0.02799543859 | Y51: -0.105524233 | Z51: 0.5262475285 | AA51: 0.4664528173
B52: 02W | C52: NHS Bradford City CCG | D52: 46.8396269 | E52: 0.9893571308 | F52: 130810 | G52: 0.08368626252 | H52: 0.1741762862 | I52: 0.1748719517 | J52: 0.02775017201 | K52: 1.131596672 | L52: 50.88382307 | M52: 2.446252511 | N52: 0.03139773736 | O52: 0.6072332141 | P52: 1.217319549 | Q52: 0.6046568231 | R52: -0.3206338621 | S52: 1.431089068 | T52: 2.094569096 | U52: 1.476111609 | V52: -0.915589723 | W52: 1.215643158 | X52: 0.8212490879 | Y52: 0.05063139588 | Z52: 0.2481143834 | AA52: 3.143067173
B53: 02X | C53: NHS Doncaster CCG | D53: 29.21702165 | E53: 0.5951125645 | F53: 317514 | G53: 0.05761320761 | H53: 0.1188734985 | I53: 0.1114502038 | J53: 0.08239951624 | K53: 1.022431604 | L53: 5.366499751 | M53: 2.447210635 | N53: 0.007560479635 | O53: 0.02569848085 | P53: 0.3838987214 | Q53: 0.3478087644 | R53: 0.1964437345 | S53: 0.06287316278 | T53: 0.1026780449 | U53: 0.0244558344 | V53: 0.04247808598 | W53: -0.2614596072 | X53: -0.07340829812 | Y53: 0.0513099637 | Z53: -0.02916225142 | AA53: -0.0912776459
B54: 02Y | C54: NHS East Riding of Yorkshire CCG | D54: 17.03125152 | E54: -0.3915941102 | F54: 301812 | G54: 0.04635667237 | H54: 0.1035810372 | I54: 0.09955866566 | J54: 0.1093760354 | K54: 1.025392962 | L54: 1.4661735 | M54: 3.158172867 | N54: 0.001566451775 | O54: 0.008503487775 | P54: -0.1923994191 | Q54: -0.2950249371 | R54: 0.1529569724 | S54: -0.5278274898 | T54: -0.4481245104 | U54: -0.2477287165 | V54: 0.5154084564 | W54: -0.2213897363 | X54: -0.1500704442 | Y54: 0.5548310983 | Z54: -0.09888519914 | AA54: -0.1869117217
B55: 03A | C55: NHS Greater Huddersfield CCG | D55: 22.38853544 | E55: 0.101960476 | F55: 246583 | G55: 0.05641508133 | H55: 0.1197446702 | I55: 0.1315378595 | J55: 0.07376420921 | K55: 1.024404117 | L55: 7.758644282 | M55: 2.564704171 | N55: 0.03170544372 | O55: 0.1127893178 | P55: 0.06096107695 | Q55: 0.02652302617 | R55: 0 | S55: 0 | T55: 0.1340558309 | U55: 0.4842407244 | V55: -0.1089090862 | W55: -0.2347697027 | X55: -0.02638994079 | Y55: 0.1345218077 | Z55: 0.2516936452 | AA55: 0.3930989204
B56: 03C | C56: NHS Leeds West CCG | D56: 23.41789911 | E56: 0.384044371 | F56: 376321 | G56: 0.05189718352 | H56: 0.09749920945 | I56: 0.1943022048 | J56: 0.06115523715 | K56: 1.09394214 | L56: 22.67365735 | M56: 2.60173464 | N56: 0.01963862139 | O56: 0.06250213916 | P56: 0.1096424782 | Q56: 0.2102990551 | R56: 0.3593099945 | S56: -0.2370822929 | T56: -0.6671792591 | U56: 1.920849259 | V56: -0.3299593184 | W56: 0.7061430545 | X56: 0.2667693585 | Y56: 0.160747707 | Z56: 0.1113315311 | AA56: 0.113414722
B57: 03D | C57: NHS Hambleton, Richmondshire and Whitby CCG | D57: 14.93695638 | E57: -0.4159230582 | F57: 143606 | G57: 0.04606353495 | H57: 0.1019386377 | I57: 0.09689010208 | J57: 0.1095706308 | K57: 0.9895685862 | L57: 0.5352642827 | M57: 4.313508397 | N57: 0.003214775518 | O57: 0.01075314971 | P57: -0.2914443197 | Q57: -0.3108751062 | R57: -0.2851952805 | S57: -0.5432102394 | T57: -0.5072803157 | U57: -0.308809274 | V57: 0.5188199435 | W57: -0.7061261545 | X57: -0.1683677593 | Y57: 1.373068454 | Z57: -0.07971178307 | AA57: -0.1743996875
B58: 03E | C58: NHS Harrogate and Rural District CCG | D58: 10.48781822 | E58: -0.6830508451 | F58: 162034 | G58: 0.04671241838 | H58: 0.1105014997 | I58: 0.09732525272 | J58: 0.1020835133 | K58: 1.056613602 | L58: 1.20048614 | M58: 3.314663001 | N58: 0.007349597324 | O58: 0.01525933779 | P58: -0.5018561377 | Q58: -0.484907317 | R58: -0.2341588488 | S58: -0.5091592763 | T58: -0.1988638879 | U58: -0.2988491427 | V58: 0.3875618968 | W58: 0.2010539481 | X58: -0.1552926133 | Y58: 0.6656613029 | Z58: -0.03161524908 | AA58: -0.1493374424
B59: 03F | C59: NHS Hull CCG | D59: 38.99155617 | E59: 0.590596858 | F59: 295969 | G59: 0.06277684487 | H59: 0.1183130666 | I59: 0.1312198237 | J59: 0.06766587041 | K59: 1.038025147 | L59: 36.24883134 | M59: 1.760947164 | N59: 0.01089506378 | O59: 0.02356721763 | P59: 0.8461629858 | Q59: 0.3448668077 | R59: 0.1367747567 | S59: 0.3338414347 | T59: 0.08249245625 | U59: 0.4769612269 | V59: -0.2158201969 | W59: -0.05046477079 | X59: 0.5335936967 | Y59: -0.4347188946 | Z59: 0.009625862543 | AA59: -0.1031311771
B60: 03G | C60: NHS Leeds South and East CCG | D60: 36.68043878 | E60: 0.7632446075 | F60: 277754 | G60: 0.06797381856 | H60: 0.1298091117 | I60: 0.1147490225 | J60: 0.06814303304 | K60: 1.095163461 | L60: 16.92841494 | M60: 3.122808624 | N60: 0.04899896703 | O60: 0.08208310701 | P60: 0.7368639723 | Q60: 0.4573458197 | R60: 0.08632822951 | S60: 0.6065590768 | T60: 0.4965560194 | U60: 0.09996225672 | V60: -0.2074549702 | W60: 0.7226686368 | X60: 0.1538448017 | Y60: 0.5297852614 | Z60: 0.4528531075 | AA60: 0.2223189685
B61: 03H | C61: NHS North East Lincolnshire CCG | D61: 30.39015248 | E61: 0.1911162542 | F61: 168999 | G61: 0.05726069385 | H61: 0.1173675584 | I61: 0.1104503577 | J61: 0.08828454606 | K61: 1.030131649 | L61: 8.317656607 | M61: 2.307002023 | N61: 0.002501890537 | O61: 0.01299192962 | P61: 0.4393792621 | Q61: 0.08460750087 | R61: -0.2148692489 | S61: 0.04437456605 | T61: 0.04843722383 | U61: 0.001570430292 | V61: 0.1456496373 | W61: -0.1572709845 | X61: -0.01540237673 | Y61: -0.0479892624 | Z61: -0.0880041106 | AA61: -0.1619481764
B62: 03J | C62: NHS North Kirklees CCG | D62: 27.6499571 | E62: 0.4055541007 | F62: 192323 | G62: 0.0641004976 | H62: 0.1381010072 | I62: 0.1234693718 | J62: 0.06755822237 | K62: 1.020593614 | L62: 20.19188475 | M62: 2.258978563 | N62: 0.00458924629 | O62: 0.2415435897 | P62: 0.3097879862 | Q62: 0.2243125198 | R62: -0.1502733224 | S62: 0.4033017539 | T62: 0.7952127983 | U62: 0.299561698 | V62: -0.2177073948 | W62: -0.2863292785 | X62: 0.217989333 | Y62: -0.08200067135 | Z62: -0.06372384373 | AA62: 1.109196667
B63: 03K | C63: NHS North Lincolnshire CCG | D63: 21.86603013 | E63: 0.1565589079 | F63: 172933 | G63: 0.05318244638 | H63: 0.1139979067 | I63: 0.108122799 | J63: 0.08861235276 | K63: 1.013310048 | L63: 2.006586453 | M63: 2.854974575 | N63: 0.003121266789 | O63: 0.02844558304 | P63: 0.03625038263 | Q63: 0.06209358934 | R63: -0.2039740176 | S63: -0.1696365297 | T63: -0.07293060068 | U63: -0.05170489129 | V63: 0.1513964775 | W63: -0.3848825648 | X63: -0.1394484567 | Y63: 0.3400985272 | Z63: -0.08079948308 | AA63: -0.07599897855
B64: 03L | C64: NHS Rotherham CCG | D64: 29.10094768 | E64: 0.6606095147 | F64: 261299 | G64: 0.05781882058 | H64: 0.1199430537 | I64: 0.1140991737 | J64: 0.08176074153 | K64: 1.042051493 | L64: 9.101280564 | M64: 2.203453778 | N64: 0.008898417853 | O64: 0.04609770621 | P64: 0.3784092683 | Q64: 0.3904796493 | R64: 0.04075603046 | S64: 0.07366295891 | T64: 0.141201194 | U64: 0.08508791543 | V64: 0.03127960774 | W64: 0.004015354477 | X64: 0 | Y64: -0.1213247051 | Z64: -0.01359926128 | AA64: 0.02217753585
B65: 03M | C65: NHS Scarborough and Ryedale CCG | D65: 23.98400845 | E65: 0.06124940735 | F65: 119473 | G65: 0.04762582341 | H65: 0.1022908942 | I65: 0.10373055 | J65: 0.1088697865 | K65: 1.046969526 | L65: 1.075632172 | M65: 3.376635898 | N65: 0.002423565773 | O65: 0.01226020881 | P65: 0.1364153254 | Q65: 0 | R65: -0.3520317363 | S65: -0.4612272143 | T65: -0.4945927709 | U65: -0.1522387593 | V65: 0.5065333123 | W65: 0.07056081935 | X65: -0.1577466575 | Y65: 0.7095520496 | Z65: -0.08891518968 | AA65: -0.1660178171
B66: 03N | C66: NHS Sheffield CCG | D66: 28.01091547 | E66: 0.4068511574 | F66: 594014 | G66: 0.05541115193 | H66: 0.1112768386 | I66: 0.1653260698 | J66: 0.07451676223 | K66: 1.025409658 | L66: 15.48417588 | M66: 3.008592606 | N66: 0.03785406273 | O66: 0.0859248109 | P66: 0.3268586867 | Q66: 0.2251575447 | R66: 0.9622117707 | S66: -0.05268244114 | T66: -0.1709377978 | U66: 1.257616612 | V66: -0.09571593938 | W66: -0.2211638166 | X66: 0.1254578263 | Y66: 0.4488946373 | Z66: 0.3232148079 | AA66: 0.2436855256
B67: 03Q | C67: NHS Vale of York CCG | D67: 12.42220192 | E67: -0.6111621387 | F67: 352149 | G67: 0.04682108994 | H67: 0.1020249951 | I67: 0.1409488597 | J67: 0.08736926699 | K67: 1.037450332 | L67: 1.602847607 | M67: 3.33897255 | N67: 0.004595406644 | O67: 0.02472105065 | P67: -0.4103738831 | Q67: -0.4380722399 | R67: 0.2923655281 | S67: -0.5034566016 | T67: -0.5041699009 | U67: 0.6996484246 | V67: 0.1296037098 | W67: -0.05824254285 | X67: -0.1473840714 | Y67: 0.6828779303 | Z67: -0.06365218607 | AA67: -0.09671385821
B68: 03R | C68: NHS Wakefield CCG | D68: 27.15678481 | E68: 0.6487113123 | F68: 369362 | G68: 0.05758307568 | H68: 0.114659873 | I68: 0.1096376996 | J68: 0.07639389 | K68: 1.04873262 | L68: 9.856667978 | M68: 2.368160158 | N68: 0.007800729022 | O68: 0.0271700765 | P68: 0.2864645299 | Q68: 0.3827280392 | R68: 0.3400370117 | S68: 0.06129195264 | T68: -0.04908795663 | U68: -0.0170304417 | V68: -0.06280766356 | W68: 0.09441708928 | X68: 0.01484737853 | Y68: -0.004675550462 | Z68: -0.02636765389 | AA68: -0.08309301393
B69: 03T | C69: NHS Lincolnshire East CCG | D69: 26.70883469 | E69: 0.4636030541 | F69: 247566 | G69: 0.04707835486 | H69: 0.1031038188 | I69: 0.09969462689 | J69: 0.1123700347 | K69: 1.056168431 | L69: 0.8827434218 | M69: 3.917340418 | N69: 0.002766765641 | O69: 0.008600146638 | P69: 0.265279753 | Q69: 0.2621310777 | R69: 0.002722423073 | S69: -0.4899563054 | T69: -0.4653129224 | U69: -0.2446167098 | V69: 0.5678968136 | W69: 0.1950303839 | X69: -0.1615379469 | Y69: 1.092492438 | Z69: -0.08492306502 | AA69: -0.1863741302
B70: 03V | C70: NHS Corby CCG | D70: 25.58141469 | E70: 0.5321371419 | F70: 76789 | G70: 0.06721014729 | H70: 0.1293805102 | I70: 0.1095078722 | J70: 0.05940955085 | K70: 1.069095386 | L70: 8.327312949 | M70: 1.846375863 | N70: 0.0166254301 | O70: 0.01309299917 | P70: 0.2119610014 | Q70: 0.3067806402 | R70: -0.4702452729 | S70: 0.5664844793 | T70: 0.4811186899 | U70: -0.02000205115 | V70: -0.3605632694 | W70: 0.3699438542 | X70: -0.01521257828 | Y70: -0.3742161649 | Z70: 0.07628188101 | AA70: -0.1613860539
B71: 03W | C71: NHS East Leicestershire and Rutland CCG | D71: 11.19803794 | E71: -0.6419218089 | F71: 327297 | G71: 0.05128369646 | H71: 0.113649071 | I71: 0.1043944796 | J71: 0.09689059173 | K71: 1.020944003 | L71: 2.055726183 | M71: 2.818191978 | N71: 0.006864426385 | O71: 0.06914598933 | P71: -0.4682679199 | Q71: -0.4581119874 | R71: 0.2235377985 | S71: -0.2692757876 | T71: -0.08549493407 | U71: -0.1370421222 | V71: 0.2965238231 | W71: -0.2815882028 | X71: -0.1384825997 | Y71: 0.3140481769 | Z71: -0.03725879109 | AA71: 0.1503660873
B72: 03X | C72: NHS Erewash CCG | D72: 21.42477378 | E72: -0.02280782929 | F72: 97431 | G72: 0.05472590859 | H72: 0.1063521877 | I72: 0.1082817584 | J72: 0.08571193973 | K72: 1.012607273 | L72: 16.04668211 | M72: 1.91036552 | N72: 0.005345610647 | O72: 0.0135281916 | P72: 0.01538217245 | Q72: -0.05476280434 | R72: -0.4130771578 | S72: -0.08864143526 | T72: -0.34831345 | U72: -0.04806648185 | V72: 0.1005487977 | W72: -0.3943917445 | X72: 0.136514064 | Y72: -0.3288970987 | Z72: -0.05492576108 | AA72: -0.1589656269
B73: 03Y | C73: NHS Hardwick CCG | D73: 25.04083508 | E73: 0.5514247794 | F73: 103631 | G73: 0.05253254335 | H73: 0.1085775492 | I73: 0.1094942633 | J73: 0.09059065338 | K73: 1.015666448 | L73: 5.085792918 | M73: 2.702412002 | N73: 0.002663170029 | O73: 0.008008346245 | P73: 0.1863955249 | Q73: 0.3193464247 | R73: -0.395906229 | S73: -0.2037409975 | T73: -0.2681605714 | U73: -0.02031354477 | V73: 0.1860784332 | W73: -0.3529983178 | X73: -0.07892567972 | Y73: 0.2320499187 | Z73: -0.08612809637 | AA73: -0.18966557
B74: 04C | C74: NHS Leicester City CCG | D74: 32.04515968 | E74: 0.4852266561 | F74: 397372 | G74: 0.06508259263 | H74: 0.1308320667 | I74: 0.1659880414 | J74: 0.0504640488 | K74: 1.093609392 | L74: 46.73367451 | M74: 2.532771806 | N74: 0.06045875107 | O74: 0.3670713417 | P74: 0.5176490442 | Q74: 0.2762187296 | R74: 0.417610837 | S74: 0.4548384092 | T74: 0.5334007252 | U74: 1.272768434 | V74: -0.5173885281 | W74: 0.7016406655 | X74: 0.7396766054 | Y74: 0.1119065124 | Z74: 0.5861541102 | AA74: 1.80734935
B75: 04D | C75: NHS Lincolnshire West CCG | D75: 21.22625237 | E75: 0.2908665679 | F75: 236952 | G75: 0.05502802255 | H75: 0.1085747324 | I75: 0.1363862723 | J75: 0.08769286607 | K75: 1.01771231 | L75: 2.013082485 | M75: 3.158692017 | N75: 0.00507046477 | O75: 0.0130299574 | P75: 0.005993556092 | Q75: 0.1495942543 | R75: -0.0266730993 | S75: -0.07278763031 | T75: -0.268262025 | U75: 0.5952156937 | V75: 0.1352767854 | W75: -0.3253159425 | X75: -0.1393207751 | Y75: 0.5551987731 | Z75: -0.058126277 | AA75: -0.1617366758
B76: 04E | C76: NHS Mansfield & Ashfield CCG | D76: 27.52098521 | E76: 0.5541957955 | F76: 192087 | G76: 0.05923878243 | H76: 0.1143179913 | I76: 0.1081749416 | J76: 0.07982320511 | K76: 1.023750706 | L76: 11.54355978 | M76: 2.088764978 | N76: 0.003693930462 | O76: 0.01109906187 | P76: 0.303688555 | Q76: 0.3211517257 | R76: -0.1509269255 | S76: 0.1481772183 | T76: -0.06140182025 | U76: -0.05051140403 | V76: -0.002687703206 | W76: -0.2436109469 | X76: 0.04800377036 | Y76: -0.2025501655 | Z76: -0.07413821952 | AA76: -0.1724758142
B77: 04F | C77: NHS Milton Keynes CCG | D77: 18.2770408 | E77: -0.07278366651 | F77: 289963 | G77: 0.067146498 | H77: 0.1379658784 | I77: 0.1081758707 | J77: 0.0499132648 | K77: 1.07097674 | L77: 7.2661555 | M77: 2.342338689 | N77: 0.06970275668 | O77: 0.09118060007 | P77: -0.1334826632 | Q77: -0.08732177373 | R77: 0.1201411118 | S77: 0.5631444041 | T77: 0.7903457424 | U77: -0.05049013675 | V77: -0.5270444248 | W77: 0.3954002839 | X77: -0.03606996355 | Y77: -0.02296295722 | Z77: 0.6936810244 | AA77: 0.2729168569
B78: 04G | C78: NHS Nene CCG | D78: 19.21530575 | E78: -0.161516582 | F78: 673673 | G78: 0.05947989603 | H78: 0.1230864232 | I78: 0.1123185878 | J78: 0.0710745421 | K78: 1.062071682 | L78: 3.203025533 | M78: 2.769630125 | N78: 0.02766342868 | O78: 0.04211018845 | P78: -0.08910956698 | Q78: -0.1451307559 | R78: 1.182827742 | S78: 0.1608299539 | T78: 0.254418806 | U78: 0.04433221332 | V78: -0.1560621402 | W78: 0.2749067439 | X78: -0.1159320682 | Y78: 0.2796554651 | Z78: 0.2046766459 | AA78: 0
B79: 04H | C79: NHS Newark & Sherwood CCG | D79: 19.10059472 | E79: -0.04117698 | F79: 133442 | G79: 0.05205257715 | H79: 0.111861333 | I79: 0.1069753151 | J79: 0.09126811649 | K79: 1.031524227 | L79: 1.881533421 | M79: 3.044949599 | N79: 0.003441130668 | O79: 0.01011387768 | P79: -0.09453456284 | Q79: -0.06673019997 | R79: -0.3133445258 | S79: -0.2289278194 | T79: -0.1498855281 | U79: -0.07796956647 | V79: 0.1979551648 | W79: -0.1384281404 | X79: -0.1419064136 | Y79: 0.4746435635 | Z79: -0.07707880426 | AA79: -0.1779551522
B80: 04J | C80: NHS North Derbyshire CCG | D80: 18.48674407 | E80: 0.1339845354 | F80: 291941 | G80: 0.04677314937 | H80: 0.1041511812 | I80: 0.1029454582 | J80: 0.09757108457 | K80: 1.023039704 | L80: 2.40987262 | M80: 2.80735924 | N80: 0.00406356394 | O80: 0.01017304579 | P80: -0.1235652261 | Q80: 0.04738651599 | R80: 0.125619192 | S80: -0.5059723423 | T80: -0.4275891117 | U80: -0.1702086693 | V80: 0.3084536696 | W80: -0.2532314534 | X80: -0.1315217395 | Y80: 0.3063761625 | Z80: -0.06983861728 | AA80: -0.1776260746
B81: 04K | C81: NHS Nottingham City CCG | D81: 35.14163828 | E81: 0.7556991272 | F81: 371034 | G81: 0.0586523068 | H81: 0.1096826706 | I81: 0.2111908882 | J81: 0.05129179536 | K81: 1.080615932 | L81: 42.7414772 | M81: 2.618255506 | N81: 0.06908490433 | O81: 0.1325300039 | P81: 0.6640899204 | Q81: 0.4524299828 | R81: 0.3446676234 | S81: 0.117401182 | T81: -0.2283564038 | U81: 2.307413105 | V81: -0.5028771493 | W81: 0.5258273249 | X81: 0.6612087046 | Y81: 0.172448195 | Z81: 0.686494123 | AA81: 0.5028914784
B82: 04L | C82: NHS Nottingham North & East CCG | D82: 18.34630198 | E82: -0.009016766451 | F82: 151547 | G82: 0.0565171201 | H82: 0.1120576455 | I82: 0.1015196606 | J82: 0.09024922961 | K82: 1.021186971 | L82: 9.557029078 | M82: 1.872903939 | N82: 0.01353928438 | O82: 0.02475512709 | P82: -0.1302071138 | Q82: -0.04577800653 | R82: -0.2632026441 | S82: 0.005354611039 | T82: -0.1428147624 | U82: -0.2028436466 | V82: 0.1800928697 | W82: -0.2783006151 | X82: 0.008957881171 | Y82: -0.3554283219 | Z82: 0.04038361993 | AA82: -0.09652433394
B83: 04M | C83: NHS Nottingham West CCG | D83: 15.6500837 | E83: -0.2602302342 | F83: 93751 | G83: 0.05393009141 | H83: 0.107092191 | I83: 0.101534917 | J83: 0.09354566885 | K83: 1.04475104 | L83: 14.0143873 | M83: 1.925133121 | N83: 0.01047223604 | O83: 0.0405840185 | P83: -0.2577185934 | Q83: -0.2094421303 | R83: -0.423268935 | S83: -0.1304029291 | T83: -0.3216600743 | U83: -0.2024944442 | V83: 0.2378833585 | W83: 0.04054268558 | X83: 0.09656866688 | Y83: -0.3184383159 | Z83: 0.004707500985 | AA83: -0.008488159995
B84: 04N | C84: NHS Rushcliffe CCG | D84: 8.150393631 | E84: -0.8713325916 | F84: 125400 | G84: 0.05146730463 | H84: 0.1166985646 | I84: 0.1029266348 | J84: 0.0944338118 | K84: 1.008624801 | L84: 2.797258504 | M84: 2.797228183 | N84: 0.006313741107 | O84: 0.04087279312 | P84: -0.6123992902 | Q84: -0.6075717877 | R84: -0.3356168822 | S84: -0.2596407213 | T84: 0.02434146289 | U84: -0.1706395165 | V84: 0.2534535577 | W84: -0.4482782128 | X84: -0.1239075474 | Y84: 0.2992010958 | Z84: -0.04366440043 | AA84: -0.006882070762
B85: 04Q | C85: NHS South West Lincolnshire CCG | D85: 16.15328376 | E85: -0.3922877912 | F85: 132983 | G85: 0.04914161961 | H85: 0.1142025672 | I85: 0.1048705474 | J85: 0.09694472226 | K85: 1.019961693 | L85: 1.020128578 | M85: 3.626323558 | N85: 0.003531338061 | O85: 0.0106922206 | P85: -0.233920897 | Q85: -0.2954768662 | R85: -0.3146157285 | S85: -0.3816839282 | T85: -0.06555915489 | U85: -0.1261454425 | V85: 0.2974727955 | W85: -0.2948797486 | X85: -0.1588375982 | Y85: 0.8863870607 | Z85: -0.07602950561 | AA85: -0.1747385594
B86: 04R | C86: NHS Southern Derbyshire CCG | D86: 22.16569975 | E86: 0.1027543195 | F86: 549273 | G86: 0.05648011098 | H86: 0.1188662104 | I86: 0.1178120898 | J86: 0.07939949715 | K86: 1.040877902 | L86: 4.809267605 | M86: 2.663293119 | N86: 0.01696292974 | O86: 0.07460881406 | P86: 0.05042257216 | Q86: 0.02704021065 | R86: 0.8383013631 | S86: 0.00341251164 | T86: 0.1024155441 | U86: 0.1700725809 | V86: -0.01011580613 | W86: -0.01186439454 | X86: -0.08436087219 | Y86: 0.2043449523 | Z86: 0.08020770025 | AA86: 0.1807488966
B87: 04V | C87: NHS West Leicestershire CCG | D87: 14.29586563 | E87: -0.4644175222 | F87: 385790 | G87: 0.05294071904 | H87: 0.1100002592 | I87: 0.1306436144 | J87: 0.08002540242 | K87: 1.0174094 | L87: 4.407563578 | M87: 2.689079419 | N87: 0.00646213236 | O87: 0.0579829432 | P87: -0.3217632414 | Q87: -0.3424689695 | R87: 0.3855344341 | S87: -0.1823214716 | T87: -0.2169175243 | U87: 0.4637724142 | V87: 0.0008570554229 | W87: -0.3294145995 | X87: -0.0922564919 | Y87: 0.2226074518 | Z87: -0.04193830308 | AA87: 0.0882801304
B88: 04X | C88: NHS Birmingham South and Central CCG | D88: 39.44233995 | E88: 0.6043297926 | F88: 330414 | G88: 0.07101394009 | H88: 0.1446609405 | I88: 0.1487467238 | J88: 0.05059410316 | K88: 1.096678089 | L88: 52.95223286 | M88: 2.197741357 | N88: 0.08237572415 | O88: 0.3113686411 | P88: 0.8674817744 | Q88: 0.3538137353 | R88: 0.2321703445 | S88: 0.7660932258 | T88: 1.031487914 | U88: 0.8781331686 | V88: -0.515108521 | W88: 0.7431629404 | X88: 0.8619043366 | Y88: -0.1253703838 | Z88: 0.8410938609 | AA88: 1.497545428
B89: 04Y | C89: NHS Cannock Chase CCG | D89: 19.87890169 | E89: 0.1336269746 | F89: 132230 | G89: 0.0545791424 | H89: 0.109082659 | I89: 0.1097254783 | J89: 0.0841034561 | K89: 1.007170116 | L89: 10.08489267 | M89: 1.985581727 | N89: 0.003151258951 | O89: 0.01055702369 | P89: -0.05772631405 | Q89: 0.04715356715 | R89: -0.3167011655 | S89: -0.09634317308 | T89: -0.2499675696 | U89: -0.01502128068 | V89: 0.07235017226 | W89: -0.4679614358 | X89: 0.01933320694 | Y89: -0.2756271104 | Z89: -0.08045061218 | AA89: -0.1754904894
B90: 05A | C90: NHS Coventry and Rugby CCG | D90: 25.11376515 | E90: 0.340351617 | F90: 504868 | G90: 0.06004143657 | H90: 0.1199778952 | I90: 0.157175737 | J90: 0.06838421132 | K90: 1.069319202 | L90: 9.979315557 | M90: 2.272797147 | N90: 0.04909070213 | O90: 0.1415071497 | P90: 0.1898445858 | Q90: 0.1818334781 | R90: 0.715321509 | S90: 0.1902974905 | T90: 0.142456111 | U90: 1.071064239 | V90: -0.203226829 | W90: 0.3729722796 | X90: 0.01725805548 | Y90: -0.07221400637 | Z90: 0.4539201766 | AA90: 0.5528200263
B91: 05C | C91: NHS Dudley CCG | D91: 23.49037232 | E91: 0.1645051612 | F91: 317945 | G91: 0.05745962352 | H91: 0.1146581956 | I91: 0.1114815456 | J91: 0.09419553696 | K91: 1.020787393 | L91: 32.30655209 | M91: 1.569334592 | N91: 0.01572567154 | O91: 0.0630937558 | P91: 0.1130699329 | Q91: 0.06727052746 | R91: 0.197637391 | S91: 0.05481364727 | T91: -0.04914837201 | U91: 0.02517321412 | V91: 0.2492763172 | W91: -0.2837072764 | X91: 0.4561069511 | Y91: -0.570423683 | Z91: 0.06581582702 | AA91: 0.1167051398
B92: 05D | C92: NHS East Staffordshire CCG | D92: 18.31218021 | E92: -0.04154636286 | F92: 140252 | G92: 0.05616319197 | H92: 0.1187148846 | I92: 0.1084619114 | J92: 0.08361378091 | K92: 1.035307009 | L92: 2.661299915 | M92: 2.867352942 | N92: 0.008992946931 | O92: 0.06955982295 | P92: -0.1318208249 | Q92: -0.06697085076 | R92: -0.2944841991 | S92: -0.01321820683 | T92: 0.09696510475 | U92: -0.04394297193 | V92: 0.0637655855 | W92: -0.08724364785 | X92: -0.1265798565 | Y92: 0.3488651943 | Z92: -0.01249969249 | AA92: 0.1526677222
B93: 05F | C93: NHS Herefordshire CCG | D93: 19.71516847 | E93: -0.3078624884 | F93: 185942 | G93: 0.04834840972 | H93: 0.1048122533 | I93: 0.09918146519 | J93: 0.1099697755 | K93: 0.9918894182 | L93: 0.8629453781 | M93: 3.961338313 | N93: 0.001851734795 | O93: 0.008030382919 | P93: -0.06546970253 | Q93: -0.2404742689 | R93: -0.1679455316 | S93: -0.4233086011 | T93: -0.4037786754 | U93: -0.2563624306 | V93: 0.5258174246 | W93: -0.6747231844 | X93: -0.1619270837 | Y93: 1.123652842 | Z93: -0.09556676727 | AA93: -0.1895430077
B94: 05G | C94: NHS North Staffordshire CCG | D94: 17.90506452 | E94: 0.1144376902 | F94: 217584 | G94: 0.04733803956 | H94: 0.1026408192 | I94: 0.1256066623 | J94: 0.09537006398 | K94: 1.015179497 | L94: 2.934250132 | M94: 2.672512639 | N94: 0.005036149632 | O94: 0.02157396288 | P94: -0.1510744309 | Q94: 0.03465185919 | R94: -0.0803128654 | S94: -0.4763290286 | T94: -0.4819892023 | U94: 0.3484819829 | V94: 0.2698671685 | W94: -0.3595872157 | X94: -0.1212149337 | Y94: 0.2108744458 | Z94: -0.05852543307 | AA94: -0.1142171412
B95: 05H | C95: NHS Warwickshire North CCG | D95: 21.09951919 | E95: 0.11355571 | F95: 189407 | G95: 0.05568959965 | H95: 0.1123242541 | I95: 0.107831284 | J95: 0.08347632347 | K95: 1.041751906 | L95: 5.206400669 | M95: 2.464384972 | N95: 0.00646995967 | O95: 0.04392333659 | P95: 0 | Q95: 0.03407725415 | R95: -0.158349198 | S95: -0.03807055159 | T95: -0.1332120755 | U95: -0.05837735803 | V95: 0.06135579364 | W95: -3.832694335e-05 | X95: -0.07655509623 | Y95: 0.06347325572 | Z95: -0.04184725528 | AA95: 0.010084258
B96: 05J | C96: NHS Redditch and Bromsgrove CCG | D96: 17.46162735 | E96: -0.1638046919 | F96: 176786 | G96: 0.05639586845 | H96: 0.1160272872 | I96: 0.1071974025 | J96: 0.08150532282 | K96: 1.030290014 | L96: 6.655546498 | M96: 2.331037717 | N96: 0.008276845054 | O96: 0.03525477589 | P96: -0.1720457779 | Q96: -0.1466214462 | R96: -0.1933031162 | S96: -0.001008219742 | T96: 0.0001634525065 | U96: -0.07288622433 | V96: 0.02680181494 | W96: -0.1551281677 | X96: -0.04807167662 | Y96: -0.03096658641 | Z96: -0.02082943919 | AA96: -0.03812802027
B97: 05L | C97: NHS Sandwell and West Birmingham CCG | D97: 37.79578043 | E97: 0.6503954539 | F97: 563250 | G97: 0.06727030626 | H97: 0.1339565024 | I97: 0.1360852197 | J97: 0.05842876165 | K97: 1.0882574 | L97: 41.15347324 | M97: 2.148064632 | N97: 0.1082072193 | O97: 0.2856856052 | P97: 0.7896115061 | Q97: 0.3838252477 | R97: 0.8770107296 | S97: 0.569641396 | T97: 0.6459363838 | U97: 0.5883249223 | V97: -0.3777576671 | W97: 0.6292233414 | X97: 0.6299959845 | Y97: -0.1605526755 | Z97: 1.141567604 | AA97: 1.354703068
B98: 05N | C98: NHS Shropshire CCG | D98: 16.60320369 | E98: -0.2714733901 | F98: 306755 | G98: 0.04670502518 | H98: 0.1042167202 | I98: 0.1045981321 | J98: 0.1092598328 | K98: 0.9972808436 | L98: 0.9738832401 | M98: 3.469869624 | N98: 0.001936484077 | O98: 0.01143972732 | P98: -0.2126429626 | Q98: -0.2167669815 | R98: 0.1666466339 | S98: -0.5095472435 | T98: -0.4252285354 | U98: -0.1323807366 | V98: 0.5133712862 | W98: -0.6017722903 | X98: -0.159746565 | Y98: 0.7755824933 | Z98: -0.09458095775 | AA98: -0.1705811216
B99: 05P | C99: NHS Solihull CCG | D99: 19.68628163 | E99: -0.3374618165 | F99: 247392 | G99: 0.05747962747 | H99: 0.1208001876 | I99: 0.1091547018 | J99: 0.0914459643 | K99: 1.051999984 | L99: 11.803668 | M99: 2.058472373 | N99: 0.01850127406 | O99: 0.07394684796 | P99: -0.06683583955 | Q99: -0.2597580603 | R99: 0.002240529263 | S99: 0.05586337958 | T99: 0.172073366 | U99: -0.02808574209 | V99: 0.2010730479 | W99: 0.1386274971 | X99: 0.0531162798 | Y99: -0.2240041418 | Z99: 0.09810182798 | AA99: 0.1770672135
B100: 05Q | C100: NHS South East Staffs and Seisdon Peninsular CCG | D100: 15.76230708 | E100: -0.2662080122 | F100: 217406 | G100: 0.05181089758 | H100: 0.1114044691 | I100: 0.1049787034 | J100: 0.0901539056 | K100: 1.020995022 | L100: 4.867808928 | M100: 2.294087948 | N100: 0.005665698094 | O100: 0.01577546108 | P100: -0.2524112452 | Q100: -0.2133366182 | R100: -0.08080583723 | S100: -0.2416102545 | T100: -0.1663408147 | U100: -0.1236698659 | V100: 0.1784217267 | W100: -0.2808978626 | X100: -0.08321022397 | Y100: -0.05713533181 | Z100: -0.05120248169 | AA100: -0.146466899
B101: 05R | C101: NHS South Warwickshire CCG | D101: 11.57043309 | E101: -0.4554829951 | F101: 281743 | G101: 0.04861522735 | H101: 0.106501315 | I101: 0.09670160394 | J101: 0.09614080918 | K101: 1.065088212 | L101: 2.073790562 | M101: 3.143977164 | N101: 0.004597068655 | O101: 0.04237527646 | P101: -0.4506563424 | Q101: -0.3366481767 | R101: 0.09737578356 | S101: -0.4093070147 | T101: -0.3429421948 | U101: -0.3131237942 | V101: 0.2833792459 | W101: 0.3157231353 | X101: -0.1381275387 | Y101: 0.5447773479 | Z101: -0.06363285344 | AA101: 0.001474350494
B102: 05T | C102: NHS South Worcestershire CCG | D102: 17.60410386 | E102: -0.3053746419 | F102: 307562 | G102: 0.05001918312 | H102: 0.1076075718 | I102: 0.1109467359 | J102: 0.09818183001 | K102: 1.02989415 | L102: 2.343833651 | M102: 3.084648483 | N102: 0.002909759439 | O102: 0.02259949086 | P102: -0.1653076771 | Q102: -0.2388534513 | R102: 0.1688816242 | S102: -0.3356326937 | T102: -0.3030971333 | U102: 0.01293199591 | V102: 0.3191607613 | W102: -0.1604845568 | X102: -0.1328197563 | Y102: 0.5027593003 | Z102: -0.08325975125 | AA102: -0.1085134216
B103: 05V | C103: NHS Stafford and Surrounds CCG | D103: 13.31618423 | E103: -0.2525085408 | F103: 148000 | G103: 0.04865540541 | H103: 0.1054459459 | I103: 0.1015878378 | J103: 0.09776351351 | K103: 1.014294894 | L103: 1.988606448 | M103: 2.842953063 | N103: 0.008054974938 | O103: 0.02432309654 | P103: -0.3680950336 | Q103: -0.2044114917 | R103: -0.2730260771 | S103: -0.4071986216 | T103: -0.3809543876 | U103: -0.2012831421 | V103: 0.3118271771 | W103: -0.3715566969 | X103: -0.1398018594 | Y103: 0.3315845934 | Z103: -0.02341024776 | AA103: -0.09892717542
B104: 05W | C104: NHS Stoke on Trent CCG | D104: 33.41530213 | E104: 0.8729964059 | F104: 288930 | G104: 0.06293565916 | H104: 0.1236424047 | I104: 0.1175855744 | J104: 0.07489011179 | K104: 1.05928675 | L104: 18.34067947 | M104: 2.168612714 | N104: 0.01473921412 | O104: 0.07416640134 | P104: 0.5824467987 | Q104: 0.5288484826 | R104: 0.1172802135 | S104: 0.3421754113 | T104: 0.2744440998 | U104: 0.1648878856 | V104: -0.08917067886 | W104: 0.2372240821 | X104: 0.1816033077 | Y104: -0.1460000129 | Z104: 0.05434128594 | AA104: 0.1782883122
B105: 05X | C105: NHS Telford & Wrekin CCG | D105: 25.21130138 | E105: 0.4177214474 | F105: 184072 | G105: 0.05938980399 | H105: 0.1249293755 | I105: 0.1257008127 | J105: 0.06872310835 | K105: 1.041754739 | L105: 5.895667162 | M105: 2.316832229 | N105: 0.01055594663 | O105: 0.0401991826 | P105: 0.1944573387 | Q105: 0.2322394759 | R105: -0.1731245053 | S105: 0.1561022622 | T105: 0.3207981008 | U105: 0.3506369862 | V105: -0.1972855622 | W105: 0 | X105: -0.0630073453 | Y105: -0.04102726613 | Z105: 0.005681228347 | AA105: -0.0106285171
B106: 05Y | C106: NHS Walsall CCG | D106: 32.30497307 | E106: 0.4885665802 | F106: 282733 | G106: 0.06549642242 | H106: 0.1333731825 | I106: 0.1200744165 | J106: 0.07997651495 | K106: 1.026770401 | L106: 26.55911362 | M106: 1.948329732 | N106: 0.0257683346 | O106: 0.1577354575 | P106: 0.5299363245 | Q106: 0.2783946709 | R106: 0.1001175932 | S106: 0.4765546407 | T106: 0.6249264153 | U106: 0.2218548122 | V106: 0 | W106: -0.2027517326 | X106: 0.3431392302 | Y106: -0.3020098992 | Z106: 0.1826327802 | AA106: 0.6430776505
B107: 06A | C107: NHS Wolverhampton CCG | D107: 33.32856404 | E107: 0.5221349809 | F107: 275911 | G107: 0.06306743841 | H107: 0.1265806728 | I107: 0.1193138367 | J107: 0.0785651895 | K107: 1.05976818 | L107: 36.63707256 | M107: 1.771889866 | N107: 0.07047316325 | O107: 0.1814394501 | P107: 0.5783447194 | Q107: 0.3002642901 | R107: 0.08122403243 | S107: 0.3490906913 | T107: 0.3802743846 | U107: 0.2044459567 | V107: -0.02474220865 | W107: 0.2437382665 | X107: 0.5412247007 | Y107: -0.4269690007 | Z107: 0.7026424472 | AA107: 0.7749130872
B108: 06D | C108: NHS Wyre Forest CCG | D108: 21.35913587 | E108: -0.1842856635 | F108: 115370 | G108: 0.05139117622 | H108: 0.105781399 | I108: 0.0984571379 | J108: 0.1029990465 | K108: 1.036479436 | L108: 5.092100267 | M108: 2.355987905 | N108: 0.002280182468 | O108: 0.01529741241 | P108: 0.01227797749 | Q108: -0.159964681 | R108: -0.3633950139 | S108: -0.2636356541 | T108: -0.3688720692 | U108: -0.2729415051 | V108: 0.4036122796 | W108: -0.07137965077 | X108: -0.07880170678 | Y108: -0.01329624253 | Z108: -0.09058303423 | AA108: -0.1491256812
B109: 06F | C109: NHS Bedfordshire CCG | D109: 15.24214298 | E109: -0.5180254957 | F109: 472868 | G109: 0.06108681493 | H109: 0.1225648595 | I109: 0.1073788034 | J109: 0.07437382102 | K109: 1.033579524 | L109: 3.693336795 | M109: 2.795523009 | N109: 0.02633008151 | O109: 0.06457371395 | P109: -0.2770112173 | Q109: -0.3773942547 | R109: 0.6266973602 | S109: 0.2451550165 | T109: 0.2356331696 | U109: -0.06873415283 | V109: -0.09822186825 | W109: -0.1106180958 | X109: -0.1062948452 | Y109: 0.2979934496 | Z109: 0.1891670592 | AA109: 0.1249362818
B110: 06H | C110: NHS Cambridgeshire and Peterborough CCG | D110: 17.17748271 | E110: -0.3618062487 | F110: 950334 | G110: 0.05745453704 | H110: 0.1149953595 | I110: 0.126463959 | J110: 0.07157062675 | K110: 1.087658067 | L110: 2.338490329 | M110: 2.965220225 | N110: 0.01298595225 | O110: 0.06445039238 | P110: -0.1854837493 | Q110: -0.2756183173 | R110: 1.949041668 | S110: 0.05454672775 | T110: -0.03700443071 | U110: 0.3681045855 | V110: -0.147365188 | W110: 0.6211138228 | X110: -0.132924781 | Y110: 0.418177238 | Z110: 0.03394722228 | AA110: 0.1242503993
B111: 06K | C111: NHS East and North Hertfordshire CCG | D111: 13.27692781 | E111: -0.6766039833 | F111: 593218 | G111: 0.05875411737 | H111: 0.1205256752 | I111: 0.116697403 | J111: 0.07875519623 | K111: 1.029730887 | L111: 5.673140916 | M111: 2.327496275 | N111: 0.02842562916 | O111: 0.04614248251 | P111: -0.3699515761 | Q111: -0.4807072237 | R111: 0.960007245 | S111: 0.1227438183 | T111: 0.1621860041 | U111: 0.1445585954 | V111: -0.02141116526 | W111: -0.1626936557 | X111: -0.06738116904 | Y111: -0.03347472334 | Z111: 0.2135426148 | AA111: 0.02242657002
B112: 06L | C112: NHS Ipswich and East Suffolk CCG | D112: 17.95932315 | E112: -0.3514844885 | F112: 404021 | G112: 0.05212600335 | H112: 0.1141599075 | I112: 0.1055019417 | J112: 0.09784639907 | K112: 1.03744538 | L112: 1.810545643 | M112: 3.375587537 | N112: 0.01139322805 | O112: 0.02430049964 | P112: -0.1485083928 | Q112: -0.2688937501 | R112: 0.4360252734 | S112: -0.2250746884 | T112: -0.06709566887 | U112: -0.1116935028 | V112: 0.3132802593 | W112: -0.0583095414 | X112: -0.1433017008 | Y112: 0.7088095747 | Z112: 0.01542054393 | AA112: -0.09905285348
B113: 06M | C113: NHS Great Yarmouth & Waveney CCG | D113: 29.29421074 | E113: 0.3828027374 | F113: 238486 | G113: 0.0497094169 | H113: 0.1057546355 | I113: 0.1075492901 | J113: 0.1083292101 | K113: 1.052541237 | L113: 3.950367633 | M113: 2.919166624 | N113: 0.00377796065 | O113: 0.01014926111 | P113: 0.3875492029 | Q113: 0.2094901379 | R113: -0.02242467917 | S113: -0.3518880604 | T113: -0.3698360341 | U113: -0.06483189474 | V113: 0.4970563674 | W113: 0.1459511454 | X113: -0.1012428228 | Y113: 0.3855609328 | Z113: -0.07316077455 | AA113: -0.1777583588
B114: 06N | C114: NHS Herts Valleys CCG | D114: 11.53842125 | E114: -0.7735751924 | F114: 639628 | G114: 0.06206889004 | H114: 0.1275600818 | I114: 0.103386656 | J114: 0.07452144059 | K114: 1.062149049 | L114: 10.05421587 | M114: 2.307064546 | N114: 0.02904824874 | O114: 0.0824431036 | P114: -0.4521702695 | Q114: -0.5438834066 | R114: 1.088539956 | S114: 0.2966906267 | T114: 0.4155506553 | U114: -0.1601101241 | V114: -0.09563392225 | W114: 0.2759535942 | X114: 0.01873024482 | Y114: -0.04794498202 | Z114: 0.2207849689 | AA114: 0.2243211758
B115: 06P | C115: NHS Luton CCG | D115: 27.78073434 | E115: 0.3021971353 | F115: 231214 | G115: 0.07516413366 | H115: 0.145540495 | I115: 0.1247069814 | J115: 0.05273902099 | K115: 1.070727322 | L115: 49.52564165 | M115: 2.03793555 | N115: 0.09612904956 | O115: 0.3053972606 | P115: 0.3159727963 | Q115: 0.1569760535 | R115: -0.042564517 | S115: 0.9838797826 | T115: 1.06316763 | U115: 0.3278892535 | V115: -0.4775055678 | W115: 0.3920254291 | X115: 0.7945536025 | Y115: -0.2385488303 | Z115: 1.001073496 | AA115: 1.464334165
B116: 06Q | C116: NHS Mid Essex CCG | D116: 13.94585509 | E116: -0.6945867377 | F116: 388191 | G116: 0.05480807128 | H116: 0.1172051902 | I116: 0.108137489 | J116: 0.08531882501 | K116: 1.021414719 | L116: 2.946270984 | M116: 2.741737388 | N116: 0.008581619155 | O116: 0.02050851164 | P116: -0.3383161895 | Q116: -0.4924228844 | R116: 0.3921840148 | S116: -0.08432984602 | T116: 0.04258906144 | U116: -0.05136865257 | V116: 0.0936570305 | W116: -0.2752189818 | X116: -0.12097866 | Y116: 0.2599011349 | Z116: -0.01728428571 | AA116: -0.1201429037
B117: 06T | C117: NHS North East Essex CCG | D117: 22.24926834 | E117: 0.1420336456 | F117: 347324 | G117: 0.05365019406 | H117: 0.1097937373 | I117: 0.1254621045 | J117: 0.0998376156 | K117: 1.040628744 | L117: 4.876418674 | M117: 2.568436968 | N117: 0.01068940816 | O117: 0.02717626554 | P117: 0.05437475761 | Q117: 0.05263046478 | R117: 0.2790026681 | S117: -0.1450908902 | T117: -0.2243560141 | U117: 0.3451732121 | V117: 0.3481886462 | W117: -0.01523572631 | X117: -0.0830409967 | Y117: 0.1371654677 | Z117: 0.007233662124 | AA117: -0.0830585921
B118: 06V | C118: NHS North Norfolk CCG | D118: 17.72669493 | E118: -0.4083298743 | F118: 172653 | G118: 0.04181798173 | H118: 0.09541681871 | I118: 0.09253242052 | J118: 0.1338001657 | K118: 1.008391262 | L118: 1.152714343 | M118: 4.017146662 | N118: 0.001737742414 | O118: 0.005752830263 | P118: -0.1595100129 | Q118: -0.3059281907 | R118: -0.2047494789 | S118: -0.7660009119 | T118: -0.7421826299 | U118: -0.4085519304 | V118: 0.9435924222 | W118: -0.4514382102 | X118: -0.1562315831 | Y118: 1.163177703 | Z118: -0.09689273456 | AA118: -0.2022101628
B119: 06W | C119: NHS Norwich CCG | D119: 22.36361511 | E119: 0.1146236331 | F119: 233071 | G119: 0.05362743542 | H119: 0.1008920029 | I119: 0.1513616023 | J119: 0.07944360302 | K119: 1.070904163 | L119: 22.87661972 | M119: 2.094676902 | N119: 0.01269656046 | O119: 0.03814708932 | P119: 0.05978252647 | Q119: 0.03477299991 | R119: -0.03742154686 | S119: -0.146285178 | T119: -0.5449779178 | U119: 0.9379849313 | V119: -0.009342577949 | W119: 0.3944182571 | X119: 0.270758648 | Y119: -0.1983631939 | Z119: 0.03058099692 | AA119: -0.02204172582
B120: 06Y | C120: NHS South Norfolk CCG | D120: 16.11922414 | E120: -0.4472716952 | F120: 225304 | G120: 0.05249795831 | H120: 0.1094876256 | I120: 0.104494372 | J120: 0.1045121258 | K120: 1.014453141 | L120: 1.343810103 | M120: 3.87507879 | N120: 0.003677148542 | O120: 0.009268689687 | P120: -0.2355316689 | Q120: -0.3312985622 | R120: -0.05893228949 | S120: -0.2055558903 | T120: -0.2353815172 | U120: -0.1347556919 | V120: 0.4301383539 | W120: -0.3694154692 | X120: -0.1524755355 | Y120: 1.062561702 | Z120: -0.07433342798 | AA120: -0.1826558678
B121: 07G | C121: NHS Thurrock CCG | D121: 21.76101376 | E121: -0.323093061 | F121: 173932 | G121: 0.07159694593 | H121: 0.1385196514 | I121: 0.1156026493 | J121: 0.05921854518 | K121: 1.0224233 | L121: 10.11066497 | M121: 2.215759616 | N121: 0.07789006233 | O121: 0.03748463245 | P121: 0.03128387337 | Q121: -0.250396899 | R121: -0.2012072825 | S121: 0.7966871809 | T121: 0.810291489 | U121: 0.1195008583 | V121: -0.3639118253 | W121: -0.2615719582 | X121: 0.01983976972 | Y121: -0.1126094045 | Z121: 0.7889163316 | AA121: -0.02572613846
B122: 07H | C122: NHS West Essex CCG | D122: 16.44293785 | E122: -0.518060127 | F122: 308763 | G122: 0.06133183056 | H122: 0.1227187195 | I122: 0.1056344186 | J122: 0.08076097201 | K122: 1.047755287 | L122: 2.970132063 | M122: 2.792310002 | N122: 0.0217351128 | O122: 0.03769400944 | P122: -0.220222369 | Q122: -0.3774168168 | R122: 0.1722077993 | S122: 0.258012516 | T122: 0.2411748858 | U122: -0.1086612486 | V122: 0.01375246253 | W122: 0.08119288451 | X122: -0.120509663 | Y122: 0.2957179176 | Z122: 0.1357180645 | AA122: -0.02456163818
B123: 07J | C123: NHS West Norfolk CCG | D123: 24.20164497 | E123: 0.3685040541 | F123: 174143 | G123: 0.04922391368 | H123: 0.102209104 | I123: 0.09951017267 | J123: 0.1176504367 | K123: 1.032135092 | L123: 0.9019000724 | M123: 4.024239527 | N123: 0.003796271462 | O123: 0.01229941376 | P123: 0.1467079469 | Q123: 0.2001746283 | R123: -0.200622917 | S123: -0.3773654445 | T123: -0.497538682 | U123: -0.2488386689 | V123: 0.6604685232 | W123: -0.1301625812 | X123: -0.1611614169 | Y123: 1.168201046 | Z123: -0.07294778191 | AA123: -0.1657997694
B124: 07K | C124: NHS West Suffolk CCG | D124: 16.29449412 | E124: -0.4166187029 | F124: 248798 | G124: 0.05069172582 | H124: 0.1086664684 | I124: 0.1001254029 | J124: 0.09880706437 | K124: 0.9882249288 | L124: 1.84816171 | M124: 3.575130815 | N124: 0.008496915847 | O124: 0.01450304311 | P124: -0.2272426757 | Q124: -0.3113283147 | R124: 0.006134452804 | S124: -0.3003401815 | T124: -0.2649578876 | U124: -0.2347567081 | V124: 0.3301218611 | W124: -0.7243070616 | X124: -0.1425623451 | Y124: 0.8501310868 | Z124: -0.01826956046 | AA124: -0.1535437565
B125: 07L | C125: NHS Barking & Dagenham CCG | D125: 34.28634744 | E125: 0.3297768197 | F125: 221613 | G125: 0.08538759008 | H125: 0.1626574253 | I125: 0.1226101357 | J125: 0.03968629999 | K125: 1.065121597 | L125: 55.96474409 | M125: 1.877827346 | N125: 0.1958223539 | O125: 0.1827567009 | P125: 0.6236408957 | Q125: 0.1749440587 | R125: -0.06915453116 | S125: 1.520368342 | T125: 1.679683756 | U125: 0.2798947043 | V125: -0.7063352452 | W125: 0.3161748682 | X125: 0.9211161976 | Y125: -0.3519414426 | Z125: 2.160712925 | AA125: 0.7822392932
B126: 07M | C126: NHS Barnet CCG | D126: 17.91342754 | E126: -0.7158463716 | F126: 415606 | G126: 0.06326665159 | H126: 0.1253976122 | I126: 0.1136292546 | J126: 0.06396202172 | K126: 1.047765318 | L126: 43.77487399 | M126: 1.951241844 | N126: 0.079957248 | O126: 0.2008940339 | P126: -0.150678921 | Q126: -0.5062734132 | R126: 0.4681099848 | S126: 0.3595446499 | T126: 0.3376630099 | U126: 0.07433197104 | V126: -0.2807530566 | W126: 0.08132861303 | X126: 0.6815204453 | Y126: -0.2999474693 | Z126: 0.8129619786 | AA126: 0.8831144184
B127: 07N | C127: NHS Bexley CCG | D127: 16.59648867 | E127: -0.5950852208 | F127: 238439 | G127: 0.06373537886 | H127: 0.1274204304 | I127: 0.1157990094 | J127: 0.07883777402 | K127: 1.011639858 | L127: 39.98414782 | M127: 1.718142638 | N127: 0.08402693795 | O127: 0.06631946328 | P127: -0.212960534 | Q127: -0.4275982207 | R127: -0.02255484589 | S127: 0.384141695 | T127: 0.4105207026 | U127: 0.1239953299 | V127: -0.01996347873 | W127: -0.407481751 | X127: 0.6070125236 | Y127: -0.4650341243 | Z127: 0.8603008943 | AA127: 0.1346456852
B128: 07P | C128: NHS Brent CCG | D128: 26.87567432 | E128: -0.2214071095 | F128: 371039 | G128: 0.06123615038 | H128: 0.1196963122 | I128: 0.1170442999 | J128: 0.04688725444 | K128: 1.166059048 | L128: 74.94171416 | M128: 2.060624096 | N128: 0.1863342921 | O128: 0.3488631864 | P128: 0.2731700518 | Q128: -0.1841490887 | R128: 0.344681471 | S128: 0.2529915796 | T128: 0.13231408 | U128: 0.1524986944 | V128: -0.5800939747 | W128: 1.681950473 | X128: 1.294114546 | Y128: -0.2224802383 | Z128: 2.050347132 | AA128: 1.70608033
B129: 07Q | C129: NHS Bromley CCG | D129: 15.2482254 | E129: -0.7658205362 | F129: 345946 | G129: 0.0604660843 | H129: 0.1225884965 | I129: 0.1011342811 | J129: 0.08185670596 | K129: 1.038251499 | L129: 21.63484944 | M129: 2.040731176 | N129: 0.06080056929 | O129: 0.05266915621 | P129: -0.2767235632 | Q129: -0.5388312928 | R129: 0.2751862907 | S129: 0.2125814069 | T129: 0.2364845226 | U129: -0.2116645699 | V129: 0.03296197806 | W129: -0.04740201588 | X129: 0.2463512603 | Y129: -0.2365688987 | Z129: 0.5901301634 | AA129: 0.0587262303
B130: 07R | C130: NHS Camden CCG | D130: 25.66223345 | E130: 0.01363678853 | F130: 276675 | G130: 0.04485768501 | H130: 0.08465889582 | I130: 0.1736007952 | J130: 0.03836631427 | K130: 1.048505848 | L130: 110.5978161 | M130: 2.334444175 | N130: 0.08723085885 | O130: 0.1605537011 | P130: 0.2157831402 | Q130: -0.03101934625 | R130: 0.08333993399 | S130: -0.6064887111 | T130: -1.129660571 | U130: 1.4470162 | V130: -0.7294761602 | W130: 0.09134865845 | X130: 1.994946508 | Y130: -0.02855404782 | Z130: 0.8975691244 | AA130: 0.6587519877
B131: 07T | C131: NHS City and Hackney CCG | D131: 35.12288356 | E131: 0.4713585824 | F131: 311356 | G131: 0.0680186025 | H131: 0.1194645358 | I131: 0.1122123871 | J131: 0.02963167564 | K131: 1.052724357 | L131: 126.4811282 | M131: 1.794460449 | N131: 0.2238680895 | O131: 0.1078139789 | P131: 0.6632029589 | Q131: 0.2671837596 | R131: 0.1793891248 | S131: 0.6089091696 | T131: 0.1239659749 | U131: 0.04190139334 | V131: -0.8826047332 | W131: 0.1484289184 | X131: 2.30713803 | Y131: -0.4109839523 | Z131: 2.486942867 | AA131: 0.3654273804
B132: 07V | C132: NHS Croydon CCG | D132: 24.16933698 | E132: -0.1152600063 | F132: 406355 | G132: 0.06573316435 | H132: 0.1260105081 | I132: 0.1146706697 | J132: 0.05812651499 | K132: 1.072747563 | L132: 43.80904057 | M132: 2.006436979 | N132: 0.2039109441 | O132: 0.1644620961 | P132: 0.1451800147 | Q132: -0.1149948639 | R132: 0.4424892972 | S132: 0.4889779673 | T132: 0.3597382414 | U132: 0.0981688456 | V132: -0.3830564094 | W132: 0.4193611343 | X132: 0.6821920003 | Y132: -0.260856902 | Z132: 2.254799967 | AA132: 0.6804894631
B133: 07W | C133: NHS Ealing CCG | D133: 23.92292324 | E133: -0.06229286462 | F133: 431203 | G133: 0.06198704554 | H133: 0.1228052681 | I133: 0.1122742653 | J133: 0.04763185785 | K133: 1.18834811 | L133: 61.78460153 | M133: 1.82074507 | N133: 0.1076237688 | O133: 0.3276760495 | P133: 0.13352644 | Q133: -0.08048707687 | R133: 0.5113059488 | S133: 0.2923957351 | T133: 0.2442921828 | U133: 0.04331771774 | V133: -0.567040194 | W133: 1.983541774 | X133: 1.035507336 | Y133: -0.3923685298 | Z133: 1.134780867 | AA133: 1.58824299
B134: 07X | C134: NHS Enfield CCG | D134: 27.16137412 | E134: -0.3135396705 | F134: 334232 | G134: 0.06944876613 | H134: 0.1397532253 | I134: 0.1183668829 | J134: 0.06008999737 | K134: 1.037095186 | L134: 40.63286378 | M134: 2.036281521 | N134: 0.1743098929 | O134: 0.1105559249 | P134: 0.2866815708 | Q134: -0.2441729203 | R134: 0.2427443132 | S134: 0.6839587803 | T134: 0.8547222493 | U134: 0.1827711995 | V134: -0.3486342351 | W134: -0.06304798283 | X134: 0.619763241 | Y134: -0.2397202548 | Z134: 1.910478487 | AA134: 0.3806773702
B135: 07Y | C135: NHS Hounslow CCG | D135: 22.0085849 | E135: -0.2225352395 | F135: 308705 | G135: 0.0671126156 | H135: 0.122874589 | I135: 0.1031405387 | J135: 0.04641324242 | K135: 1.148674126 | L135: 48.00647302 | M135: 2.129888617 | N135: 0.06515216611 | O135: 0.3440153884 | P135: 0.04299218438 | Q135: -0.1848840589 | R135: 0.172047168 | S135: 0.5613663832 | T135: 0.246788979 | U135: -0.1657434849 | V135: -0.5884039676 | W135: 1.446716657 | X135: 0.7646938628 | Y135: -0.1734253818 | Z135: 0.6407482394 | AA135: 1.679118139
B136: 08A | C136: NHS Greenwich CCG | D136: 25.41737701 | E136: 0.1086188389 | F136: 291194 | G136: 0.07505992569 | H136: 0.129635226 | I136: 0.1148650041 | J136: 0.04367535045 | K136: 1.028136337 | L136: 58.04413672 | M136: 2.429452143 | N136: 0.1915392705 | O136: 0.118214588 | P136: 0.2042032146 | Q136: 0.03086091115 | R136: 0.123550372 | S136: 0.9784113399 | T136: 0.4902930207 | U136: 0.1026169504 | V136: -0.6364024603 | W136: -0.1842693674 | X136: 0.9619873174 | Y136: 0.03873295743 | Z136: 2.110891802 | AA136: 0.4232728613
B137: 08C | C137: NHS Hammersmith and Fulham CCG | D137: 24.74852261 | E137: 0.2047182675 | F137: 212880 | G137: 0.05271514468 | H137: 0.09740229237 | I137: 0.1052236002 | J137: 0.04129086809 | K137: 1.211534565 | L137: 109.3696659 | M137: 2.071531065 | N137: 0.1176532435 | O137: 0.1077449659 | P137: 0.1725712746 | Q137: 0.093469134 | R137: -0.09334061528 | S137: -0.1941587661 | T137: -0.6706700102 | U137: -0.118064443 | V137: -0.6782052637 | W137: 2.297275625 | X137: 1.970806827 | Y137: -0.2147556511 | Z137: 1.251444412 | AA137: 0.3650435483
B138: 08D | C138: NHS Haringey CCG | D138: 31.0887169 | E138: 0.07323450079 | F138: 314583 | G138: 0.05981887133 | H138: 0.1123519071 | I138: 0.1117860787 | J138: 0.0412959378 | K138: 1.048518192 | L138: 92.21961235 | M138: 1.663228605 | N138: 0.1896618106 | O138: 0.1019181212 | P138: 0.4724162692 | Q138: 0.007808219177 | R138: 0.1883263163 | S138: 0.1786181033 | T138: -0.1322160718 | U138: 0.03214365154 | V138: -0.6781163858 | W138: 0.09151568013 | X138: 1.6337171 | Y138: -0.5039256078 | Z138: 2.089053059 | AA138: 0.3326361545
B139: 08E | C139: NHS Harrow CCG | D139: 14.57601312 | E139: -0.7640677199 | F139: 263155 | G139: 0.06286789155 | H139: 0.1211681328 | I139: 0.1144306587 | J139: 0.06813474948 | K139: 1.11087371 | L139: 48.9665954 | M139: 1.616685197 | N139: 0.08347388299 | O139: 0.4247428275 | P139: -0.3085143064 | Q139: -0.5376893432 | R139: 0.04589623109 | S139: 0.338619222 | T139: 0.1853259879 | U139: 0.09267525134 | V139: -0.2076001908 | W139: 0.9352426166 | X139: 0.7835653718 | Y139: -0.536888807 | Z139: 0.8538677207 | AA139: 2.128103143
B140: 08F | C140: NHS Havering CCG | D140: 18.75493161 | E140: -0.3118313157 | F140: 274858 | G140: 0.06286882681 | H140: 0.1183665747 | I140: 0.1119923742 | J140: 0.08539682309 | K140: 1.022333573 | L140: 22.1677858 | M140: 1.758443619 | N140: 0.05642464552 | O140: 0.05795906192 | P140: -0.1108819094 | Q140: -0.243059937 | R140: 0.07830774403 | S140: 0.3386683012 | T140: 0.08441970889 | U140: 0.03686553494 | V140: 0.09502442925 | W140: -0.2627860543 | X140: 0.2568262931 | Y140: -0.4364919675 | Z140: 0.5392291146 | AA140: 0.08814730894
B141: 08G | C141: NHS Hillingdon CCG | D141: 17.89071086 | E141: -0.2807636903 | F141: 307964 | G141: 0.06655648063 | H141: 0.1259303035 | I141: 0.1259465392 | J141: 0.06198127054 | K141: 1.068894733 | L141: 25.73365129 | M141: 2.035939866 | N141: 0.0724079925 | O141: 0.2553126563 | P141: -0.1517532544 | Q141: -0.2228195584 | R141: 0.169994965 | S141: 0.5321825103 | T141: 0.3568494422 | U141: 0.3562614017 | V141: -0.3154779736 | W141: 0.3672288348 | X141: 0.326914507 | Y141: -0.2399622235 | Z141: 0.7251485152 | AA141: 1.185776632
B142: 08H | C142: NHS Islington CCG | D142: 32.28569669 | E142: 0.495223924 | F142: 246041 | G142: 0.05258066745 | H142: 0.08789591979 | I142: 0.1125991197 | J142: 0.036945062 | K142: 1.031338129 | L142: 153.2299203 | M142: 1.723933807 | N142: 0.1283493728 | O142: 0.09541024177 | P142: 0.5290246919 | Q142: 0.2827318919 | R142: -0.001501071521 | S142: -0.2012156258 | T142: -1.01306972 | U142: 0.0507532866 | V142: -0.7543923978 | W142: -0.1409462065 | X142: 2.832893998 | Y142: -0.4609326742 | Z142: 1.37586253 | AA142: 0.2964410231
B143: 08J | C143: NHS Kingston CCG | D143: 10.92439866 | E143: -1.101461792 | F143: 205724 | G143: 0.06114989014 | H143: 0.1179833175 | I143: 0.1305827225 | J143: 0.05666329646 | K143: 1.066266292 | L143: 46.58776972 | M143: 1.817393356 | N143: 0.02520078054 | O143: 0.1611929353 | P143: -0.4812090639 | Q143: -0.7574996331 | R143: -0.1131591906 | S143: 0.2484649668 | T143: 0.07061558093 | U143: 0.4623786635 | V143: -0.4087083655 | W143: 0.3316636391 | X143: 0.7368088006 | Y143: -0.3947422976 | Z143: 0.176030952 | AA143: 0.6623072419
B144: 08K | C144: NHS Lambeth CCG | D144: 28.80609799 | E144: 0.1756986979 | F144: 401910 | G144: 0.05302430892 | H144: 0.09552636162 | I144: 0.1109875345 | J144: 0.03277848274 | K144: 1.113366272 | L144: 120.959756 | M144: 1.820979434 | N144: 0.2578886966 | O144: 0.07714038211 | P144: 0.3644650265 | Q144: 0.074563052 | R144: 0.4301788491 | S144: -0.1779349889 | T144: -0.7382371225 | U144: 0.01386583164 | V144: -0.827437473 | W144: 0.9689692515 | X144: 2.198613714 | Y144: -0.3922025476 | Z144: 2.882672928 | AA144: 0.1948288192
B145: 08L | C145: NHS Lewisham CCG | D145: 28.56639603 | E145: 0.2030226297 | F145: 324136 | G145: 0.06840030111 | H145: 0.1180307032 | I145: 0.1128137572 | J145: 0.04287706395 | K145: 1.046956958 | L145: 84.59855344 | M145: 1.699624702 | N145: 0.2664130928 | O145: 0.09411822061 | P145: 0.3531288703 | Q145: 0.09236443577 | R145: 0.2147833943 | S145: 0.6289392777 | T145: 0.07232231525 | U145: 0.0556661094 | V145: -0.6503973694 | W145: 0.07039077081 | X145: 1.483922777 | Y145: -0.4781489873 | Z145: 2.981829296 | AA145: 0.2892551377
B146: 08M | C146: NHS Newham CCG | D146: 32.92978884 | E146: 0.2559728304 | F146: 390543 | G146: 0.07242224288 | H146: 0.1314221481 | I146: 0.1282445211 | J146: 0.0272313164 | K146: 1.10313145 | L146: 91.8784991 | M146: 1.821871785 | N146: 0.1942661526 | O146: 0.4341967939 | P146: 0.5594855577 | Q146: 0.1268611858 | R146: 0.3986978897 | S146: 0.839995662 | T146: 0.5546542285 | U146: 0.4088597419 | V146: -0.924685877 | W146: 0.8304827843 | X146: 1.627012411 | Y146: -0.3915705626 | Z146: 2.142611084 | AA146: 2.180683644
B147: 08N | C147: NHS Redbridge CCG | D147: 20.6090033 | E147: -0.3524188189 | F147: 310972 | G147: 0.07284900248 | H147: 0.1361858945 | I147: 0.1147145081 | J147: 0.05358681811 | K147: 1.055892042 | L147: 52.61223795 | M147: 1.960659615 | N147: 0.08964357677 | O147: 0.4101745658 | P147: -0.02319782776 | Q147: -0.269502461 | R147: 0.178325635 | S147: 0.8623904017 | T147: 0.726234437 | U147: 0.09917225781 | V147: -0.4626426791 | W147: 0.1912905819 | X147: 0.8552216291 | Y147: -0.2932775694 | Z147: 0.9256340266 | AA147: 2.047078263
B148: 08P | C148: NHS Richmond CCG | D148: 10.68870618 | E148: -1.334204755 | F148: 215060 | G148: 0.06236399144 | H148: 0.1267367246 | I148: 0.09643355343 | J148: 0.05951827397 | K148: 1.101117292 | L148: 33.91610584 | M148: 1.678949135 | N148: 0.01833167949 | O148: 0.0749013825 | P148: -0.4923556009 | Q148: -0.9091303299 | R148: -0.08730309514 | S148: 0.3121764389 | T148: 0.3858950478 | U148: -0.319259183 | V148: -0.3586572242 | W148: 0.8032294006 | X148: 0.4877432392 | Y148: -0.4927919378 | Z148: 0.09612909226 | AA148: 0.1823760861
B149: 08Q | C149: NHS Southwark CCG | D149: 30.2241372 | E149: 0.2937680296 | F149: 323025 | G149: 0.05998916493 | H149: 0.1063416144 | I149: 0.1175110286 | J149: 0.03396641127 | K149: 1.08426557 | L149: 107.0561896 | M149: 2.172322199 | N149: 0.2759947326 | O149: 0.09541298599 | P149: 0.431527949 | Q149: 0.1514845399 | R149: 0.2117064746 | S149: 0.1875544709 | T149: -0.3486942774 | U149: 0.1631816121 | V149: -0.8066116773 | W149: 0.5752102543 | X149: 1.925334718 | Y149: -0.1433728633 | Z149: 3.093283594 | AA149: 0.2964562858
B150: 08R | C150: NHS Merton CCG | D150: 15.03224674 | E150: -0.6183201359 | F150: 224052 | G150: 0.06325317337 | H150: 0.121288808 | I150: 0.1016996054 | J150: 0.05466588113 | K150: 1.142533583 | L150: 54.39299949 | M150: 1.817871826 | N150: 0.1014005509 | O150: 0.1717617646 | P150: -0.28693778 | Q150: -0.4427356337 | R150: -0.06239970931 | S150: 0.3588373637 | T150: 0.1896724535 | U150: -0.1987249013 | V150: -0.4437254246 | W150: 1.363629519 | X150: 0.8902230604 | Y150: -0.3944034328 | Z150: 1.062391965 | AA150: 0.7210883193
B151: 08T | C151: NHS Sutton CCG | D151: 15.34680609 | E151: -0.4267277683 | F151: 192658 | G151: 0.06495447892 | H151: 0.1286113216 | I151: 0.1052746317 | J151: 0.06941834754 | K151: 1.045271896 | L151: 45.6428933 | M151: 1.619093323 | N151: 0.05155692105 | O151: 0.1177842793 | P151: -0.2720614148 | Q151: -0.3179143124 | R151: -0.1493455384 | S151: 0.4481154832 | T151: 0.4534141206 | U151: -0.1168963848 | V151: -0.1850971948 | W151: 0.04759034456 | X151: 0.7182369558 | Y151: -0.5351833126 | Z151: 0.4826074061 | AA151: 0.4208795959
B152: 08V | C152: NHS Tower Hamlets CCG | D152: 36.11610533 | E152: 0.5621260156 | F152: 312066 | G152: 0.06587388565 | H152: 0.1121910109 | I152: 0.1392269584 | J152: 0.02596886556 | K152: 1.007171258 | L152: 149.3429106 | M152: 2.316620451 | N152: 0.07552130381 | O152: 0.4145393033 | P152: 0.7101751121 | Q152: 0.3263182183 | R152: 0.1813554731 | S152: 0.4963624921 | T152: -0.1380112192 | U152: 0.6602359507 | V152: -0.9468181373 | W152: -0.4679459778 | X152: 2.756493594 | Y152: -0.04117725264 | Z152: 0.7613627682 | AA152: 2.071353798
B153: 08W | C153: NHS Waltham Forest CCG | D153: 30.07880274 | E153: 0.1132080348 | F153: 307489 | G153: 0.07030820615 | H153: 0.1250711408 | I153: 0.1125406112 | J153: 0.04331537063 | K153: 1.074497701 | L153: 69.86396661 | M153: 1.799729304 | N153: 0.172030809 | O153: 0.2170321734 | P153: 0.4246546877 | Q153: 0.03385074581 | R153: 0.1686794503 | S153: 0.7290589617 | T153: 0.3259041909 | U153: 0.04941409094 | V153: -0.6427133335 | W153: 0.4430420863 | X153: 1.194309812 | Y153: -0.407252418 | Z153: 1.883968026 | AA153: 0.9728705498
B154: 08X | C154: NHS Wandsworth CCG | D154: 18.25751897 | E154: -0.3475498701 | F154: 394893 | G154: 0.06120392106 | H154: 0.09818102625 | I154: 0.1001689065 | J154: 0.03745318352 | K154: 1.158268413 | L154: 91.8030873 | M154: 1.798486664 | N154: 0.1109344571 | O154: 0.1150843795 | P154: -0.1344059033 | Q154: -0.2663303689 | R154: 0.4107452349 | S154: 0.2513003063 | T154: -0.6426216402 | U154: -0.2337609579 | V154: -0.7454844251 | W154: 1.576536096 | X154: 1.625530168 | Y154: -0.4081324868 | Z154: 1.173291023 | AA154: 0.405863456
B155: 08Y | C155: NHS West London (Kensington and Chelsea, QPP) CCG | D155: 26.69500279 | E155: -0.4380836849 | F155: 244435 | G155: 0.04872870088 | H155: 0.09375498599 | I155: 0.09576369996 | J155: 0.04937099842 | K155: 1.080745241 | L155: 147.2937018 | M155: 2.569552971 | N155: 0.09167925888 | O155: 0.1143673853 | P155: 0.264625605 | Q155: -0.3253126266 | R155: -0.005948895992 | S155: -0.4033523505 | T155: -0.8020383778 | U155: -0.3345914103 | V155: -0.5365509974 | W155: 0.5275770006 | X155: 2.716215748 | Y155: 0.1379558484 | Z155: 0.949313222 | AA155: 0.4018757209
B156: 09A | C156: NHS Central London (Westminster) CCG | D156: 26.08916928 | E156: -0.3390581824 | F156: 218606 | G156: 0.04130719193 | H156: 0.07494762266 | I156: 0.1621227231 | J156: 0.04460078863 | K156: 1.010563795 | L156: 95.30118702 | M156: 2.643534542 | N156: 0.07463394095 | O156: 0.154389429 | P156: 0.2359740943 | Q156: -0.2607980834 | R156: -0.07748243165 | S156: -0.7928052403 | T156: -1.479440372 | U156: 1.184295443 | V156: -0.6201784316 | W156: -0.4220418586 | X156: 1.694286425 | Y156: 0.1903514367 | Z156: 0.7510409019 | AA156: 0.6244679109
B157: 09C | C157: NHS Ashford CCG | D157: 17.8123294 | E157: -0.5479267276 | F157: 131293 | G157: 0.05926439338 | H157: 0.1256959625 | I157: 0.1164037687 | J157: 0.07860281965 | K157: 1.034974563 | L157: 2.139966005 | M157: 3.22809098 | N157: 0.01165836182 | O157: 0.03484168068 | P157: -0.1554601262 | Q157: -0.3968747346 | R157: -0.3192961913 | S157: 0.1495211848 | T157: 0.3484089655 | U157: 0.1378376211 | V157: -0.02408250753 | W157: -0.09174194787 | X157: -0.1368268394 | Y157: 0.6043488442 | Z157: 0.01850459838 | AA157: -0.0404255483
B158: 09D | C158: NHS Brighton & Hove CCG | D158: 23.59023608 | E158: 0.2845715343 | F158: 314684 | G158: 0.04539156741 | H158: 0.09612817938 | I158: 0.1523814366 | J158: 0.05950413748 | K158: 1.076665135 | L158: 34.50901265 | M158: 2.398241465 | N158: 0.01574038265 | O158: 0.04302478632 | P158: 0.1177927612 | Q158: 0.1454930763 | R158: 0.1886060363 | S158: -0.5784725696 | T158: -0.7165609023 | U158: 0.9613278457 | V158: -0.3589050535 | W158: 0.472369443 | X158: 0.4993970102 | Y158: 0.01662877905 | Z158: 0.06598694771 | AA158: 0.005086755273
B159: 09E | C159: NHS Canterbury and Coastal CCG | D159: 17.09451821 | E159: -0.1902733083 | F159: 224227 | G159: 0.0434871804 | H159: 0.1013080494 | I159: 0.1816551976 | J159: 0.09002038113 | K159: 1.040332539 | L159: 3.432571484 | M159: 2.897914792 | N159: 0.01127601944 | O159: 0.02990566857 | P159: -0.1894073656 | Q159: -0.163865597 | R159: -0.061915046 | S159: -0.6784076408 | T159: -0.5299927883 | U159: 1.631372832 | V159: 0.1760808845 | W159: -0.01924365215 | X159: -0.1114202699 | Y159: 0.3705098565 | Z159: 0.01405716528 | AA159: -0.06787836286
B160: 09F | C160: NHS Eastbourne, Hailsham and Seaford CCG | D160: 18.38603102 | E160: -0.08751021383 | F160: 194814 | G160: 0.04886712454 | H160: 0.1034935888 | I160: 0.105988276 | J160: 0.1267157391 | K160: 1.027086136 | L160: 6.050995679 | M160: 2.471237743 | N160: 0.005678787554 | O160: 0.02159398194 | P160: -0.1283282196 | Q160: -0.09691603428 | R160: -0.1433744863 | S160: -0.3960883973 | T160: -0.4512742209 | U160: -0.1005618331 | V160: 0.8193940242 | W160: -0.1984795519 | X160: -0.05995431417 | Y160: 0.068326559 | Z160: -0.05105022419 | AA160: -0.1141058005
B161: 09G | C161: NHS Coastal West Sussex CCG | D161: 16.05682654 | E161: -0.2145886215 | F161: 510467 | G161: 0.04841057306 | H161: 0.1032015782 | I161: 0.1017342943 | J161: 0.1205621519 | K161: 1.042936093 | L161: 3.629924901 | M161: 2.60032253 | N161: 0.00484092513 | O161: 0.01848752598 | P161: -0.2384826206 | Q161: -0.1797068832 | R161: 0.7308279656 | S161: -0.4200465025 | T161: -0.4617918334 | U161: -0.1979309111 | V161: 0.7115143434 | W161: 0.01598480512 | X161: -0.107541226 | Y161: 0.1597476154 | Z161: -0.06079629801 | AA161: -0.1313830999
B162: 09H | C162: NHS Crawley CCG | D162: 17.30652527 | E162: -0.362183544 | F162: 131395 | G162: 0.06572548423 | H162: 0.1264659995 | I162: 0.1097834773 | J162: 0.06158529624 | K162: 1.04648679 | L162: 24.65249596 | M162: 1.651508534 | N162: 0.03040161449 | O162: 0.1203869796 | P162: -0.1793809764 | Q162: -0.275864123 | R162: -0.3190137018 | S162: 0.4885749432 | T162: 0.376144092 | U162: -0.01369374652 | V162: -0.3224198726 | W162: 0.06402896427 | X162: 0.3056640571 | Y162: -0.512226054 | Z162: 0.2365274132 | AA162: 0.4353551377
B163: 09J | C163: NHS Dartford, Gravesham and Swanley CCG | D163: 19.65694433 | E163: -0.4421701345 | F163: 264968 | G163: 0.06488330666 | H163: 0.1273059388 | I163: 0.1104699435 | J163: 0.07787732858 | K163: 1.021611329 | L163: 9.633239392 | M163: 2.38141888 | N163: 0.0305418282 | O163: 0.0708547891 | P163: -0.06822328017 | Q163: -0.3279749248 | R163: 0.05091734303 | S163: 0.4443806307 | T163: 0.4063969557 | U163: 0.002018729295 | V163: -0.03680122619 | W163: -0.2725586662 | X163: 0.010455819 | Y163: 0.004714606501 | Z163: 0.2381583888 | AA163: 0.1598699869
B164: 09L | C164: NHS East Surrey CCG | D164: 11.31438662 | E164: -0.7893036533 | F164: 181565 | G164: 0.06154820588 | H164: 0.1253270179 | I164: 0.100966596 | J164: 0.08012557486 | K164: 1.039797347 | L164: 5.618036831 | M164: 2.665708672 | N164: 0.01522821619 | O164: 0.04385418392 | P164: -0.4627654749 | Q164: -0.554130408 | R164: -0.1800676535 | S164: 0.2693670791 | T164: 0.3351203509 | U164: -0.2155027016 | V164: 0.002613197118 | W164: -0.02648528543 | X164: -0.06846425727 | Y164: 0.2060557073 | Z164: 0.06002939187 | AA164: 0.009699648835
B165: 09N | C165: NHS Guildford and Waverley CCG | D165: 8.208555561 | E165: -1.202830482 | F165: 224863 | G165: 0.04991483703 | H165: 0.1160128612 | I165: 0.1375015009 | J165: 0.08690624958 | K165: 1.058003494 | L165: 3.832699676 | M165: 3.133027242 | N165: 0.009152821077 | O165: 0.04097279326 | P165: -0.6096486547 | Q165: -0.8235407491 | R165: -0.06015364104 | S165: -0.3411083843 | T165: -0.0003561442356 | U165: 0.6207420798 | V165: 0.1214864656 | W165: 0.2198604505 | X165: -0.1035556237 | Y165: 0.5370223412 | Z165: -0.01064002534 | AA165: -0.006325895995
B166: 09P | C166: NHS Hastings & Rother CCG | D166: 26.27175029 | E166: 0.1888814511 | F166: 187825 | G166: 0.04857180886 | H166: 0.1051297751 | I166: 0.1042193531 | J166: 0.1129668574 | K166: 1.025259427 | L166: 3.420262652 | M166: 3.049093145 | N166: 0.007644642275 | O166: 0.01779812857 | P166: 0.2446088457 | Q166: 0.08315153956 | R166: -0.1627305543 | S166: -0.4115854537 | T166: -0.3923422035 | U166: -0.1410505802 | V166: 0.5783598248 | W166: -0.2231965873 | X166: -0.1116622039 | Y166: 0.4775781259 | Z166: -0.02818326575 | AA166: -0.1352173488
B167: 09W | C167: NHS Medway CCG | D167: 21.88136051 | E167: -0.06816889913 | F167: 297893 | G167: 0.06353959308 | H167: 0.1277371405 | I167: 0.1194120036 | J167: 0.06730604613 | K167: 1.005559936 | L167: 14.39814282 | M167: 2.070287937 | N167: 0.02423389196 | O167: 0.05009562023 | P167: 0.03697539803 | Q167: -0.08431527943 | R167: 0.1421032837 | S167: 0.373867593 | T167: 0.421927941 | U167: 0.2066928925 | V167: -0.2221283433 | W167: -0.4897486338 | X167: 0.1041115029 | Y167: -0.2156360654 | Z167: 0.1647840369 | AA167: 0.04441289305
B168: 09X | C168: NHS Horsham and Mid Sussex CCG | D168: 8.277638065 | E168: -1.219916449 | F168: 238077 | G168: 0.05478479652 | H168: 0.1206416411 | I168: 0.1028910815 | J168: 0.09121418701 | K168: 1.024688221 | L168: 3.959661803 | M168: 2.474845151 | N168: 0.005864097354 | O168: 0.02618618389 | P168: -0.6063815556 | Q168: -0.8346721581 | R168: -0.02355740657 | S168: -0.0855512184 | T168: 0.1663628551 | U168: -0.1714532937 | V168: 0.1970097171 | W168: -0.2309255186 | X168: -0.101060143 | Y168: 0.07088141489 | Z168: -0.04889468774 | AA168: -0.0885651685
B169: 09Y | C169: NHS North West Surrey CCG | D169: 10.89534637 | E169: -0.8265702019 | F169: 369946 | G169: 0.06115757435 | H169: 0.1214015018 | I169: 0.09861168927 | J169: 0.08122807112 | K169: 1.06935882 | L169: 13.48428393 | M169: 2.520923862 | N169: 0.01311171812 | O169: 0.08183043394 | P169: -0.4825830257 | Q169: -0.5784093493 | R169: 0.3416544024 | S169: 0.248868205 | T169: 0.1937314521 | U169: -0.2694039901 | V169: 0.02194126394 | W169: 0.3735083517 | X169: 0.0861493174 | Y169: 0.1035155038 | Z169: 0.03541013959 | AA169: 0.2209136666
B170: 10A | C170: NHS South Kent Coast CCG | D170: 22.92619876 | E170: -0.001317809804 | F170: 203985 | G170: 0.05217540505 | H170: 0.1118856779 | I170: 0.1081010859 | J170: 0.1015074638 | K170: 0.998639515 | L170: 3.81764889 | M170: 2.863499256 | N170: 0.004014781326 | O170: 0.02759503163 | P170: 0.08638863439 | Q170: -0.04076218072 | R170: -0.1179753592 | S170: -0.2224822728 | T170: -0.1490086772 | U170: -0.05220188175 | V170: 0.3774630651 | W170: -0.5833882292 | X170: -0.1038514517 | Y170: 0.3461359178 | Z170: -0.07040606002 | AA170: -0.08072952407
B171: 10C | C171: NHS Surrey Heath CCG | D171: 8.807516176 | E171: -1.060580443 | F171: 96243 | G171: 0.0552767474 | H171: 0.1180865102 | I171: 0.1047660609 | J171: 0.08440094345 | K171: 1.043962405 | L171: 14.34635343 | M171: 2.028389819 | N171: 0.009971663557 | O171: 0.0635171175 | P171: -0.5813221817 | Q171: -0.7308656705 | R171: -0.4163673294 | S171: -0.05973548539 | T171: 0.07433236792 | U171: -0.1285370254 | V171: 0.0775654782 | W171: 0.02987174124 | X171: 0.1030935661 | Y171: -0.2453093547 | Z171: -0.001115192835 | AA171: 0.1190597674
B172: 10D | C172: NHS Swale CCG | D172: 28.32224818 | E172: 0.1254922073 | F172: 111686 | G172: 0.06398295221 | H172: 0.1264795946 | I172: 0.1158068155 | J172: 0.07411851082 | K172: 1.009968023 | L172: 5.341939073 | M172: 2.751036945 | N172: 0.01259232838 | O172: 0.01235723725 | P172: 0.3415824557 | Q172: 0.04185381326 | R172: -0.373597869 | S172: 0.3971334134 | T172: 0.3766337595 | U172: 0.1241740042 | V172: -0.1026977588 | W172: -0.430103206 | X172: -0.07389104602 | Y172: 0.2664873124 | Z172: 0.02936856212 | AA172: -0.1654781702
B173: 10E | C173: NHS Thanet CCG | D173: 32.40560693 | E173: 0.3788817875 | F173: 144823 | G173: 0.05590272263 | H173: 0.1176470588 | I173: 0.1097408561 | J173: 0.1003638925 | K173: 1.028708952 | L173: 13.52606515 | M173: 2.396786247 | N173: 0.007013235612 | O173: 0.01884614319 | P173: 0.5346955728 | Q173: 0.2069356617 | R173: -0.2818247934 | S173: -0.02688665834 | T173: 0.05850424648 | U173: -0.01466930056 | V173: 0.3574149039 | W173: -0.176521376 | X173: 0.08697054049 | Y173: 0.01559815782 | Z173: -0.03552783185 | AA173: -0.1293885643
B174: 10G | C174: NHS Bracknell and Ascot CCG | D174: 9.795831926 | E174: -0.9560379139 | F174: 140865 | G174: 0.05523018493 | H174: 0.1290242431 | I174: 0.1133070671 | J174: 0.06504809569 | K174: 1.037564682 | L174: 10.6463642 | M174: 2.069855784 | N174: 0.01794519033 | O174: 0.0495267165 | P174: -0.5345820477 | Q174: -0.6627568162 | R174: -0.2927864928 | S174: -0.06217890882 | T174: 0.46828669 | U174: 0.06695744294 | V174: -0.2617128919 | W174: -0.05669527683 | X174: 0.03036910747 | Y174: -0.2159421268 | Z174: 0.09163342352 | AA174: 0.04124879859
B175: 10H | C175: NHS Chiltern CCG | D175: 9.415447188 | E175: -1.453782642 | F175: 341362 | G175: 0.05698056609 | H175: 0.1274453513 | I175: 0.1065555041 | J175: 0.08593809504 | K175: 1.037937219 | L175: 5.603503582 | M175: 2.860473187 | N175: 0.02455257425 | O175: 0.1107101088 | P175: -0.5525714743 | Q175: -0.9870346326 | R175: 0.2624908814 | S175: 0.02967451404 | T175: 0.411418301 | U175: -0.08757858969 | V175: 0.1045135685 | W175: -0.05165451404 | X175: -0.06874991288 | Y175: 0.3439927809 | Z175: 0.1684909715 | AA175: 0.3815349014
B176: 10J | C176: NHS North Hampshire CCG | D176: 11.07311437 | E176: -0.6807028497 | F176: 224856 | G176: 0.05817056249 | H176: 0.1199612196 | I176: 0.1040488135 | J176: 0.07408296866 | K176: 1.044443761 | L176: 2.564376002 | M176: 2.85558736 | N176: 0.01059418668 | O176: 0.03795574981 | P176: -0.4741758946 | Q176: -0.4833776116 | R176: -0.06017302757 | S176: 0.09212105196 | T176: 0.1418554912 | U176: -0.14495405 | V176: -0.1033208552 | W176: 0.03638492121 | X176: -0.1284849267 | Y176: 0.3405325162 | Z176: 0.006126039291 | AA176: -0.02310590638
B177: 10K | C177: NHS Fareham and Gosport CCG | D177: 13.64340713 | E177: -0.4555502955 | F177: 204324 | G177: 0.05373818054 | H177: 0.1117196218 | I177: 0.1052543999 | J177: 0.09899962804 | K177: 0.9913644152 | L177: 20.03654313 | M177: 1.906767907 | N177: 0.004968202555 | O177: 0.01470621131 | P177: -0.3526197745 | Q177: -0.3366920225 | R177: -0.1170364971 | S177: -0.1404736904 | T177: -0.1549896712 | U177: -0.1173594703 | V177: 0.3334977306 | W177: -0.6818269532 | X177: 0.2149360443 | Y177: -0.3314450179 | Z177: -0.05931579818 | AA177: -0.1524137879
B178: 10L | C178: NHS Isle of Wight CCG | D178: 23.35121349 | E178: 0.1063054714 | F178: 143576 | G178: 0.04508413662 | H178: 0.09802473951 | I178: 0.09876302446 | J178: 0.1191633699 | K178: 1.024583239 | L178: 3.666735936 | M178: 2.961347124 | N178: 0.001806049372 | O178: 0.01073306227 | P178: 0.1064887344 | Q178: 0.02935376558 | R178: -0.2852783657 | S178: -0.5946053817 | T178: -0.6482507627 | U178: -0.26594009 | V178: 0.6869920365 | W178: -0.2323460288 | X178: -0.1068176935 | Y178: 0.4154342115 | Z178: -0.09609818329 | AA178: -0.1745114087
B179: 10M | C179: NHS Newbury and District CCG | D179: 11.11379418 | E179: -1.195547277 | F179: 118735 | G179: 0.05585547648 | H179: 0.1257085105 | I179: 0.1072556533 | J179: 0.07383669516 | K179: 1.050847977 | L179: 1.896765227 | M179: 2.936168651 | N179: 0.006205947329 | O179: 0.02244872216 | P179: -0.4722520361 | Q179: -0.8187957834 | R179: -0.3540756307 | S179: -0.02936595882 | T179: 0.3488609213 | U179: -0.07155292517 | V179: -0.1076383216 | W179: 0.1230398009 | X179: -0.1416070276 | Y179: 0.3976021911 | Z179: -0.04491826513 | AA179: -0.1093519578
B180: 10N | C180: NHS North & West Reading CCG | D180: 12.93488323 | E180: -0.8352366693 | F180: 110893 | G180: 0.06004887594 | H180: 0.1250574878 | I180: 0.09885204657 | J180: 0.07624466828 | K180: 1.095859294 | L180: 6.325485214 | M180: 2.257766423 | N180: 0.03563336404 | O180: 0.06626080889 | P180: -0.3861277923 | Q180: -0.5840555028 | R180: -0.3757940862 | S180: 0.1906878807 | T180: 0.3254124417 | U180: -0.2639024695 | V180: -0.06542369729 | W180: 0.7320838877 | X180: -0.05455913554 | Y180: -0.08285913927 | Z180: 0.2973834867 | AA180: 0.1343194647
B181: 10Q | C181: NHS Oxfordshire CCG | D181: 11.83529323 | E181: -0.7411204687 | F181: 730557 | G181: 0.05300749976 | H181: 0.1129179516 | I181: 0.1375826938 | J181: 0.07644167396 | K181: 1.073424658 | L181: 2.630386092 | M181: 3.022818968 | N181: 0.01794743707 | O181: 0.05185172514 | P181: -0.4381303878 | Q181: -0.5227393415 | R181: 1.340368244 | S181: -0.1788170709 | T181: -0.1118283291 | U181: 0.6226004968 | V181: -0.06196995425 | W181: 0.4285228447 | X181: -0.1271874775 | Y181: 0.4589701004 | Z181: 0.09165955777 | AA181: 0.05417989142
B182: 10R | C182: NHS Portsmouth CCG | D182: 27.33270749 | E182: 0.3311548286 | F182: 227786 | G182: 0.0586691017 | H182: 0.1082331662 | I182: 0.1629029001 | J182: 0.06416987875 | K182: 1.01300637 | L182: 52.40056024 | M182: 2.156831286 | N182: 0.01823398767 | O182: 0.06010944573 | P182: 0.2947843911 | Q182: 0.1758418236 | R182: -0.05205837894 | S182: 0.1182825154 | T182: -0.2805645276 | U182: 1.202152858 | V182: -0.2771090765 | W182: -0.3889915981 | X182: 0.8510610367 | Y182: -0.1543439134 | Z182: 0.09499273426 | AA182: 0.100107184
B183: 10T | C183: NHS Slough CCG | D183: 22.90651885 | E183: -0.09129004755 | F183: 157563 | G183: 0.07904139931 | H183: 0.1515584242 | I183: 0.1133768715 | J183: 0.04134219328 | K183: 1.088350649 | L183: 44.79147777 | M183: 1.728515561 | N183: 0.08472374574 | O183: 0.4061071723 | P183: 0.085457918 | Q183: -0.09937857413 | R183: -0.2465413041 | S183: 1.187344108 | T183: 1.279920889 | U183: 0.06855519131 | V183: -0.6773054723 | W183: 0.6304850871 | X183: 0.7015021143 | Y183: -0.4576877624 | Z183: 0.8684062108 | AA183: 2.02445648
B184: 10V | C184: NHS South Eastern Hampshire CCG | D184: 15.79989093 | E184: -0.3468915099 | F184: 213694 | G184: 0.05171413329 | H184: 0.1110653551 | I184: 0.1053328591 | J184: 0.1048508615 | K184: 1.027147624 | L184: 6.068043537 | M184: 2.299256579 | N184: 0.003838856279 | O184: 0.0130679985 | P184: -0.2506338028 | Q184: -0.2659014511 | R184: -0.0910862385 | S184: -0.2466880807 | T184: -0.1785549909 | U184: -0.115563622 | V184: 0.4360767919 | W184: -0.1976475647 | X184: -0.05961923313 | Y184: -0.05347477844 | Z184: -0.07245243238 | AA184: -0.1615251011
B185: 10W | C185: NHS South Reading CCG | D185: 19.36607107 | E185: -0.4682321623 | F185: 143900 | G185: 0.06299513551 | H185: 0.1071855455 | I185: 0.1720152884 | J185: 0.04143154969 | K185: 1.124079896 | L185: 44.36369012 | M185: 2.089113948 | N185: 0.06964842191 | O185: 0.153549449 | P185: -0.08197946587 | Q185: -0.3449541855 | R185: -0.2843810462 | S185: 0.3452965068 | T185: -0.3182976399 | U185: 1.410725651 | V185: -0.6757389485 | W185: 1.113934332 | X185: 0.6930938127 | Y185: -0.2023030163 | Z185: 0.6930489986 | AA185: 0.6197961604
B186: 10X | C186: NHS Southampton CCG | D186: 26.38474912 | E186: 0.4438021524 | F186: 282455 | G186: 0.05756315165 | H186: 0.1053831584 | I186: 0.1743498964 | J186: 0.05835265795 | K186: 1.038408742 | L186: 50.01814016 | M186: 2.163783883 | N186: 0.02164006039 | O186: 0.08791241153 | P186: 0.2499528668 | Q186: 0.2492309046 | R186: 0.09934767087 | S186: 0.06024641448 | T186: -0.3832158648 | U186: 1.464162325 | V186: -0.3790918553 | W186: -0.0452743841 | X186: 0.8042338166 | Y186: -0.1494199111 | Z186: 0.1346124083 | AA186: 0.2547400429
B187: 10Y | C187: NHS Aylesbury Vale CCG | D187: 11.11400027 | E187: -0.9533921981 | F187: 212438 | G187: 0.05963622327 | H187: 0.1256648999 | I187: 0.1069912163 | J187: 0.07607866766 | K187: 1.00899371 | L187: 2.114361545 | M187: 3.319242612 | N187: 0.01855944107 | O187: 0.05598305968 | P187: -0.4722422892 | Q187: -0.6610331476 | R187: -0.09456473634 | S187: 0.1690334199 | T187: 0.3472901559 | U187: -0.07760560637 | V187: -0.0683338851 | W187: -0.4432865433 | X187: -0.1373301032 | Y187: 0.668904697 | Z187: 0.09877843067 | AA187: 0.07715729879
B188: 11A | C188: NHS West Hampshire CCG | D188: 10.81708722 | E188: -0.8238646559 | F188: 557678 | G188: 0.05064750627 | H188: 0.1114101686 | I188: 0.1074096522 | J188: 0.1044832323 | K188: 1.02244715 | L188: 2.468074277 | M188: 2.812972709 | N188: 0.004025617487 | O188: 0.01894274075 | P188: -0.4862841134 | Q188: -0.5766467017 | R188: 0.8615790497 | S188: -0.3026606573 | T188: -0.1661355294 | U188: -0.0680280574 | V188: 0.4296318152 | W188: -0.2612492479 | X188: -0.1303777675 | Y188: 0.310351761 | Z188: -0.07028001305 | AA188: -0.1288513139
B189: 11C | C189: NHS Windsor, Ascot and Maidenhead CCG | D189: 9.451736641 | E189: -1.248632281 | F189: 155424 | G189: 0.05571211653 | H189: 0.117948322 | I189: 0.1278373996 | J189: 0.07624305127 | K189: 1.062283175 | L189: 7.583207627 | M189: 2.441875842 | N189: 0.01269808932 | O189: 0.1049669744 | P189: -0.5508552476 | Q189: -0.8533803569 | R189: -0.2524652746 | S189: -0.03688894998 | T189: 0.069355118 | U189: 0.3995411684 | V189: -0.06545204552 | W189: 0.2777684315 | X189: -0.02983820373 | Y189: 0.04753173024 | Z189: 0.03059878073 | AA189: 0.3495930825
B190: 11D | C190: NHS Wokingham CCG | D190: 5.941138115 | E190: -1.757581385 | F190: 162519 | G190: 0.05859007255 | H190: 0.1303416831 | I190: 0.09918224946 | J190: 0.07762169346 | K190: 1.054813974 | L190: 8.962438093 | M190: 2.202131279 | N190: 0.01376984221 | O190: 0.07242678769 | P190: -0.7168809793 | Q190: -1.18495776 | R190: -0.2328156391 | S190: 0.1141353624 | T190: 0.5157381327 | U190: -0.2563444795 | V190: -0.04128281298 | W190: 0.1767033395 | X190: -0.002728992683 | Y190: -0.1222613316 | Z190: 0.04306548463 | AA190: 0.1686130339
B191: 11E | C191: NHS Bath and North East Somerset CCG | D191: 12.21529926 | E191: -0.53925522 | F191: 203623 | G191: 0.04830004469 | H191: 0.1050961827 | I191: 0.1723528285 | J191: 0.08694990252 | K191: 1.053460915 | L191: 5.347184943 | M191: 2.866918054 | N191: 0.007397008934 | O191: 0.02629488355 | P191: -0.4201588713 | Q191: -0.3912252975 | R191: -0.1189779198 | S191: -0.425846616 | T191: -0.3935521319 | U191: 1.418451582 | V191: 0.1222517533 | W191: 0.1583952196 | X191: -0.07378793679 | Y191: 0.3485571957 | Z191: -0.03106375395 | AA191: -0.08796060927
B192: 11H | C192: NHS Bristol CCG | D192: 26.90255594 | E192: 0.2688416717 | F192: 506502 | G192: 0.06057429191 | H192: 0.1079146775 | I192: 0.1527674126 | J192: 0.0577648262 | K192: 1.065781098 | L192: 40.99423763 | M192: 2.217556614 | N192: 0.06074156584 | O192: 0.05615611812 | P192: 0.2744413569 | Q192: 0.1352451616 | R192: 0.7198468796 | S192: 0.2182597353 | T192: -0.2920358257 | U192: 0.9701624212 | V192: -0.3893972429 | W192: 0.3250985194 | X192: 0.6268661582 | Y192: -0.1113367257 | Z192: 0.5894438313 | AA192: 0.07811980482
B193: 11J | C193: NHS Dorset CCG | D193: 16.75378759 | E193: -0.2852271529 | F193: 795213 | G193: 0.0467421936 | H193: 0.1012257093 | I193: 0.1103817468 | J193: 0.1132061473 | K193: 1.031732299 | L193: 2.886569271 | M193: 2.781054509 | N193: 0.004442701027 | O193: 0.01981187459 | P193: -0.2055214414 | Q193: -0.2257274785 | R193: 1.519433337 | S193: -0.5075967847 | T193: -0.5329585068 | U193: 0 | V193: 0.5825548594 | W193: -0.1356127392 | X193: -0.1221521161 | Y193: 0.2877464976 | Z193: -0.06542846839 | AA193: -0.1240174177
B194: 11M | C194: NHS Gloucestershire CCG | D194: 15.28695741 | E194: -0.3961180054 | F194: 637652 | G194: 0.05341471524 | H194: 0.1136325143 | I194: 0.1150894218 | J194: 0.09384429124 | K194: 1.032882574 | L194: 2.326061018 | M194: 2.946232932 | N194: 0.00888938321 | O194: 0.02132318146 | P194: -0.274891821 | Q194: -0.2979722286 | R194: 1.083067415 | S194: -0.1574479334 | T194: -0.08609127332 | U194: 0.1077536315 | V194: 0.2431185632 | W194: -0.1200484587 | X194: -0.1331690831 | Y194: 0.4047299649 | Z194: -0.01370435288 | AA194: -0.1156119223
B195: 11N | C195: NHS Kernow CCG | D195: 23.95562135 | E195: 0.1058204699 | F195: 569229 | G195: 0.04930880191 | H195: 0.1055251928 | I195: 0.1088876357 | J195: 0.1033661321 | K195: 1.016510902 | L195: 1.548683179 | M195: 3.371346734 | N195: 0.001449463625 | O195: 0.006541819358 | P195: 0.1350728221 | Q195: 0.02903778993 | R195: 0.8935695979 | S195: -0.3729108295 | T195: -0.3781000795 | U195: -0.03419859904 | V195: 0.4100477244 | W195: -0.3415720942 | X195: -0.1484486903 | Y195: 0.7058061324 | Z195: -0.1002460134 | AA195: -0.1978220108
B196: 11T | C196: NHS North Somerset CCG | D196: 16.1902124 | E196: -0.2035772 | F196: 218325 | G196: 0.05256841864 | H196: 0.1135738005 | I196: 0.09958548036 | J196: 0.1043032177 | K196: 1.04194346 | L196: 5.616689764 | M196: 2.512035088 | N196: 0.003167652885 | O196: 0.0122663129 | P196: -0.2321744416 | Q196: -0.1725330056 | R196: -0.07826066245 | S196: -0.2018583971 | T196: -0.08820602048 | U196: -0.2471149567 | V196: 0.4264759461 | W196: 0.002553578362 | X196: -0.0684907343 | Y196: 0.09722025325 | Z196: -0.0802599168 | AA196: -0.1659838677
B197: 11X | C197: NHS Somerset CCG | D197: 18.07871605 | E197: -0.2439709761 | F197: 569279 | G197: 0.04996846889 | H197: 0.1102060677 | I197: 0.1071390302 | J197: 0.1051856822 | K197: 1.03990377 | L197: 1.580589426 | M197: 3.33894321 | N197: 0.001944711587 | O197: 0.009440075374 | P197: -0.1428619788 | Q197: -0.1988493175 | R197: 0.8937080732 | S197: -0.3382939862 | T197: -0.2095047326 | U197: -0.07422230279 | V197: 0.4419465963 | W197: -0.02504529632 | X197: -0.147821563 | Y197: 0.6828571509 | Z197: -0.09448525478 | AA197: -0.1817026652
B198: 12A | C198: NHS South Gloucestershire CCG | D198: 11.85042238 | E198: -0.8084163154 | F198: 267387 | G198: 0.0587911903 | H198: 0.1178666128 | I198: 0.1097659946 | J198: 0.08414395614 | K198: 1.025709204 | L198: 5.526983235 | M198: 2.069108763 | N198: 0.01006753582 | O198: 0.02565007676 | P198: -0.4374148892 | Q198: -0.5665821971 | R198: 0.05761677478 | S198: 0.124689266 | T198: 0.06641212316 | U198: -0.01409390664 | V198: 0.07306018597 | W198: -0.2171106946 | X198: -0.07025394449 | Y198: -0.216471186 | Z198: 0 | AA198: -0.09154685682
B199: 12D | C199: NHS Swindon CCG | D199: 17.89321368 | E199: -0.1539603856 | F199: 233319 | G199: 0.06658266151 | H199: 0.1275678363 | I199: 0.1090395553 | J199: 0.06764986992 | K199: 1.039424337 | L199: 8.565027525 | M199: 2.075556728 | N199: 0.01380830281 | O199: 0.06774941156 | P199: -0.1516348892 | Q199: -0.1402079375 | R199: -0.0367347097 | S199: 0.5335563844 | T199: 0.4158299566 | U199: -0.03072132339 | V199: -0.2161007045 | W199: -0.03153245929 | X199: -0.0105402231 | Y199: -0.2119045769 | Z199: 0.043512861 | AA199: 0.1425986853
B200: 12F | C200: NHS Wirral CCG | D200: 27.40296147 | E200: 0.8372357638 | F200: 335180 | G200: 0.05397100066 | H200: 0.1148845397 | I200: 0.1068977863 | J200: 0.09309624679 | K200: 1.046446924 | L200: 20.43306119 | M200: 2.075575785 | N200: 0.002193051502 | O200: 0.01619718324 | P200: 0.2981068924 | Q200: 0.5055506308 | R200: 0.2453698036 | S200: -0.1282561658 | T200: -0.04099593147 | U200: -0.07974411877 | V200: 0.230004457 | W200: 0.0634895374 | X200: 0.2227297322 | Y200: -0.2118910802 | Z200: -0.09159654767 | AA200: -0.1441213901
B201: 13P | C201: NHS Birmingham Cross City CCG | D201: 35.17671873 | E201: 0.4986539964 | F201: 721247 | G201: 0.0663101545 | H201: 0.1362986605 | I201: 0.1339097424 | J201: 0.06865054551 | K201: 1.083231288 | L201: 37.67066411 | M201: 2.328228847 | N201: 0.06853001019 | O201: 0.2202168421 | P201: 0.6657489704 | Q201: 0.2849665643 | R201: 1.314584156 | S201: 0.519256241 | T201: 0.7302960318 | U201: 0.5385305812 | V201: -0.1985576747 | W201: 0.5612154766 | X201: 0.5615402695 | Y201: -0.03295589806 | Z201: 0.680039556 | AA201: 0.9905828484
B202: 13T | C202: NHS Newcastle Gateshead CCG | D202: 28.13776702 | E202: 0.8134496834 | F202: 520882 | G202: 0.05261652351 | H202: 0.1033573823 | I202: 0.157555838 | J202: 0.07142116641 | K202: 1.050715244 | L202: 19.30828896 | M202: 2.371449073 | N202: 0.01447636073 | O202: 0.07431338782 | P202: 0.332857841 | Q202: 0.4900541368 | R202: 0.7596723565 | S202: -0.1993340344 | T202: -0.4561800939 | U202: 1.079764342 | V202: -0.149985405 | W202: 0.1212437985 | X202: 0.2006219783 | Y202: -0.002346259083 | Z202: 0.05128375712 | AA202: 0.1791058127
B203: 14L | C203: NHS Manchester CCG | D203: 40.14756038 | E203: 1.376072309 | F203: 628281 | G203: 0.06504255262 | H203: 0.1246703306 | I203: 0.1615885249 | J203: 0.04200509008 | K203: 1.083715243 | L203: 45.85519984 | M203: 2.614060424 | N203: 0.08759704061 | O203: 0.1734703651 | P203: 0.9008335621 | Q203: 0.8565995287 | R203: 1.057114387 | S203: 0.4527372596 | T203: 0.3114678464 | U203: 1.172068219 | V203: -0.6656841053 | W203: 0.567763823 | X203: 0.7224099079 | Y203: 0.1694771335 | Z203: 0.9018285761 | AA203: 0.730591111
B204: 99A | C204: NHS Liverpool CCG | D204: 41.14716756 | E204: 1.408822934 | F204: 523069 | G204: 0.05589128777 | H204: 0.103384066 | I204: 0.155576033 | J204: 0.06433568038 | K204: 1.046004463 | L204: 42.79014873 | M204: 2.359770906 | N204: 0.02743591463 | O204: 0.04303727894 | P204: 0.9481076986 | Q204: 0.8779363716 | R204: 0.7657292632 | S204: -0.02748671727 | T204: -0.4552190034 | U204: 1.03444873 | V204: -0.2742023772 | W204: 0.05750263988 | X204: 0.662165359 | Y204: -0.010617027 | Z204: 0.2020301867 | AA204: 0.005156235988
B205: 99C | C205: NHS North Tyneside CCG | D205: 21.08071032 | E205: 0.5282027405 | F205: 218237 | G205: 0.05411089779 | H205: 0.1106732589 | I205: 0.1020633531 | J205: 0.08722627236 | K205: 1.034267654 | L205: 24.57719897 | M205: 1.845799616 | N205: 0.003952872958 | O205: 0.02201731932 | P205: -0.0008895225873 | Q205: 0.3042174004 | R205: -0.07850437886 | S205: -0.1209148904 | T205: -0.1926774797 | U205: -0.1903991068 | V205: 0.1270968443 | W205: -0.1013070754 | X205: 0.3041840709 | Y205: -0.3746242775 | Z205: -0.07112618246 | AA205: -0.1117513082
B206: 99D | C206: NHS South Lincolnshire CCG | D206: 14.71796972 | E206: -0.3178041356 | F206: 165234 | G206: 0.05119406418 | H206: 0.1094568914 | I206: 0.101002215 | J206: 0.1032838278 | K206: 1.027668318 | L206: 1.6052464 | M206: 3.087071262 | N206: 0.003194941545 | O206: 0.009594767092 | P206: -0.3018007935 | Q206: -0.2469511946 | R206: -0.2252964339 | S206: -0.2739793529 | T206: -0.2364884979 | U206: -0.2146874197 | V206: 0.4086048324 | W206: -0.1906021004 | X206: -0.1473369224 | Y206: 0.5044751729 | Z206: -0.07994249322 | AA206: -0.1808423102
B207: 99E | C207: NHS Basildon and Brentwood CCG | D207: 19.82871263 | E207: -0.4954212663 | F207: 276479 | G207: 0.06169727176 | H207: 0.1216511923 | I207: 0.111111513 | J207: 0.08150347766 | K207: 1.041741379 | L207: 9.796151965 | M207: 2.207836252 | N207: 0.02251535483 | O207: 0.02838746963 | P207: -0.06009989097 | Q207: -0.3626677297 | R207: 0.08279711107 | S207: 0.2771894965 | T207: 0.2027247821 | U207: 0.01670356576 | V207: 0.0267694671 | W207: -0.0001807655572 | X207: 0.01365791715 | Y207: -0.118220928 | Z207: 0.144793894 | AA207: -0.07632219017
... 9 more rows

Sheet Methodology
B8: Methodology Summary
B9: Distance is defined as the sum of squared differences between the standardised variables.
B10: The standardisation method is interdecile standardisation, and is the same as that used by ONS for their 2001 Area Classification for LAs. It is calculated by taking the CCG value, subtracting the median, and then dividing by the difference between the 90th and 10th percentiles.
B14: Closeness is then the smallest distance between any pair of CCGs.
B16: Example:
B17: The distance between CCG1 and CCG2 is
B18: (std_IMDscore (CCG1) - std_IMDscore (CCG2))^2 + (std_IMDhealth (CCG1) - std_IMDhealth (CCG2))^2 + (std_poptot (CCG1) - std_poptot (CCG2))^2 + (std_pop_u5 (CCG1) - std_pop_u5 (CCG2))^2 + (std_pop_5_14 (CCG1) - std_pop_5_14 (CCG2))^2 + (std_pop_15_24 (CCG1) - std_pop_15_24 (CCG2))^2 + (std_pop_75plus (CCG1) - std_pop_75plus (CCG2))^2 + (std_ADSONS (CCG1) - std_ADSONS (CCG2))^2 + (std_popdensity (CCG1) - std_popdensity (CCG2))^2 + (std_popdensityslope (CCG1) - std_popdensityslope (CCG2))^2 + (std_pc_black (CCG1) - std_pc_black (CCG2))^2 + (std_pc_asian (CCG1) - std_pc_asian (CCG2))^2
B19: So if CCG1 was 00C (Darlington) and CCG2 was 00D (Durham Dales, Easington and Sedgefield), then their distance is
B20: (0.14 - 0.42)^2 + (0.29 - 0.56)^2 + (-0.38 - 0.12)^2 + (-0.11 - - 0.24)^2 + (0.10 - - 0.12)^2 + (-0.11 - - 0.04)^2 + (0.14 - 0.13)^2 + (-0.07 - - 0.12)^2 + (-0.07 - - 0.15)^2 + (-0.03 - 0.27)^2 + (-0.08 - - 0.11)^2 + (-0.12 - - 0.20)^2
B22: which equals 0.59 (calculating using unrounded figures)

Sheet Guidance

Sheet CCG_heatmap (hidden)
C2: CCG code | D2: ='Drop-Down Menus'!$E$18 -> 02N
D4: std_IMDscore | E4: std_IMDhealth | F4: std_poptot | G4: std_pop_u5 | H4: std_pop_5_14 | I4: std_pop_15_24 | J4: std_pop_75plus | K4: std_ADSONS | L4: std_popdensity | M4: std_popdensityslope | N4: std_pc_black | O4: std_pc_asian
C5: Standardised Variable values | D5: =VLOOKUP($D$2,Data!$A$4:$Z$210,Data!O$2,FALSE) -> -0.06022659765 | E5: =VLOOKUP($D$2,Data!$A$4:$Z$210,Data!P$2,FALSE) -> -0.003272870315 | F5: =VLOOKUP($D$2,Data!$A$4:$Z$210,Data!Q$2,FALSE) -> -0.2437053314 | G5: =VLOOKUP($D$2,Data!$A$4:$Z$210,Data!R$2,FALSE) -> -0.184210841 | H5: =VLOOKUP($D$2,Data!$A$4:$Z$210,Data!S$2,FALSE) -> 0.1177151657 | I5: =VLOOKUP($D$2,Data!$A$4:$Z$210,Data!T$2,FALSE) -> -0.1140369139 | J5: =VLOOKUP($D$2,Data!$A$4:$Z$210,Data!U$2,FALSE) -> 0.2876150983 | K5: =VLOOKUP($D$2,Data!$A$4:$Z$210,Data!V$2,FALSE) -> -0.002665903787 | L5: =VLOOKUP($D$2,Data!$A$4:$Z$210,Data!W$2,FALSE) -> -0.1532055438 | M5: =VLOOKUP($D$2,Data!$A$4:$Z$210,Data!X$2,FALSE) -> 0.7496189238 | N5: =VLOOKUP($D$2,Data!$A$4:$Z$210,Data!Y$2,FALSE) -> -0.07390223615 | O5: =VLOOKUP($D$2,Data!$A$4:$Z$210,Data!Z$2,FALSE) -> 0.3226719795
C6: std_factor | D6: ='Similar 10 CCGs'!E4 -> 1 | E6: ='Similar 10 CCGs'!F4 -> 1 | F6: ='Similar 10 CCGs'!G4 -> 1 | G6: ='Similar 10 CCGs'!H4 -> 1 | H6: ='Similar 10 CCGs'!I4 -> 1 | I6: ='Similar 10 CCGs'!J4 -> 1 | J6: ='Similar 10 CCGs'!K4 -> 1 | K6: ='Similar 10 CCGs'!L4 -> 1 | L6: ='Similar 10 CCGs'!M4 -> 1 | M6: ='Similar 10 CCGs'!N4 -> 1 | N6: ='Similar 10 CCGs'!O4 -> 1 | O6: ='Similar 10 CCGs'!P4 -> 1 | P6: =SUM(D6:O6) -> 12
A8: ccg_rank | B8: ccg_code | C8: ccg_name | D8: std_IMDscore | E8: std_IMDhealth | F8: std_poptot | G8: std_pop_u5 | H8: std_pop_5_14 | I8: std_pop_15_24 | J8: std_pop_75plus | K8: std_ADSONS | L8: std_popdensity | M8: std_popdensityslope | N8: std_pc_black | O8: std_pc_asian | P8: orig_closeness | Q8: factored_closeness | R8: Rank_factored_closeness | S8: Original_weighting?
A9: 1 | B9: =HLOOKUP(CCG_heatmap!$D$2,'Closest CCG (codes)'!$B$1:$GZ$208,'Closest CCG (codes)'!$HA3,FALSE) -> 05D | C9: =VLOOKUP($B9,Data!$A$4:$B$210,2,FALSE) -> NHS East Staffordshire CCG | D9: =(VLOOKUP(CCG_heatmap!$B9,Data!$A$4:$Z$210,Data!O$2,FALSE)-D$5)^2 -> 0.005125733378 | E9: =(VLOOKUP(CCG_heatmap!$B9,Data!$A$4:$Z$210,Data!P$2,FALSE)-E$5)^2 -> 0.004057432713 | F9: =(VLOOKUP(CCG_heatmap!$B9,Data!$A$4:$Z$210,Data!Q$2,FALSE)-F$5)^2 -> 0.002578493414 | G9: =(VLOOKUP(CCG_heatmap!$B9,Data!$A$4:$Z$210,Data!R$2,FALSE)-G$5)^2 -> 0.02923848094 | H9: =(VLOOKUP(CCG_heatmap!$B9,Data!$A$4:$Z$210,Data!S$2,FALSE)-H$5)^2 -> 0.0004305650292 | I9: =(VLOOKUP(CCG_heatmap!$B9,Data!$A$4:$Z$210,Data!T$2,FALSE)-I$5)^2 -> 0.004913160699 | J9: =(VLOOKUP(CCG_heatmap!$B9,Data!$A$4:$Z$210,Data!U$2,FALSE)-J$5)^2 -> 0.05010860438 | K9: =(VLOOKUP(CCG_heatmap!$B9,Data!$A$4:$Z$210,Data!V$2,FALSE)-K$5)^2 -> 0.007153394791 | L9: =(VLOOKUP(CCG_heatmap!$B9,Data!$A$4:$Z$210,Data!W$2,FALSE)-L$5)^2 -> 0.0007089272241 | M9: =(VLOOKUP(CCG_heatmap!$B9,Data!$A$4:$Z$210,Data!X$2,FALSE)-M$5)^2 -> 0.1606035517 | N9: =(VLOOKUP(CCG_heatmap!$B9,Data!$A$4:$Z$210,Data!Y$2,FALSE)-N$5)^2 -> 0.003770272368 | O9: =(VLOOKUP(CCG_heatmap!$B9,Data!$A$4:$Z$210,Data!Z$2,FALSE)-O$5)^2 -> 0.0289014475 | P9: =ROUND(SUM(D9:O9),10) -> 0.2975900641 | Q9: =VLOOKUP($B9,$B$218:$Q$424,15,FALSE) -> 0.2975900641 | R9: =IF(S9=1,A9,RANK($Q9,$Q$9:$Q$214,1)) -> 1 | S9: =IF($D$6:$O$6=1,1,0) -> 1
A10: 2 | B10: =HLOOKUP(CCG_heatmap!$D$2,'Closest CCG (codes)'!$B$1:$GZ$208,'Closest CCG (codes)'!$HA4,FALSE) -> 04H | C10: =VLOOKUP($B10,Data!$A$4:$B$210,2,FALSE) -> NHS Newark & Sherwood CCG | D10: =(VLOOKUP(CCG_heatmap!$B10,Data!$A$4:$Z$210,Data!O$2,FALSE)-D$5)^2 -> 0.001177036475 | E10: =(VLOOKUP(CCG_heatmap!$B10,Data!$A$4:$Z$210,Data!P$2,FALSE)-E$5)^2 -> 0.004026832687 | F10: =(VLOOKUP(CCG_heatmap!$B10,Data!$A$4:$Z$210,Data!Q$2,FALSE)-F$5)^2 -> 0.004849617407 | G10: =(VLOOKUP(CCG_heatmap!$B10,Data!$A$4:$Z$210,Data!R$2,FALSE)-G$5)^2 -> 0.001999608162 | H10: =(VLOOKUP(CCG_heatmap!$B10,Data!$A$4:$Z$210,Data!S$2,FALSE)-H$5)^2 -> 0.0716101313 | I10: =(VLOOKUP(CCG_heatmap!$B10,Data!$A$4:$Z$210,Data!T$2,FALSE)-I$5)^2 -> 0.00130085355 | J10: =(VLOOKUP(CCG_heatmap!$B10,Data!$A$4:$Z$210,Data!U$2,FALSE)-J$5)^2 -> 0.008038903667 | K10: =(VLOOKUP(CCG_heatmap!$B10,Data!$A$4:$Z$210,Data!V$2,FALSE)-K$5)^2 -> 0.01843138488 | L10: =(VLOOKUP(CCG_heatmap!$B10,Data!$A$4:$Z$210,Data!W$2,FALSE)-L$5)^2 -> 0.000127670344 | M10: =(VLOOKUP(CCG_heatmap!$B10,Data!$A$4:$Z$210,Data!X$2,FALSE)-M$5)^2 -> 0.07561144878 | N10: =(VLOOKUP(CCG_heatmap!$B10,Data!$A$4:$Z$210,Data!Y$2,FALSE)-N$5)^2 -> 1.009058492e-05 | O10: =(VLOOKUP(CCG_heatmap!$B10,Data!$A$4:$Z$210,Data!Z$2,FALSE)-O$5)^2 -> 0.250627525 | P10: =ROUND(SUM(D10:O10),10) -> 0.4378111028 | Q10: 0.4378111028 | R10: =IF(S10=1,A10,RANK($Q10,$Q$9:$Q$214,1)) -> 2 | S10: =IF($D$6:$O$6=1,1,0) -> 1
A11: 3 | B11: =HLOOKUP(CCG_heatmap!$D$2,'Closest CCG (codes)'!$B$1:$GZ$208,'Closest CCG (codes)'!$HA5,FALSE) -> 04Q | C11: =VLOOKUP($B11,Data!$A$4:$B$210,2,FALSE) -> NHS South West Lincolnshire CCG | D11: =(VLOOKUP(CCG_heatmap!$B11,Data!$A$4:$Z$210,Data!O$2,FALSE)-D$5)^2 -> 0.03016970964 | E11: =(VLOOKUP(CCG_heatmap!$B11,Data!$A$4:$Z$210,Data!P$2,FALSE)-E$5)^2 -> 0.0853831752 | F11: =(VLOOKUP(CCG_heatmap!$B11,Data!$A$4:$Z$210,Data!Q$2,FALSE)-F$5)^2 -> 0.005028284418 | G11: =(VLOOKUP(CCG_heatmap!$B11,Data!$A$4:$Z$210,Data!R$2,FALSE)-G$5)^2 -> 0.03899562016 | H11: =(VLOOKUP(CCG_heatmap!$B11,Data!$A$4:$Z$210,Data!S$2,FALSE)-H$5)^2 -> 0.03358947659 | I11: =(VLOOKUP(CCG_heatmap!$B11,Data!$A$4:$Z$210,Data!T$2,FALSE)-I$5)^2 -> 0.0001466164656 | J11: =(VLOOKUP(CCG_heatmap!$B11,Data!$A$4:$Z$210,Data!U$2,FALSE)-J$5)^2 -> 9.7174194e-05 | K11: =(VLOOKUP(CCG_heatmap!$B11,Data!$A$4:$Z$210,Data!V$2,FALSE)-K$5)^2 -> 0.08538893113 | L11: =(VLOOKUP(CCG_heatmap!$B11,Data!$A$4:$Z$210,Data!W$2,FALSE)-L$5)^2 -> 3.172003693e-05 | M11: =(VLOOKUP(CCG_heatmap!$B11,Data!$A$4:$Z$210,Data!X$2,FALSE)-M$5)^2 -> 0.01870552328 | N11: =(VLOOKUP(CCG_heatmap!$B11,Data!$A$4:$Z$210,Data!Y$2,FALSE)-N$5)^2 -> 4.525275321e-06 | O11: =(VLOOKUP(CCG_heatmap!$B11,Data!$A$4:$Z$210,Data!Z$2,FALSE)-O$5)^2 -> 0.2474172442 | P11: 0.5449580006 | Q11: 0.5449580006 | R11: 3 | S11: =IF($D$6:$O$6=1,1,0) -> 1
A12: 4 | B12: =HLOOKUP(CCG_heatmap!$D$2,'Closest CCG (codes)'!$B$1:$GZ$208,'Closest CCG (codes)'!$HA6,FALSE) -> 03K | C12: =VLOOKUP($B12,Data!$A$4:$B$210,2,FALSE) -> NHS North Lincolnshire CCG | D12: =(VLOOKUP(CCG_heatmap!$B12,Data!$A$4:$Z$210,Data!O$2,FALSE)-D$5)^2 -> 0.009307807724 | E12: =(VLOOKUP(CCG_heatmap!$B12,Data!$A$4:$Z$210,Data!P$2,FALSE)-E$5)^2 -> 0.004272774047 | F12: =(VLOOKUP(CCG_heatmap!$B12,Data!$A$4:$Z$210,Data!Q$2,FALSE)-F$5)^2 -> 0.001578577291 | G12: =(VLOOKUP(CCG_heatmap!$B12,Data!$A$4:$Z$210,Data!R$2,FALSE)-G$5)^2 -> 0.000212410549 | H12: =(VLOOKUP(CCG_heatmap!$B12,Data!$A$4:$Z$210,Data!S$2,FALSE)-H$5)^2 -> 0.03634580824 | I12: =(VLOOKUP(CCG_heatmap!$B12,Data!$A$4:$Z$210,Data!T$2,FALSE)-I$5)^2 -> 0.003885281041 | J12: =(VLOOKUP(CCG_heatmap!$B12,Data!$A$4:$Z$210,Data!U$2,FALSE)-J$5)^2 -> 0.01855551265 | K12: =(VLOOKUP(CCG_heatmap!$B12,Data!$A$4:$Z$210,Data!V$2,FALSE)-K$5)^2 -> 0.1460895759 | L12: =(VLOOKUP(CCG_heatmap!$B12,Data!$A$4:$Z$210,Data!W$2,FALSE)-L$5)^2 -> 0.000189257446 | M12: =(VLOOKUP(CCG_heatmap!$B12,Data!$A$4:$Z$210,Data!X$2,FALSE)-M$5)^2 -> 0.1677069552 | N12: =(VLOOKUP(CCG_heatmap!$B12,Data!$A$4:$Z$210,Data!Y$2,FALSE)-N$5)^2 -> 4.757201523e-05 | O12: =(VLOOKUP(CCG_heatmap!$B12,Data!$A$4:$Z$210,Data!Z$2,FALSE)-O$5)^2 -> 0.1589385328 | P12: 0.547130065 | Q12: 0.547130065 | R12: 4 | S12: =IF($D$6:$O$6=1,1,0) -> 1
A13: 5 | B13: =HLOOKUP(CCG_heatmap!$D$2,'Closest CCG (codes)'!$B$1:$GZ$208,'Closest CCG (codes)'!$HA7,FALSE) -> 99D | C13: =VLOOKUP($B13,Data!$A$4:$B$210,2,FALSE) -> NHS South Lincolnshire CCG | D13: =(VLOOKUP(CCG_heatmap!$B13,Data!$A$4:$Z$210,Data!O$2,FALSE)-D$5)^2 -> 0.05835809209 | E13: =(VLOOKUP(CCG_heatmap!$B13,Data!$A$4:$Z$210,Data!P$2,FALSE)-E$5)^2 -> 0.05937912574 | F13: =(VLOOKUP(CCG_heatmap!$B13,Data!$A$4:$Z$210,Data!Q$2,FALSE)-F$5)^2 -> 0.0003388875043 | G13: =(VLOOKUP(CCG_heatmap!$B13,Data!$A$4:$Z$210,Data!R$2,FALSE)-G$5)^2 -> 0.008058385731 | H13: =(VLOOKUP(CCG_heatmap!$B13,Data!$A$4:$Z$210,Data!S$2,FALSE)-H$5)^2 -> 0.1254602353 | I13: =(VLOOKUP(CCG_heatmap!$B13,Data!$A$4:$Z$210,Data!T$2,FALSE)-I$5)^2 -> 0.01013052432 | J13: =(VLOOKUP(CCG_heatmap!$B13,Data!$A$4:$Z$210,Data!U$2,FALSE)-J$5)^2 -> 0.01463851576 | K13: =(VLOOKUP(CCG_heatmap!$B13,Data!$A$4:$Z$210,Data!V$2,FALSE)-K$5)^2 -> 0.035320014 | L13: =(VLOOKUP(CCG_heatmap!$B13,Data!$A$4:$Z$210,Data!W$2,FALSE)-L$5)^2 -> 3.444071766e-05 | M13: =(VLOOKUP(CCG_heatmap!$B13,Data!$A$4:$Z$210,Data!X$2,FALSE)-M$5)^2 -> 0.06009545862 | N13: =(VLOOKUP(CCG_heatmap!$B13,Data!$A$4:$Z$210,Data!Y$2,FALSE)-N$5)^2 -> 3.648470538e-05 | O13: =(VLOOKUP(CCG_heatmap!$B13,Data!$A$4:$Z$210,Data!Z$2,FALSE)-O$5)^2 -> 0.2535266399 | P13: 0.6253768044 | Q13: 0.6253768044 | R13: 5 | S13: =IF($D$6:$O$6=1,1,0) -> 1
A14: 6 | B14: =HLOOKUP(CCG_heatmap!$D$2,'Closest CCG (codes)'!$B$1:$GZ$208,'Closest CCG (codes)'!$HA8,FALSE) -> 02T | C14: =VLOOKUP($B14,Data!$A$4:$B$210,2,FALSE) -> NHS Calderdale CCG | D14: =(VLOOKUP(CCG_heatmap!$B14,Data!$A$4:$Z$210,Data!O$2,FALSE)-D$5)^2 -> 0.06297911463 | E14: =(VLOOKUP(CCG_heatmap!$B14,Data!$A$4:$Z$210,Data!P$2,FALSE)-E$5)^2 -> 0.02715318983 | F14: =(VLOOKUP(CCG_heatmap!$B14,Data!$A$4:$Z$210,Data!Q$2,FALSE)-F$5)^2 -> 0.0286493018 | G14: =(VLOOKUP(CCG_heatmap!$B14,Data!$A$4:$Z$210,Data!R$2,FALSE)-G$5)^2 -> 0.08995146995 | H14: =(VLOOKUP(CCG_heatmap!$B14,Data!$A$4:$Z$210,Data!S$2,FALSE)-H$5)^2 -> 0.02705974325 | I14: =(VLOOKUP(CCG_heatmap!$B14,Data!$A$4:$Z$210,Data!T$2,FALSE)-I$5)^2 -> 0.01377097128 | J14: =(VLOOKUP(CCG_heatmap!$B14,Data!$A$4:$Z$210,Data!U$2,FALSE)-J$5)^2 -> 0.1644776252 | K14: =(VLOOKUP(CCG_heatmap!$B14,Data!$A$4:$Z$210,Data!V$2,FALSE)-K$5)^2 -> 0.001738333142 | L14: =(VLOOKUP(CCG_heatmap!$B14,Data!$A$4:$Z$210,Data!W$2,FALSE)-L$5)^2 -> 0.007547135264 | M14: =(VLOOKUP(CCG_heatmap!$B14,Data!$A$4:$Z$210,Data!X$2,FALSE)-M$5)^2 -> 0.2035490115 | N14: =(VLOOKUP(CCG_heatmap!$B14,Data!$A$4:$Z$210,Data!Y$2,FALSE)-N$5)^2 -> 0.0001959985192 | O14: =(VLOOKUP(CCG_heatmap!$B14,Data!$A$4:$Z$210,Data!Z$2,FALSE)-O$5)^2 -> 0.002366075615 | P14: 0.6294379699 | Q14: 0.6294379699 | R14: 6 | S14: =IF($D$6:$O$6=1,1,0) -> 1
A15: 7 | B15: =HLOOKUP(CCG_heatmap!$D$2,'Closest CCG (codes)'!$B$1:$GZ$208,'Closest CCG (codes)'!$HA9,FALSE) -> 02Q | C15: =VLOOKUP($B15,Data!$A$4:$B$210,2,FALSE) -> NHS Bassetlaw CCG | D15: =(VLOOKUP(CCG_heatmap!$B15,Data!$A$4:$Z$210,Data!O$2,FALSE)-D$5)^2 -> 0.02340203582 | E15: =(VLOOKUP(CCG_heatmap!$B15,Data!$A$4:$Z$210,Data!P$2,FALSE)-E$5)^2 -> 0.04490110337 | F15: =(VLOOKUP(CCG_heatmap!$B15,Data!$A$4:$Z$210,Data!Q$2,FALSE)-F$5)^2 -> 0.01388226791 | G15: =(VLOOKUP(CCG_heatmap!$B15,Data!$A$4:$Z$210,Data!R$2,FALSE)-G$5)^2 -> 0.0003391627988 | H15: =(VLOOKUP(CCG_heatmap!$B15,Data!$A$4:$Z$210,Data!S$2,FALSE)-H$5)^2 -> 0.1398840928 | I15: =(VLOOKUP(CCG_heatmap!$B15,Data!$A$4:$Z$210,Data!T$2,FALSE)-I$5)^2 -> 0.01048003576 | J15: =(VLOOKUP(CCG_heatmap!$B15,Data!$A$4:$Z$210,Data!U$2,FALSE)-J$5)^2 -> 0.01749810777 | K15: =(VLOOKUP(CCG_heatmap!$B15,Data!$A$4:$Z$210,Data!V$2,FALSE)-K$5)^2 -> 0.01055060675 | L15: =(VLOOKUP(CCG_heatmap!$B15,Data!$A$4:$Z$210,Data!W$2,FALSE)-L$5)^2 -> 9.233542407e-05 | M15: =(VLOOKUP(CCG_heatmap!$B15,Data!$A$4:$Z$210,Data!X$2,FALSE)-M$5)^2 -> 0.1342280602 | N15: =(VLOOKUP(CCG_heatmap!$B15,Data!$A$4:$Z$210,Data!Y$2,FALSE)-N$5)^2 -> 6.022667886e-05 | O15: =(VLOOKUP(CCG_heatmap!$B15,Data!$A$4:$Z$210,Data!Z$2,FALSE)-O$5)^2 -> 0.2462504626 | P15: 0.6415684979 | Q15: 0.6415684979 | R15: 7 | S15: =IF($D$6:$O$6=1,1,0) -> 1
A16: 8 | B16: =HLOOKUP(CCG_heatmap!$D$2,'Closest CCG (codes)'!$B$1:$GZ$208,'Closest CCG (codes)'!$HA10,FALSE) -> 01R | C16: =VLOOKUP($B16,Data!$A$4:$B$210,2,FALSE) -> NHS South Cheshire CCG | D16: =(VLOOKUP(CCG_heatmap!$B16,Data!$A$4:$Z$210,Data!O$2,FALSE)-D$5)^2 -> 0.01634708801 | E16: =(VLOOKUP(CCG_heatmap!$B16,Data!$A$4:$Z$210,Data!P$2,FALSE)-E$5)^2 -> 0.009437488131 | F16: =(VLOOKUP(CCG_heatmap!$B16,Data!$A$4:$Z$210,Data!Q$2,FALSE)-F$5)^2 -> 0.004649222117 | G16: =(VLOOKUP(CCG_heatmap!$B16,Data!$A$4:$Z$210,Data!R$2,FALSE)-G$5)^2 -> 0.0005999520391 | H16: =(VLOOKUP(CCG_heatmap!$B16,Data!$A$4:$Z$210,Data!S$2,FALSE)-H$5)^2 -> 0.06135579209 | I16: =(VLOOKUP(CCG_heatmap!$B16,Data!$A$4:$Z$210,Data!T$2,FALSE)-I$5)^2 -> 0.02454739139 | J16: =(VLOOKUP(CCG_heatmap!$B16,Data!$A$4:$Z$210,Data!U$2,FALSE)-J$5)^2 -> 0.02516944553 | K16: =(VLOOKUP(CCG_heatmap!$B16,Data!$A$4:$Z$210,Data!V$2,FALSE)-K$5)^2 -> 0.005513261595 | L16: =(VLOOKUP(CCG_heatmap!$B16,Data!$A$4:$Z$210,Data!W$2,FALSE)-L$5)^2 -> 0.001545828927 | M16: =(VLOOKUP(CCG_heatmap!$B16,Data!$A$4:$Z$210,Data!X$2,FALSE)-M$5)^2 -> 0.2579996145 | N16: =(VLOOKUP(CCG_heatmap!$B16,Data!$A$4:$Z$210,Data!Y$2,FALSE)-N$5)^2 -> 6.783527093e-05 | O16: =(VLOOKUP(CCG_heatmap!$B16,Data!$A$4:$Z$210,Data!Z$2,FALSE)-O$5)^2 -> 0.2374270579 | P16: 0.6446599775 | Q16: 0.6446599775 | R16: 8 | S16: =IF($D$6:$O$6=1,1,0) -> 1
A17: 9 | B17: =HLOOKUP(CCG_heatmap!$D$2,'Closest CCG (codes)'!$B$1:$GZ$208,'Closest CCG (codes)'!$HA11,FALSE) -> 02D | C17: =VLOOKUP($B17,Data!$A$4:$B$210,2,FALSE) -> NHS Vale Royal CCG | D17: =(VLOOKUP(CCG_heatmap!$B17,Data!$A$4:$Z$210,Data!O$2,FALSE)-D$5)^2 -> 3.529601155e-07 | E17: =(VLOOKUP(CCG_heatmap!$B17,Data!$A$4:$Z$210,Data!P$2,FALSE)-E$5)^2 -> 0.002975609796 | F17: =(VLOOKUP(CCG_heatmap!$B17,Data!$A$4:$Z$210,Data!Q$2,FALSE)-F$5)^2 -> 0.02182033266 | G17: =(VLOOKUP(CCG_heatmap!$B17,Data!$A$4:$Z$210,Data!R$2,FALSE)-G$5)^2 -> 0.0163907737 | H17: =(VLOOKUP(CCG_heatmap!$B17,Data!$A$4:$Z$210,Data!S$2,FALSE)-H$5)^2 -> 0.00172529133 | I17: =(VLOOKUP(CCG_heatmap!$B17,Data!$A$4:$Z$210,Data!T$2,FALSE)-I$5)^2 -> 0.0001800218631 | J17: =(VLOOKUP(CCG_heatmap!$B17,Data!$A$4:$Z$210,Data!U$2,FALSE)-J$5)^2 -> 0.09324423482 | K17: =(VLOOKUP(CCG_heatmap!$B17,Data!$A$4:$Z$210,Data!V$2,FALSE)-K$5)^2 -> 0.003136876882 | L17: =(VLOOKUP(CCG_heatmap!$B17,Data!$A$4:$Z$210,Data!W$2,FALSE)-L$5)^2 -> 0.003105578618 | M17: =(VLOOKUP(CCG_heatmap!$B17,Data!$A$4:$Z$210,Data!X$2,FALSE)-M$5)^2 -> 0.2678017376 | N17: =(VLOOKUP(CCG_heatmap!$B17,Data!$A$4:$Z$210,Data!Y$2,FALSE)-N$5)^2 -> 0.0004745248008 | O17: =(VLOOKUP(CCG_heatmap!$B17,Data!$A$4:$Z$210,Data!Z$2,FALSE)-O$5)^2 -> 0.2503313713 | P17: 0.6611867064 | Q17: 0.6611867064 | R17: 9 | S17: =IF($D$6:$O$6=1,1,0) -> 1
A18: 10 | B18: =HLOOKUP(CCG_heatmap!$D$2,'Closest CCG (codes)'!$B$1:$GZ$208,'Closest CCG (codes)'!$HA12,FALSE) -> 09C | C18: =VLOOKUP($B18,Data!$A$4:$B$210,2,FALSE) -> NHS Ashford CCG | D18: =(VLOOKUP(CCG_heatmap!$B18,Data!$A$4:$Z$210,Data!O$2,FALSE)-D$5)^2 -> 0.009069424951 | E18: =(VLOOKUP(CCG_heatmap!$B18,Data!$A$4:$Z$210,Data!P$2,FALSE)-E$5)^2 -> 0.1549224276 | F18: =(VLOOKUP(CCG_heatmap!$B18,Data!$A$4:$Z$210,Data!Q$2,FALSE)-F$5)^2 -> 0.005713978111 | G18: =(VLOOKUP(CCG_heatmap!$B18,Data!$A$4:$Z$210,Data!R$2,FALSE)-G$5)^2 -> 0.1113770651 | H18: =(VLOOKUP(CCG_heatmap!$B18,Data!$A$4:$Z$210,Data!S$2,FALSE)-H$5)^2 -> 0.05321962928 | I18: =(VLOOKUP(CCG_heatmap!$B18,Data!$A$4:$Z$210,Data!T$2,FALSE)-I$5)^2 -> 0.06344078136 | J18: =(VLOOKUP(CCG_heatmap!$B18,Data!$A$4:$Z$210,Data!U$2,FALSE)-J$5)^2 -> 0.09715539748 | K18: =(VLOOKUP(CCG_heatmap!$B18,Data!$A$4:$Z$210,Data!V$2,FALSE)-K$5)^2 -> 0.00793454163 | L18: =(VLOOKUP(CCG_heatmap!$B18,Data!$A$4:$Z$210,Data!W$2,FALSE)-L$5)^2 -> 0.000268261958 | M18: =(VLOOKUP(CCG_heatmap!$B18,Data!$A$4:$Z$210,Data!X$2,FALSE)-M$5)^2 -> 0.02110339603 | N18: =(VLOOKUP(CCG_heatmap!$B18,Data!$A$4:$Z$210,Data!Y$2,FALSE)-N$5)^2 -> 0.008539023068 | O18: =(VLOOKUP(CCG_heatmap!$B18,Data!$A$4:$Z$210,Data!Z$2,FALSE)-O$5)^2 -> 0.1318398147 | P18: 0.6645837412 | Q18: 0.6645837412 | R18: 10 | S18: =IF($D$6:$O$6=1,1,0) -> 1
A19: 11 | B19: =HLOOKUP(CCG_heatmap!$D$2,'Closest CCG (codes)'!$B$1:$GZ$208,'Closest CCG (codes)'!$HA13,FALSE) -> 05T | C19: =VLOOKUP($B19,Data!$A$4:$B$210,2,FALSE) -> NHS South Worcestershire CCG | D19: =(VLOOKUP(CCG_heatmap!$B19,Data!$A$4:$Z$210,Data!O$2,FALSE)-D$5)^2 -> 0.01104203326 | E19: =(VLOOKUP(CCG_heatmap!$B19,Data!$A$4:$Z$210,Data!P$2,FALSE)-E$5)^2 -> 0.05549821013 | F19: =(VLOOKUP(CCG_heatmap!$B19,Data!$A$4:$Z$210,Data!Q$2,FALSE)-F$5)^2 -> 0.1702279959 | G19: =(VLOOKUP(CCG_heatmap!$B19,Data!$A$4:$Z$210,Data!R$2,FALSE)-G$5)^2 -> 0.02292857749 | H19: =(VLOOKUP(CCG_heatmap!$B19,Data!$A$4:$Z$210,Data!S$2,FALSE)-H$5)^2 -> 0.177082991 | I19: =(VLOOKUP(CCG_heatmap!$B19,Data!$A$4:$Z$210,Data!T$2,FALSE)-I$5)^2 -> 0.01612110405 | J19: =(VLOOKUP(CCG_heatmap!$B19,Data!$A$4:$Z$210,Data!U$2,FALSE)-J$5)^2 -> 0.0009951288539 | K19: =(VLOOKUP(CCG_heatmap!$B19,Data!$A$4:$Z$210,Data!V$2,FALSE)-K$5)^2 -> 0.02490672724 | L19: =(VLOOKUP(CCG_heatmap!$B19,Data!$A$4:$Z$210,Data!W$2,FALSE)-L$5)^2 -> 0.0004155803306 | M19: =(VLOOKUP(CCG_heatmap!$B19,Data!$A$4:$Z$210,Data!X$2,FALSE)-M$5)^2 -> 0.0609396737 | N19: =(VLOOKUP(CCG_heatmap!$B19,Data!$A$4:$Z$210,Data!Y$2,FALSE)-N$5)^2 -> 8.756308879e-05 | O19: =(VLOOKUP(CCG_heatmap!$B19,Data!$A$4:$Z$210,Data!Z$2,FALSE)-O$5)^2 -> 0.1859208501 | P19: 0.7261664351 | Q19: 0.7261664351 | R19: 11 | S19: =IF($D$6:$O$6=1,1,0) -> 1
A20: 12 | B20: =HLOOKUP(CCG_heatmap!$D$2,'Closest CCG (codes)'!$B$1:$GZ$208,'Closest CCG (codes)'!$HA14,FALSE) -> 05H | C20: =VLOOKUP($B20,Data!$A$4:$B$210,2,FALSE) -> NHS Warwickshire North CCG | D20: =(VLOOKUP(CCG_heatmap!$B20,Data!$A$4:$Z$210,Data!O$2,FALSE)-D$5)^2 -> 0.003627243065 | E20: =(VLOOKUP(CCG_heatmap!$B20,Data!$A$4:$Z$210,Data!P$2,FALSE)-E$5)^2 -> 0.001395031798 | F20: =(VLOOKUP(CCG_heatmap!$B20,Data!$A$4:$Z$210,Data!Q$2,FALSE)-F$5)^2 -> 0.007285669504 | G20: =(VLOOKUP(CCG_heatmap!$B20,Data!$A$4:$Z$210,Data!R$2,FALSE)-G$5)^2 -> 0.02135698419 | H20: =(VLOOKUP(CCG_heatmap!$B20,Data!$A$4:$Z$210,Data!S$2,FALSE)-H$5)^2 -> 0.06296448037 | I20: =(VLOOKUP(CCG_heatmap!$B20,Data!$A$4:$Z$210,Data!T$2,FALSE)-I$5)^2 -> 0.003097986158 | J20: =(VLOOKUP(CCG_heatmap!$B20,Data!$A$4:$Z$210,Data!U$2,FALSE)-J$5)^2 -> 0.05119327294 | K20: =(VLOOKUP(CCG_heatmap!$B20,Data!$A$4:$Z$210,Data!V$2,FALSE)-K$5)^2 -> 6.904160069e-06 | L20: =(VLOOKUP(CCG_heatmap!$B20,Data!$A$4:$Z$210,Data!W$2,FALSE)-L$5)^2 -> 0.005875291113 | M20: =(VLOOKUP(CCG_heatmap!$B20,Data!$A$4:$Z$210,Data!X$2,FALSE)-M$5)^2 -> 0.4707958778 | N20: =(VLOOKUP(CCG_heatmap!$B20,Data!$A$4:$Z$210,Data!Y$2,FALSE)-N$5)^2 -> 0.001027521799 | O20: =(VLOOKUP(CCG_heatmap!$B20,Data!$A$4:$Z$210,Data!Z$2,FALSE)-O$5)^2 -> 0.09771108364 | P20: 0.7263373466 | Q20: 0.7263373466 | R20: 12 | S20: =IF($D$6:$O$6=1,1,0) -> 1
A21: 13 | B21: =HLOOKUP(CCG_heatmap!$D$2,'Closest CCG (codes)'!$B$1:$GZ$208,'Closest CCG (codes)'!$HA15,FALSE) -> 06L | C21: =VLOOKUP($B21,Data!$A$4:$B$210,2,FALSE) -> NHS Ipswich and East Suffolk CCG | D21: =(VLOOKUP(CCG_heatmap!$B21,Data!$A$4:$Z$210,Data!O$2,FALSE)-D$5)^2 -> 0.007793675349 | E21: =(VLOOKUP(CCG_heatmap!$B21,Data!$A$4:$Z$210,Data!P$2,FALSE)-E$5)^2 -> 0.07055445177 | F21: =(VLOOKUP(CCG_heatmap!$B21,Data!$A$4:$Z$210,Data!Q$2,FALSE)-F$5)^2 -> 0.462033695 | G21: =(VLOOKUP(CCG_heatmap!$B21,Data!$A$4:$Z$210,Data!R$2,FALSE)-G$5)^2 -> 0.001669854026 | H21: =(VLOOKUP(CCG_heatmap!$B21,Data!$A$4:$Z$210,Data!S$2,FALSE)-H$5)^2 -> 0.03415504457 | I21: =(VLOOKUP(CCG_heatmap!$B21,Data!$A$4:$Z$210,Data!T$2,FALSE)-I$5)^2 -> 5.491575691e-06 | J21: =(VLOOKUP(CCG_heatmap!$B21,Data!$A$4:$Z$210,Data!U$2,FALSE)-J$5)^2 -> 0.0006587004893 | K21: =(VLOOKUP(CCG_heatmap!$B21,Data!$A$4:$Z$210,Data!V$2,FALSE)-K$5)^2 -> 0.003096214407 | L21: =(VLOOKUP(CCG_heatmap!$B21,Data!$A$4:$Z$210,Data!W$2,FALSE)-L$5)^2 -> 9.808610594e-05 | M21: =(VLOOKUP(CCG_heatmap!$B21,Data!$A$4:$Z$210,Data!X$2,FALSE)-M$5)^2 -> 0.001665402977 | N21: =(VLOOKUP(CCG_heatmap!$B21,Data!$A$4:$Z$210,Data!Y$2,FALSE)-N$5)^2 -> 0.007978559042 | O21: =(VLOOKUP(CCG_heatmap!$B21,Data!$A$4:$Z$210,Data!Z$2,FALSE)-O$5)^2 -> 0.1778518348 | P21: 0.7675610101 | Q21: 0.7675610101 | R21: 13 | S21: =IF($D$6:$O$6=1,1,0) -> 1
A22: 14 | B22: =HLOOKUP(CCG_heatmap!$D$2,'Closest CCG (codes)'!$B$1:$GZ$208,'Closest CCG (codes)'!$HA16,FALSE) -> 10A | C22: =VLOOKUP($B22,Data!$A$4:$B$210,2,FALSE) -> NHS South Kent Coast CCG | D22: =(VLOOKUP(CCG_heatmap!$B22,Data!$A$4:$Z$210,Data!O$2,FALSE)-D$5)^2 -> 0.02149602627 | E22: =(VLOOKUP(CCG_heatmap!$B22,Data!$A$4:$Z$210,Data!P$2,FALSE)-E$5)^2 -> 0.001405448395 | F22: =(VLOOKUP(CCG_heatmap!$B22,Data!$A$4:$Z$210,Data!Q$2,FALSE)-F$5)^2 -> 0.01580802591 | G22: =(VLOOKUP(CCG_heatmap!$B22,Data!$A$4:$Z$210,Data!R$2,FALSE)-G$5)^2 -> 0.00146470249 | H22: =(VLOOKUP(CCG_heatmap!$B22,Data!$A$4:$Z$210,Data!S$2,FALSE)-H$5)^2 -> 0.07114160836 | I22: =(VLOOKUP(CCG_heatmap!$B22,Data!$A$4:$Z$210,Data!T$2,FALSE)-I$5)^2 -> 0.003823571199 | J22: =(VLOOKUP(CCG_heatmap!$B22,Data!$A$4:$Z$210,Data!U$2,FALSE)-J$5)^2 -> 0.008072657131 | K22: =(VLOOKUP(CCG_heatmap!$B22,Data!$A$4:$Z$210,Data!V$2,FALSE)-K$5)^2 -> 0.3372384192 | L22: =(VLOOKUP(CCG_heatmap!$B22,Data!$A$4:$Z$210,Data!W$2,FALSE)-L$5)^2 -> 0.002435826409 | M22: =(VLOOKUP(CCG_heatmap!$B22,Data!$A$4:$Z$210,Data!X$2,FALSE)-M$5)^2 -> 0.1627985362 | N22: =(VLOOKUP(CCG_heatmap!$B22,Data!$A$4:$Z$210,Data!Y$2,FALSE)-N$5)^2 -> 1.222324753e-05 | O22: =(VLOOKUP(CCG_heatmap!$B22,Data!$A$4:$Z$210,Data!Z$2,FALSE)-O$5)^2 -> 0.1627327731 | P22: 0.7884298178 | Q22: 0.7884298178 | R22: 14 | S22: =IF($D$6:$O$6=1,1,0) -> 1
A23: 15 | B23: =HLOOKUP(CCG_heatmap!$D$2,'Closest CCG (codes)'!$B$1:$GZ$208,'Closest CCG (codes)'!$HA17,FALSE) -> 03M | C23: =VLOOKUP($B23,Data!$A$4:$B$210,2,FALSE) -> NHS Scarborough and Ryedale CCG | D23: =(VLOOKUP(CCG_heatmap!$B23,Data!$A$4:$Z$210,Data!O$2,FALSE)-D$5)^2 -> 0.0386680459 | E23: =(VLOOKUP(CCG_heatmap!$B23,Data!$A$4:$Z$210,Data!P$2,FALSE)-E$5)^2 -> 1.07116801e-05 | F23: =(VLOOKUP(CCG_heatmap!$B23,Data!$A$4:$Z$210,Data!Q$2,FALSE)-F$5)^2 -> 0.01173461001 | G23: =(VLOOKUP(CCG_heatmap!$B23,Data!$A$4:$Z$210,Data!R$2,FALSE)-G$5)^2 -> 0.07673807106 | H23: =(VLOOKUP(CCG_heatmap!$B23,Data!$A$4:$Z$210,Data!S$2,FALSE)-H$5)^2 -> 0.3749210092 | I23: =(VLOOKUP(CCG_heatmap!$B23,Data!$A$4:$Z$210,Data!T$2,FALSE)-I$5)^2 -> 0.001459380991 | J23: =(VLOOKUP(CCG_heatmap!$B23,Data!$A$4:$Z$210,Data!U$2,FALSE)-J$5)^2 -> 0.04792518443 | K23: =(VLOOKUP(CCG_heatmap!$B23,Data!$A$4:$Z$210,Data!V$2,FALSE)-K$5)^2 -> 0.005362152982 | L23: =(VLOOKUP(CCG_heatmap!$B23,Data!$A$4:$Z$210,Data!W$2,FALSE)-L$5)^2 -> 2.062171369e-05 | M23: =(VLOOKUP(CCG_heatmap!$B23,Data!$A$4:$Z$210,Data!X$2,FALSE)-M$5)^2 -> 0.001605354409 | N23: =(VLOOKUP(CCG_heatmap!$B23,Data!$A$4:$Z$210,Data!Y$2,FALSE)-N$5)^2 -> 0.0002253887737 | O23: =(VLOOKUP(CCG_heatmap!$B23,Data!$A$4:$Z$210,Data!Z$2,FALSE)-O$5)^2 -> 0.2388177173 | P23: 0.7974882485 | Q23: 0.7974882485 | R23: 15 | S23: =IF($D$6:$O$6=1,1,0) -> 1
A24: 16 | B24: =HLOOKUP(CCG_heatmap!$D$2,'Closest CCG (codes)'!$B$1:$GZ$208,'Closest CCG (codes)'!$HA18,FALSE) -> 06Y | C24: =VLOOKUP($B24,Data!$A$4:$B$210,2,FALSE) -> NHS South Norfolk CCG | D24: =(VLOOKUP(CCG_heatmap!$B24,Data!$A$4:$Z$210,Data!O$2,FALSE)-D$5)^2 -> 0.03073186799 | E24: =(VLOOKUP(CCG_heatmap!$B24,Data!$A$4:$Z$210,Data!P$2,FALSE)-E$5)^2 -> 0.1076008546 | F24: =(VLOOKUP(CCG_heatmap!$B24,Data!$A$4:$Z$210,Data!Q$2,FALSE)-F$5)^2 -> 0.034141077 | G24: =(VLOOKUP(CCG_heatmap!$B24,Data!$A$4:$Z$210,Data!R$2,FALSE)-G$5)^2 -> 0.0004556111285 | H24: =(VLOOKUP(CCG_heatmap!$B24,Data!$A$4:$Z$210,Data!S$2,FALSE)-H$5)^2 -> 0.1246772675 | I24: =(VLOOKUP(CCG_heatmap!$B24,Data!$A$4:$Z$210,Data!T$2,FALSE)-I$5)^2 -> 0.0004292677638 | J24: =(VLOOKUP(CCG_heatmap!$B24,Data!$A$4:$Z$210,Data!U$2,FALSE)-J$5)^2 -> 0.02031287838 | K24: =(VLOOKUP(CCG_heatmap!$B24,Data!$A$4:$Z$210,Data!V$2,FALSE)-K$5)^2 -> 0.1345052438 | L24: =(VLOOKUP(CCG_heatmap!$B24,Data!$A$4:$Z$210,Data!W$2,FALSE)-L$5)^2 -> 5.329121712e-07 | M24: =(VLOOKUP(CCG_heatmap!$B24,Data!$A$4:$Z$210,Data!X$2,FALSE)-M$5)^2 -> 0.09793318265 | N24: =(VLOOKUP(CCG_heatmap!$B24,Data!$A$4:$Z$210,Data!Y$2,FALSE)-N$5)^2 -> 1.859263896e-07 | O24: =(VLOOKUP(CCG_heatmap!$B24,Data!$A$4:$Z$210,Data!Z$2,FALSE)-O$5)^2 -> 0.2553562333 | P24: 0.8061442028 | Q24: 0.8061442028 | R24: 16 | S24: =IF($D$6:$O$6=1,1,0) -> 1
A25: 17 | B25: =HLOOKUP(CCG_heatmap!$D$2,'Closest CCG (codes)'!$B$1:$GZ$208,'Closest CCG (codes)'!$HA19,FALSE) -> 11T | C25: =VLOOKUP($B25,Data!$A$4:$B$210,2,FALSE) -> NHS North Somerset CCG | D25: =(VLOOKUP(CCG_heatmap!$B25,Data!$A$4:$Z$210,Data!O$2,FALSE)-D$5)^2 -> 0.02956606103 | E25: =(VLOOKUP(CCG_heatmap!$B25,Data!$A$4:$Z$210,Data!P$2,FALSE)-E$5)^2 -> 0.0286489934 | F25: =(VLOOKUP(CCG_heatmap!$B25,Data!$A$4:$Z$210,Data!Q$2,FALSE)-F$5)^2 -> 0.02737193847 | G25: =(VLOOKUP(CCG_heatmap!$B25,Data!$A$4:$Z$210,Data!R$2,FALSE)-G$5)^2 -> 0.0003114362381 | H25: =(VLOOKUP(CCG_heatmap!$B25,Data!$A$4:$Z$210,Data!S$2,FALSE)-H$5)^2 -> 0.04240353492 | I25: =(VLOOKUP(CCG_heatmap!$B25,Data!$A$4:$Z$210,Data!T$2,FALSE)-I$5)^2 -> 0.01770976547 | J25: =(VLOOKUP(CCG_heatmap!$B25,Data!$A$4:$Z$210,Data!U$2,FALSE)-J$5)^2 -> 0.01928233506 | K25: =(VLOOKUP(CCG_heatmap!$B25,Data!$A$4:$Z$210,Data!V$2,FALSE)-K$5)^2 -> 2.72429939e-05 | L25: =(VLOOKUP(CCG_heatmap!$B25,Data!$A$4:$Z$210,Data!W$2,FALSE)-L$5)^2 -> 0.007176598949 | M25: =(VLOOKUP(CCG_heatmap!$B25,Data!$A$4:$Z$210,Data!X$2,FALSE)-M$5)^2 -> 0.4256240253 | N25: =(VLOOKUP(CCG_heatmap!$B25,Data!$A$4:$Z$210,Data!Y$2,FALSE)-N$5)^2 -> 4.042010323e-05 | O25: =(VLOOKUP(CCG_heatmap!$B25,Data!$A$4:$Z$210,Data!Z$2,FALSE)-O$5)^2 -> 0.2387845371 | P25: 0.836946889 | Q25: 0.836946889 | R25: 17 | S25: =IF($D$6:$O$6=1,1,0) -> 1
A26: 18 | B26: =HLOOKUP(CCG_heatmap!$D$2,'Closest CCG (codes)'!$B$1:$GZ$208,'Closest CCG (codes)'!$HA20,FALSE) -> 09P | C26: =VLOOKUP($B26,Data!$A$4:$B$210,2,FALSE) -> NHS Hastings & Rother CCG | D26: =(VLOOKUP(CCG_heatmap!$B26,Data!$A$4:$Z$210,Data!O$2,FALSE)-D$5)^2 -> 0.09292464751 | E26: =(VLOOKUP(CCG_heatmap!$B26,Data!$A$4:$Z$210,Data!P$2,FALSE)-E$5)^2 -> 0.007469178621 | F26: =(VLOOKUP(CCG_heatmap!$B26,Data!$A$4:$Z$210,Data!Q$2,FALSE)-F$5)^2 -> 0.006556914512 | G26: =(VLOOKUP(CCG_heatmap!$B26,Data!$A$4:$Z$210,Data!R$2,FALSE)-G$5)^2 -> 0.05169921452 | H26: =(VLOOKUP(CCG_heatmap!$B26,Data!$A$4:$Z$210,Data!S$2,FALSE)-H$5)^2 -> 0.2601585199 | I26: =(VLOOKUP(CCG_heatmap!$B26,Data!$A$4:$Z$210,Data!T$2,FALSE)-I$5)^2 -> 0.0007297381652 | J26: =(VLOOKUP(CCG_heatmap!$B26,Data!$A$4:$Z$210,Data!U$2,FALSE)-J$5)^2 -> 0.08453249598 | K26: =(VLOOKUP(CCG_heatmap!$B26,Data!$A$4:$Z$210,Data!V$2,FALSE)-K$5)^2 -> 0.04863378239 | L26: =(VLOOKUP(CCG_heatmap!$B26,Data!$A$4:$Z$210,Data!W$2,FALSE)-L$5)^2 -> 0.001725849093 | M26: =(VLOOKUP(CCG_heatmap!$B26,Data!$A$4:$Z$210,Data!X$2,FALSE)-M$5)^2 -> 0.07400619569 | N26: =(VLOOKUP(CCG_heatmap!$B26,Data!$A$4:$Z$210,Data!Y$2,FALSE)-N$5)^2 -> 0.002090224255 | O26: =(VLOOKUP(CCG_heatmap!$B26,Data!$A$4:$Z$210,Data!Z$2,FALSE)-O$5)^2 -> 0.209662637 | P26: 0.8401893977 | Q26: 0.8401893977 | R26: 18 | S26: =IF($D$6:$O$6=1,1,0) -> 1
A27: 19 | B27: =HLOOKUP(CCG_heatmap!$D$2,'Closest CCG (codes)'!$B$1:$GZ$208,'Closest CCG (codes)'!$HA21,FALSE) -> 02G | C27: =VLOOKUP($B27,Data!$A$4:$B$210,2,FALSE) -> NHS West Lancashire CCG | D27: =(VLOOKUP(CCG_heatmap!$B27,Data!$A$4:$Z$210,Data!O$2,FALSE)-D$5)^2 -> 0.0003994237584 | E27: =(VLOOKUP(CCG_heatmap!$B27,Data!$A$4:$Z$210,Data!P$2,FALSE)-E$5)^2 -> 0.03988648393 | F27: =(VLOOKUP(CCG_heatmap!$B27,Data!$A$4:$Z$210,Data!Q$2,FALSE)-F$5)^2 -> 0.01578087721 | G27: =(VLOOKUP(CCG_heatmap!$B27,Data!$A$4:$Z$210,Data!R$2,FALSE)-G$5)^2 -> 0.06742971418 | H27: =(VLOOKUP(CCG_heatmap!$B27,Data!$A$4:$Z$210,Data!S$2,FALSE)-H$5)^2 -> 0.1044684834 | I27: =(VLOOKUP(CCG_heatmap!$B27,Data!$A$4:$Z$210,Data!T$2,FALSE)-I$5)^2 -> 0.2681883861 | J27: =(VLOOKUP(CCG_heatmap!$B27,Data!$A$4:$Z$210,Data!U$2,FALSE)-J$5)^2 -> 0.005277295888 | K27: =(VLOOKUP(CCG_heatmap!$B27,Data!$A$4:$Z$210,Data!V$2,FALSE)-K$5)^2 -> 0.02214844054 | L27: =(VLOOKUP(CCG_heatmap!$B27,Data!$A$4:$Z$210,Data!W$2,FALSE)-L$5)^2 -> 0.001460525813 | M27: =(VLOOKUP(CCG_heatmap!$B27,Data!$A$4:$Z$210,Data!X$2,FALSE)-M$5)^2 -> 0.1234254179 | N27: =(VLOOKUP(CCG_heatmap!$B27,Data!$A$4:$Z$210,Data!Y$2,FALSE)-N$5)^2 -> 0.0005597347885 | O27: =(VLOOKUP(CCG_heatmap!$B27,Data!$A$4:$Z$210,Data!Z$2,FALSE)-O$5)^2 -> 0.260561471 | P27: 0.9095862545 | Q27: 0.9095862545 | R27: 19 | S27: =IF($D$6:$O$6=1,1,0) -> 1
A28: 20 | B28: =HLOOKUP(CCG_heatmap!$D$2,'Closest CCG (codes)'!$B$1:$GZ$208,'Closest CCG (codes)'!$HA22,FALSE) -> 02F | C28: =VLOOKUP($B28,Data!$A$4:$B$210,2,FALSE) -> NHS West Cheshire CCG | D28: =(VLOOKUP(CCG_heatmap!$B28,Data!$A$4:$Z$210,Data!O$2,FALSE)-D$5)^2 -> 0.009245959297 | E28: =(VLOOKUP(CCG_heatmap!$B28,Data!$A$4:$Z$210,Data!P$2,FALSE)-E$5)^2 -> 5.217406522e-05 | F28: =(VLOOKUP(CCG_heatmap!$B28,Data!$A$4:$Z$210,Data!Q$2,FALSE)-F$5)^2 -> 0.0816272724 | G28: =(VLOOKUP(CCG_heatmap!$B28,Data!$A$4:$Z$210,Data!R$2,FALSE)-G$5)^2 -> 0.01728118018 | H28: =(VLOOKUP(CCG_heatmap!$B28,Data!$A$4:$Z$210,Data!S$2,FALSE)-H$5)^2 -> 0.2091112947 | I28: =(VLOOKUP(CCG_heatmap!$B28,Data!$A$4:$Z$210,Data!T$2,FALSE)-I$5)^2 -> 0.04710253649 | J28: =(VLOOKUP(CCG_heatmap!$B28,Data!$A$4:$Z$210,Data!U$2,FALSE)-J$5)^2 -> 0.003665252534 | K28: =(VLOOKUP(CCG_heatmap!$B28,Data!$A$4:$Z$210,Data!V$2,FALSE)-K$5)^2 -> 0.09138670566 | L28: =(VLOOKUP(CCG_heatmap!$B28,Data!$A$4:$Z$210,Data!W$2,FALSE)-L$5)^2 -> 0.001786546347 | M28: =(VLOOKUP(CCG_heatmap!$B28,Data!$A$4:$Z$210,Data!X$2,FALSE)-M$5)^2 -> 0.2195781603 | N28: =(VLOOKUP(CCG_heatmap!$B28,Data!$A$4:$Z$210,Data!Y$2,FALSE)-N$5)^2 -> 4.621256966e-05 | O28: =(VLOOKUP(CCG_heatmap!$B28,Data!$A$4:$Z$210,Data!Z$2,FALSE)-O$5)^2 -> 0.2327507158 | P28: 0.9136340104 | Q28: 0.9136340104 | R28: 20 | S28: =IF($D$6:$O$6=1,1,0) -> 1
A29: 21 | B29: =HLOOKUP(CCG_heatmap!$D$2,'Closest CCG (codes)'!$B$1:$GZ$208,'Closest CCG (codes)'!$HA23,FALSE) -> 01H | C29: =VLOOKUP($B29,Data!$A$4:$B$210,2,FALSE) -> NHS Cumbria CCG | D29: =(VLOOKUP(CCG_heatmap!$B29,Data!$A$4:$Z$210,Data!O$2,FALSE)-D$5)^2 -> 0.01208946469 | E29: =(VLOOKUP(CCG_heatmap!$B29,Data!$A$4:$Z$210,Data!P$2,FALSE)-E$5)^2 -> 0.01496421968 | F29: =(VLOOKUP(CCG_heatmap!$B29,Data!$A$4:$Z$210,Data!Q$2,FALSE)-F$5)^2 -> 0.2077052515 | G29: =(VLOOKUP(CCG_heatmap!$B29,Data!$A$4:$Z$210,Data!R$2,FALSE)-G$5)^2 -> 0.03511555638 | H29: =(VLOOKUP(CCG_heatmap!$B29,Data!$A$4:$Z$210,Data!S$2,FALSE)-H$5)^2 -> 0.2581460654 | I29: =(VLOOKUP(CCG_heatmap!$B29,Data!$A$4:$Z$210,Data!T$2,FALSE)-I$5)^2 -> 0.001962606288 | J29: =(VLOOKUP(CCG_heatmap!$B29,Data!$A$4:$Z$210,Data!U$2,FALSE)-J$5)^2 -> 0.00206393126 | K29: =(VLOOKUP(CCG_heatmap!$B29,Data!$A$4:$Z$210,Data!V$2,FALSE)-K$5)^2 -> 0.1186411749 | L29: =(VLOOKUP(CCG_heatmap!$B29,Data!$A$4:$Z$210,Data!W$2,FALSE)-L$5)^2 -> 0.0001742729992 | M29: =(VLOOKUP(CCG_heatmap!$B29,Data!$A$4:$Z$210,Data!X$2,FALSE)-M$5)^2 -> 0.0008348809919 | N29: =(VLOOKUP(CCG_heatmap!$B29,Data!$A$4:$Z$210,Data!Y$2,FALSE)-N$5)^2 -> 0.001043503254 | O29: =(VLOOKUP(CCG_heatmap!$B29,Data!$A$4:$Z$210,Data!Z$2,FALSE)-O$5)^2 -> 0.2619152158 | P29: 0.9146561431 | Q29: 0.9146561431 | R29: 21 | S29: =IF($D$6:$O$6=1,1,0) -> 1
A30: 22 | B30: =HLOOKUP(CCG_heatmap!$D$2,'Closest CCG (codes)'!$B$1:$GZ$208,'Closest CCG (codes)'!$HA24,FALSE) -> 05R | C30: =VLOOKUP($B30,Data!$A$4:$B$210,2,FALSE) -> NHS South Warwickshire CCG | D30: =(VLOOKUP(CCG_heatmap!$B30,Data!$A$4:$Z$210,Data!O$2,FALSE)-D$5)^2 -> 0.1524353856 | E30: =(VLOOKUP(CCG_heatmap!$B30,Data!$A$4:$Z$210,Data!P$2,FALSE)-E$5)^2 -> 0.1111390949 | F30: =(VLOOKUP(CCG_heatmap!$B30,Data!$A$4:$Z$210,Data!Q$2,FALSE)-F$5)^2 -> 0.116336327 | G30: =(VLOOKUP(CCG_heatmap!$B30,Data!$A$4:$Z$210,Data!R$2,FALSE)-G$5)^2 -> 0.05066828743 | H30: =(VLOOKUP(CCG_heatmap!$B30,Data!$A$4:$Z$210,Data!S$2,FALSE)-H$5)^2 -> 0.2122052038 | I30: =(VLOOKUP(CCG_heatmap!$B30,Data!$A$4:$Z$210,Data!T$2,FALSE)-I$5)^2 -> 0.03963558593 | J30: =(VLOOKUP(CCG_heatmap!$B30,Data!$A$4:$Z$210,Data!U$2,FALSE)-J$5)^2 -> 1.794244561e-05 | K30: =(VLOOKUP(CCG_heatmap!$B30,Data!$A$4:$Z$210,Data!V$2,FALSE)-K$5)^2 -> 0.1013715802 | L30: =(VLOOKUP(CCG_heatmap!$B30,Data!$A$4:$Z$210,Data!W$2,FALSE)-L$5)^2 -> 0.0002273462393 | M30: =(VLOOKUP(CCG_heatmap!$B30,Data!$A$4:$Z$210,Data!X$2,FALSE)-M$5)^2 -> 0.0419600712 | N30: =(VLOOKUP(CCG_heatmap!$B30,Data!$A$4:$Z$210,Data!Y$2,FALSE)-N$5)^2 -> 0.0001054602213 | O30: =(VLOOKUP(CCG_heatmap!$B30,Data!$A$4:$Z$210,Data!Z$2,FALSE)-O$5)^2 -> 0.1031679169 | P30: 0.9292702018 | Q30: 0.9292702018 | R30: 22 | S30: =IF($D$6:$O$6=1,1,0) -> 1
A31: 23 | B31: =HLOOKUP(CCG_heatmap!$D$2,'Closest CCG (codes)'!$B$1:$GZ$208,'Closest CCG (codes)'!$HA25,FALSE) -> 05J | C31: =VLOOKUP($B31,Data!$A$4:$B$210,2,FALSE) -> NHS Redditch and Bromsgrove CCG | D31: =(VLOOKUP(CCG_heatmap!$B31,Data!$A$4:$Z$210,Data!O$2,FALSE)-D$5)^2 -> 0.01250352906 | E31: =(VLOOKUP(CCG_heatmap!$B31,Data!$A$4:$Z$210,Data!P$2,FALSE)-E$5)^2 -> 0.02054881422 | F31: =(VLOOKUP(CCG_heatmap!$B31,Data!$A$4:$Z$210,Data!Q$2,FALSE)-F$5)^2 -> 0.002540383293 | G31: =(VLOOKUP(CCG_heatmap!$B31,Data!$A$4:$Z$210,Data!R$2,FALSE)-G$5)^2 -> 0.03356320043 | H31: =(VLOOKUP(CCG_heatmap!$B31,Data!$A$4:$Z$210,Data!S$2,FALSE)-H$5)^2 -> 0.01381840527 | I31: =(VLOOKUP(CCG_heatmap!$B31,Data!$A$4:$Z$210,Data!T$2,FALSE)-I$5)^2 -> 0.001693379251 | J31: =(VLOOKUP(CCG_heatmap!$B31,Data!$A$4:$Z$210,Data!U$2,FALSE)-J$5)^2 -> 0.06802356878 | K31: =(VLOOKUP(CCG_heatmap!$B31,Data!$A$4:$Z$210,Data!V$2,FALSE)-K$5)^2 -> 0.02324474193 | L31: =(VLOOKUP(CCG_heatmap!$B31,Data!$A$4:$Z$210,Data!W$2,FALSE)-L$5)^2 -> 0.01105313003 | M31: =(VLOOKUP(CCG_heatmap!$B31,Data!$A$4:$Z$210,Data!X$2,FALSE)-M$5)^2 -> 0.6093137387 | N31: =(VLOOKUP(CCG_heatmap!$B31,Data!$A$4:$Z$210,Data!Y$2,FALSE)-N$5)^2 -> 0.002816721778 | O31: =(VLOOKUP(CCG_heatmap!$B31,Data!$A$4:$Z$210,Data!Z$2,FALSE)-O$5)^2 -> 0.1301766398 | P31: 0.9292962526 | Q31: 0.9292962526 | R31: 23 | S31: =IF($D$6:$O$6=1,1,0) -> 1
A32: 24 | B32: =HLOOKUP(CCG_heatmap!$D$2,'Closest CCG (codes)'!$B$1:$GZ$208,'Closest CCG (codes)'!$HA26,FALSE) -> 05V | C32: =VLOOKUP($B32,Data!$A$4:$B$210,2,FALSE) -> NHS Stafford and Surrounds CCG | D32: =(VLOOKUP(CCG_heatmap!$B32,Data!$A$4:$Z$210,Data!O$2,FALSE)-D$5)^2 -> 0.09478297384 | E32: =(VLOOKUP(CCG_heatmap!$B32,Data!$A$4:$Z$210,Data!P$2,FALSE)-E$5)^2 -> 0.040456745 | F32: =(VLOOKUP(CCG_heatmap!$B32,Data!$A$4:$Z$210,Data!Q$2,FALSE)-F$5)^2 -> 0.0008597061313 | G32: =(VLOOKUP(CCG_heatmap!$B32,Data!$A$4:$Z$210,Data!R$2,FALSE)-G$5)^2 -> 0.04972355028 | H32: =(VLOOKUP(CCG_heatmap!$B32,Data!$A$4:$Z$210,Data!S$2,FALSE)-H$5)^2 -> 0.2486713234 | I32: =(VLOOKUP(CCG_heatmap!$B32,Data!$A$4:$Z$210,Data!T$2,FALSE)-I$5)^2 -> 0.007611904331 | J32: =(VLOOKUP(CCG_heatmap!$B32,Data!$A$4:$Z$210,Data!U$2,FALSE)-J$5)^2 -> 0.0005862247623 | K32: =(VLOOKUP(CCG_heatmap!$B32,Data!$A$4:$Z$210,Data!V$2,FALSE)-K$5)^2 -> 0.1360804173 | L32: =(VLOOKUP(CCG_heatmap!$B32,Data!$A$4:$Z$210,Data!W$2,FALSE)-L$5)^2 -> 0.0001796587566 | M32: =(VLOOKUP(CCG_heatmap!$B32,Data!$A$4:$Z$210,Data!X$2,FALSE)-M$5)^2 -> 0.1747527014 | N32: =(VLOOKUP(CCG_heatmap!$B32,Data!$A$4:$Z$210,Data!Y$2,FALSE)-N$5)^2 -> 0.002549440892 | O32: =(VLOOKUP(CCG_heatmap!$B32,Data!$A$4:$Z$210,Data!Z$2,FALSE)-O$5)^2 -> 0.1777458474 | P32: 0.9340004935 | Q32: 0.9340004935 | R32: 24 | S32: =IF($D$6:$O$6=1,1,0) -> 1
A33: 25 | B33: =HLOOKUP(CCG_heatmap!$D$2,'Closest CCG (codes)'!$B$1:$GZ$208,'Closest CCG (codes)'!$HA27,FALSE) -> 03W | C33: =VLOOKUP($B33,Data!$A$4:$B$210,2,FALSE) -> NHS East Leicestershire and Rutland CCG | D33: =(VLOOKUP(CCG_heatmap!$B33,Data!$A$4:$Z$210,Data!O$2,FALSE)-D$5)^2 -> 0.1664977206 | E33: =(VLOOKUP(CCG_heatmap!$B33,Data!$A$4:$Z$210,Data!P$2,FALSE)-E$5)^2 -> 0.2068786224 | F33: =(VLOOKUP(CCG_heatmap!$B33,Data!$A$4:$Z$210,Data!Q$2,FALSE)-F$5)^2 -> 0.2183161424 | G33: =(VLOOKUP(CCG_heatmap!$B33,Data!$A$4:$Z$210,Data!R$2,FALSE)-G$5)^2 -> 0.007236045145 | H33: =(VLOOKUP(CCG_heatmap!$B33,Data!$A$4:$Z$210,Data!S$2,FALSE)-H$5)^2 -> 0.04129434465 | I33: =(VLOOKUP(CCG_heatmap!$B33,Data!$A$4:$Z$210,Data!T$2,FALSE)-I$5)^2 -> 0.0005292396093 | J33: =(VLOOKUP(CCG_heatmap!$B33,Data!$A$4:$Z$210,Data!U$2,FALSE)-J$5)^2 -> 7.936537716e-05 | K33: =(VLOOKUP(CCG_heatmap!$B33,Data!$A$4:$Z$210,Data!V$2,FALSE)-K$5)^2 -> 0.07779764887 | L33: =(VLOOKUP(CCG_heatmap!$B33,Data!$A$4:$Z$210,Data!W$2,FALSE)-L$5)^2 -> 0.0002167650819 | M33: =(VLOOKUP(CCG_heatmap!$B33,Data!$A$4:$Z$210,Data!X$2,FALSE)-M$5)^2 -> 0.1897218756 | N33: =(VLOOKUP(CCG_heatmap!$B33,Data!$A$4:$Z$210,Data!Y$2,FALSE)-N$5)^2 -> 0.001342742066 | O33: =(VLOOKUP(CCG_heatmap!$B33,Data!$A$4:$Z$210,Data!Z$2,FALSE)-O$5)^2 -> 0.02968932047 | P33: 0.9395998323 | Q33: 0.9395998323 | R33: 25 | S33: =IF($D$6:$O$6=1,1,0) -> 1
A34: 26 | B34: =HLOOKUP(CCG_heatmap!$D$2,'Closest CCG (codes)'!$B$1:$GZ$208,'Closest CCG (codes)'!$HA28,FALSE) -> 99K | C34: =VLOOKUP($B34,Data!$A$4:$B$210,2,FALSE) -> NHS High Weald Lewes Havens CCG | D34: =(VLOOKUP(CCG_heatmap!$B34,Data!$A$4:$Z$210,Data!O$2,FALSE)-D$5)^2 -> 0.1230692687 | E34: =(VLOOKUP(CCG_heatmap!$B34,Data!$A$4:$Z$210,Data!P$2,FALSE)-E$5)^2 -> 0.3216242824 | F34: =(VLOOKUP(CCG_heatmap!$B34,Data!$A$4:$Z$210,Data!Q$2,FALSE)-F$5)^2 -> 0.0009671333547 | G34: =(VLOOKUP(CCG_heatmap!$B34,Data!$A$4:$Z$210,Data!R$2,FALSE)-G$5)^2 -> 0.1105724358 | H34: =(VLOOKUP(CCG_heatmap!$B34,Data!$A$4:$Z$210,Data!S$2,FALSE)-H$5)^2 -> 0.009623612681 | I34: =(VLOOKUP(CCG_heatmap!$B34,Data!$A$4:$Z$210,Data!T$2,FALSE)-I$5)^2 -> 0.002021006862 | J34: =(VLOOKUP(CCG_heatmap!$B34,Data!$A$4:$Z$210,Data!U$2,FALSE)-J$5)^2 -> 0.008342164603 | K34: =(VLOOKUP(CCG_heatmap!$B34,Data!$A$4:$Z$210,Data!V$2,FALSE)-K$5)^2 -> 0.1177670862 | L34: =(VLOOKUP(CCG_heatmap!$B34,Data!$A$4:$Z$210,Data!W$2,FALSE)-L$5)^2 -> 0.000184832013 | M34: =(VLOOKUP(CCG_heatmap!$B34,Data!$A$4:$Z$210,Data!X$2,FALSE)-M$5)^2 -> 0.01633544086 | N34: =(VLOOKUP(CCG_heatmap!$B34,Data!$A$4:$Z$210,Data!Y$2,FALSE)-N$5)^2 -> 1.411222197e-05 | O34: =(VLOOKUP(CCG_heatmap!$B34,Data!$A$4:$Z$210,Data!Z$2,FALSE)-O$5)^2 -> 0.2357100072 | P34: 0.9462313829 | Q34: 0.9462313829 | R34: 26 | S34: =IF($D$6:$O$6=1,1,0) -> 1
A35: 27 | B35: =HLOOKUP(CCG_heatmap!$D$2,'Closest CCG (codes)'!$B$1:$GZ$208,'Closest CCG (codes)'!$HA29,FALSE) -> 03E | C35: =VLOOKUP($B35,Data!$A$4:$B$210,2,FALSE) -> NHS Harrogate and Rural District CCG | D35: =(VLOOKUP(CCG_heatmap!$B35,Data!$A$4:$Z$210,Data!O$2,FALSE)-D$5)^2 -> 0.1950366506 | E35: =(VLOOKUP(CCG_heatmap!$B35,Data!$A$4:$Z$210,Data!P$2,FALSE)-E$5)^2 -> 0.2319717402 | F35: =(VLOOKUP(CCG_heatmap!$B35,Data!$A$4:$Z$210,Data!Q$2,FALSE)-F$5)^2 -> 9.11353288e-05 | G35: =(VLOOKUP(CCG_heatmap!$B35,Data!$A$4:$Z$210,Data!R$2,FALSE)-G$5)^2 -> 0.1055914856 | H35: =(VLOOKUP(CCG_heatmap!$B35,Data!$A$4:$Z$210,Data!S$2,FALSE)-H$5)^2 -> 0.1002222972 | I35: =(VLOOKUP(CCG_heatmap!$B35,Data!$A$4:$Z$210,Data!T$2,FALSE)-I$5)^2 -> 0.03415555991 | J35: =(VLOOKUP(CCG_heatmap!$B35,Data!$A$4:$Z$210,Data!U$2,FALSE)-J$5)^2 -> 0.009989362533 | K35: =(VLOOKUP(CCG_heatmap!$B35,Data!$A$4:$Z$210,Data!V$2,FALSE)-K$5)^2 -> 0.04150177806 | L35: =(VLOOKUP(CCG_heatmap!$B35,Data!$A$4:$Z$210,Data!W$2,FALSE)-L$5)^2 -> 4.355859057e-06 | M35: =(VLOOKUP(CCG_heatmap!$B35,Data!$A$4:$Z$210,Data!X$2,FALSE)-M$5)^2 -> 0.007048882099 | N35: =(VLOOKUP(CCG_heatmap!$B35,Data!$A$4:$Z$210,Data!Y$2,FALSE)-N$5)^2 -> 0.001788189276 | O35: =(VLOOKUP(CCG_heatmap!$B35,Data!$A$4:$Z$210,Data!Z$2,FALSE)-O$5)^2 -> 0.2227928944 | P35: 0.950194331 | Q35: 0.950194331 | R35: 27 | S35: =IF($D$6:$O$6=1,1,0) -> 1
A36: 28 | B36: =HLOOKUP(CCG_heatmap!$D$2,'Closest CCG (codes)'!$B$1:$GZ$208,'Closest CCG (codes)'!$HA30,FALSE) -> 10J | C36: =VLOOKUP($B36,Data!$A$4:$B$210,2,FALSE) -> NHS North Hampshire CCG | D36: =(VLOOKUP(CCG_heatmap!$B36,Data!$A$4:$Z$210,Data!O$2,FALSE)-D$5)^2 -> 0.1713540205 | E36: =(VLOOKUP(CCG_heatmap!$B36,Data!$A$4:$Z$210,Data!P$2,FALSE)-E$5)^2 -> 0.2305005626 | F36: =(VLOOKUP(CCG_heatmap!$B36,Data!$A$4:$Z$210,Data!Q$2,FALSE)-F$5)^2 -> 0.03368410653 | G36: =(VLOOKUP(CCG_heatmap!$B36,Data!$A$4:$Z$210,Data!R$2,FALSE)-G$5)^2 -> 0.07635931506 | H36: =(VLOOKUP(CCG_heatmap!$B36,Data!$A$4:$Z$210,Data!S$2,FALSE)-H$5)^2 -> 0.0005827553141 | I36: =(VLOOKUP(CCG_heatmap!$B36,Data!$A$4:$Z$210,Data!T$2,FALSE)-I$5)^2 -> 0.0009558693048 | J36: =(VLOOKUP(CCG_heatmap!$B36,Data!$A$4:$Z$210,Data!U$2,FALSE)-J$5)^2 -> 0.1528309197 | K36: =(VLOOKUP(CCG_heatmap!$B36,Data!$A$4:$Z$210,Data!V$2,FALSE)-K$5)^2 -> 0.001524966933 | L36: =(VLOOKUP(CCG_heatmap!$B36,Data!$A$4:$Z$210,Data!W$2,FALSE)-L$5)^2 -> 0.0006111089113 | M36: =(VLOOKUP(CCG_heatmap!$B36,Data!$A$4:$Z$210,Data!X$2,FALSE)-M$5)^2 -> 0.1673516889 | N36: =(VLOOKUP(CCG_heatmap!$B36,Data!$A$4:$Z$210,Data!Y$2,FALSE)-N$5)^2 -> 0.006404524871 | O36: =(VLOOKUP(CCG_heatmap!$B36,Data!$A$4:$Z$210,Data!Z$2,FALSE)-O$5)^2 -> 0.1195623464 | P36: 0.9617221849 | Q36: 0.9617221849 | R36: 28 | S36: =IF($D$6:$O$6=1,1,0) -> 1
A37: 29 | B37: =HLOOKUP(CCG_heatmap!$D$2,'Closest CCG (codes)'!$B$1:$GZ$208,'Closest CCG (codes)'!$HA31,FALSE) -> 01C | C37: =VLOOKUP($B37,Data!$A$4:$B$210,2,FALSE) -> NHS Eastern Cheshire CCG | D37: =(VLOOKUP(CCG_heatmap!$B37,Data!$A$4:$Z$210,Data!O$2,FALSE)-D$5)^2 -> 0.1430923503 | E37: =(VLOOKUP(CCG_heatmap!$B37,Data!$A$4:$Z$210,Data!P$2,FALSE)-E$5)^2 -> 0.08119231031 | F37: =(VLOOKUP(CCG_heatmap!$B37,Data!$A$4:$Z$210,Data!Q$2,FALSE)-F$5)^2 -> 0.01827050826 | G37: =(VLOOKUP(CCG_heatmap!$B37,Data!$A$4:$Z$210,Data!R$2,FALSE)-G$5)^2 -> 0.02525514678 | H37: =(VLOOKUP(CCG_heatmap!$B37,Data!$A$4:$Z$210,Data!S$2,FALSE)-H$5)^2 -> 0.128753286 | I37: =(VLOOKUP(CCG_heatmap!$B37,Data!$A$4:$Z$210,Data!T$2,FALSE)-I$5)^2 -> 0.08374741937 | J37: =(VLOOKUP(CCG_heatmap!$B37,Data!$A$4:$Z$210,Data!U$2,FALSE)-J$5)^2 -> 0.01763454423 | K37: =(VLOOKUP(CCG_heatmap!$B37,Data!$A$4:$Z$210,Data!V$2,FALSE)-K$5)^2 -> 0.01434639038 | L37: =(VLOOKUP(CCG_heatmap!$B37,Data!$A$4:$Z$210,Data!W$2,FALSE)-L$5)^2 -> 0.001301161082 | M37: =(VLOOKUP(CCG_heatmap!$B37,Data!$A$4:$Z$210,Data!X$2,FALSE)-M$5)^2 -> 0.2682266343 | N37: =(VLOOKUP(CCG_heatmap!$B37,Data!$A$4:$Z$210,Data!Y$2,FALSE)-N$5)^2 -> 2.528278105e-05 | O37: =(VLOOKUP(CCG_heatmap!$B37,Data!$A$4:$Z$210,Data!Z$2,FALSE)-O$5)^2 -> 0.1968928864 | P37: 0.9787379202 | Q37: 0.9787379202 | R37: 29 | S37: =IF($D$6:$O$6=1,1,0) -> 1
A38: 30 | B38: =HLOOKUP(CCG_heatmap!$D$2,'Closest CCG (codes)'!$B$1:$GZ$208,'Closest CCG (codes)'!$HA32,FALSE) -> 00C | C38: =VLOOKUP($B38,Data!$A$4:$B$210,2,FALSE) -> NHS Darlington CCG | D38: =(VLOOKUP(CCG_heatmap!$B38,Data!$A$4:$Z$210,Data!O$2,FALSE)-D$5)^2 -> 0.03897446242 | E38: =(VLOOKUP(CCG_heatmap!$B38,Data!$A$4:$Z$210,Data!P$2,FALSE)-E$5)^2 -> 0.08746761031 | F38: =(VLOOKUP(CCG_heatmap!$B38,Data!$A$4:$Z$210,Data!Q$2,FALSE)-F$5)^2 -> 0.01980248452 | G38: =(VLOOKUP(CCG_heatmap!$B38,Data!$A$4:$Z$210,Data!R$2,FALSE)-G$5)^2 -> 0.005344198589 | H38: =(VLOOKUP(CCG_heatmap!$B38,Data!$A$4:$Z$210,Data!S$2,FALSE)-H$5)^2 -> 0.0004532605848 | I38: =(VLOOKUP(CCG_heatmap!$B38,Data!$A$4:$Z$210,Data!T$2,FALSE)-I$5)^2 -> 2.481721436e-05 | J38: =(VLOOKUP(CCG_heatmap!$B38,Data!$A$4:$Z$210,Data!U$2,FALSE)-J$5)^2 -> 0.02242985827 | K38: =(VLOOKUP(CCG_heatmap!$B38,Data!$A$4:$Z$210,Data!V$2,FALSE)-K$5)^2 -> 0.004717040479 | L38: =(VLOOKUP(CCG_heatmap!$B38,Data!$A$4:$Z$210,Data!W$2,FALSE)-L$5)^2 -> 0.00627485368 | M38: =(VLOOKUP(CCG_heatmap!$B38,Data!$A$4:$Z$210,Data!X$2,FALSE)-M$5)^2 -> 0.6153835589 | N38: =(VLOOKUP(CCG_heatmap!$B38,Data!$A$4:$Z$210,Data!Y$2,FALSE)-N$5)^2 -> 6.834486543e-06 | O38: =(VLOOKUP(CCG_heatmap!$B38,Data!$A$4:$Z$210,Data!Z$2,FALSE)-O$5)^2 -> 0.1943428699 | P38: 0.9952218494 | Q38: 0.9952218494 | R38: 30 | S38: =IF($D$6:$O$6=1,1,0) -> 1
A39: 31 | B39: =HLOOKUP(CCG_heatmap!$D$2,'Closest CCG (codes)'!$B$1:$GZ$208,'Closest CCG (codes)'!$HA33,FALSE) -> 07H | C39: =VLOOKUP($B39,Data!$A$4:$B$210,2,FALSE) -> NHS West Essex CCG | D39: =(VLOOKUP(CCG_heatmap!$B39,Data!$A$4:$Z$210,Data!O$2,FALSE)-D$5)^2 -> 0.02559864685 | E39: =(VLOOKUP(CCG_heatmap!$B39,Data!$A$4:$Z$210,Data!P$2,FALSE)-E$5)^2 -> 0.1399836927 | F39: =(VLOOKUP(CCG_heatmap!$B39,Data!$A$4:$Z$210,Data!Q$2,FALSE)-F$5)^2 -> 0.1729837322 | G39: =(VLOOKUP(CCG_heatmap!$B39,Data!$A$4:$Z$210,Data!R$2,FALSE)-G$5)^2 -> 0.1955614975 | H39: =(VLOOKUP(CCG_heatmap!$B39,Data!$A$4:$Z$210,Data!S$2,FALSE)-H$5)^2 -> 0.01524230248 | I39: =(VLOOKUP(CCG_heatmap!$B39,Data!$A$4:$Z$210,Data!T$2,FALSE)-I$5)^2 -> 2.889777714e-05 | J39: =(VLOOKUP(CCG_heatmap!$B39,Data!$A$4:$Z$210,Data!U$2,FALSE)-J$5)^2 -> 0.07500074327 | K39: =(VLOOKUP(CCG_heatmap!$B39,Data!$A$4:$Z$210,Data!V$2,FALSE)-K$5)^2 -> 0.007032296375 | L39: =(VLOOKUP(CCG_heatmap!$B39,Data!$A$4:$Z$210,Data!W$2,FALSE)-L$5)^2 -> 0.001069020624 | M39: =(VLOOKUP(CCG_heatmap!$B39,Data!$A$4:$Z$210,Data!X$2,FALSE)-M$5)^2 -> 0.2060261234 | N39: =(VLOOKUP(CCG_heatmap!$B39,Data!$A$4:$Z$210,Data!Y$2,FALSE)-N$5)^2 -> 0.04394067045 | O39: =(VLOOKUP(CCG_heatmap!$B39,Data!$A$4:$Z$210,Data!Z$2,FALSE)-O$5)^2 -> 0.1205711852 | P39: 1.003038809 | Q39: 1.003038809 | R39: 31 | S39: =IF($D$6:$O$6=1,1,0) -> 1
A40: 32 | B40: =HLOOKUP(CCG_heatmap!$D$2,'Closest CCG (codes)'!$B$1:$GZ$208,'Closest CCG (codes)'!$HA34,FALSE) -> 06M | C40: =VLOOKUP($B40,Data!$A$4:$B$210,2,FALSE) -> NHS Great Yarmouth & Waveney CCG | D40: =(VLOOKUP(CCG_heatmap!$B40,Data!$A$4:$Z$210,Data!O$2,FALSE)-D$5)^2 -> 0.2005031676 | E40: =(VLOOKUP(CCG_heatmap!$B40,Data!$A$4:$Z$210,Data!P$2,FALSE)-E$5)^2 -> 0.04526809767 | F40: =(VLOOKUP(CCG_heatmap!$B40,Data!$A$4:$Z$210,Data!Q$2,FALSE)-F$5)^2 -> 0.04896512703 | G40: =(VLOOKUP(CCG_heatmap!$B40,Data!$A$4:$Z$210,Data!R$2,FALSE)-G$5)^2 -> 0.02811564991 | H40: =(VLOOKUP(CCG_heatmap!$B40,Data!$A$4:$Z$210,Data!S$2,FALSE)-H$5)^2 -> 0.2377061724 | I40: =(VLOOKUP(CCG_heatmap!$B40,Data!$A$4:$Z$210,Data!T$2,FALSE)-I$5)^2 -> 0.002421133909 | J40: =(VLOOKUP(CCG_heatmap!$B40,Data!$A$4:$Z$210,Data!U$2,FALSE)-J$5)^2 -> 0.04386564519 | K40: =(VLOOKUP(CCG_heatmap!$B40,Data!$A$4:$Z$210,Data!V$2,FALSE)-K$5)^2 -> 0.0220870273 | L40: =(VLOOKUP(CCG_heatmap!$B40,Data!$A$4:$Z$210,Data!W$2,FALSE)-L$5)^2 -> 0.002700124374 | M40: =(VLOOKUP(CCG_heatmap!$B40,Data!$A$4:$Z$210,Data!X$2,FALSE)-M$5)^2 -> 0.1325382208 | N40: =(VLOOKUP(CCG_heatmap!$B40,Data!$A$4:$Z$210,Data!Y$2,FALSE)-N$5)^2 -> 5.497653038e-07 | O40: =(VLOOKUP(CCG_heatmap!$B40,Data!$A$4:$Z$210,Data!Z$2,FALSE)-O$5)^2 -> 0.2504305235 | P40: 1.014601439 | Q40: 1.014601439 | R40: 32 | S40: =IF($D$6:$O$6=1,1,0) -> 1
A41: 33 | B41: =HLOOKUP(CCG_heatmap!$D$2,'Closest CCG (codes)'!$B$1:$GZ$208,'Closest CCG (codes)'!$HA35,FALSE) -> 03Y | C41: =VLOOKUP($B41,Data!$A$4:$B$210,2,FALSE) -> NHS Hardwick CCG | D41: =(VLOOKUP(CCG_heatmap!$B41,Data!$A$4:$Z$210,Data!O$2,FALSE)-D$5)^2 -> 0.06082247135 | E41: =(VLOOKUP(CCG_heatmap!$B41,Data!$A$4:$Z$210,Data!P$2,FALSE)-E$5)^2 -> 0.1040832095 | F41: =(VLOOKUP(CCG_heatmap!$B41,Data!$A$4:$Z$210,Data!Q$2,FALSE)-F$5)^2 -> 0.02316511325 | G41: =(VLOOKUP(CCG_heatmap!$B41,Data!$A$4:$Z$210,Data!R$2,FALSE)-G$5)^2 -> 0.0003814270151 | H41: =(VLOOKUP(CCG_heatmap!$B41,Data!$A$4:$Z$210,Data!S$2,FALSE)-H$5)^2 -> 0.1489000845 | I41: =(VLOOKUP(CCG_heatmap!$B41,Data!$A$4:$Z$210,Data!T$2,FALSE)-I$5)^2 -> 0.008784069919 | J41: =(VLOOKUP(CCG_heatmap!$B41,Data!$A$4:$Z$210,Data!U$2,FALSE)-J$5)^2 -> 0.01030969436 | K41: =(VLOOKUP(CCG_heatmap!$B41,Data!$A$4:$Z$210,Data!V$2,FALSE)-K$5)^2 -> 0.1227328003 | L41: =(VLOOKUP(CCG_heatmap!$B41,Data!$A$4:$Z$210,Data!W$2,FALSE)-L$5)^2 -> 0.005517498207 | M41: =(VLOOKUP(CCG_heatmap!$B41,Data!$A$4:$Z$210,Data!X$2,FALSE)-M$5)^2 -> 0.267877675 | N41: =(VLOOKUP(CCG_heatmap!$B41,Data!$A$4:$Z$210,Data!Y$2,FALSE)-N$5)^2 -> 0.000149471658 | O41: =(VLOOKUP(CCG_heatmap!$B41,Data!$A$4:$Z$210,Data!Z$2,FALSE)-O$5)^2 -> 0.2624897646 | P41: 1.01521328 | Q41: 1.01521328 | R41: 33 | S41: =IF($D$6:$O$6=1,1,0) -> 1
A42: 34 | B42: =HLOOKUP(CCG_heatmap!$D$2,'Closest CCG (codes)'!$B$1:$GZ$208,'Closest CCG (codes)'!$HA36,FALSE) -> 00L | C42: =VLOOKUP($B42,Data!$A$4:$B$210,2,FALSE) -> NHS Northumberland CCG | D42: =(VLOOKUP(CCG_heatmap!$B42,Data!$A$4:$Z$210,Data!O$2,FALSE)-D$5)^2 -> 0.001406149753 | E42: =(VLOOKUP(CCG_heatmap!$B42,Data!$A$4:$Z$210,Data!P$2,FALSE)-E$5)^2 -> 0.006379541316 | F42: =(VLOOKUP(CCG_heatmap!$B42,Data!$A$4:$Z$210,Data!Q$2,FALSE)-F$5)^2 -> 0.2084455552 | G42: =(VLOOKUP(CCG_heatmap!$B42,Data!$A$4:$Z$210,Data!R$2,FALSE)-G$5)^2 -> 0.09830063183 | H42: =(VLOOKUP(CCG_heatmap!$B42,Data!$A$4:$Z$210,Data!S$2,FALSE)-H$5)^2 -> 0.271302361 | I42: =(VLOOKUP(CCG_heatmap!$B42,Data!$A$4:$Z$210,Data!T$2,FALSE)-I$5)^2 -> 0.007967505046 | J42: =(VLOOKUP(CCG_heatmap!$B42,Data!$A$4:$Z$210,Data!U$2,FALSE)-J$5)^2 -> 0.004474903029 | K42: =(VLOOKUP(CCG_heatmap!$B42,Data!$A$4:$Z$210,Data!V$2,FALSE)-K$5)^2 -> 0.1042548193 | L42: =(VLOOKUP(CCG_heatmap!$B42,Data!$A$4:$Z$210,Data!W$2,FALSE)-L$5)^2 -> 0.0001774756881 | M42: =(VLOOKUP(CCG_heatmap!$B42,Data!$A$4:$Z$210,Data!X$2,FALSE)-M$5)^2 -> 0.06765566129 | N42: =(VLOOKUP(CCG_heatmap!$B42,Data!$A$4:$Z$210,Data!Y$2,FALSE)-N$5)^2 -> 0.001010328636 | O42: =(VLOOKUP(CCG_heatmap!$B42,Data!$A$4:$Z$210,Data!Z$2,FALSE)-O$5)^2 -> 0.2586521576 | P42: 1.03002709 | Q42: 1.03002709 | R42: 34 | S42: =IF($D$6:$O$6=1,1,0) -> 1
A43: 35 | B43: =HLOOKUP(CCG_heatmap!$D$2,'Closest CCG (codes)'!$B$1:$GZ$208,'Closest CCG (codes)'!$HA37,FALSE) -> 04J | C43: =VLOOKUP($B43,Data!$A$4:$B$210,2,FALSE) -> NHS North Derbyshire CCG | D43: =(VLOOKUP(CCG_heatmap!$B43,Data!$A$4:$Z$210,Data!O$2,FALSE)-D$5)^2 -> 0.004011781858 | E43: =(VLOOKUP(CCG_heatmap!$B43,Data!$A$4:$Z$210,Data!P$2,FALSE)-E$5)^2 -> 0.002566373421 | F43: =(VLOOKUP(CCG_heatmap!$B43,Data!$A$4:$Z$210,Data!Q$2,FALSE)-F$5)^2 -> 0.1364006036 | G43: =(VLOOKUP(CCG_heatmap!$B43,Data!$A$4:$Z$210,Data!R$2,FALSE)-G$5)^2 -> 0.1035304637 | H43: =(VLOOKUP(CCG_heatmap!$B43,Data!$A$4:$Z$210,Data!S$2,FALSE)-H$5)^2 -> 0.297356755 | I43: =(VLOOKUP(CCG_heatmap!$B43,Data!$A$4:$Z$210,Data!T$2,FALSE)-I$5)^2 -> 0.003155266108 | J43: =(VLOOKUP(CCG_heatmap!$B43,Data!$A$4:$Z$210,Data!U$2,FALSE)-J$5)^2 -> 0.0004342460521 | K43: =(VLOOKUP(CCG_heatmap!$B43,Data!$A$4:$Z$210,Data!V$2,FALSE)-K$5)^2 -> 0.06278309465 | L43: =(VLOOKUP(CCG_heatmap!$B43,Data!$A$4:$Z$210,Data!W$2,FALSE)-L$5)^2 -> 0.0004701873685 | M43: =(VLOOKUP(CCG_heatmap!$B43,Data!$A$4:$Z$210,Data!X$2,FALSE)-M$5)^2 -> 0.1964641455 | N43: =(VLOOKUP(CCG_heatmap!$B43,Data!$A$4:$Z$210,Data!Y$2,FALSE)-N$5)^2 -> 1.651299834e-05 | O43: =(VLOOKUP(CCG_heatmap!$B43,Data!$A$4:$Z$210,Data!Z$2,FALSE)-O$5)^2 -> 0.2502981429 | P43: 1.057487573 | Q43: 1.057487573 | R43: 35 | S43: =IF($D$6:$O$6=1,1,0) -> 1
A44: 36 | B44: =HLOOKUP(CCG_heatmap!$D$2,'Closest CCG (codes)'!$B$1:$GZ$208,'Closest CCG (codes)'!$HA38,FALSE) -> 07J | C44: =VLOOKUP($B44,Data!$A$4:$B$210,2,FALSE) -> NHS West Norfolk CCG | D44: =(VLOOKUP(CCG_heatmap!$B44,Data!$A$4:$Z$210,Data!O$2,FALSE)-D$5)^2 -> 0.04282190572 | E44: =(VLOOKUP(CCG_heatmap!$B44,Data!$A$4:$Z$210,Data!P$2,FALSE)-E$5)^2 -> 0.0413908847 | F44: =(VLOOKUP(CCG_heatmap!$B44,Data!$A$4:$Z$210,Data!Q$2,FALSE)-F$5)^2 -> 0.001856094428 | G44: =(VLOOKUP(CCG_heatmap!$B44,Data!$A$4:$Z$210,Data!R$2,FALSE)-G$5)^2 -> 0.03730870085 | H44: =(VLOOKUP(CCG_heatmap!$B44,Data!$A$4:$Z$210,Data!S$2,FALSE)-H$5)^2 -> 0.3785372971 | I44: =(VLOOKUP(CCG_heatmap!$B44,Data!$A$4:$Z$210,Data!T$2,FALSE)-I$5)^2 -> 0.01817151315 | J44: =(VLOOKUP(CCG_heatmap!$B44,Data!$A$4:$Z$210,Data!U$2,FALSE)-J$5)^2 -> 0.1390196764 | K44: =(VLOOKUP(CCG_heatmap!$B44,Data!$A$4:$Z$210,Data!V$2,FALSE)-K$5)^2 -> 0.01625540275 | L44: =(VLOOKUP(CCG_heatmap!$B44,Data!$A$4:$Z$210,Data!W$2,FALSE)-L$5)^2 -> 6.329591648e-05 | M44: =(VLOOKUP(CCG_heatmap!$B44,Data!$A$4:$Z$210,Data!X$2,FALSE)-M$5)^2 -> 0.1752109931 | N44: =(VLOOKUP(CCG_heatmap!$B44,Data!$A$4:$Z$210,Data!Y$2,FALSE)-N$5)^2 -> 9.109828966e-07 | O44: =(VLOOKUP(CCG_heatmap!$B44,Data!$A$4:$Z$210,Data!Z$2,FALSE)-O$5)^2 -> 0.2386046494 | P44: 1.089241325 | Q44: 1.089241325 | R44: 36 | S44: =IF($D$6:$O$6=1,1,0) -> 1
A45: 37 | B45: =HLOOKUP(CCG_heatmap!$D$2,'Closest CCG (codes)'!$B$1:$GZ$208,'Closest CCG (codes)'!$HA39,FALSE) -> 00X | C45: =VLOOKUP($B45,Data!$A$4:$B$210,2,FALSE) -> NHS Chorley and South Ribble CCG | D45: =(VLOOKUP(CCG_heatmap!$B45,Data!$A$4:$Z$210,Data!O$2,FALSE)-D$5)^2 -> 0.01570791614 | E45: =(VLOOKUP(CCG_heatmap!$B45,Data!$A$4:$Z$210,Data!P$2,FALSE)-E$5)^2 -> 0.02393536741 | F45: =(VLOOKUP(CCG_heatmap!$B45,Data!$A$4:$Z$210,Data!Q$2,FALSE)-F$5)^2 -> 0.004179792737 | G45: =(VLOOKUP(CCG_heatmap!$B45,Data!$A$4:$Z$210,Data!R$2,FALSE)-G$5)^2 -> 0.03723525271 | H45: =(VLOOKUP(CCG_heatmap!$B45,Data!$A$4:$Z$210,Data!S$2,FALSE)-H$5)^2 -> 0.03617640046 | I45: =(VLOOKUP(CCG_heatmap!$B45,Data!$A$4:$Z$210,Data!T$2,FALSE)-I$5)^2 -> 0.006311196772 | J45: =(VLOOKUP(CCG_heatmap!$B45,Data!$A$4:$Z$210,Data!U$2,FALSE)-J$5)^2 -> 0.06884762252 | K45: =(VLOOKUP(CCG_heatmap!$B45,Data!$A$4:$Z$210,Data!V$2,FALSE)-K$5)^2 -> 0.1114994764 | L45: =(VLOOKUP(CCG_heatmap!$B45,Data!$A$4:$Z$210,Data!W$2,FALSE)-L$5)^2 -> 0.01387512389 | M45: =(VLOOKUP(CCG_heatmap!$B45,Data!$A$4:$Z$210,Data!X$2,FALSE)-M$5)^2 -> 0.5619285309 | N45: =(VLOOKUP(CCG_heatmap!$B45,Data!$A$4:$Z$210,Data!Y$2,FALSE)-N$5)^2 -> 6.171492232e-05 | O45: =(VLOOKUP(CCG_heatmap!$B45,Data!$A$4:$Z$210,Data!Z$2,FALSE)-O$5)^2 -> 0.2248940387 | P45: 1.104652434 | Q45: 1.104652434 | R45: 37 | S45: =IF($D$6:$O$6=1,1,0) -> 1
A46: 38 | B46: =HLOOKUP(CCG_heatmap!$D$2,'Closest CCG (codes)'!$B$1:$GZ$208,'Closest CCG (codes)'!$HA40,FALSE) -> 02Y | C46: =VLOOKUP($B46,Data!$A$4:$B$210,2,FALSE) -> NHS East Riding of Yorkshire CCG | D46: =(VLOOKUP(CCG_heatmap!$B46,Data!$A$4:$Z$210,Data!O$2,FALSE)-D$5)^2 -> 0.01746965474 | E46: =(VLOOKUP(CCG_heatmap!$B46,Data!$A$4:$Z$210,Data!P$2,FALSE)-E$5)^2 -> 0.08511926845 | F46: =(VLOOKUP(CCG_heatmap!$B46,Data!$A$4:$Z$210,Data!Q$2,FALSE)-F$5)^2 -> 0.1573409832 | G46: =(VLOOKUP(CCG_heatmap!$B46,Data!$A$4:$Z$210,Data!R$2,FALSE)-G$5)^2 -> 0.1180724014 | H46: =(VLOOKUP(CCG_heatmap!$B46,Data!$A$4:$Z$210,Data!S$2,FALSE)-H$5)^2 -> 0.320174539 | I46: =(VLOOKUP(CCG_heatmap!$B46,Data!$A$4:$Z$210,Data!T$2,FALSE)-I$5)^2 -> 0.01787349807 | J46: =(VLOOKUP(CCG_heatmap!$B46,Data!$A$4:$Z$210,Data!U$2,FALSE)-J$5)^2 -> 0.05188981402 | K46: =(VLOOKUP(CCG_heatmap!$B46,Data!$A$4:$Z$210,Data!V$2,FALSE)-K$5)^2 -> 0.04784011491 | L46: =(VLOOKUP(CCG_heatmap!$B46,Data!$A$4:$Z$210,Data!W$2,FALSE)-L$5)^2 -> 9.8288495e-06 | M46: =(VLOOKUP(CCG_heatmap!$B46,Data!$A$4:$Z$210,Data!X$2,FALSE)-M$5)^2 -> 0.03794229698 | N46: =(VLOOKUP(CCG_heatmap!$B46,Data!$A$4:$Z$210,Data!Y$2,FALSE)-N$5)^2 -> 0.0006241484396 | O46: =(VLOOKUP(CCG_heatmap!$B46,Data!$A$4:$Z$210,Data!Z$2,FALSE)-O$5)^2 -> 0.2596755485 | P46: 1.114032097 | Q46: 1.114032097 | R46: 38 | S46: =IF($D$6:$O$6=1,1,0) -> 1
A47: 39 | B47: =HLOOKUP(CCG_heatmap!$D$2,'Closest CCG (codes)'!$B$1:$GZ$208,'Closest CCG (codes)'!$HA41,FALSE) -> 07K | C47: =VLOOKUP($B47,Data!$A$4:$B$210,2,FALSE) -> NHS West Suffolk CCG | D47: =(VLOOKUP(CCG_heatmap!$B47,Data!$A$4:$Z$210,Data!O$2,FALSE)-D$5)^2 -> 0.02789437034 | E47: =(VLOOKUP(CCG_heatmap!$B47,Data!$A$4:$Z$210,Data!P$2,FALSE)-E$5)^2 -> 0.09489815682 | F47: =(VLOOKUP(CCG_heatmap!$B47,Data!$A$4:$Z$210,Data!Q$2,FALSE)-F$5)^2 -> 0.06241991775 | G47: =(VLOOKUP(CCG_heatmap!$B47,Data!$A$4:$Z$210,Data!R$2,FALSE)-G$5)^2 -> 0.01348602372 | H47: =(VLOOKUP(CCG_heatmap!$B47,Data!$A$4:$Z$210,Data!S$2,FALSE)-H$5)^2 -> 0.1464386657 | I47: =(VLOOKUP(CCG_heatmap!$B47,Data!$A$4:$Z$210,Data!T$2,FALSE)-I$5)^2 -> 0.01457326872 | J47: =(VLOOKUP(CCG_heatmap!$B47,Data!$A$4:$Z$210,Data!U$2,FALSE)-J$5)^2 -> 0.00180682488 | K47: =(VLOOKUP(CCG_heatmap!$B47,Data!$A$4:$Z$210,Data!V$2,FALSE)-K$5)^2 -> 0.5207659607 | L47: =(VLOOKUP(CCG_heatmap!$B47,Data!$A$4:$Z$210,Data!W$2,FALSE)-L$5)^2 -> 0.0001132776783 | M47: =(VLOOKUP(CCG_heatmap!$B47,Data!$A$4:$Z$210,Data!X$2,FALSE)-M$5)^2 -> 0.01010269491 | N47: =(VLOOKUP(CCG_heatmap!$B47,Data!$A$4:$Z$210,Data!Y$2,FALSE)-N$5)^2 -> 0.003094994605 | O47: =(VLOOKUP(CCG_heatmap!$B47,Data!$A$4:$Z$210,Data!Z$2,FALSE)-O$5)^2 -> 0.2267814273 | P47: 1.122375583 | Q47: 1.122375583 | R47: 39 | S47: =IF($D$6:$O$6=1,1,0) -> 1
A48: 40 | B48: =HLOOKUP(CCG_heatmap!$D$2,'Closest CCG (codes)'!$B$1:$GZ$208,'Closest CCG (codes)'!$HA42,FALSE) -> 04D | C48: =VLOOKUP($B48,Data!$A$4:$B$210,2,FALSE) -> NHS Lincolnshire West CCG | D48: =(VLOOKUP(CCG_heatmap!$B48,Data!$A$4:$Z$210,Data!O$2,FALSE)-D$5)^2 -> 0.004385108762 | E48: =(VLOOKUP(CCG_heatmap!$B48,Data!$A$4:$Z$210,Data!P$2,FALSE)-E$5)^2 -> 0.02336835779 | F48: =(VLOOKUP(CCG_heatmap!$B48,Data!$A$4:$Z$210,Data!Q$2,FALSE)-F$5)^2 -> 0.04710298975 | G48: =(VLOOKUP(CCG_heatmap!$B48,Data!$A$4:$Z$210,Data!R$2,FALSE)-G$5)^2 -> 0.01241513188 | H48: =(VLOOKUP(CCG_heatmap!$B48,Data!$A$4:$Z$210,Data!S$2,FALSE)-H$5)^2 -> 0.1489783917 | I48: =(VLOOKUP(CCG_heatmap!$B48,Data!$A$4:$Z$210,Data!T$2,FALSE)-I$5)^2 -> 0.5030392614 | J48: =(VLOOKUP(CCG_heatmap!$B48,Data!$A$4:$Z$210,Data!U$2,FALSE)-J$5)^2 -> 0.02320696158 | K48: =(VLOOKUP(CCG_heatmap!$B48,Data!$A$4:$Z$210,Data!V$2,FALSE)-K$5)^2 -> 0.1041030475 | L48: =(VLOOKUP(CCG_heatmap!$B48,Data!$A$4:$Z$210,Data!W$2,FALSE)-L$5)^2 -> 0.0001927868013 | M48: =(VLOOKUP(CCG_heatmap!$B48,Data!$A$4:$Z$210,Data!X$2,FALSE)-M$5)^2 -> 0.037799195 | N48: =(VLOOKUP(CCG_heatmap!$B48,Data!$A$4:$Z$210,Data!Y$2,FALSE)-N$5)^2 -> 0.0002488808872 | O48: =(VLOOKUP(CCG_heatmap!$B48,Data!$A$4:$Z$210,Data!Z$2,FALSE)-O$5)^2 -> 0.2346517454 | P48: 1.139491859 | Q48: 1.139491859 | R48: 40 | S48: =IF($D$6:$O$6=1,1,0) -> 1
A49: 41 | B49: =HLOOKUP(CCG_heatmap!$D$2,'Closest CCG (codes)'!$B$1:$GZ$208,'Closest CCG (codes)'!$HA43,FALSE) -> 06D | C49: =VLOOKUP($B49,Data!$A$4:$B$210,2,FALSE) -> NHS Wyre Forest CCG | D49: =(VLOOKUP(CCG_heatmap!$B49,Data!$A$4:$Z$210,Data!O$2,FALSE)-D$5)^2 -> 0.005256913416 | E49: =(VLOOKUP(CCG_heatmap!$B49,Data!$A$4:$Z$210,Data!P$2,FALSE)-E$5)^2 -> 0.02455232353 | F49: =(VLOOKUP(CCG_heatmap!$B49,Data!$A$4:$Z$210,Data!Q$2,FALSE)-F$5)^2 -> 0.01432562011 | G49: =(VLOOKUP(CCG_heatmap!$B49,Data!$A$4:$Z$210,Data!R$2,FALSE)-G$5)^2 -> 0.006308300929 | H49: =(VLOOKUP(CCG_heatmap!$B49,Data!$A$4:$Z$210,Data!S$2,FALSE)-H$5)^2 -> 0.2367671372 | I49: =(VLOOKUP(CCG_heatmap!$B49,Data!$A$4:$Z$210,Data!T$2,FALSE)-I$5)^2 -> 0.02525066912 | J49: =(VLOOKUP(CCG_heatmap!$B49,Data!$A$4:$Z$210,Data!U$2,FALSE)-J$5)^2 -> 0.01345534608 | K49: =(VLOOKUP(CCG_heatmap!$B49,Data!$A$4:$Z$210,Data!V$2,FALSE)-K$5)^2 -> 0.004721579025 | L49: =(VLOOKUP(CCG_heatmap!$B49,Data!$A$4:$Z$210,Data!W$2,FALSE)-L$5)^2 -> 0.005535930964 | M49: =(VLOOKUP(CCG_heatmap!$B49,Data!$A$4:$Z$210,Data!X$2,FALSE)-M$5)^2 -> 0.582039551 | N49: =(VLOOKUP(CCG_heatmap!$B49,Data!$A$4:$Z$210,Data!Y$2,FALSE)-N$5)^2 -> 0.0002782490244 | O49: =(VLOOKUP(CCG_heatmap!$B49,Data!$A$4:$Z$210,Data!Z$2,FALSE)-O$5)^2 -> 0.2225930327 | P49: 1.141084653 | Q49: 1.141084653 | R49: 41 | S49: =IF($D$6:$O$6=1,1,0) -> 1
A50: 42 | B50: =HLOOKUP(CCG_heatmap!$D$2,'Closest CCG (codes)'!$B$1:$GZ$208,'Closest CCG (codes)'!$HA44,FALSE) -> 05Q | C50: =VLOOKUP($B50,Data!$A$4:$B$210,2,FALSE) -> NHS South East Staffs and Seisdon Peninsular CCG | D50: =(VLOOKUP(CCG_heatmap!$B50,Data!$A$4:$Z$210,Data!O$2,FALSE)-D$5)^2 -> 0.03693493877 | E50: =(VLOOKUP(CCG_heatmap!$B50,Data!$A$4:$Z$210,Data!P$2,FALSE)-E$5)^2 -> 0.04412677816 | F50: =(VLOOKUP(CCG_heatmap!$B50,Data!$A$4:$Z$210,Data!Q$2,FALSE)-F$5)^2 -> 0.02653624519 | G50: =(VLOOKUP(CCG_heatmap!$B50,Data!$A$4:$Z$210,Data!R$2,FALSE)-G$5)^2 -> 0.003294692676 | H50: =(VLOOKUP(CCG_heatmap!$B50,Data!$A$4:$Z$210,Data!S$2,FALSE)-H$5)^2 -> 0.08068780001 | I50: =(VLOOKUP(CCG_heatmap!$B50,Data!$A$4:$Z$210,Data!T$2,FALSE)-I$5)^2 -> 9.279376544e-05 | J50: =(VLOOKUP(CCG_heatmap!$B50,Data!$A$4:$Z$210,Data!U$2,FALSE)-J$5)^2 -> 0.0119231924 | K50: =(VLOOKUP(CCG_heatmap!$B50,Data!$A$4:$Z$210,Data!V$2,FALSE)-K$5)^2 -> 0.07741302291 | L50: =(VLOOKUP(CCG_heatmap!$B50,Data!$A$4:$Z$210,Data!W$2,FALSE)-L$5)^2 -> 0.004899344798 | M50: =(VLOOKUP(CCG_heatmap!$B50,Data!$A$4:$Z$210,Data!X$2,FALSE)-M$5)^2 -> 0.6508524289 | N50: =(VLOOKUP(CCG_heatmap!$B50,Data!$A$4:$Z$210,Data!Y$2,FALSE)-N$5)^2 -> 0.0005152788526 | O50: =(VLOOKUP(CCG_heatmap!$B50,Data!$A$4:$Z$210,Data!Z$2,FALSE)-O$5)^2 -> 0.2200912873 | P50: 1.157367804 | Q50: 1.157367804 | R50: 42 | S50: =IF($D$6:$O$6=1,1,0) -> 1
A51: 43 | B51: =HLOOKUP(CCG_heatmap!$D$2,'Closest CCG (codes)'!$B$1:$GZ$208,'Closest CCG (codes)'!$HA45,FALSE) -> 10V | C51: =VLOOKUP($B51,Data!$A$4:$B$210,2,FALSE) -> NHS South Eastern Hampshire CCG | D51: =(VLOOKUP(CCG_heatmap!$B51,Data!$A$4:$Z$210,Data!O$2,FALSE)-D$5)^2 -> 0.03625490379 | E51: =(VLOOKUP(CCG_heatmap!$B51,Data!$A$4:$Z$210,Data!P$2,FALSE)-E$5)^2 -> 0.06897377143 | F51: =(VLOOKUP(CCG_heatmap!$B51,Data!$A$4:$Z$210,Data!Q$2,FALSE)-F$5)^2 -> 0.0232925875 | G51: =(VLOOKUP(CCG_heatmap!$B51,Data!$A$4:$Z$210,Data!R$2,FALSE)-G$5)^2 -> 0.003903405482 | H51: =(VLOOKUP(CCG_heatmap!$B51,Data!$A$4:$Z$210,Data!S$2,FALSE)-H$5)^2 -> 0.08777600567 | I51: =(VLOOKUP(CCG_heatmap!$B51,Data!$A$4:$Z$210,Data!T$2,FALSE)-I$5)^2 -> 2.330837659e-06 | J51: =(VLOOKUP(CCG_heatmap!$B51,Data!$A$4:$Z$210,Data!U$2,FALSE)-J$5)^2 -> 0.02204087447 | K51: =(VLOOKUP(CCG_heatmap!$B51,Data!$A$4:$Z$210,Data!V$2,FALSE)-K$5)^2 -> 0.03801784811 | L51: =(VLOOKUP(CCG_heatmap!$B51,Data!$A$4:$Z$210,Data!W$2,FALSE)-L$5)^2 -> 0.008758397545 | M51: =(VLOOKUP(CCG_heatmap!$B51,Data!$A$4:$Z$210,Data!X$2,FALSE)-M$5)^2 -> 0.6449594946 | N51: =(VLOOKUP(CCG_heatmap!$B51,Data!$A$4:$Z$210,Data!Y$2,FALSE)-N$5)^2 -> 2.101930988e-06 | O51: =(VLOOKUP(CCG_heatmap!$B51,Data!$A$4:$Z$210,Data!Z$2,FALSE)-O$5)^2 -> 0.2344468129 | P51: 1.168428534 | Q51: 1.168428534 | R51: 43 | S51: =IF($D$6:$O$6=1,1,0) -> 1
A52: 44 | B52: =HLOOKUP(CCG_heatmap!$D$2,'Closest CCG (codes)'!$B$1:$GZ$208,'Closest CCG (codes)'!$HA46,FALSE) -> 06T | C52: =VLOOKUP($B52,Data!$A$4:$B$210,2,FALSE) -> NHS North East Essex CCG | D52: =(VLOOKUP(CCG_heatmap!$B52,Data!$A$4:$Z$210,Data!O$2,FALSE)-D$5)^2 -> 0.01313347063 | E52: =(VLOOKUP(CCG_heatmap!$B52,Data!$A$4:$Z$210,Data!P$2,FALSE)-E$5)^2 -> 0.003125182875 | F52: =(VLOOKUP(CCG_heatmap!$B52,Data!$A$4:$Z$210,Data!Q$2,FALSE)-F$5)^2 -> 0.2732236527 | G52: =(VLOOKUP(CCG_heatmap!$B52,Data!$A$4:$Z$210,Data!R$2,FALSE)-G$5)^2 -> 0.001530370551 | H52: =(VLOOKUP(CCG_heatmap!$B52,Data!$A$4:$Z$210,Data!S$2,FALSE)-H$5)^2 -> 0.117012692 | I52: =(VLOOKUP(CCG_heatmap!$B52,Data!$A$4:$Z$210,Data!T$2,FALSE)-I$5)^2 -> 0.2108739398 | J52: =(VLOOKUP(CCG_heatmap!$B52,Data!$A$4:$Z$210,Data!U$2,FALSE)-J$5)^2 -> 0.003669154707 | K52: =(VLOOKUP(CCG_heatmap!$B52,Data!$A$4:$Z$210,Data!V$2,FALSE)-K$5)^2 -> 0.0001580004383 | L52: =(VLOOKUP(CCG_heatmap!$B52,Data!$A$4:$Z$210,Data!W$2,FALSE)-L$5)^2 -> 0.00492306367 | M52: =(VLOOKUP(CCG_heatmap!$B52,Data!$A$4:$Z$210,Data!X$2,FALSE)-M$5)^2 -> 0.3750992359 | N52: =(VLOOKUP(CCG_heatmap!$B52,Data!$A$4:$Z$210,Data!Y$2,FALSE)-N$5)^2 -> 0.006583033989 | O52: =(VLOOKUP(CCG_heatmap!$B52,Data!$A$4:$Z$210,Data!Z$2,FALSE)-O$5)^2 -> 0.1646172967 | P52: 1.173949094 | Q52: 1.173949094 | R52: 44 | S52: =IF($D$6:$O$6=1,1,0) -> 1
A53: 45 | B53: =HLOOKUP(CCG_heatmap!$D$2,'Closest CCG (codes)'!$B$1:$GZ$208,'Closest CCG (codes)'!$HA47,FALSE) -> 03T | C53: =VLOOKUP($B53,Data!$A$4:$B$210,2,FALSE) -> NHS Lincolnshire East CCG | D53: =(VLOOKUP(CCG_heatmap!$B53,Data!$A$4:$Z$210,Data!O$2,FALSE)-D$5)^2 -> 0.1059543843 | E53: =(VLOOKUP(CCG_heatmap!$B53,Data!$A$4:$Z$210,Data!P$2,FALSE)-E$5)^2 -> 0.07043925562 | F53: =(VLOOKUP(CCG_heatmap!$B53,Data!$A$4:$Z$210,Data!Q$2,FALSE)-F$5)^2 -> 0.06072663815 | G53: =(VLOOKUP(CCG_heatmap!$B53,Data!$A$4:$Z$210,Data!R$2,FALSE)-G$5)^2 -> 0.093480289 | H53: =(VLOOKUP(CCG_heatmap!$B53,Data!$A$4:$Z$210,Data!S$2,FALSE)-H$5)^2 -> 0.3399217516 | I53: =(VLOOKUP(CCG_heatmap!$B53,Data!$A$4:$Z$210,Data!T$2,FALSE)-I$5)^2 -> 0.0170510831 | J53: =(VLOOKUP(CCG_heatmap!$B53,Data!$A$4:$Z$210,Data!U$2,FALSE)-J$5)^2 -> 0.07855783991 | K53: =(VLOOKUP(CCG_heatmap!$B53,Data!$A$4:$Z$210,Data!V$2,FALSE)-K$5)^2 -> 0.03908382216 | L53: =(VLOOKUP(CCG_heatmap!$B53,Data!$A$4:$Z$210,Data!W$2,FALSE)-L$5)^2 -> 6.942894152e-05 | M53: =(VLOOKUP(CCG_heatmap!$B53,Data!$A$4:$Z$210,Data!X$2,FALSE)-M$5)^2 -> 0.1175622468 | N53: =(VLOOKUP(CCG_heatmap!$B53,Data!$A$4:$Z$210,Data!Y$2,FALSE)-N$5)^2 -> 0.0001214586688 | O53: =(VLOOKUP(CCG_heatmap!$B53,Data!$A$4:$Z$210,Data!Z$2,FALSE)-O$5)^2 -> 0.2591279418 | P53: 1.18209614 | Q53: 1.18209614 | R53: 45 | S53: =IF($D$6:$O$6=1,1,0) -> 1
A54: 46 | B54: =HLOOKUP(CCG_heatmap!$D$2,'Closest CCG (codes)'!$B$1:$GZ$208,'Closest CCG (codes)'!$HA48,FALSE) -> 03A | C54: =VLOOKUP($B54,Data!$A$4:$B$210,2,FALSE) -> NHS Greater Huddersfield CCG | D54: =(VLOOKUP(CCG_heatmap!$B54,Data!$A$4:$Z$210,Data!O$2,FALSE)-D$5)^2 -> 0.01468645247 | E54: =(VLOOKUP(CCG_heatmap!$B54,Data!$A$4:$Z$210,Data!P$2,FALSE)-E$5)^2 -> 0.0008877954475 | F54: =(VLOOKUP(CCG_heatmap!$B54,Data!$A$4:$Z$210,Data!Q$2,FALSE)-F$5)^2 -> 0.05939228853 | G54: =(VLOOKUP(CCG_heatmap!$B54,Data!$A$4:$Z$210,Data!R$2,FALSE)-G$5)^2 -> 0.03393363394 | H54: =(VLOOKUP(CCG_heatmap!$B54,Data!$A$4:$Z$210,Data!S$2,FALSE)-H$5)^2 -> 0.0002670173382 | I54: =(VLOOKUP(CCG_heatmap!$B54,Data!$A$4:$Z$210,Data!T$2,FALSE)-I$5)^2 -> 0.3579361325 | J54: =(VLOOKUP(CCG_heatmap!$B54,Data!$A$4:$Z$210,Data!U$2,FALSE)-J$5)^2 -> 0.1572314289 | K54: =(VLOOKUP(CCG_heatmap!$B54,Data!$A$4:$Z$210,Data!V$2,FALSE)-K$5)^2 -> 0.05387217347 | L54: =(VLOOKUP(CCG_heatmap!$B54,Data!$A$4:$Z$210,Data!W$2,FALSE)-L$5)^2 -> 0.01608219717 | M54: =(VLOOKUP(CCG_heatmap!$B54,Data!$A$4:$Z$210,Data!X$2,FALSE)-M$5)^2 -> 0.3783444622 | N54: =(VLOOKUP(CCG_heatmap!$B54,Data!$A$4:$Z$210,Data!Y$2,FALSE)-N$5)^2 -> 0.1060126779 | O54: =(VLOOKUP(CCG_heatmap!$B54,Data!$A$4:$Z$210,Data!Z$2,FALSE)-O$5)^2 -> 0.004959954 | P54: 1.183606214 | Q54: 1.183606214 | R54: 46 | S54: =IF($D$6:$O$6=1,1,0) -> 1
A55: 47 | B55: =HLOOKUP(CCG_heatmap!$D$2,'Closest CCG (codes)'!$B$1:$GZ$208,'Closest CCG (codes)'!$HA49,FALSE) -> 01E | C55: =VLOOKUP($B55,Data!$A$4:$B$210,2,FALSE) -> NHS Greater Preston CCG | D55: =(VLOOKUP(CCG_heatmap!$B55,Data!$A$4:$Z$210,Data!O$2,FALSE)-D$5)^2 -> 0.01601069688 | E55: =(VLOOKUP(CCG_heatmap!$B55,Data!$A$4:$Z$210,Data!P$2,FALSE)-E$5)^2 -> 0.09097911714 | F55: =(VLOOKUP(CCG_heatmap!$B55,Data!$A$4:$Z$210,Data!Q$2,FALSE)-F$5)^2 -> 0.02329089682 | G55: =(VLOOKUP(CCG_heatmap!$B55,Data!$A$4:$Z$210,Data!R$2,FALSE)-G$5)^2 -> 0.06282506661 | H55: =(VLOOKUP(CCG_heatmap!$B55,Data!$A$4:$Z$210,Data!S$2,FALSE)-H$5)^2 -> 0.00442201776 | I55: =(VLOOKUP(CCG_heatmap!$B55,Data!$A$4:$Z$210,Data!T$2,FALSE)-I$5)^2 -> 0.5650615907 | J55: =(VLOOKUP(CCG_heatmap!$B55,Data!$A$4:$Z$210,Data!U$2,FALSE)-J$5)^2 -> 0.1558565403 | K55: =(VLOOKUP(CCG_heatmap!$B55,Data!$A$4:$Z$210,Data!V$2,FALSE)-K$5)^2 -> 6.011163319e-05 | L55: =(VLOOKUP(CCG_heatmap!$B55,Data!$A$4:$Z$210,Data!W$2,FALSE)-L$5)^2 -> 0.006151245102 | M55: =(VLOOKUP(CCG_heatmap!$B55,Data!$A$4:$Z$210,Data!X$2,FALSE)-M$5)^2 -> 0.2513347976 | N55: =(VLOOKUP(CCG_heatmap!$B55,Data!$A$4:$Z$210,Data!Y$2,FALSE)-N$5)^2 -> 0.004096124023 | O55: =(VLOOKUP(CCG_heatmap!$B55,Data!$A$4:$Z$210,Data!Z$2,FALSE)-O$5)^2 -> 0.008068433926 | P55: 1.188156638 | Q55: 1.188156638 | R55: 47 | S55: =IF($D$6:$O$6=1,1,0) -> 1
A56: 48 | B56: =HLOOKUP(CCG_heatmap!$D$2,'Closest CCG (codes)'!$B$1:$GZ$208,'Closest CCG (codes)'!$HA50,FALSE) -> 04N | C56: =VLOOKUP($B56,Data!$A$4:$B$210,2,FALSE) -> NHS Rushcliffe CCG | D56: =(VLOOKUP(CCG_heatmap!$B56,Data!$A$4:$Z$210,Data!O$2,FALSE)-D$5)^2 -> 0.3048946824 | E56: =(VLOOKUP(CCG_heatmap!$B56,Data!$A$4:$Z$210,Data!P$2,FALSE)-E$5)^2 -> 0.3651771816 | F56: =(VLOOKUP(CCG_heatmap!$B56,Data!$A$4:$Z$210,Data!Q$2,FALSE)-F$5)^2 -> 0.008447733186 | G56: =(VLOOKUP(CCG_heatmap!$B56,Data!$A$4:$Z$210,Data!R$2,FALSE)-G$5)^2 -> 0.005689666845 | H56: =(VLOOKUP(CCG_heatmap!$B56,Data!$A$4:$Z$210,Data!S$2,FALSE)-H$5)^2 -> 0.008718648376 | I56: =(VLOOKUP(CCG_heatmap!$B56,Data!$A$4:$Z$210,Data!T$2,FALSE)-I$5)^2 -> 0.003203854622 | J56: =(VLOOKUP(CCG_heatmap!$B56,Data!$A$4:$Z$210,Data!U$2,FALSE)-J$5)^2 -> 0.001167010855 | K56: =(VLOOKUP(CCG_heatmap!$B56,Data!$A$4:$Z$210,Data!V$2,FALSE)-K$5)^2 -> 0.1985703299 | L56: =(VLOOKUP(CCG_heatmap!$B56,Data!$A$4:$Z$210,Data!W$2,FALSE)-L$5)^2 -> 0.0008583725905 | M56: =(VLOOKUP(CCG_heatmap!$B56,Data!$A$4:$Z$210,Data!X$2,FALSE)-M$5)^2 -> 0.2028762198 | N56: =(VLOOKUP(CCG_heatmap!$B56,Data!$A$4:$Z$210,Data!Y$2,FALSE)-N$5)^2 -> 0.0009143267092 | O56: =(VLOOKUP(CCG_heatmap!$B56,Data!$A$4:$Z$210,Data!Z$2,FALSE)-O$5)^2 -> 0.108605872 | P56: 1.209123899 | Q56: 1.209123899 | R56: 48 | S56: =IF($D$6:$O$6=1,1,0) -> 1
A57: 49 | B57: =HLOOKUP(CCG_heatmap!$D$2,'Closest CCG (codes)'!$B$1:$GZ$208,'Closest CCG (codes)'!$HA51,FALSE) -> 10Y | C57: =VLOOKUP($B57,Data!$A$4:$B$210,2,FALSE) -> NHS Aylesbury Vale CCG | D57: =(VLOOKUP(CCG_heatmap!$B57,Data!$A$4:$Z$210,Data!O$2,FALSE)-D$5)^2 -> 0.1697569301 | E57: =(VLOOKUP(CCG_heatmap!$B57,Data!$A$4:$Z$210,Data!P$2,FALSE)-E$5)^2 -> 0.4326485823 | F57: =(VLOOKUP(CCG_heatmap!$B57,Data!$A$4:$Z$210,Data!Q$2,FALSE)-F$5)^2 -> 0.02224291708 | G57: =(VLOOKUP(CCG_heatmap!$B57,Data!$A$4:$Z$210,Data!R$2,FALSE)-G$5)^2 -> 0.1247815078 | H57: =(VLOOKUP(CCG_heatmap!$B57,Data!$A$4:$Z$210,Data!S$2,FALSE)-H$5)^2 -> 0.05270467611 | I57: =(VLOOKUP(CCG_heatmap!$B57,Data!$A$4:$Z$210,Data!T$2,FALSE)-I$5)^2 -> 0.001327240167 | J57: =(VLOOKUP(CCG_heatmap!$B57,Data!$A$4:$Z$210,Data!U$2,FALSE)-J$5)^2 -> 0.1266996788 | K57: =(VLOOKUP(CCG_heatmap!$B57,Data!$A$4:$Z$210,Data!V$2,FALSE)-K$5)^2 -> 0.1941465479 | L57: =(VLOOKUP(CCG_heatmap!$B57,Data!$A$4:$Z$210,Data!W$2,FALSE)-L$5)^2 -> 0.0002520296153 | M57: =(VLOOKUP(CCG_heatmap!$B57,Data!$A$4:$Z$210,Data!X$2,FALSE)-M$5)^2 -> 0.006514786411 | N57: =(VLOOKUP(CCG_heatmap!$B57,Data!$A$4:$Z$210,Data!Y$2,FALSE)-N$5)^2 -> 0.02981861269 | O57: =(VLOOKUP(CCG_heatmap!$B57,Data!$A$4:$Z$210,Data!Z$2,FALSE)-O$5)^2 -> 0.06027745845 | P57: 1.221170967 | Q57: 1.221170967 | R57: 49 | S57: =IF($D$6:$O$6=1,1,0) -> 1
A58: 50 | B58: =HLOOKUP(CCG_heatmap!$D$2,'Closest CCG (codes)'!$B$1:$GZ$208,'Closest CCG (codes)'!$HA52,FALSE) -> 09L | C58: =VLOOKUP($B58,Data!$A$4:$B$210,2,FALSE) -> NHS East Surrey CCG | D58: =(VLOOKUP(CCG_heatmap!$B58,Data!$A$4:$Z$210,Data!O$2,FALSE)-D$5)^2 -> 0.1620375477 | E58: =(VLOOKUP(CCG_heatmap!$B58,Data!$A$4:$Z$210,Data!P$2,FALSE)-E$5)^2 -> 0.3034440269 | F58: =(VLOOKUP(CCG_heatmap!$B58,Data!$A$4:$Z$210,Data!Q$2,FALSE)-F$5)^2 -> 0.004049754048 | G58: =(VLOOKUP(CCG_heatmap!$B58,Data!$A$4:$Z$210,Data!R$2,FALSE)-G$5)^2 -> 0.2057329296 | H58: =(VLOOKUP(CCG_heatmap!$B58,Data!$A$4:$Z$210,Data!S$2,FALSE)-H$5)^2 -> 0.04726501455 | I58: =(VLOOKUP(CCG_heatmap!$B58,Data!$A$4:$Z$210,Data!T$2,FALSE)-I$5)^2 -> 0.01029530609 | J58: =(VLOOKUP(CCG_heatmap!$B58,Data!$A$4:$Z$210,Data!U$2,FALSE)-J$5)^2 -> 0.08122608368 | K58: =(VLOOKUP(CCG_heatmap!$B58,Data!$A$4:$Z$210,Data!V$2,FALSE)-K$5)^2 -> 0.0005673629419 | L58: =(VLOOKUP(CCG_heatmap!$B58,Data!$A$4:$Z$210,Data!W$2,FALSE)-L$5)^2 -> 0.007181085643 | M58: =(VLOOKUP(CCG_heatmap!$B58,Data!$A$4:$Z$210,Data!X$2,FALSE)-M$5)^2 -> 0.2954609704 | N58: =(VLOOKUP(CCG_heatmap!$B58,Data!$A$4:$Z$210,Data!Y$2,FALSE)-N$5)^2 -> 0.01793768099 | O58: =(VLOOKUP(CCG_heatmap!$B58,Data!$A$4:$Z$210,Data!Z$2,FALSE)-O$5)^2 -> 0.09795167977 | P58: 1.233149442 | Q58: 1.233149442 | R58: 50 | S58: =IF($D$6:$O$6=1,1,0) -> 1
A59: 51 | B59: =HLOOKUP(CCG_heatmap!$D$2,'Closest CCG (codes)'!$B$1:$GZ$208,'Closest CCG (codes)'!$HA53,FALSE) -> 02E | C59: =VLOOKUP($B59,Data!$A$4:$B$210,2,FALSE) -> NHS Warrington CCG | D59: =(VLOOKUP(CCG_heatmap!$B59,Data!$A$4:$Z$210,Data!O$2,FALSE)-D$5)^2 -> 0.0001736392055 | E59: =(VLOOKUP(CCG_heatmap!$B59,Data!$A$4:$Z$210,Data!P$2,FALSE)-E$5)^2 -> 0.03663022021 | F59: =(VLOOKUP(CCG_heatmap!$B59,Data!$A$4:$Z$210,Data!Q$2,FALSE)-F$5)^2 -> 0.02602710593 | G59: =(VLOOKUP(CCG_heatmap!$B59,Data!$A$4:$Z$210,Data!R$2,FALSE)-G$5)^2 -> 0.02544941846 | H59: =(VLOOKUP(CCG_heatmap!$B59,Data!$A$4:$Z$210,Data!S$2,FALSE)-H$5)^2 -> 0.002985328805 | I59: =(VLOOKUP(CCG_heatmap!$B59,Data!$A$4:$Z$210,Data!T$2,FALSE)-I$5)^2 -> 0.00382969143 | J59: =(VLOOKUP(CCG_heatmap!$B59,Data!$A$4:$Z$210,Data!U$2,FALSE)-J$5)^2 -> 0.1181478601 | K59: =(VLOOKUP(CCG_heatmap!$B59,Data!$A$4:$Z$210,Data!V$2,FALSE)-K$5)^2 -> 0.00127731514 | L59: =(VLOOKUP(CCG_heatmap!$B59,Data!$A$4:$Z$210,Data!W$2,FALSE)-L$5)^2 -> 0.04011653786 | M59: =(VLOOKUP(CCG_heatmap!$B59,Data!$A$4:$Z$210,Data!X$2,FALSE)-M$5)^2 -> 0.8259168924 | N59: =(VLOOKUP(CCG_heatmap!$B59,Data!$A$4:$Z$210,Data!Y$2,FALSE)-N$5)^2 -> 1.859550441e-05 | O59: =(VLOOKUP(CCG_heatmap!$B59,Data!$A$4:$Z$210,Data!Z$2,FALSE)-O$5)^2 -> 0.1736407146 | P59: 1.25421332 | Q59: 1.25421332 | R59: 51 | S59: =IF($D$6:$O$6=1,1,0) -> 1
